Workbook

Sheet Verbraucher_Consommateurs
A1: =Text!C2 -> QM Holzheizwerke
A3: =Text!C3 -> Projekt/Variante: | B3: =Text!C5 -> Musterbeispiel (Linie 1)
B4: =Text!C6 -> Musterbeispiel (Linie 2)
B5: =Text!C7 -> Musterbeispiel (Linie 3)
A6: =Text!C4 -> Erfasst von: | B6: =Text!C8 -> Musterplaner
A7: =Text!C14 -> Datum: | B7: 2014-05-02
A9: =Text!C9 -> Eingaben Hauptplaner
A11: =Text!C10 -> Allgemeines | B11: =Text!C11 -> Nummer | C11: 1 | D11: =IF(AND(ISBLANK(C19)=TRUE,ISBLANK(C20)=TRUE,ISBLANK(C23)=TRUE,ISBLANK(C24)=TRUE,ISBLANK(C25)=TRUE,ISBLANK(C26)=TRUE),"",C11+1) -> 2 | E11: =IF(AND(ISBLANK(D19)=TRUE,ISBLANK(D20)=TRUE,ISBLANK(D23)=TRUE,ISBLANK(D24)=TRUE,ISBLANK(D25)=TRUE,ISBLANK(D26)=TRUE),"",D11+1) -> 3 | F11: 4 | G11: 5 | BQ11: =IF(AND(ISBLANK(BP19)=TRUE,ISBLANK(BP20)=TRUE,ISBLANK(BP23)=TRUE,ISBLANK(BP24)=TRUE,ISBLANK(BP25)=TRUE,ISBLANK(BP26)=TRUE),"",BP11+1) ->  | EC11: =IF(AND(ISBLANK(EB19)=TRUE,ISBLANK(EB20)=TRUE,ISBLANK(EB23)=TRUE,ISBLANK(EB24)=TRUE,ISBLANK(EB25)=TRUE,ISBLANK(EB26)=TRUE),"",EB11+1) ->  | GO11: =IF(AND(ISBLANK(GN19)=TRUE,ISBLANK(GN20)=TRUE,ISBLANK(GN23)=TRUE,ISBLANK(GN24)=TRUE,ISBLANK(GN25)=TRUE,ISBLANK(GN26)=TRUE),"",GN11+1) -> 
B12: =Text!C12 -> Bezeichnung | C12: =Text!C105 -> Sanierung | D12: =Text!C110 -> Altes | E12: =Text!C115 -> Prozess | F12: =Text!C107 -> Neubau
D13: =Text!C111 -> Schulhaus | E13: =Text!C116 -> 
D14: =Text!C112 -> Musterstrasse | E14: =Text!C117 -> 
B15: =Text!C15 -> Wärmebedarfsermittlung anhand | C15: =Text!C106 -> Öl-Lieferung | D15: =Text!C113 -> Abrechnung | E15: =Text!C118 -> Messung | F15: =Text!C108 -> SIA-Norm
B16: =Text!C16 -> Energiebezugsfläche [m²] | C16: 20000 | D16: 10000 | F16: 400
B17: =Text!C17 -> Max. Vorlauftemperatur [°C] | C17: 80 | D17: 80 | E17: 80 | F17: 80
B18: =Text!C18 -> Max. Rücklauftemperatur [°C] | C18: 50 | D18: 55 | E18: 60 | F18: 60
A19: =Text!C19 -> Raumwärme | B19: =Text!C20 -> Heizwärmebedarf [MWh/a] | C19: 2000 | D19: 780 | F19: 12
B20: =Text!C21 -> Max. Wärmeleistungsbedarf Raumwärme [kW] | C20: 850 | D20: 450 | F20: 10
B21: =Text!C22 -> Korrekturfaktor Heizwärmebedarf [-] | C21: 1 | D21: 0.85 | F21: 0.7
B22: =Text!C23 -> Korrekturfaktor Aufheizspitze [-] | C22: 1 | D22: 1 | F22: 1
A23: =Text!C24 -> Warmwasser | B23: =Text!C25 -> Jahreswärmebedarf Warmwasser [MWh/a]* | C23: 560 | D23: 70 | F23: 11
B24: =Text!C26 -> Max. Wärmeleistungsbedarf Warmwasser [kW] | C24: 130 | D24: 20 | F24: 2.5
A25: =Text!C27 -> Prozesswärme | B25: =Text!C28 -> Jahreswärmebedarf Prozesswärme [MWh/a]* | E25: 500
B26: =Text!C29 -> Max. Wärmeleistungsbedarf Prozesswärme [kW] | E26: 100
A29: =Text!C31 -> Berechnete Kennzahlen
A31: =Text!C81 -> Gesamt-Wärmebedarf [MWh/a] | C31: =C19+C23+C25 -> 2560 | D31: =D19+D23+D25 -> 850 | E31: 500 | F31: 23 | G31: 0 | H31: 0 | I31: 0 | J31: 0 | K31: 0 | L31: 0 | M31: 0 | N31: 0 | O31: 0 | P31: 0 | Q31: 0 | R31: 0 | S31: 0 | T31: 0 | U31: 0 | V31: 0 | W31: 0 | X31: 0 | Y31: 0 | Z31: 0 | AA31: 0 | AB31: 0 | AC31: 0 | AD31: 0 | AE31: 0 | AF31: 0 | AG31: 0 | AH31: 0 | AI31: 0 | AJ31: 0 | AK31: 0 | AL31: 0 | AM31: 0 | AN31: 0 | AO31: 0 | AP31: 0 | AQ31: 0 | AR31: 0 | AS31: 0 | AT31: 0 | AU31: 0 | AV31: 0 | AW31: 0 | AX31: 0 | AY31: 0 | AZ31: 0 | BA31: 0 | BB31: 0 | BC31: 0 | BD31: 0 | BE31: 0 | BF31: 0 | BG31: 0 | BH31: 0 | BI31: 0 | BJ31: 0 | BK31: 0 | BL31: 0 | BM31: 0 | BN31: 0 | BO31: 0 | BP31: =BP19+BP23+BP25 -> 0 | BQ31: 0 | BR31: 0 | BS31: 0 | BT31: 0 | BU31: 0 | BV31: 0 | BW31: 0 | BX31: 0 | BY31: 0 | BZ31: 0 | CA31: 0 | CB31: 0 | CC31: 0 | CD31: 0 | CE31: 0 | CF31: 0 | CG31: 0 | CH31: 0 | CI31: 0 | CJ31: 0 | CK31: 0 | CL31: 0 | CM31: 0 | CN31: 0 | CO31: 0 | CP31: 0 | CQ31: 0 | CR31: 0 | CS31: 0 | CT31: 0 | CU31: 0 | CV31: 0 | CW31: 0 | CX31: 0 | CY31: 0 | CZ31: 0 | DA31: 0 | DB31: 0 | DC31: 0 | DD31: 0 | DE31: 0 | DF31: 0 | DG31: 0 | DH31: 0 | DI31: 0 | DJ31: 0 | DK31: 0 | DL31: 0 | DM31: 0 | DN31: 0 | DO31: 0 | DP31: 0 | DQ31: 0 | DR31: 0 | DS31: 0 | DT31: 0 | DU31: 0 | DV31: 0 | DW31: 0 | DX31: 0 | DY31: 0 | DZ31: 0 | EA31: 0 | EB31: =EB19+EB23+EB25 -> 0 | EC31: 0 | ED31: 0 | EE31: 0 | EF31: 0 | EG31: 0 | EH31: 0 | EI31: 0 | EJ31: 0 | EK31: 0 | EL31: 0 | EM31: 0 | EN31: 0 | EO31: 0 | EP31: 0 | EQ31: 0 | ER31: 0 | ES31: 0 | ET31: 0 | EU31: 0 | EV31: 0 | EW31: 0 | EX31: 0 | EY31: 0 | EZ31: 0 | FA31: 0 | FB31: 0 | FC31: 0 | FD31: 0 | FE31: 0 | FF31: 0 | FG31: 0 | FH31: 0 | FI31: 0 | FJ31: 0 | FK31: 0 | FL31: 0 | FM31: 0 | FN31: 0 | FO31: 0 | FP31: 0 | FQ31: 0 | FR31: 0 | FS31: 0 | FT31: 0 | FU31: 0 | FV31: 0 | FW31: 0 | FX31: 0 | FY31: 0 | FZ31: 0 | GA31: 0 | GB31: 0 | GC31: 0 | GD31: 0 | GE31: 0 | GF31: 0 | GG31: 0 | GH31: 0 | GI31: 0 | GJ31: 0 | GK31: 0 | GL31: 0 | GM31: 0 | GN31: =GN19+GN23+GN25 -> 0 | GO31: 0 | GP31: 0 | GQ31: 0 | GR31: 0 | GS31: 0 | GT31: 0 | GU31: 0 | GV31: 0 | GW31: 0 | GX31: 0 | GY31: 0 | GZ31: 0 | HA31: 0 | HB31: 0 | HC31: 0 | HD31: 0 | HE31: 0 | HF31: 0 | HG31: 0 | HH31: 0 | HI31: 0 | HJ31: 0 | HK31: 0 | HL31: 0 | HM31: 0 | HN31: 0 | HO31: 0 | HP31: 0 | HQ31: 0 | HR31: 0 | HS31: 0 | HT31: 0 | HU31: 0 | HV31: 0 | HW31: 0 | HX31: 0 | HY31: 0 | HZ31: 0 | IA31: 0 | IB31: 0 | IC31: 0 | ID31: 0 | IE31: 0 | IF31: 0 | IG31: 0 | IH31: 0 | II31: 0 | IJ31: 0 | IK31: 0 | IL31: 0 | IM31: 0 | IN31: 0 | IO31: 0 | IP31: 0 | IQ31: 0 | IR31: 0 | IS31: 0 | IT31: 0 | IU31: 0 | IV31: 0
A32: =Text!C32 -> Raumwärme | B32: =Text!C33 -> Vollbetriebsstundenzahl Raumwärme [h/a] | C32: =IF(C20="","",ROUND(C19*1000/C20,2)) -> 2352.94 | D32: 1733.33 | F32: 1200 | BO32: =IF(BO20="","",ROUND(BO19*1000/BO20,2)) ->  | EA32: =IF(EA20="","",ROUND(EA19*1000/EA20,2)) ->  | GM32: =IF(GM20="","",ROUND(GM19*1000/GM20,2)) -> 
B33: =Text!C34 -> Spezifischer Heizwärmebedarf [kWh/m²a] | C33: =IF(C16="","",ROUND(C19*1000/C16,3)) -> 100 | D33: =IF(D16="","",ROUND(D19*1000/D16,3)) -> 78 | E33: =IF(E16="","",ROUND(E19*1000/E16,3)) ->  | F33: 30 | BQ33: =IF(BQ16="","",ROUND(BQ19*1000/BQ16,3)) ->  | EC33: =IF(EC16="","",ROUND(EC19*1000/EC16,3)) ->  | GO33: =IF(GO16="","",ROUND(GO19*1000/GO16,3)) -> 
B34: =Text!C35 -> Spezifischer Wärmeleistungsbedarf [W/m²] | C34: =IF(C16="","",ROUND(C20*1000/C16,3)) -> 42.5 | D34: =IF(D16="","",ROUND(D20*1000/D16,3)) -> 45 | E34: =IF(E16="","",ROUND(E20*1000/E16,3)) ->  | F34: 25 | BQ34: =IF(BQ16="","",ROUND(BQ20*1000/BQ16,3)) ->  | EC34: =IF(EC16="","",ROUND(EC20*1000/EC16,3)) ->  | GO34: =IF(GO16="","",ROUND(GO20*1000/GO16,3)) -> 
A35: =Text!C36 -> Warmwasser | B35: =Text!C37 -> Vollbetriebsstundenzahl Warmwasser [h/a] | C35: =IF(C24="","",ROUND(C23*1000/C24,2)) -> 4307.69 | D35: =IF(D24="","",ROUND(D23*1000/D24,2)) -> 3500 | F35: 4400 | BP35: =IF(BP24="","",ROUND(BP23*1000/BP24,2)) ->  | EB35: =IF(EB24="","",ROUND(EB23*1000/EB24,2)) ->  | GN35: =IF(GN24="","",ROUND(GN23*1000/GN24,2)) -> 
B36: =Text!C38 -> Spezifischer Energiebedarf Warmwasser [kWh/m²a] | C36: =IF(C16="","",ROUND(C23*1000/C16,3)) -> 28 | D36: =IF(D16="","",ROUND(D23*1000/D16,3)) -> 7 | F36: 27.5 | BP36: =IF(BP16="","",ROUND(BP23*1000/BP16,3)) ->  | EB36: =IF(EB16="","",ROUND(EB23*1000/EB16,3)) ->  | GN36: =IF(GN16="","",ROUND(GN23*1000/GN16,3)) -> 
A37: =Text!C39 -> Prozesswärme | B37: =Text!C40 -> Vollbetriebsstundenzahl Prozesswärme [h/a] | C37: =IF(C26="","",ROUND(C25*1000/C26,2)) ->  | D37: =IF(D26="","",ROUND(D25*1000/D26,2)) ->  | E37: 5000 | BP37: =IF(BP26="","",ROUND(BP25*1000/BP26,2)) ->  | EB37: =IF(EB26="","",ROUND(EB25*1000/EB26,2)) ->  | GN37: =IF(GN26="","",ROUND(GN25*1000/GN26,2)) -> 
A39: =Text!C42 -> * Es ist der Jahreswärmebedarf für 365 Tage einzugeben
A40: =Text!C43 -> (Winter-Wärmebedarf = Jahreswärmebedarf x Heiztage / 365 Tage)
B41: =B42 -> Situationserfassung V35
A42: =Text!C45 -> Eingabefelder | B42: Situationserfassung V35
B43: =Text!C30 -> Empfohlene Dateiformate: .xlsm oder .xls (Excel 97-2004)
A45: =Text!C13 -> Sprache:
A48: Hilfswerte | C48: =IF(C18="","",ROUND((C20+C24+C26)/(Anlage_Installation!$C$15-Verbraucher_Consommateurs!C18),3)) -> 28 | D48: =IF(D18="","",ROUND((D20+D24+D26)/(Anlage_Installation!$C$15-Verbraucher_Consommateurs!D18),3)) -> 15.667 | E48: =IF(E18="","",ROUND((E20+E24+E26)/(Anlage_Installation!$C$15-Verbraucher_Consommateurs!E18),3)) -> 4 | F48: =IF(F18="","",ROUND((F20+F24+F26)/(Anlage_Installation!$C$15-Verbraucher_Consommateurs!F18),3)) -> 0.5 | G48: =IF(G18="","",ROUND((G20+G24+G26)/(Anlage_Installation!$C$15-Verbraucher_Consommateurs!G18),3)) ->  | H48: =IF(H18="","",ROUND((H20+H24+H26)/(Anlage_Installation!$C$15-Verbraucher_Consommateurs!H18),3)) ->  | I48: =IF(I18="","",ROUND((I20+I24+I26)/(Anlage_Installation!$C$15-Verbraucher_Consommateurs!I18),3)) ->  | J48: =IF(J18="","",ROUND((J20+J24+J26)/(Anlage_Installation!$C$15-Verbraucher_Consommateurs!J18),3)) ->  | K48: =IF(K18="","",ROUND((K20+K24+K26)/(Anlage_Installation!$C$15-Verbraucher_Consommateurs!K18),3)) ->  | L48: =IF(L18="","",ROUND((L20+L24+L26)/(Anlage_Installation!$C$15-Verbraucher_Consommateurs!L18),3)) ->  | M48: =IF(M18="","",ROUND((M20+M24+M26)/(Anlage_Installation!$C$15-Verbraucher_Consommateurs!M18),3)) ->  | N48: =IF(N18="","",ROUND((N20+N24+N26)/(Anlage_Installation!$C$15-Verbraucher_Consommateurs!N18),3)) ->  | O48: =IF(O18="","",ROUND((O20+O24+O26)/(Anlage_Installation!$C$15-Verbraucher_Consommateurs!O18),3)) ->  | P48: =IF(P18="","",ROUND((P20+P24+P26)/(Anlage_Installation!$C$15-Verbraucher_Consommateurs!P18),3)) ->  | Q48: =IF(Q18="","",ROUND((Q20+Q24+Q26)/(Anlage_Installation!$C$15-Verbraucher_Consommateurs!Q18),3)) ->  | R48: =IF(R18="","",ROUND((R20+R24+R26)/(Anlage_Installation!$C$15-Verbraucher_Consommateurs!R18),3)) ->  | S48: =IF(S18="","",ROUND((S20+S24+S26)/(Anlage_Installation!$C$15-Verbraucher_Consommateurs!S18),3)) ->  | T48: =IF(T18="","",ROUND((T20+T24+T26)/(Anlage_Installation!$C$15-Verbraucher_Consommateurs!T18),3)) ->  | U48: =IF(U18="","",ROUND((U20+U24+U26)/(Anlage_Installation!$C$15-Verbraucher_Consommateurs!U18),3)) ->  | V48: =IF(V18="","",ROUND((V20+V24+V26)/(Anlage_Installation!$C$15-Verbraucher_Consommateurs!V18),3)) ->  | W48: =IF(W18="","",ROUND((W20+W24+W26)/(Anlage_Installation!$C$15-Verbraucher_Consommateurs!W18),3)) ->  | X48: =IF(X18="","",ROUND((X20+X24+X26)/(Anlage_Installation!$C$15-Verbraucher_Consommateurs!X18),3)) ->  | Y48: =IF(Y18="","",ROUND((Y20+Y24+Y26)/(Anlage_Installation!$C$15-Verbraucher_Consommateurs!Y18),3)) ->  | Z48: =IF(Z18="","",ROUND((Z20+Z24+Z26)/(Anlage_Installation!$C$15-Verbraucher_Consommateurs!Z18),3)) ->  | AA48: =IF(AA18="","",ROUND((AA20+AA24+AA26)/(Anlage_Installation!$C$15-Verbraucher_Consommateurs!AA18),3)) ->  | AB48: =IF(AB18="","",ROUND((AB20+AB24+AB26)/(Anlage_Installation!$C$15-Verbraucher_Consommateurs!AB18),3)) ->  | AC48: =IF(AC18="","",ROUND((AC20+AC24+AC26)/(Anlage_Installation!$C$15-Verbraucher_Consommateurs!AC18),3)) ->  | AD48: =IF(AD18="","",ROUND((AD20+AD24+AD26)/(Anlage_Installation!$C$15-Verbraucher_Consommateurs!AD18),3)) ->  | AE48: =IF(AE18="","",ROUND((AE20+AE24+AE26)/(Anlage_Installation!$C$15-Verbraucher_Consommateurs!AE18),3)) ->  | AF48: =IF(AF18="","",ROUND((AF20+AF24+AF26)/(Anlage_Installation!$C$15-Verbraucher_Consommateurs!AF18),3)) ->  | AG48: =IF(AG18="","",ROUND((AG20+AG24+AG26)/(Anlage_Installation!$C$15-Verbraucher_Consommateurs!AG18),3)) ->  | AH48: =IF(AH18="","",ROUND((AH20+AH24+AH26)/(Anlage_Installation!$C$15-Verbraucher_Consommateurs!AH18),3)) ->  | AI48: =IF(AI18="","",ROUND((AI20+AI24+AI26)/(Anlage_Installation!$C$15-Verbraucher_Consommateurs!AI18),3)) ->  | AJ48: =IF(AJ18="","",ROUND((AJ20+AJ24+AJ26)/(Anlage_Installation!$C$15-Verbraucher_Consommateurs!AJ18),3)) ->  | AK48: =IF(AK18="","",ROUND((AK20+AK24+AK26)/(Anlage_Installation!$C$15-Verbraucher_Consommateurs!AK18),3)) ->  | AL48: =IF(AL18="","",ROUND((AL20+AL24+AL26)/(Anlage_Installation!$C$15-Verbraucher_Consommateurs!AL18),3)) ->  | AM48: =IF(AM18="","",ROUND((AM20+AM24+AM26)/(Anlage_Installation!$C$15-Verbraucher_Consommateurs!AM18),3)) ->  | AN48: =IF(AN18="","",ROUND((AN20+AN24+AN26)/(Anlage_Installation!$C$15-Verbraucher_Consommateurs!AN18),3)) ->  | AO48: =IF(AO18="","",ROUND((AO20+AO24+AO26)/(Anlage_Installation!$C$15-Verbraucher_Consommateurs!AO18),3)) ->  | AP48: =IF(AP18="","",ROUND((AP20+AP24+AP26)/(Anlage_Installation!$C$15-Verbraucher_Consommateurs!AP18),3)) ->  | AQ48: =IF(AQ18="","",ROUND((AQ20+AQ24+AQ26)/(Anlage_Installation!$C$15-Verbraucher_Consommateurs!AQ18),3)) ->  | AR48: =IF(AR18="","",ROUND((AR20+AR24+AR26)/(Anlage_Installation!$C$15-Verbraucher_Consommateurs!AR18),3)) ->  | AS48: =IF(AS18="","",ROUND((AS20+AS24+AS26)/(Anlage_Installation!$C$15-Verbraucher_Consommateurs!AS18),3)) ->  | AT48: =IF(AT18="","",ROUND((AT20+AT24+AT26)/(Anlage_Installation!$C$15-Verbraucher_Consommateurs!AT18),3)) ->  | AU48: =IF(AU18="","",ROUND((AU20+AU24+AU26)/(Anlage_Installation!$C$15-Verbraucher_Consommateurs!AU18),3)) ->  | AV48: =IF(AV18="","",ROUND((AV20+AV24+AV26)/(Anlage_Installation!$C$15-Verbraucher_Consommateurs!AV18),3)) ->  | AW48: =IF(AW18="","",ROUND((AW20+AW24+AW26)/(Anlage_Installation!$C$15-Verbraucher_Consommateurs!AW18),3)) ->  | AX48: =IF(AX18="","",ROUND((AX20+AX24+AX26)/(Anlage_Installation!$C$15-Verbraucher_Consommateurs!AX18),3)) ->  | AY48: =IF(AY18="","",ROUND((AY20+AY24+AY26)/(Anlage_Installation!$C$15-Verbraucher_Consommateurs!AY18),3)) ->  | AZ48: =IF(AZ18="","",ROUND((AZ20+AZ24+AZ26)/(Anlage_Installation!$C$15-Verbraucher_Consommateurs!AZ18),3)) ->  | BA48: =IF(BA18="","",ROUND((BA20+BA24+BA26)/(Anlage_Installation!$C$15-Verbraucher_Consommateurs!BA18),3)) ->  | BB48: =IF(BB18="","",ROUND((BB20+BB24+BB26)/(Anlage_Installation!$C$15-Verbraucher_Consommateurs!BB18),3)) ->  | BC48: =IF(BC18="","",ROUND((BC20+BC24+BC26)/(Anlage_Installation!$C$15-Verbraucher_Consommateurs!BC18),3)) ->  | BD48: =IF(BD18="","",ROUND((BD20+BD24+BD26)/(Anlage_Installation!$C$15-Verbraucher_Consommateurs!BD18),3)) ->  | BE48: =IF(BE18="","",ROUND((BE20+BE24+BE26)/(Anlage_Installation!$C$15-Verbraucher_Consommateurs!BE18),3)) ->  | BF48: =IF(BF18="","",ROUND((BF20+BF24+BF26)/(Anlage_Installation!$C$15-Verbraucher_Consommateurs!BF18),3)) ->  | BG48: =IF(BG18="","",ROUND((BG20+BG24+BG26)/(Anlage_Installation!$C$15-Verbraucher_Consommateurs!BG18),3)) ->  | BH48: =IF(BH18="","",ROUND((BH20+BH24+BH26)/(Anlage_Installation!$C$15-Verbraucher_Consommateurs!BH18),3)) ->  | BI48: =IF(BI18="","",ROUND((BI20+BI24+BI26)/(Anlage_Installation!$C$15-Verbraucher_Consommateurs!BI18),3)) ->  | BJ48: =IF(BJ18="","",ROUND((BJ20+BJ24+BJ26)/(Anlage_Installation!$C$15-Verbraucher_Consommateurs!BJ18),3)) ->  | BK48: =IF(BK18="","",ROUND((BK20+BK24+BK26)/(Anlage_Installation!$C$15-Verbraucher_Consommateurs!BK18),3)) ->  | BL48: =IF(BL18="","",ROUND((BL20+BL24+BL26)/(Anlage_Installation!$C$15-Verbraucher_Consommateurs!BL18),3)) ->  | BM48: =IF(BM18="","",ROUND((BM20+BM24+BM26)/(Anlage_Installation!$C$15-Verbraucher_Consommateurs!BM18),3)) ->  | BN48: =IF(BN18="","",ROUND((BN20+BN24+BN26)/(Anlage_Installation!$C$15-Verbraucher_Consommateurs!BN18),3)) ->  | BO48: =IF(BO18="","",ROUND((BO20+BO24+BO26)/(Anlage_Installation!$C$15-Verbraucher_Consommateurs!BO18),3)) ->  | BP48: =IF(BP18="","",ROUND((BP20+BP24+BP26)/(Anlage_Installation!$C$15-Verbraucher_Consommateurs!BP18),3)) ->  | BQ48: =IF(BQ18="","",ROUND((BQ20+BQ24+BQ26)/(Anlage_Installation!$C$15-Verbraucher_Consommateurs!BQ18),3)) ->  | BR48: =IF(BR18="","",ROUND((BR20+BR24+BR26)/(Anlage_Installation!$C$15-Verbraucher_Consommateurs!BR18),3)) ->  | BS48: =IF(BS18="","",ROUND((BS20+BS24+BS26)/(Anlage_Installation!$C$15-Verbraucher_Consommateurs!BS18),3)) ->  | BT48: =IF(BT18="","",ROUND((BT20+BT24+BT26)/(Anlage_Installation!$C$15-Verbraucher_Consommateurs!BT18),3)) ->  | BU48: =IF(BU18="","",ROUND((BU20+BU24+BU26)/(Anlage_Installation!$C$15-Verbraucher_Consommateurs!BU18),3)) ->  | BV48: =IF(BV18="","",ROUND((BV20+BV24+BV26)/(Anlage_Installation!$C$15-Verbraucher_Consommateurs!BV18),3)) ->  | BW48: =IF(BW18="","",ROUND((BW20+BW24+BW26)/(Anlage_Installation!$C$15-Verbraucher_Consommateurs!BW18),3)) ->  | BX48: =IF(BX18="","",ROUND((BX20+BX24+BX26)/(Anlage_Installation!$C$15-Verbraucher_Consommateurs!BX18),3)) ->  | BY48: =IF(BY18="","",ROUND((BY20+BY24+BY26)/(Anlage_Installation!$C$15-Verbraucher_Consommateurs!BY18),3)) ->  | BZ48: =IF(BZ18="","",ROUND((BZ20+BZ24+BZ26)/(Anlage_Installation!$C$15-Verbraucher_Consommateurs!BZ18),3)) ->  | CA48: =IF(CA18="","",ROUND((CA20+CA24+CA26)/(Anlage_Installation!$C$15-Verbraucher_Consommateurs!CA18),3)) ->  | CB48: =IF(CB18="","",ROUND((CB20+CB24+CB26)/(Anlage_Installation!$C$15-Verbraucher_Consommateurs!CB18),3)) ->  | CC48: =IF(CC18="","",ROUND((CC20+CC24+CC26)/(Anlage_Installation!$C$15-Verbraucher_Consommateurs!CC18),3)) ->  | CD48: =IF(CD18="","",ROUND((CD20+CD24+CD26)/(Anlage_Installation!$C$15-Verbraucher_Consommateurs!CD18),3)) ->  | CE48: =IF(CE18="","",ROUND((CE20+CE24+CE26)/(Anlage_Installation!$C$15-Verbraucher_Consommateurs!CE18),3)) ->  | CF48: =IF(CF18="","",ROUND((CF20+CF24+CF26)/(Anlage_Installation!$C$15-Verbraucher_Consommateurs!CF18),3)) ->  | CG48: =IF(CG18="","",ROUND((CG20+CG24+CG26)/(Anlage_Installation!$C$15-Verbraucher_Consommateurs!CG18),3)) ->  | CH48: =IF(CH18="","",ROUND((CH20+CH24+CH26)/(Anlage_Installation!$C$15-Verbraucher_Consommateurs!CH18),3)) ->  | CI48: =IF(CI18="","",ROUND((CI20+CI24+CI26)/(Anlage_Installation!$C$15-Verbraucher_Consommateurs!CI18),3)) ->  | CJ48: =IF(CJ18="","",ROUND((CJ20+CJ24+CJ26)/(Anlage_Installation!$C$15-Verbraucher_Consommateurs!CJ18),3)) ->  | CK48: =IF(CK18="","",ROUND((CK20+CK24+CK26)/(Anlage_Installation!$C$15-Verbraucher_Consommateurs!CK18),3)) ->  | CL48: =IF(CL18="","",ROUND((CL20+CL24+CL26)/(Anlage_Installation!$C$15-Verbraucher_Consommateurs!CL18),3)) ->  | CM48: =IF(CM18="","",ROUND((CM20+CM24+CM26)/(Anlage_Installation!$C$15-Verbraucher_Consommateurs!CM18),3)) ->  | CN48: =IF(CN18="","",ROUND((CN20+CN24+CN26)/(Anlage_Installation!$C$15-Verbraucher_Consommateurs!CN18),3)) ->  | CO48: =IF(CO18="","",ROUND((CO20+CO24+CO26)/(Anlage_Installation!$C$15-Verbraucher_Consommateurs!CO18),3)) ->  | CP48: =IF(CP18="","",ROUND((CP20+CP24+CP26)/(Anlage_Installation!$C$15-Verbraucher_Consommateurs!CP18),3)) ->  | CQ48: =IF(CQ18="","",ROUND((CQ20+CQ24+CQ26)/(Anlage_Installation!$C$15-Verbraucher_Consommateurs!CQ18),3)) ->  | CR48: =IF(CR18="","",ROUND((CR20+CR24+CR26)/(Anlage_Installation!$C$15-Verbraucher_Consommateurs!CR18),3)) ->  | CS48: =IF(CS18="","",ROUND((CS20+CS24+CS26)/(Anlage_Installation!$C$15-Verbraucher_Consommateurs!CS18),3)) ->  | CT48: =IF(CT18="","",ROUND((CT20+CT24+CT26)/(Anlage_Installation!$C$15-Verbraucher_Consommateurs!CT18),3)) ->  | CU48: =IF(CU18="","",ROUND((CU20+CU24+CU26)/(Anlage_Installation!$C$15-Verbraucher_Consommateurs!CU18),3)) ->  | CV48: =IF(CV18="","",ROUND((CV20+CV24+CV26)/(Anlage_Installation!$C$15-Verbraucher_Consommateurs!CV18),3)) ->  | CW48: =IF(CW18="","",ROUND((CW20+CW24+CW26)/(Anlage_Installation!$C$15-Verbraucher_Consommateurs!CW18),3)) ->  | CX48: =IF(CX18="","",ROUND((CX20+CX24+CX26)/(Anlage_Installation!$C$15-Verbraucher_Consommateurs!CX18),3)) ->  | CY48: =IF(CY18="","",ROUND((CY20+CY24+CY26)/(Anlage_Installation!$C$15-Verbraucher_Consommateurs!CY18),3)) ->  | CZ48: =IF(CZ18="","",ROUND((CZ20+CZ24+CZ26)/(Anlage_Installation!$C$15-Verbraucher_Consommateurs!CZ18),3)) ->  | DA48: =IF(DA18="","",ROUND((DA20+DA24+DA26)/(Anlage_Installation!$C$15-Verbraucher_Consommateurs!DA18),3)) ->  | DB48: =IF(DB18="","",ROUND((DB20+DB24+DB26)/(Anlage_Installation!$C$15-Verbraucher_Consommateurs!DB18),3)) ->  | DC48: =IF(DC18="","",ROUND((DC20+DC24+DC26)/(Anlage_Installation!$C$15-Verbraucher_Consommateurs!DC18),3)) ->  | DD48: =IF(DD18="","",ROUND((DD20+DD24+DD26)/(Anlage_Installation!$C$15-Verbraucher_Consommateurs!DD18),3)) ->  | DE48: =IF(DE18="","",ROUND((DE20+DE24+DE26)/(Anlage_Installation!$C$15-Verbraucher_Consommateurs!DE18),3)) ->  | DF48: =IF(DF18="","",ROUND((DF20+DF24+DF26)/(Anlage_Installation!$C$15-Verbraucher_Consommateurs!DF18),3)) ->  | DG48: =IF(DG18="","",ROUND((DG20+DG24+DG26)/(Anlage_Installation!$C$15-Verbraucher_Consommateurs!DG18),3)) ->  | DH48: =IF(DH18="","",ROUND((DH20+DH24+DH26)/(Anlage_Installation!$C$15-Verbraucher_Consommateurs!DH18),3)) ->  | DI48: =IF(DI18="","",ROUND((DI20+DI24+DI26)/(Anlage_Installation!$C$15-Verbraucher_Consommateurs!DI18),3)) ->  | DJ48: =IF(DJ18="","",ROUND((DJ20+DJ24+DJ26)/(Anlage_Installation!$C$15-Verbraucher_Consommateurs!DJ18),3)) ->  | DK48: =IF(DK18="","",ROUND((DK20+DK24+DK26)/(Anlage_Installation!$C$15-Verbraucher_Consommateurs!DK18),3)) ->  | DL48: =IF(DL18="","",ROUND((DL20+DL24+DL26)/(Anlage_Installation!$C$15-Verbraucher_Consommateurs!DL18),3)) ->  | DM48: =IF(DM18="","",ROUND((DM20+DM24+DM26)/(Anlage_Installation!$C$15-Verbraucher_Consommateurs!DM18),3)) ->  | DN48: =IF(DN18="","",ROUND((DN20+DN24+DN26)/(Anlage_Installation!$C$15-Verbraucher_Consommateurs!DN18),3)) ->  | DO48: =IF(DO18="","",ROUND((DO20+DO24+DO26)/(Anlage_Installation!$C$15-Verbraucher_Consommateurs!DO18),3)) ->  | DP48: =IF(DP18="","",ROUND((DP20+DP24+DP26)/(Anlage_Installation!$C$15-Verbraucher_Consommateurs!DP18),3)) ->  | DQ48: =IF(DQ18="","",ROUND((DQ20+DQ24+DQ26)/(Anlage_Installation!$C$15-Verbraucher_Consommateurs!DQ18),3)) ->  | DR48: =IF(DR18="","",ROUND((DR20+DR24+DR26)/(Anlage_Installation!$C$15-Verbraucher_Consommateurs!DR18),3)) ->  | DS48: =IF(DS18="","",ROUND((DS20+DS24+DS26)/(Anlage_Installation!$C$15-Verbraucher_Consommateurs!DS18),3)) ->  | DT48: =IF(DT18="","",ROUND((DT20+DT24+DT26)/(Anlage_Installation!$C$15-Verbraucher_Consommateurs!DT18),3)) ->  | DU48: =IF(DU18="","",ROUND((DU20+DU24+DU26)/(Anlage_Installation!$C$15-Verbraucher_Consommateurs!DU18),3)) ->  | DV48: =IF(DV18="","",ROUND((DV20+DV24+DV26)/(Anlage_Installation!$C$15-Verbraucher_Consommateurs!DV18),3)) ->  | DW48: =IF(DW18="","",ROUND((DW20+DW24+DW26)/(Anlage_Installation!$C$15-Verbraucher_Consommateurs!DW18),3)) ->  | DX48: =IF(DX18="","",ROUND((DX20+DX24+DX26)/(Anlage_Installation!$C$15-Verbraucher_Consommateurs!DX18),3)) ->  | DY48: =IF(DY18="","",ROUND((DY20+DY24+DY26)/(Anlage_Installation!$C$15-Verbraucher_Consommateurs!DY18),3)) ->  | DZ48: =IF(DZ18="","",ROUND((DZ20+DZ24+DZ26)/(Anlage_Installation!$C$15-Verbraucher_Consommateurs!DZ18),3)) ->  | EA48: =IF(EA18="","",ROUND((EA20+EA24+EA26)/(Anlage_Installation!$C$15-Verbraucher_Consommateurs!EA18),3)) ->  | EB48: =IF(EB18="","",ROUND((EB20+EB24+EB26)/(Anlage_Installation!$C$15-Verbraucher_Consommateurs!EB18),3)) ->  | EC48: =IF(EC18="","",ROUND((EC20+EC24+EC26)/(Anlage_Installation!$C$15-Verbraucher_Consommateurs!EC18),3)) ->  | ED48: =IF(ED18="","",ROUND((ED20+ED24+ED26)/(Anlage_Installation!$C$15-Verbraucher_Consommateurs!ED18),3)) ->  | EE48: =IF(EE18="","",ROUND((EE20+EE24+EE26)/(Anlage_Installation!$C$15-Verbraucher_Consommateurs!EE18),3)) ->  | EF48: =IF(EF18="","",ROUND((EF20+EF24+EF26)/(Anlage_Installation!$C$15-Verbraucher_Consommateurs!EF18),3)) ->  | EG48: =IF(EG18="","",ROUND((EG20+EG24+EG26)/(Anlage_Installation!$C$15-Verbraucher_Consommateurs!EG18),3)) ->  | EH48: =IF(EH18="","",ROUND((EH20+EH24+EH26)/(Anlage_Installation!$C$15-Verbraucher_Consommateurs!EH18),3)) ->  | EI48: =IF(EI18="","",ROUND((EI20+EI24+EI26)/(Anlage_Installation!$C$15-Verbraucher_Consommateurs!EI18),3)) ->  | EJ48: =IF(EJ18="","",ROUND((EJ20+EJ24+EJ26)/(Anlage_Installation!$C$15-Verbraucher_Consommateurs!EJ18),3)) ->  | EK48: =IF(EK18="","",ROUND((EK20+EK24+EK26)/(Anlage_Installation!$C$15-Verbraucher_Consommateurs!EK18),3)) ->  | EL48: =IF(EL18="","",ROUND((EL20+EL24+EL26)/(Anlage_Installation!$C$15-Verbraucher_Consommateurs!EL18),3)) ->  | EM48: =IF(EM18="","",ROUND((EM20+EM24+EM26)/(Anlage_Installation!$C$15-Verbraucher_Consommateurs!EM18),3)) ->  | EN48: =IF(EN18="","",ROUND((EN20+EN24+EN26)/(Anlage_Installation!$C$15-Verbraucher_Consommateurs!EN18),3)) ->  | EO48: =IF(EO18="","",ROUND((EO20+EO24+EO26)/(Anlage_Installation!$C$15-Verbraucher_Consommateurs!EO18),3)) ->  | EP48: =IF(EP18="","",ROUND((EP20+EP24+EP26)/(Anlage_Installation!$C$15-Verbraucher_Consommateurs!EP18),3)) ->  | EQ48: =IF(EQ18="","",ROUND((EQ20+EQ24+EQ26)/(Anlage_Installation!$C$15-Verbraucher_Consommateurs!EQ18),3)) ->  | ER48: =IF(ER18="","",ROUND((ER20+ER24+ER26)/(Anlage_Installation!$C$15-Verbraucher_Consommateurs!ER18),3)) ->  | ES48: =IF(ES18="","",ROUND((ES20+ES24+ES26)/(Anlage_Installation!$C$15-Verbraucher_Consommateurs!ES18),3)) ->  | ET48: =IF(ET18="","",ROUND((ET20+ET24+ET26)/(Anlage_Installation!$C$15-Verbraucher_Consommateurs!ET18),3)) ->  | EU48: =IF(EU18="","",ROUND((EU20+EU24+EU26)/(Anlage_Installation!$C$15-Verbraucher_Consommateurs!EU18),3)) ->  | EV48: =IF(EV18="","",ROUND((EV20+EV24+EV26)/(Anlage_Installation!$C$15-Verbraucher_Consommateurs!EV18),3)) ->  | EW48: =IF(EW18="","",ROUND((EW20+EW24+EW26)/(Anlage_Installation!$C$15-Verbraucher_Consommateurs!EW18),3)) ->  | EX48: =IF(EX18="","",ROUND((EX20+EX24+EX26)/(Anlage_Installation!$C$15-Verbraucher_Consommateurs!EX18),3)) ->  | EY48: =IF(EY18="","",ROUND((EY20+EY24+EY26)/(Anlage_Installation!$C$15-Verbraucher_Consommateurs!EY18),3)) ->  | EZ48: =IF(EZ18="","",ROUND((EZ20+EZ24+EZ26)/(Anlage_Installation!$C$15-Verbraucher_Consommateurs!EZ18),3)) ->  | FA48: =IF(FA18="","",ROUND((FA20+FA24+FA26)/(Anlage_Installation!$C$15-Verbraucher_Consommateurs!FA18),3)) ->  | FB48: =IF(FB18="","",ROUND((FB20+FB24+FB26)/(Anlage_Installation!$C$15-Verbraucher_Consommateurs!FB18),3)) ->  | FC48: =IF(FC18="","",ROUND((FC20+FC24+FC26)/(Anlage_Installation!$C$15-Verbraucher_Consommateurs!FC18),3)) ->  | FD48: =IF(FD18="","",ROUND((FD20+FD24+FD26)/(Anlage_Installation!$C$15-Verbraucher_Consommateurs!FD18),3)) ->  | FE48: =IF(FE18="","",ROUND((FE20+FE24+FE26)/(Anlage_Installation!$C$15-Verbraucher_Consommateurs!FE18),3)) ->  | FF48: =IF(FF18="","",ROUND((FF20+FF24+FF26)/(Anlage_Installation!$C$15-Verbraucher_Consommateurs!FF18),3)) ->  | FG48: =IF(FG18="","",ROUND((FG20+FG24+FG26)/(Anlage_Installation!$C$15-Verbraucher_Consommateurs!FG18),3)) ->  | FH48: =IF(FH18="","",ROUND((FH20+FH24+FH26)/(Anlage_Installation!$C$15-Verbraucher_Consommateurs!FH18),3)) ->  | FI48: =IF(FI18="","",ROUND((FI20+FI24+FI26)/(Anlage_Installation!$C$15-Verbraucher_Consommateurs!FI18),3)) ->  | FJ48: =IF(FJ18="","",ROUND((FJ20+FJ24+FJ26)/(Anlage_Installation!$C$15-Verbraucher_Consommateurs!FJ18),3)) ->  | FK48: =IF(FK18="","",ROUND((FK20+FK24+FK26)/(Anlage_Installation!$C$15-Verbraucher_Consommateurs!FK18),3)) ->  | FL48: =IF(FL18="","",ROUND((FL20+FL24+FL26)/(Anlage_Installation!$C$15-Verbraucher_Consommateurs!FL18),3)) ->  | FM48: =IF(FM18="","",ROUND((FM20+FM24+FM26)/(Anlage_Installation!$C$15-Verbraucher_Consommateurs!FM18),3)) ->  | FN48: =IF(FN18="","",ROUND((FN20+FN24+FN26)/(Anlage_Installation!$C$15-Verbraucher_Consommateurs!FN18),3)) ->  | FO48: =IF(FO18="","",ROUND((FO20+FO24+FO26)/(Anlage_Installation!$C$15-Verbraucher_Consommateurs!FO18),3)) ->  | FP48: =IF(FP18="","",ROUND((FP20+FP24+FP26)/(Anlage_Installation!$C$15-Verbraucher_Consommateurs!FP18),3)) ->  | FQ48: =IF(FQ18="","",ROUND((FQ20+FQ24+FQ26)/(Anlage_Installation!$C$15-Verbraucher_Consommateurs!FQ18),3)) ->  | FR48: =IF(FR18="","",ROUND((FR20+FR24+FR26)/(Anlage_Installation!$C$15-Verbraucher_Consommateurs!FR18),3)) ->  | FS48: =IF(FS18="","",ROUND((FS20+FS24+FS26)/(Anlage_Installation!$C$15-Verbraucher_Consommateurs!FS18),3)) ->  | FT48: =IF(FT18="","",ROUND((FT20+FT24+FT26)/(Anlage_Installation!$C$15-Verbraucher_Consommateurs!FT18),3)) ->  | FU48: =IF(FU18="","",ROUND((FU20+FU24+FU26)/(Anlage_Installation!$C$15-Verbraucher_Consommateurs!FU18),3)) ->  | FV48: =IF(FV18="","",ROUND((FV20+FV24+FV26)/(Anlage_Installation!$C$15-Verbraucher_Consommateurs!FV18),3)) ->  | FW48: =IF(FW18="","",ROUND((FW20+FW24+FW26)/(Anlage_Installation!$C$15-Verbraucher_Consommateurs!FW18),3)) ->  | FX48: =IF(FX18="","",ROUND((FX20+FX24+FX26)/(Anlage_Installation!$C$15-Verbraucher_Consommateurs!FX18),3)) ->  | FY48: =IF(FY18="","",ROUND((FY20+FY24+FY26)/(Anlage_Installation!$C$15-Verbraucher_Consommateurs!FY18),3)) ->  | FZ48: =IF(FZ18="","",ROUND((FZ20+FZ24+FZ26)/(Anlage_Installation!$C$15-Verbraucher_Consommateurs!FZ18),3)) ->  | GA48: =IF(GA18="","",ROUND((GA20+GA24+GA26)/(Anlage_Installation!$C$15-Verbraucher_Consommateurs!GA18),3)) ->  | GB48: =IF(GB18="","",ROUND((GB20+GB24+GB26)/(Anlage_Installation!$C$15-Verbraucher_Consommateurs!GB18),3)) ->  | GC48: =IF(GC18="","",ROUND((GC20+GC24+GC26)/(Anlage_Installation!$C$15-Verbraucher_Consommateurs!GC18),3)) ->  | GD48: =IF(GD18="","",ROUND((GD20+GD24+GD26)/(Anlage_Installation!$C$15-Verbraucher_Consommateurs!GD18),3)) ->  | GE48: =IF(GE18="","",ROUND((GE20+GE24+GE26)/(Anlage_Installation!$C$15-Verbraucher_Consommateurs!GE18),3)) ->  | GF48: =IF(GF18="","",ROUND((GF20+GF24+GF26)/(Anlage_Installation!$C$15-Verbraucher_Consommateurs!GF18),3)) ->  | GG48: =IF(GG18="","",ROUND((GG20+GG24+GG26)/(Anlage_Installation!$C$15-Verbraucher_Consommateurs!GG18),3)) ->  | GH48: =IF(GH18="","",ROUND((GH20+GH24+GH26)/(Anlage_Installation!$C$15-Verbraucher_Consommateurs!GH18),3)) ->  | GI48: =IF(GI18="","",ROUND((GI20+GI24+GI26)/(Anlage_Installation!$C$15-Verbraucher_Consommateurs!GI18),3)) ->  | GJ48: =IF(GJ18="","",ROUND((GJ20+GJ24+GJ26)/(Anlage_Installation!$C$15-Verbraucher_Consommateurs!GJ18),3)) ->  | GK48: =IF(GK18="","",ROUND((GK20+GK24+GK26)/(Anlage_Installation!$C$15-Verbraucher_Consommateurs!GK18),3)) ->  | GL48: =IF(GL18="","",ROUND((GL20+GL24+GL26)/(Anlage_Installation!$C$15-Verbraucher_Consommateurs!GL18),3)) ->  | GM48: =IF(GM18="","",ROUND((GM20+GM24+GM26)/(Anlage_Installation!$C$15-Verbraucher_Consommateurs!GM18),3)) ->  | GN48: =IF(GN18="","",ROUND((GN20+GN24+GN26)/(Anlage_Installation!$C$15-Verbraucher_Consommateurs!GN18),3)) ->  | GO48: =IF(GO18="","",ROUND((GO20+GO24+GO26)/(Anlage_Installation!$C$15-Verbraucher_Consommateurs!GO18),3)) ->  | GP48: =IF(GP18="","",ROUND((GP20+GP24+GP26)/(Anlage_Installation!$C$15-Verbraucher_Consommateurs!GP18),3)) ->  | GQ48: =IF(GQ18="","",ROUND((GQ20+GQ24+GQ26)/(Anlage_Installation!$C$15-Verbraucher_Consommateurs!GQ18),3)) ->  | GR48: =IF(GR18="","",ROUND((GR20+GR24+GR26)/(Anlage_Installation!$C$15-Verbraucher_Consommateurs!GR18),3)) ->  | GS48: =IF(GS18="","",ROUND((GS20+GS24+GS26)/(Anlage_Installation!$C$15-Verbraucher_Consommateurs!GS18),3)) ->  | GT48: =IF(GT18="","",ROUND((GT20+GT24+GT26)/(Anlage_Installation!$C$15-Verbraucher_Consommateurs!GT18),3)) ->  | GU48: =IF(GU18="","",ROUND((GU20+GU24+GU26)/(Anlage_Installation!$C$15-Verbraucher_Consommateurs!GU18),3)) ->  | GV48: =IF(GV18="","",ROUND((GV20+GV24+GV26)/(Anlage_Installation!$C$15-Verbraucher_Consommateurs!GV18),3)) ->  | GW48: =IF(GW18="","",ROUND((GW20+GW24+GW26)/(Anlage_Installation!$C$15-Verbraucher_Consommateurs!GW18),3)) ->  | GX48: =IF(GX18="","",ROUND((GX20+GX24+GX26)/(Anlage_Installation!$C$15-Verbraucher_Consommateurs!GX18),3)) ->  | GY48: =IF(GY18="","",ROUND((GY20+GY24+GY26)/(Anlage_Installation!$C$15-Verbraucher_Consommateurs!GY18),3)) ->  | GZ48: =IF(GZ18="","",ROUND((GZ20+GZ24+GZ26)/(Anlage_Installation!$C$15-Verbraucher_Consommateurs!GZ18),3)) ->  | HA48: =IF(HA18="","",ROUND((HA20+HA24+HA26)/(Anlage_Installation!$C$15-Verbraucher_Consommateurs!HA18),3)) ->  | HB48: =IF(HB18="","",ROUND((HB20+HB24+HB26)/(Anlage_Installation!$C$15-Verbraucher_Consommateurs!HB18),3)) ->  | HC48: =IF(HC18="","",ROUND((HC20+HC24+HC26)/(Anlage_Installation!$C$15-Verbraucher_Consommateurs!HC18),3)) ->  | HD48: =IF(HD18="","",ROUND((HD20+HD24+HD26)/(Anlage_Installation!$C$15-Verbraucher_Consommateurs!HD18),3)) ->  | HE48: =IF(HE18="","",ROUND((HE20+HE24+HE26)/(Anlage_Installation!$C$15-Verbraucher_Consommateurs!HE18),3)) ->  | HF48: =IF(HF18="","",ROUND((HF20+HF24+HF26)/(Anlage_Installation!$C$15-Verbraucher_Consommateurs!HF18),3)) ->  | HG48: =IF(HG18="","",ROUND((HG20+HG24+HG26)/(Anlage_Installation!$C$15-Verbraucher_Consommateurs!HG18),3)) ->  | HH48: =IF(HH18="","",ROUND((HH20+HH24+HH26)/(Anlage_Installation!$C$15-Verbraucher_Consommateurs!HH18),3)) ->  | HI48: =IF(HI18="","",ROUND((HI20+HI24+HI26)/(Anlage_Installation!$C$15-Verbraucher_Consommateurs!HI18),3)) ->  | HJ48: =IF(HJ18="","",ROUND((HJ20+HJ24+HJ26)/(Anlage_Installation!$C$15-Verbraucher_Consommateurs!HJ18),3)) ->  | HK48: =IF(HK18="","",ROUND((HK20+HK24+HK26)/(Anlage_Installation!$C$15-Verbraucher_Consommateurs!HK18),3)) ->  | HL48: =IF(HL18="","",ROUND((HL20+HL24+HL26)/(Anlage_Installation!$C$15-Verbraucher_Consommateurs!HL18),3)) ->  | HM48: =IF(HM18="","",ROUND((HM20+HM24+HM26)/(Anlage_Installation!$C$15-Verbraucher_Consommateurs!HM18),3)) ->  | HN48: =IF(HN18="","",ROUND((HN20+HN24+HN26)/(Anlage_Installation!$C$15-Verbraucher_Consommateurs!HN18),3)) ->  | HO48: =IF(HO18="","",ROUND((HO20+HO24+HO26)/(Anlage_Installation!$C$15-Verbraucher_Consommateurs!HO18),3)) ->  | HP48: =IF(HP18="","",ROUND((HP20+HP24+HP26)/(Anlage_Installation!$C$15-Verbraucher_Consommateurs!HP18),3)) ->  | HQ48: =IF(HQ18="","",ROUND((HQ20+HQ24+HQ26)/(Anlage_Installation!$C$15-Verbraucher_Consommateurs!HQ18),3)) ->  | HR48: =IF(HR18="","",ROUND((HR20+HR24+HR26)/(Anlage_Installation!$C$15-Verbraucher_Consommateurs!HR18),3)) ->  | HS48: =IF(HS18="","",ROUND((HS20+HS24+HS26)/(Anlage_Installation!$C$15-Verbraucher_Consommateurs!HS18),3)) ->  | HT48: =IF(HT18="","",ROUND((HT20+HT24+HT26)/(Anlage_Installation!$C$15-Verbraucher_Consommateurs!HT18),3)) ->  | HU48: =IF(HU18="","",ROUND((HU20+HU24+HU26)/(Anlage_Installation!$C$15-Verbraucher_Consommateurs!HU18),3)) ->  | HV48: =IF(HV18="","",ROUND((HV20+HV24+HV26)/(Anlage_Installation!$C$15-Verbraucher_Consommateurs!HV18),3)) ->  | HW48: =IF(HW18="","",ROUND((HW20+HW24+HW26)/(Anlage_Installation!$C$15-Verbraucher_Consommateurs!HW18),3)) ->  | HX48: =IF(HX18="","",ROUND((HX20+HX24+HX26)/(Anlage_Installation!$C$15-Verbraucher_Consommateurs!HX18),3)) ->  | HY48: =IF(HY18="","",ROUND((HY20+HY24+HY26)/(Anlage_Installation!$C$15-Verbraucher_Consommateurs!HY18),3)) ->  | HZ48: =IF(HZ18="","",ROUND((HZ20+HZ24+HZ26)/(Anlage_Installation!$C$15-Verbraucher_Consommateurs!HZ18),3)) ->  | IA48: =IF(IA18="","",ROUND((IA20+IA24+IA26)/(Anlage_Installation!$C$15-Verbraucher_Consommateurs!IA18),3)) ->  | IB48: =IF(IB18="","",ROUND((IB20+IB24+IB26)/(Anlage_Installation!$C$15-Verbraucher_Consommateurs!IB18),3)) ->  | IC48: =IF(IC18="","",ROUND((IC20+IC24+IC26)/(Anlage_Installation!$C$15-Verbraucher_Consommateurs!IC18),3)) ->  | ID48: =IF(ID18="","",ROUND((ID20+ID24+ID26)/(Anlage_Installation!$C$15-Verbraucher_Consommateurs!ID18),3)) ->  | IE48: =IF(IE18="","",ROUND((IE20+IE24+IE26)/(Anlage_Installation!$C$15-Verbraucher_Consommateurs!IE18),3)) ->  | IF48: =IF(IF18="","",ROUND((IF20+IF24+IF26)/(Anlage_Installation!$C$15-Verbraucher_Consommateurs!IF18),3)) ->  | IG48: =IF(IG18="","",ROUND((IG20+IG24+IG26)/(Anlage_Installation!$C$15-Verbraucher_Consommateurs!IG18),3)) ->  | IH48: =IF(IH18="","",ROUND((IH20+IH24+IH26)/(Anlage_Installation!$C$15-Verbraucher_Consommateurs!IH18),3)) ->  | II48: =IF(II18="","",ROUND((II20+II24+II26)/(Anlage_Installation!$C$15-Verbraucher_Consommateurs!II18),3)) ->  | IJ48: =IF(IJ18="","",ROUND((IJ20+IJ24+IJ26)/(Anlage_Installation!$C$15-Verbraucher_Consommateurs!IJ18),3)) ->  | IK48: =IF(IK18="","",ROUND((IK20+IK24+IK26)/(Anlage_Installation!$C$15-Verbraucher_Consommateurs!IK18),3)) ->  | IL48: =IF(IL18="","",ROUND((IL20+IL24+IL26)/(Anlage_Installation!$C$15-Verbraucher_Consommateurs!IL18),3)) ->  | IM48: =IF(IM18="","",ROUND((IM20+IM24+IM26)/(Anlage_Installation!$C$15-Verbraucher_Consommateurs!IM18),3)) ->  | IN48: =IF(IN18="","",ROUND((IN20+IN24+IN26)/(Anlage_Installation!$C$15-Verbraucher_Consommateurs!IN18),3)) ->  | IO48: =IF(IO18="","",ROUND((IO20+IO24+IO26)/(Anlage_Installation!$C$15-Verbraucher_Consommateurs!IO18),3)) ->  | IP48: =IF(IP18="","",ROUND((IP20+IP24+IP26)/(Anlage_Installation!$C$15-Verbraucher_Consommateurs!IP18),3)) ->  | IQ48: =IF(IQ18="","",ROUND((IQ20+IQ24+IQ26)/(Anlage_Installation!$C$15-Verbraucher_Consommateurs!IQ18),3)) ->  | IR48: =IF(IR18="","",ROUND((IR20+IR24+IR26)/(Anlage_Installation!$C$15-Verbraucher_Consommateurs!IR18),3)) ->  | IS48: =IF(IS18="","",ROUND((IS20+IS24+IS26)/(Anlage_Installation!$C$15-Verbraucher_Consommateurs!IS18),3)) ->  | IT48: =IF(IT18="","",ROUND((IT20+IT24+IT26)/(Anlage_Installation!$C$15-Verbraucher_Consommateurs!IT18),3)) ->  | IU48: =IF(IU18="","",ROUND((IU20+IU24+IU26)/(Anlage_Installation!$C$15-Verbraucher_Consommateurs!IU18),3)) ->  | IV48: =IF(IV18="","",ROUND((IV20+IV24+IV26)/(Anlage_Installation!$C$15-Verbraucher_Consommateurs!IV18),3)) -> 
C49: =IF(C$20="","",ROUND(C$20*C$21,3)) -> 850 | D49: =IF(D$20="","",ROUND(D$20*D$21,3)) -> 382.5 | F49: 7 | BP49: =IF(BP$20="","",ROUND(BP$20*BP$21,3)) ->  | EB49: =IF(EB$20="","",ROUND(EB$20*EB$21,3)) ->  | GN49: =IF(GN$20="","",ROUND(GN$20*GN$21,3)) -> 
C50: =IF(C$20="","",ROUND(C$20*C$22,3)) -> 850 | D50: =IF(D$20="","",ROUND(D$20*D$22,3)) -> 450 | F50: 10 | BP50: =IF(BP$20="","",ROUND(BP$20*BP$22,3)) ->  | EB50: =IF(EB$20="","",ROUND(EB$20*EB$22,3)) ->  | GN50: =IF(GN$20="","",ROUND(GN$20*GN$22,3)) -> 

Sheet Anlage_Installation
A1: =Verbraucher_Consommateurs!A1 -> QM Holzheizwerke
A2: =Verbraucher_Consommateurs!A3 -> Projekt/Variante: | B2: =IF(Verbraucher_Consommateurs!B3="","",Verbraucher_Consommateurs!B3) -> Musterbeispiel (Linie 1)
B3: =IF(Verbraucher_Consommateurs!B4="","",Verbraucher_Consommateurs!B4) -> Musterbeispiel (Linie 2)
B4: =IF(Verbraucher_Consommateurs!B5="","",Verbraucher_Consommateurs!B5) -> Musterbeispiel (Linie 3)
A5: =Verbraucher_Consommateurs!A6 -> Erfasst von: | B5: =IF(Verbraucher_Consommateurs!B6="","",Verbraucher_Consommateurs!B6) -> Musterplaner
A6: =Verbraucher_Consommateurs!A7 -> Datum: | B6: =IF(Verbraucher_Consommateurs!B7="","",Verbraucher_Consommateurs!B7) -> 2014-05-02
A8: =Text!C47 -> Eingaben Hauptplaner
A10: =Text!C48 -> Allgemeines | B10: =Text!C49 -> Land
B11: =Text!C50 -> Klimastation
B12: =Text!C51 -> Tiefste Aussentemperatur [°C] | C12: -7 | D12: =Hilfsblatt!C31 -> -7 | E12: =Text!C52 -> °C = 10-Jahres-Mittelwert (2002 - 2011)
B13: =Text!C53 -> Raumtemperatur [°C] | C13: 20
B14: =Text!C54 -> Heizgrenze [°C] | C14: 15
B15: =Text!C55 -> Max. Haupt-Vorlauftemperatur [°C] | C15: 85
B16: =Text!C56 -> Sommerbetrieb
A17: =Text!C57 -> Raumwärme | B17: =Text!C58 -> Nicht witterungsabhängiger Anteil Wärmeleistungsbedarf Raumwärme [%] | C17: 5
B18: =Text!C59 -> Gleichzeitigkeitsfaktor Raumwärme [-] | C18: 1
A19: =Text!C60 -> Warmwasser | B19: =Text!C61 -> Gleichzeitigkeitsfaktor Warmwasser [-] | C19: 1
A20: =Text!C62 -> Prozesswärme | B20: =Text!C63 -> Gleichzeitigkeitsfaktor Prozesswärme [-] | C20: 0.56
A21: =Text!C64 -> Fernleitung | B21: =Text!C65 -> Jahres-Wärmeverlust Fernleitung [MWh/a] | C21: =ROUND(C33*0.1,1) -> 393.3
B22: =Text!C66 -> Verlustleistung Fernleitung [kW] | C22: =ROUND(C21*1000/8760,1) -> 44.9
A24: =Text!C68 -> Berechnete Summenwerte
A26: =Text!C69 -> Allgemeines | B26: =Text!C70 -> Gesamt-Energiebezugsfläche [m²] | C26: =SUM(Verbraucher_Consommateurs!C16:IV16) -> 30400
A27: =Text!C71 -> Raumwärme | B27: =Text!C72 -> Gesamt-Heizwärmebdarf [MWh/a] | C27: =SUM(Verbraucher_Consommateurs!C19:IV19) -> 2792
B28: =Text!C73 -> Max. Gesamt-Wärmeleistungsbedarf Raumwärme [kW] | C28: =SUM(Verbraucher_Consommateurs!C20:IV20) -> 1310
A29: =Text!C74 -> Warmwasser | B29: =Text!C75 -> Gesamt-Jahreswärmebdarf Warmwasser [MWh/a] | C29: =SUM(Verbraucher_Consommateurs!C23:IV23) -> 641
B30: =Text!C76 -> Max. Gesamt-Wärmeleistungsbedarf Warmwasser [kW] | C30: =SUM(Verbraucher_Consommateurs!C24:IV24) -> 152.5
A31: =Text!C77 -> Prozesswärme | B31: =Text!C78 -> Gesamt-Jahreswärmebdarf Prozesswärme [MWh/a] | C31: =SUM(Verbraucher_Consommateurs!C25:IV25) -> 500
B32: =Text!C79 -> Max. Gesamt-Wärmeleistungsbedarf Prozesswärme [kW] | C32: =SUM(Verbraucher_Consommateurs!C26:IV26) -> 100
A33: =Text!C80 -> ∑ Wärmeabnehmer | B33: =Text!C81 -> Gesamt-Wärmebedarf [MWh/a] | C33: =C27+C29+C31 -> 3933
B34: =Text!C82 -> Gesamt-Wärmeleistungbedarf [kW] | C34: =C28+C30+C32 -> 1562.5
A36: =Text!C84 -> Berechnete Kennzahlen
A38: =Text!C85 -> Allgemeines | B38: =Text!C86 -> Max. Vorlauftemperatur Wärmeabnehmer [°C] | C38: =MAX(Verbraucher_Consommateurs!C17:IV17) -> 80
B39: =Text!C87 -> Max. Hauptrücklauftemperatur [°C] | C39: =ROUND(C15-(C28+C30+C32)/SUM(Verbraucher_Consommateurs!C48:IV48),3) -> 52.561
A40: =Text!C88 -> Raumwärme | B40: =Text!C89 -> Vollbetriebsstundenzahl Raumwärme [h/a] | C40: =ROUND(C27*1000/C28,2) -> 2131.3
B41: =Text!C90 -> Spezifischer Heizwärmebedarf [kWh/m²a] | C41: =ROUND(C27*1000/C$26,3) -> 91.842
B42: =Text!C91 -> Spezifischer Wärmeleistungsbedarf [W/m²] | C42: =ROUND(C28*1000/C$26,3) -> 43.092
A43: =Text!C92 -> Warmwasser | B43: =Text!C93 -> Vollbetriebsstundenzahl Warmwasser [h/a] | C43: =ROUND(C29*1000/C30,2) -> 4203.28
B44: =Text!C94 -> Spezifischer Energiebedarf Warmwasser [kWh/m²a] | C44: =ROUND(C29*1000/C$26,3) -> 21.086
A45: =Text!C95 -> Prozesswärme | B45: =Text!C96 -> Vollbetriebsstundenzahl Prozesswärme [h/a] | C45: =ROUND(C31*1000/C32,2) -> 5000
B46: =Verbraucher_Consommateurs!B42 -> Situationserfassung V35
A47: =Verbraucher_Consommateurs!A42 -> Eingabefelder | B47: =Verbraucher_Consommateurs!B43 -> Empfohlene Dateiformate: .xlsm oder .xls (Excel 97-2004)

Sheet Wärmezentrale_CentraleThermique
A1: =Verbraucher_Consommateurs!A1 -> QM Holzheizwerke
A2: =Verbraucher_Consommateurs!A3 -> Projekt/Variante: | B2: =IF(Verbraucher_Consommateurs!B3="","",Verbraucher_Consommateurs!B3) -> Musterbeispiel (Linie 1)
B3: =IF(Verbraucher_Consommateurs!B4="","",Verbraucher_Consommateurs!B4) -> Musterbeispiel (Linie 2)
B4: =IF(Verbraucher_Consommateurs!B5="","",Verbraucher_Consommateurs!B5) -> Musterbeispiel (Linie 3)
A5: =Verbraucher_Consommateurs!A6 -> Erfasst von: | B5: =IF(Verbraucher_Consommateurs!B6="","",Verbraucher_Consommateurs!B6) -> Musterplaner
A6: =Verbraucher_Consommateurs!A7 -> Datum: | B6: =IF(Verbraucher_Consommateurs!B7="","",Verbraucher_Consommateurs!B7) -> 2014-05-02
A8: =Text!C195 -> Eingaben Hauptplaner
A10: =Text!C200 -> Wärmezentrale | B10: =Text!C201 -> Standard-Schaltung nach QMH | D10: WE4 | E10: =IF(D10=Text!C233,Text!C241,IF(D10=Text!C234,Text!C242,IF(D10=Text!C235,Text!C243,IF(D10=Text!C236,Text!C244,IF(D10=Text!C237,Text!C245,IF(D10=Text!C238,Text!C246,IF(D10=Text!C239,Text!C247,IF(D10=Text!C240,Text!C248,Text!C228)))))))) -> 1 Holzkessel + 1 Öl-/Gaskessel mit Speicher
B11: =Text!C202 -> Nennleistung Holzkessel 1 (kl. Kessel bei WE1 – WE8) [kW] | D11: 900 | E11: =IF(ISBLANK(D11),Text!C229,"") -> 
B12: =Text!C203 -> Nennleistung Holzkessel 2 (gr. Kessel bei WE5 – WE8) [kW] | E12: =IF(AND(ISBLANK(D12),OR(D10=Text!C237,D10=Text!C238,D10=Text!C239,D10=Text!C240,D10=Text!C199)),Text!C229,IF(AND(ISBLANK(D12)=FALSE,OR(D10=Text!C233,D10=Text!C234,D10=Text!C235,D10=Text!C236)),Text!C230,"")) -> 
B13: =Text!C204 -> Nennleistung weitere Holzkessel Total [kW] | E13: =IF(AND(ISBLANK(D13),D10=Text!C199),Text!C229,IF(AND(ISBLANK(D13)=FALSE,OR(D10=Text!C233,D10=Text!C234,D10=Text!C235,D10=Text!C236,D10=Text!C237,D10=Text!C238,D10=Text!C239,D10=Text!C240)),Text!C230,"")) -> 
B14: =Text!C205 -> Anzahl installierte Holzkessel bei mehr als zwei Holzkessel [–] | E14: =IF(AND(ISBLANK(D14),D10=Text!C199),Text!C229,IF(AND(ISBLANK(D14)=FALSE,OR(D10=Text!C233,D10=Text!C234,D10=Text!C235,D10=Text!C236,D10=Text!C237,D10=Text!C238,D10=Text!C239,D10=Text!C240)),Text!C230,"")) -> 
B15: =Text!C206 -> Nennleistung Holzkessel Total [kW] | D15: =D11+D12+D13 -> 900
B16: =Text!C207 -> Nennleistung Bivalenkessel Total (z.B. Öl, Gas) [kW] | D16: 1500 | E16: =IF(AND(ISBLANK(D16),OR(D10=Text!C235,D10=Text!C236,D10=Text!C239,D10=Text!C240)),Text!C229,IF(AND(ISBLANK(D16)=FALSE,OR(D10=Text!C233,D10=Text!C234,D10=Text!C237,D10=Text!C238)),Text!C230,"")) -> 
B18: =Text!C208 -> Installiertes Speichervolumen [m3] | D18: 30 | E18: =IF(AND(ISBLANK(D18),OR(D10=Text!C234,D10=Text!C236,D10=Text!C238,D10=Text!C240,D10=Text!C199)),Text!C229,IF(AND(ISBLANK(D18)=FALSE,OR(D10=Text!C233,D10=Text!C235,D10=Text!C237,D10=Text!C239)),Text!C230,"")) -> 
B19: =Text!C209 -> Temperaturspreizung über dem Speicher (Vorlauf – Rücklauf) [K] | C19: =IF(OR(D10=Text!C234,D10=Text!C236,D10=Text!C238,D10=Text!C240,D10=Text!C199),"*"&ROUND(Anlage_Installation!C15-Anlage_Installation!C39,1)&" K","") -> *32.4 K | D19: 30 | E19: =IF(AND(ISBLANK(D19),OR(D10=Text!C234,D10=Text!C236,D10=Text!C238,D10=Text!C240,D10=Text!C199)),Text!C229,IF(AND(ISBLANK(D19)=FALSE,OR(D10=Text!C233,D10=Text!C235,D10=Text!C237,D10=Text!C239)),Text!C230,"")) -> 
B20: =Text!C210 -> Minimale mittlere Tagesheizlast bei Schwachlastbetrieb (siehe Tabelle 20 unten) [%] | D20: 0.15 | E20: =IF(ISBLANK(D20),Text!C231,"") -> 
B21: =Text!C211 -> Maximale mittlere Holzkessel-Tagesleistung (Wert von 70% bis 100%) | D21: 0.9 | E21: =IF(ISBLANK(D21),Text!C232,"") -> 
B22: =Text!C251 -> Max. mittlere Bandquellen-Tagesleist. [kW] | D22: 0
B23: ="* "&Text!C250 -> * Temperaturspreizung berechnet aus Eingabedaten
A25: =Text!C196 -> Berechnete Kennzahlen | D25: =Text!C225 -> Ergebnis | E25: =Text!C226 -> Vergleich
A27: =Text!C200 -> Wärmezentrale | B27: =Text!C212 -> Vollbetriebsstundenzahl der/des Holzkessel [h/a] | D27: =Hilfsblatt!I11*1000/Wärmezentrale_CentraleThermique!D15*(Hilfsblatt!L15/100) -> 4558.463999 | E27: =IF(D10=Text!C233,1500,IF(D10=Text!C234,2000,IF(D10=Text!C235,2500,IF(D10=Text!C236,3500,IF(D10=Text!C237,1500,IF(D10=Text!C238,2000,IF(D10=Text!C239,2500,IF(D10=Text!C240,3000,"–")))))))) -> 3500 | F27: =Text!C222 -> Ergebnis ≥ als Vergleichswert
B28: =Text!C213 -> Vollbetriebsstundenzahl Bivalentkessel [h/a] | D28: =IF(OR(ISNUMBER(D16)=FALSE,D16=0),"–",(Hilfsblatt!L11-Hilfsblatt!L12-Hilfsblatt!L13)*1000/Wärmezentrale_CentraleThermique!D16) -> 149.3224747 | E28: –
B29: =Text!C214 -> Jahreswärmeproduktion mit Holz [%] | D29: =ROUND(Hilfsblatt!L15/100,3) -> 0.948 | E29: =IF(D10=Text!C233,1,IF(D10=Text!C234,1,IF(D10=Text!C235,0.8,IF(D10=Text!C236,0.8,IF(D10=Text!C237,1,IF(D10=Text!C238,1,IF(D10=Text!C239,0.8,IF(D10=Text!C240,0.8,1)))))))) -> 0.8 | F29: =Text!C222 -> Ergebnis ≥ als Vergleichswert
B30: =Text!C215 -> Speichergrösse [m3] | D30: =IF(ISBLANK(D18),"–",ROUND(D18,1)) -> 30 | E30: =IF(D10=Text!C233,"–",IF(D10=Text!C234,D11/(1.14*D19),IF(D10=Text!C235,"–",IF(D10=Text!C236,D11/(1.14*D19),IF(D10=Text!C237,"–",IF(D10=Text!C238,2*D15/(3*1.14*D19),IF(D10=Text!C239,"–",IF(D10=Text!C240,2*D15/(3*1.14*D19),2*D15/(3*1.14*D19))))))))) -> 26.31578947 | F30: =Text!C222 -> Ergebnis ≥ als Vergleichswert
B31: =Text!C216 -> Schwachlastbedingung [kW] | D31: =ROUND(D20*D11,1) -> 135 | E31: =IF(Hilfsblatt!S1="Nein",Hilfsblatt!F19-Hilfsblatt!AA31,Hilfsblatt!F20-Hilfsblatt!AA31) -> 175.152 | F31: =Text!C223 -> Ergebnis ≤ als Vergleichswert (Zielwert) | H31: Untere Grenze | I31: Obere Grenze | J31: zur Beurteilung
B32: =IF(D10=Text!C233,Text!C217,IF(D10=Text!C234,Text!C217,IF(D10=Text!C235,Text!C217,IF(D10=Text!C236,Text!C217,IF(D10=Text!C237,Text!C218,IF(D10=Text!C238,Text!C218,IF(D10=Text!C239,Text!C218,IF(D10=Text!C240,Text!C218,Text!C217)))))))) -> Auslegung Holzkessel | D32: =IF(D10=Text!C233,D11/Hilfsblatt!F5,IF(D10=Text!C234,D11/Hilfsblatt!F18,IF(D10=Text!C235,D11/Hilfsblatt!F5,IF(D10=Text!C236,D11/Hilfsblatt!F5,IF(D10=Text!C237,D11/Hilfsblatt!F5,IF(D10=Text!C238,D11/Hilfsblatt!F18,IF(D10=Text!C239,D11/Hilfsblatt!F5,IF(D10=Text!C240,D11/Hilfsblatt!F5,D15/Hilfsblatt!F18)))))))) -> 0.575668415 | E32: =IF(D10=Text!C233,"100%",IF(D10=Text!C234,"100%",IF(D10=Text!C235,"60% – 70%",IF(D10=Text!C236,"50% – 60%",IF(D10=Text!C237,"±33%",IF(D10=Text!C238,"±33%",IF(D10=Text!C239,"20% – 23%",IF(D10=Text!C240,"17% – 20%","100%")))))))) -> 50% – 60% | F32: =Text!C224 -> Ergebnis ≥ oder ≤ als Vergleichswert (Zielbereich) | H32: =IF(D10=Text!C233,1,IF(D10=Text!C234,1,IF(D10=Text!C235,0.6,IF(D10=Text!C236,0.5,IF(D10=Text!C237,0.305,IF(D10=Text!C238,0.305,IF(D10=Text!C239,0.2,IF(D10=Text!C240,0.17,1)))))))) -> 0.5 | I32: =IF(D10=Text!C233,1.1,IF(D10=Text!C234,1.1,IF(D10=Text!C235,0.7,IF(D10=Text!C236,0.6,IF(D10=Text!C237,0.38,IF(D10=Text!C238,0.38,IF(D10=Text!C239,0.23,IF(D10=Text!C240,0.2,1.1)))))))) -> 0.6
B33: =IF(D10=Text!C233,"",IF(D10=Text!C234,"",IF(D10=Text!C235,"",IF(D10=Text!C236,"",IF(D10=Text!C237,Text!C219,IF(D10=Text!C238,Text!C219,IF(D10=Text!C239,Text!C219,IF(D10=Text!C240,Text!C219,"")))))))) ->  | D33: =IF(D10=Text!C233,"–",IF(D10=Text!C234,"–",IF(D10=Text!C2333,"–",IF(D10=Text!C236,"–",IF(D10=Text!C237,D12/Hilfsblatt!F18,IF(D10=Text!C238,D12/Hilfsblatt!F18,IF(D10=Text!C239,D12/Hilfsblatt!F5,IF(D10=Text!C240,D12/Hilfsblatt!F5,"–")))))))) -> – | E33: =IF(D10=Text!C233,"–",IF(D10=Text!C234,"–",IF(D10=Text!C235,"–",IF(D10=Text!C236,"–",IF(D10=Text!C237,"±67%",IF(D10=Text!C238,"±67%",IF(D10=Text!C239,"40% – 47%",IF(D10=Text!C240,"33% – 40%","–")))))))) -> – | F33: =Text!C224 -> Ergebnis ≥ oder ≤ als Vergleichswert (Zielbereich) | H33: =IF(D10=Text!C233,"–",IF(D10=Text!C234,"–",IF(D10=Text!C235,"–",IF(D10=Text!C236,"–",IF(D10=Text!C237,0.645,IF(D10=Text!C238,0.645,IF(D10=Text!C239,0.4,IF(D10=Text!C240,0.33,"–")))))))) -> – | I33: =IF(D10=Text!C233,"–",IF(D10=Text!C234,"–",IF(D10=Text!C235,"–",IF(D10=Text!C236,"–",IF(D10=Text!C237,0.72,IF(D10=Text!C238,0.72,IF(D10=Text!C239,0.47,IF(D10=Text!C240,0.4,"–")))))))) -> –
B34: =IF(D10=Text!C233,"",IF(D10=Text!C234,"",IF(D10=Text!C235,"",IF(D10=Text!C236,"",IF(D10=Text!C237,Text!C220,IF(D10=Text!C238,Text!C220,IF(D10=Text!C239,Text!C220,IF(D10=Text!C240,Text!C220,"")))))))) ->  | D34: =IF(D10=Text!C233,"–",IF(D10=Text!C234,"–",IF(D10=Text!C235,"–",IF(D10=Text!C236,"–",IF(D10=Text!C237,D32+D33,IF(D10=Text!C238,D32+D33,IF(D10=Text!C239,D32+D33,IF(D10=Text!C240,D32+D33,"–")))))))) -> – | E34: =IF(D10=Text!C233,"–",IF(D10=Text!C234,"–",IF(D10=Text!C235,"–",IF(D10=Text!C236,"–",IF(D10=Text!C237,"100%",IF(D10=Text!C238,"100%",IF(D10=Text!C239,"60% – 70%",IF(D10=Text!C240,"50% – 60%","–")))))))) -> – | F34: =Text!C224 -> Ergebnis ≥ oder ≤ als Vergleichswert (Zielbereich) | H34: =H32+H33 ->  | I34: =I32+I33 -> 
B35: =Text!C221 -> Auslegung Bivalentkessel [kW] | D35: =IF(ISBLANK(D16),"–",D16) -> 1500 | E35: =IF(D10=Text!C233,"–",IF(D10=Text!C234,"–",IF(D10=Text!C235,ROUND(0.7*Hilfsblatt!F5,0)&" kW – "&ROUND(Hilfsblatt!F5,0)&" kW",IF(D10=Text!C236,ROUND(0.7*Hilfsblatt!F5,0)&" kW – "&ROUND(Hilfsblatt!F5,0)&" kW",IF(D10=Text!C237,"–",IF(D10=Text!C238,"–",IF(D10=Text!C239,ROUND(Hilfsblatt!F5-D11,0)&" kW – "&ROUND(Hilfsblatt!F5,0)&" kW",IF(D10=Text!C240,ROUND(Hilfsblatt!F5-D11,0)&" kW – "&ROUND(Hilfsblatt!F5,0)&" kW","–")))))))) -> 1094 kW – 1563 kW | F35: =Text!C224 -> Ergebnis ≥ oder ≤ als Vergleichswert (Zielbereich) | H35: =IF(D10=Text!C233,"–",IF(D10=Text!C234,"–",IF(D10=Text!C235,0.7*Hilfsblatt!F5,IF(D10=Text!C236,0.7*Hilfsblatt!F5,IF(D10=Text!C237,"–",IF(D10=Text!C238,"–",IF(D10=Text!C239,Hilfsblatt!F5-D11,IF(D10=Text!C240,Hilfsblatt!F5-D11,"–")))))))) -> 1094.38 | I35: =IF(D10=Text!C233,"–",IF(D10=Text!C234,"–",IF(D10=Text!C235,Hilfsblatt!F5,IF(D10=Text!C236,Hilfsblatt!F5,IF(D10=Text!C237,"–",IF(D10=Text!C238,"–",IF(D10=Text!C239,Hilfsblatt!F5,IF(D10=Text!C240,Hilfsblatt!F5,"–")))))))) -> 1563.4
B36: =Text!C249 -> Vergleich Leistungsdaten mit Energiedaten (Grafik unten Links in Bilder_DE) | D36: =ROUND(Hilfsblatt!J4/Hilfsblatt!I4,3) -> 1.002 | E36: =IF(D10=Text!C233,"100% – 110%",IF(D10=Text!C234,"100% – 110%",IF(D10=Text!C235,"95% – 105%",IF(D10=Text!C236,"95% – 105%",IF(D10=Text!C237,"100% – 110%",IF(D10=Text!C238,"100% – 110%",IF(D10=Text!C239,"95% – 105%",IF(D10=Text!C240,"95% – 105%","95% – 105")))))))) -> 95% – 105% | F36: =Text!C224 -> Ergebnis ≥ oder ≤ als Vergleichswert (Zielbereich) | H36: =IF(D10=Text!C233,1,IF(D10=Text!C234,1,IF(D10=Text!C235,0.95,IF(D10=Text!C236,0.95,IF(D10=Text!C237,1,IF(D10=Text!C238,1,IF(D10=Text!C239,0.95,IF(D10=Text!C240,0.95,0.95)))))))) -> 0.95 | I36: =IF(D10=Text!C233,1.1,IF(D10=Text!C234,1.1,IF(D10=Text!C235,1.05,IF(D10=Text!C236,1.05,IF(D10=Text!C237,1.1,IF(D10=Text!C238,1.1,IF(D10=Text!C239,1.05,IF(D10=Text!C240,1.05,1.05)))))))) -> 1.05
B37: Situationserfassung V34
A38: =Text!C45 -> Eingabefelder | B38: =Text!C30 -> Empfohlene Dateiformate: .xlsm oder .xls (Excel 97-2004)

Sheet Bilder_DE
A1: =Verbraucher_Consommateurs!A3 -> Projekt/Variante: | C1: =IF(Verbraucher_Consommateurs!$B3="","",Verbraucher_Consommateurs!$B3) -> Musterbeispiel (Linie 1) | H1: =A1 -> Projekt/Variante: | J1: =IF(Verbraucher_Consommateurs!$B3="","",Verbraucher_Consommateurs!$B3) -> Musterbeispiel (Linie 1) | O1: =A1 -> Projekt/Variante: | Q1: =IF(Verbraucher_Consommateurs!$B3="","",Verbraucher_Consommateurs!$B3) -> Musterbeispiel (Linie 1) | V1: =A1 -> Projekt/Variante: | X1: =IF(Verbraucher_Consommateurs!$B3="","",Verbraucher_Consommateurs!$B3) -> Musterbeispiel (Linie 1)
C2: =IF(Verbraucher_Consommateurs!$B4="","",Verbraucher_Consommateurs!$B4) -> Musterbeispiel (Linie 2) | J2: =IF(Verbraucher_Consommateurs!$B4="","",Verbraucher_Consommateurs!$B4) -> Musterbeispiel (Linie 2) | Q2: =IF(Verbraucher_Consommateurs!$B4="","",Verbraucher_Consommateurs!$B4) -> Musterbeispiel (Linie 2) | X2: =IF(Verbraucher_Consommateurs!$B4="","",Verbraucher_Consommateurs!$B4) -> Musterbeispiel (Linie 2)
C3: =IF(Verbraucher_Consommateurs!$B5="","",Verbraucher_Consommateurs!$B5) -> Musterbeispiel (Linie 3) | J3: =IF(Verbraucher_Consommateurs!$B5="","",Verbraucher_Consommateurs!$B5) -> Musterbeispiel (Linie 3) | Q3: =IF(Verbraucher_Consommateurs!$B5="","",Verbraucher_Consommateurs!$B5) -> Musterbeispiel (Linie 3) | X3: =IF(Verbraucher_Consommateurs!$B5="","",Verbraucher_Consommateurs!$B5) -> Musterbeispiel (Linie 3)
A4: =Verbraucher_Consommateurs!A6 -> Erfasst von: | C4: =IF(Verbraucher_Consommateurs!$B6="","",Verbraucher_Consommateurs!$B6) -> Musterplaner | H4: =A4 -> Erfasst von: | J4: =IF(Verbraucher_Consommateurs!$B6="","",Verbraucher_Consommateurs!$B6) -> Musterplaner | O4: =A4 -> Erfasst von: | Q4: =IF(Verbraucher_Consommateurs!$B6="","",Verbraucher_Consommateurs!$B6) -> Musterplaner | V4: =A4 -> Erfasst von: | X4: =IF(Verbraucher_Consommateurs!$B6="","",Verbraucher_Consommateurs!$B6) -> Musterplaner
A5: =Verbraucher_Consommateurs!A7 -> Datum: | C5: =IF(Verbraucher_Consommateurs!$B7="","",Verbraucher_Consommateurs!$B7) -> 2014-05-02 | H5: =A5 -> Datum: | J5: =IF(Verbraucher_Consommateurs!$B7="","",Verbraucher_Consommateurs!$B7) -> 2014-05-02 | O5: =A5 -> Datum: | Q5: =IF(Verbraucher_Consommateurs!$B7="","",Verbraucher_Consommateurs!$B7) -> 2014-05-02 | V5: =A5 -> Datum: | X5: =IF(Verbraucher_Consommateurs!$B7="","",Verbraucher_Consommateurs!$B7) -> 2014-05-02
A6: Klimastation: | C6: =Hilfsblatt!G29 -> Zürich/Fluntern (CH), 556 m ü. M. | H6: =A6 -> Klimastation: | J6: =C6 -> Zürich/Fluntern (CH), 556 m ü. M. | M6: Vorgabe: | N6: Effektiv: | O6: =A6 -> Klimastation: | Q6: =C6 -> Zürich/Fluntern (CH), 556 m ü. M. | T6: =M6 -> Vorgabe: | U6: Effektiv: | V6: =A6 -> Klimastation: | W6: =Hilfsblatt!AK1 -> 0 | X6: =C6 -> Zürich/Fluntern (CH), 556 m ü. M.
L7: Min. mittlere Holzkessel-Tagesleistung [kW]: | M7: =Wärmezentrale_CentraleThermique!D20*Wärmezentrale_CentraleThermique!D11 -> 135 | N7: =Hilfsblatt!AG29 -> 175 | S7: =L7 -> Min. mittlere Holzkessel-Tagesleistung [kW]: | T7: 135 | U7: 175
A8: =Verbraucher_Consommateurs!B42 -> Situationserfassung V35 | L8: Max. mittlere Holzkessel-Tagesleistung [kW]: | M8: =Wärmezentrale_CentraleThermique!D21*Wärmezentrale_CentraleThermique!D15 -> 810 | N8: =Hilfsblatt!AG31 -> 804 | S8: =L8 -> Max. mittlere Holzkessel-Tagesleistung [kW]: | T8: 810 | U8: 804
L9: Max. mittlere Bandquellen-Tagesleist. [kW]: | M9: =Wärmezentrale_CentraleThermique!D22 -> 0 | N9: =Hilfsblatt!Y31 -> 0 | S9: =L9 -> Max. mittlere Bandquellen-Tagesleist. [kW]: | T9: =M9 -> 0 | U9: =N9 -> 0
V11: Bemerkungen zur Situationserfassung
V14: =IF(W6=6,"Abweichende Resultate sind vom Planer zu kommentieren!","") -> 
V15: Diagramm Seite 1 oben:
V22: Diagramm Seite 1 unten:
V29: Diagramm Seite 2 oben:
G55: =Verbraucher_Consommateurs!B42 -> Situationserfassung V35 | N55: =Verbraucher_Consommateurs!B42 -> Situationserfassung V35 | U55: =Verbraucher_Consommateurs!B42 -> Situationserfassung V35
A56: Diagramm oben: | B56: Ausgezogen die Lastkennlinie der Gesamtanlage; gestrichelt die Lastkennlinie zur Berechnung | H56: =A56 -> Diagramm oben: | I56: Jahresdauerlinie der benötigten Wärmeleistung mit umrahmten Holzkessel- und Bandleistungs- | O56: =H56 -> Diagramm oben: | P56: Gesamt-Wärmeproduktion und Produktionsanteile des Holzkessels und der Bandleistungs-
B57: der Jahresdauerlinie der benötigten Wärmeleistung | I57: Anteilen | P57: quelle
H58: =A59 -> Diagramm unten: | I58: Jahresdauerlinien der Aussentemperatur | O58: =H58 -> Diagramm unten: | P58: Gesamt-Wärmeproduktion und Produktionsanteile des Holzkessels und der Bandleistungs-
A59: Diagramm unten: | B59: Vergleich Gesamt-Wärmebedarf | P59: quelle in Prozent der Gesamtproduktion

Sheet Figures_FR
A1: =Verbraucher_Consommateurs!A3 -> Projekt/Variante: | C1: =IF(Verbraucher_Consommateurs!$B3="","",Verbraucher_Consommateurs!$B3) -> Musterbeispiel (Linie 1) | H1: =A1 -> Projekt/Variante: | J1: =IF(Verbraucher_Consommateurs!$B3="","",Verbraucher_Consommateurs!$B3) -> Musterbeispiel (Linie 1) | O1: =A1 -> Projekt/Variante: | Q1: =IF(Verbraucher_Consommateurs!$B3="","",Verbraucher_Consommateurs!$B3) -> Musterbeispiel (Linie 1) | V1: =A1 -> Projekt/Variante: | X1: =IF(Verbraucher_Consommateurs!$B3="","",Verbraucher_Consommateurs!$B3) -> Musterbeispiel (Linie 1)
C2: =IF(Verbraucher_Consommateurs!$B4="","",Verbraucher_Consommateurs!$B4) -> Musterbeispiel (Linie 2) | J2: =IF(Verbraucher_Consommateurs!$B4="","",Verbraucher_Consommateurs!$B4) -> Musterbeispiel (Linie 2) | Q2: =IF(Verbraucher_Consommateurs!$B4="","",Verbraucher_Consommateurs!$B4) -> Musterbeispiel (Linie 2) | X2: =IF(Verbraucher_Consommateurs!$B4="","",Verbraucher_Consommateurs!$B4) -> Musterbeispiel (Linie 2)
C3: =IF(Verbraucher_Consommateurs!$B5="","",Verbraucher_Consommateurs!$B5) -> Musterbeispiel (Linie 3) | J3: =IF(Verbraucher_Consommateurs!$B5="","",Verbraucher_Consommateurs!$B5) -> Musterbeispiel (Linie 3) | Q3: =IF(Verbraucher_Consommateurs!$B5="","",Verbraucher_Consommateurs!$B5) -> Musterbeispiel (Linie 3) | X3: =IF(Verbraucher_Consommateurs!$B5="","",Verbraucher_Consommateurs!$B5) -> Musterbeispiel (Linie 3)
A4: =Verbraucher_Consommateurs!A6 -> Erfasst von: | C4: =IF(Verbraucher_Consommateurs!$B6="","",Verbraucher_Consommateurs!$B6) -> Musterplaner | H4: =A4 -> Erfasst von: | J4: =IF(Verbraucher_Consommateurs!$B6="","",Verbraucher_Consommateurs!$B6) -> Musterplaner | O4: =A4 -> Erfasst von: | Q4: =IF(Verbraucher_Consommateurs!$B6="","",Verbraucher_Consommateurs!$B6) -> Musterplaner | V4: =A4 -> Erfasst von: | X4: =IF(Verbraucher_Consommateurs!$B6="","",Verbraucher_Consommateurs!$B6) -> Musterplaner
A5: =Verbraucher_Consommateurs!A7 -> Datum: | C5: =IF(Verbraucher_Consommateurs!$B7="","",Verbraucher_Consommateurs!$B7) -> 2014-05-02 | H5: =A5 -> Datum: | J5: =IF(Verbraucher_Consommateurs!$B7="","",Verbraucher_Consommateurs!$B7) -> 2014-05-02 | O5: =A5 -> Datum: | Q5: =IF(Verbraucher_Consommateurs!$B7="","",Verbraucher_Consommateurs!$B7) -> 2014-05-02 | V5: =A5 -> Datum: | X5: =IF(Verbraucher_Consommateurs!$B7="","",Verbraucher_Consommateurs!$B7) -> 2014-05-02
A6: Station climatologique: | C6: =Hilfsblatt!G29 -> Zürich/Fluntern (CH), 556 m ü. M. | H6: =A6 -> Station climatologique: | J6: =C6 -> Zürich/Fluntern (CH), 556 m ü. M. | M6: Spécification: | N6: Effectif: | O6: =A6 -> Station climatologique: | Q6: =C6 -> Zürich/Fluntern (CH), 556 m ü. M. | T6: =M6 -> Spécification: | U6: Effectif: | V6: =A6 -> Station climatologique: | X6: =C6 -> Zürich/Fluntern (CH), 556 m ü. M.
L7: Performance journalière moyenne minimale de la chaudière à bois [kW]: | M7: =Wärmezentrale_CentraleThermique!D20*Wärmezentrale_CentraleThermique!D11 -> 135 | N7: =Hilfsblatt!AG29 -> 175 | S7: =L7 -> Performance journalière moyenne minimale de la chaudière à bois [kW]: | T7: 135 | U7: 175
A8: =Verbraucher_Consommateurs!B42 -> Situationserfassung V35 | L8: Performance journalière moyenne maximale de la chaudière à bois [kW]: | M8: =Wärmezentrale_CentraleThermique!D21*Wärmezentrale_CentraleThermique!D15 -> 810 | N8: =Hilfsblatt!AG31 -> 804 | S8: =L8 -> Performance journalière moyenne maximale de la chaudière à bois [kW]: | T8: 810 | U8: 804
L9: Performance journalière moyenne maximale de la source de puissance de base [kW]: | M9: =Wärmezentrale_CentraleThermique!D22 -> 0 | N9: =Hilfsblatt!Y31 -> 0 | S9: =L9 -> Performance journalière moyenne maximale de la source de puissance de base [kW]: | T9: =M9 -> 0 | U9: =N9 -> 0
V11: Remarques sur le relevé de situation
V15: Graphique Page 1 ci-dessus:
V22: Graphique Page 1 ci-dessous:
V29: Graphique Page 2 ci-dessus:
G55: =Verbraucher_Consommateurs!B42 -> Situationserfassung V35 | N55: =Verbraucher_Consommateurs!B42 -> Situationserfassung V35 | U55: =Verbraucher_Consommateurs!B42 -> Situationserfassung V35
A56: Diagramme en haut: | B56: Dessinée en continu, la courbe caractéristique de charge ensemble de l'installation; en traits | H56: =A56 -> Diagramme en haut: | I56: Courbe de distribution annuelle de la puissance thermique à installer avec les parts des | O56: =H56 -> Diagramme en haut: | P56: Production de chaleur globale et parts de production des chaudières à bois et de la source
B57: discontinus, la courbe caractéristique de charge pondérée pour le calcul de la courbe de | I57: chaudières à bois et de la source de puissance de base encadrées. | P57: de puissance de base.
B58: distribution annuelle de la puissance thermique nécessaire. | H58: =A60 -> Diagramme en bas: | I58: Courbes de distribution annuelle de la température extérieure. | O58: =H58 -> Diagramme en bas: | P58: Production de chaleur globale et parts de production des chaudières à bois et de la source
P59: de puissance de base, en pourcentage de la production totale.
A60: Diagramme en bas: | B60: Comparaison des besoins totaux de chaleur.

Sheet Bilder_IT (hidden)
A1: =Verbraucher_Consommateurs!A3 -> Projekt/Variante: | C1: =IF(Verbraucher_Consommateurs!$B3="","",Verbraucher_Consommateurs!$B3) -> Musterbeispiel (Linie 1) | H1: =A1 -> Projekt/Variante: | J1: =IF(Verbraucher_Consommateurs!$B3="","",Verbraucher_Consommateurs!$B3) -> Musterbeispiel (Linie 1) | O1: =A1 -> Projekt/Variante: | Q1: =IF(Verbraucher_Consommateurs!$B3="","",Verbraucher_Consommateurs!$B3) -> Musterbeispiel (Linie 1) | V1: =A1 -> Projekt/Variante: | X1: =IF(Verbraucher_Consommateurs!$B3="","",Verbraucher_Consommateurs!$B3) -> Musterbeispiel (Linie 1)
C2: =IF(Verbraucher_Consommateurs!$B4="","",Verbraucher_Consommateurs!$B4) -> Musterbeispiel (Linie 2) | J2: =IF(Verbraucher_Consommateurs!$B4="","",Verbraucher_Consommateurs!$B4) -> Musterbeispiel (Linie 2) | Q2: =IF(Verbraucher_Consommateurs!$B4="","",Verbraucher_Consommateurs!$B4) -> Musterbeispiel (Linie 2) | X2: =IF(Verbraucher_Consommateurs!$B4="","",Verbraucher_Consommateurs!$B4) -> Musterbeispiel (Linie 2)
C3: =IF(Verbraucher_Consommateurs!$B5="","",Verbraucher_Consommateurs!$B5) -> Musterbeispiel (Linie 3) | J3: =IF(Verbraucher_Consommateurs!$B5="","",Verbraucher_Consommateurs!$B5) -> Musterbeispiel (Linie 3) | Q3: =IF(Verbraucher_Consommateurs!$B5="","",Verbraucher_Consommateurs!$B5) -> Musterbeispiel (Linie 3) | X3: =IF(Verbraucher_Consommateurs!$B5="","",Verbraucher_Consommateurs!$B5) -> Musterbeispiel (Linie 3)
A4: =Verbraucher_Consommateurs!A6 -> Erfasst von: | C4: =IF(Verbraucher_Consommateurs!$B6="","",Verbraucher_Consommateurs!$B6) -> Musterplaner | H4: =A4 -> Erfasst von: | J4: =IF(Verbraucher_Consommateurs!$B6="","",Verbraucher_Consommateurs!$B6) -> Musterplaner | O4: =A4 -> Erfasst von: | Q4: =IF(Verbraucher_Consommateurs!$B6="","",Verbraucher_Consommateurs!$B6) -> Musterplaner | V4: =A4 -> Erfasst von: | X4: =IF(Verbraucher_Consommateurs!$B6="","",Verbraucher_Consommateurs!$B6) -> Musterplaner
A5: Klimastation: | C5: =Hilfsblatt!G29 -> Zürich/Fluntern (CH), 556 m ü. M. | H5: =A5 -> Klimastation: | J5: =C5 -> Zürich/Fluntern (CH), 556 m ü. M. | M5: Vorgabe: | N5: Effektiv: | O5: =A5 -> Klimastation: | Q5: =C5 -> Zürich/Fluntern (CH), 556 m ü. M. | T5: =M5 -> Vorgabe: | U5: Effektiv: | V5: =A5 -> Klimastation: | X5: =C5 -> Zürich/Fluntern (CH), 556 m ü. M.
C6: =IF(Hilfsblatt!T2=2,"Données seulement actives dans la feuille 'Figures_FR'",IF(Hilfsblatt!T2=1,"Eingaben sind nur im Blatt Bilder_DE aktiv!","")) -> Eingaben sind nur im Blatt Bilder_DE aktiv! | L6: Min. mittlere Holzkessel-Tagesleistung [kW]: | M6: 150 | N6: =Hilfsblatt!AG29 -> 175 | S6: =L6 -> Min. mittlere Holzkessel-Tagesleistung [kW]: | T6: 150 | U6: 175
L7: Max. mittlere Holzkessel-Tagesleistung [kW]: | M7: 500 | N7: =Hilfsblatt!AG31 -> 804 | S7: =L7 -> Max. mittlere Holzkessel-Tagesleistung [kW]: | T7: 500 | U7: 804
L8: Max. mittlere Bandquellen-Tagesleist. [kW]: | M8: 100 | N8: =Hilfsblatt!Y31 -> 0 | S8: =L8 -> Max. mittlere Bandquellen-Tagesleist. [kW]: | T8: =M8 -> 100 | U8: =N8 -> 0
V10: Bemerkungen zur Situationserfassung
A55: Diagramm oben: | B55: Ausgezogen die Lastkennlinie der Gesamtanlage; gestrichelt die Lastkennlinie zur Berechnung | H55: =A55 -> Diagramm oben: | I55: Jahresdauerlinie der benötigten Wärmeleistung und umrahmtem Holzkessel-Anteil | O55: =H55 -> Diagramm oben: | P55: Gesamt-Wärmeproduktion und Produktionsanteil des Holzkessels
B56: der Jahresdauerlinie der benötigten Wärmeleistung
H57: =A58 -> Diagramm unten: | I57: Jahresdauerlinien der Aussentemperatur | O57: =H57 -> Diagramm unten: | P57: Gesamt-Wärmeproduktion und Produktionsanteil des Holzkessels in Prozent der
A58: Diagramm unten: | B58: Vergleich Gesamt-Wärmebedarf | P58: Gesamtproduktion

Sheet Text (hidden)
A1: Blatt | B1: Zelle | C1: =Hilfsblatt!T1 -> DE | D1: Deutsch | E1: Französisch | F1: Italienisch
A2: 1 | B2: A1 | C2: =IF(C$1="FR",E2,IF(C$1="IT",F2,D2)) -> QM Holzheizwerke | D2: QM Holzheizwerke | E2: QM Chauffages au bois | F2: QM Holzheizwerke
A3: 1 | B3: A3 | C3: =IF(C$1="FR",E3,IF(C$1="IT",F3,D3)) -> Projekt/Variante: | D3: Projekt/Variante: | E3: Projet/Variante: | F3: Projekt/Variante:
A4: 1 | B4: A6 | C4: Erfasst von: | D4: Erfasst von: | E4: Saisi par: | F4: Erfasser:
A5: 1 | B5: B3 | C5: Musterbeispiel (Linie 1) | D5: Musterbeispiel (Linie 1) | E5: Exemple modèle (ligne 1) | F5: Musterbeispiel (Linie 1)
A6: 1 | B6: B4 | C6: Musterbeispiel (Linie 2) | D6: Musterbeispiel (Linie 2) | E6: Exemple modèle (ligne 2) | F6: Musterbeispiel (Linie 2)
A7: 1 | B7: B5 | C7: Musterbeispiel (Linie 3) | D7: Musterbeispiel (Linie 3) | E7: Exemple modèle (ligne 3) | F7: Musterbeispiel (Linie 3)
A8: 1 | B8: B6 | C8: Musterplaner | D8: Musterplaner | E8: Concepteur modèle | F8: Musterplaner
A9: 1 | B9: A8 | C9: Eingaben Hauptplaner | D9: Eingaben Hauptplaner | E9: Données planificateur principale | F9: Eingaben Hauptplaner
A10: 1 | B10: A10 | C10: Allgemeines | D10: Allgemeines | E10: Généralités | F10: Allgemeines
A11: 1 | B11: B10 | C11: Nummer | D11: Nummer | E11: Numéro | F11: Nummer
A12: 1 | B12: B11 | C12: Bezeichnung | D12: Bezeichnung | E12: Indication | F12: Bezeichnung
A13: 1 | B13: B12 | C13: Sprache: | D13: Sprache: | E13: langue
A14: 1 | B14: B13 | C14: Datum: | D14: Datum: | E14: Date:
A15: 1 | B15: B14 | C15: Wärmebedarfsermittlung anhand | D15: Wärmebedarfsermittlung anhand | E15: Détermination du besoin de chaleur au moyen de | F15: Wärmebedarfsermittlung anhand
A16: 1 | B16: B15 | C16: Energiebezugsfläche [m²] | D16: Energiebezugsfläche [m²] | E16: Surface de référence énergétique [m²] | F16: Energiebezugsfläche [m²]
A17: 1 | B17: B16 | C17: Max. Vorlauftemperatur [°C] | D17: Max. Vorlauftemperatur [°C] | E17: Température aller max. [°C] | F17: Max. Vorlauftemperatur [°C]
A18: 1 | B18: B17 | C18: Max. Rücklauftemperatur [°C] | D18: Max. Rücklauftemperatur [°C] | E18: Température retour max. [°C] | F18: Max. Rücklauftemperatur [°C]
A19: 1 | B19: A18 | C19: Raumwärme | D19: Raumwärme | E19: Chaleur ambiante | F19: Raumwärme
A20: 1 | B20: B18 | C20: Heizwärmebedarf [MWh/a] | D20: Heizwärmebedarf [MWh/a] | E20: Besoin de chaleur [MWh/a] | F20: Heizwärmebedarf [MWh/a]
A21: 1 | B21: B19 | C21: Max. Wärmeleistungsbedarf Raumwärme [kW] | D21: Max. Wärmeleistungsbedarf Raumwärme [kW] | E21: Puissance thermique requise chaleur ambiante max. [kW] | F21: Max. Wärmeleistungsbedarf Raumwärme [kW]
A22: 1 | B22: B20 | C22: Korrekturfaktor Heizwärmebedarf [-] | D22: Korrekturfaktor Heizwärmebedarf [-] | E22: Facteur de correction besoin de chaleur [-] | F22: Korrekturfaktor Heizwärmebedarf [-]
A23: 1 | B23: B21 | C23: Korrekturfaktor Aufheizspitze [-] | D23: Korrekturfaktor Aufheizspitze [-] | E23: Facteur de correction pointe de préchauffage [-] | F23: Korrekturfaktor Aufheizspitze [-]
A24: 1 | B24: A22 | C24: Warmwasser | D24: Warmwasser | E24: Eau chaude | F24: Warmwasser
A25: 1 | B25: B22 | C25: Jahreswärmebedarf Warmwasser [MWh/a]* | D25: Jahreswärmebedarf Warmwasser [MWh/a]* | E25: Besoin de chaleur annuel eau chaude [MWh/a]* | F25: Jahreswärmebedarf Warmwasser [MWh/a]*
A26: 1 | B26: B23 | C26: Max. Wärmeleistungsbedarf Warmwasser [kW] | D26: Max. Wärmeleistungsbedarf Warmwasser [kW] | E26: Puissance thermique requise eau chaude max. [kW] | F26: Max. Wärmeleistungsbedarf Warmwasser [kW]
A27: 1 | B27: A24 | C27: Prozesswärme | D27: Prozesswärme | E27: Chaleur industrielle | F27: Prozesswärme
A28: 1 | B28: B24 | C28: Jahreswärmebedarf Prozesswärme [MWh/a]* | D28: Jahreswärmebedarf Prozesswärme [MWh/a]* | E28: Besoins de chaleur annuel chaleur industrielle [MWh/a]* | F28: Jahreswärmebedarf Prozesswärme [MWh/a]*
A29: 1 | B29: B25 | C29: Max. Wärmeleistungsbedarf Prozesswärme [kW] | D29: Max. Wärmeleistungsbedarf Prozesswärme [kW] | E29: Puissance thermique requise chaleur industrielle max. [kW] | F29: Max. Wärmeleistungsbedarf Prozesswärme [kW]
A30: 1 | B30: B41 | C30: Empfohlene Dateiformate: .xlsm oder .xls (Excel 97-2004) | D30: Empfohlene Dateiformate: .xlsm oder .xls (Excel 97-2004) | E30: Formats de fichiers recommandés: .xlsm oder .xls (Excel 97-2004) | F30: Formati di file consigliati: .xlsm oder .xls (Excel 97-2004)
A31: 1 | B31: A28 | C31: Berechnete Kennzahlen | D31: Berechnete Kennzahlen | E31: Données caractéristiques calculées | F31: Berechnete Kennzahlen
A32: 1 | B32: A30 | C32: Raumwärme | D32: Raumwärme | E32: Chaleur ambiante | F32: Raumwärme
A33: 1 | B33: B30 | C33: Vollbetriebsstundenzahl Raumwärme [h/a] | D33: Vollbetriebsstundenzahl Raumwärme [h/a] | E33: Heures de marche à pleine charge chaleur ambiante [h/a] | F33: Vollbetriebsstundenzahl Raumwärme [h/a]
A34: 1 | B34: B31 | C34: Spezifischer Heizwärmebedarf [kWh/m²a] | D34: Spezifischer Heizwärmebedarf [kWh/m²a] | E34: Besoin de chaleur spécifique [kWh/m²a] | F34: Spezifischer Heizwärmebedarf [kWh/m²a]
A35: 1 | B35: B32 | C35: Spezifischer Wärmeleistungsbedarf [W/m²] | D35: Spezifischer Wärmeleistungsbedarf [W/m²] | E35: Puissance thermique spécifique requise [W/m²] | F35: Spezifischer Wärmeleistungsbedarf [W/m²]
A36: 1 | B36: A33 | C36: Warmwasser | D36: Warmwasser | E36: Eau chaude | F36: Warmwasser
A37: 1 | B37: B33 | C37: Vollbetriebsstundenzahl Warmwasser [h/a] | D37: Vollbetriebsstundenzahl Warmwasser [h/a] | E37: Heures de marche à pleine charge eau chaude [h/a] | F37: Vollbetriebsstundenzahl Warmwasser [h/a]
A38: 1 | B38: B34 | C38: Spezifischer Energiebedarf Warmwasser [kWh/m²a] | D38: Spezifischer Energiebedarf Warmwasser [kWh/m²a] | E38: Besoin d'énergie spécifique eau chaude [kWh/m²a] | F38: Spezifischer Energiebedarf Warmwasser [kWh/m²a]
A39: 1 | B39: A35 | C39: Prozesswärme | D39: Prozesswärme | E39: Chaleur industrielle | F39: Prozesswärme
A40: 1 | B40: B35 | C40: Vollbetriebsstundenzahl Prozesswärme [h/a] | D40: Vollbetriebsstundenzahl Prozesswärme [h/a] | E40: Heures de marche à pleine charge chaleur industrielle [h/a] | F40: Vollbetriebsstundenzahl Prozesswärme [h/a]
A41: 1
A42: 1 | B42: A37 | C42: * Es ist der Jahreswärmebedarf für 365 Tage einzugeben | D42: * Es ist der Jahreswärmebedarf für 365 Tage einzugeben | E42: * Le besoin de chaleur annuel pour 365 jours doit être indiqué | F42: * Es ist der Jahreswärmebedarf für 365 Tage einzugeben
A43: 1 | B43: A38 | C43: (Winter-Wärmebedarf = Jahreswärmebedarf x Heiztage / 365 Tage) | D43: (Winter-Wärmebedarf = Jahreswärmebedarf x Heiztage / 365 Tage) | E43: (besoin de chaleur hiver = besoin de chaleur annuel x jours chauffées / 365 jours) | F43: (Winter-Wärmebedarf = Jahreswärmebedarf x Heiztage / 365 Tage)
A44: 1
A45: 1 | B45: A40 | C45: Eingabefelder | D45: Eingabefelder | E45: Champs a remplir | F45: Eingabefelder
A47: 2 | B47: A8 | C47: Eingaben Hauptplaner | D47: Eingaben Hauptplaner | E47: Données planificateur principale | F47: Eingaben Hauptplaner
A48: 2 | B48: A10 | C48: Allgemeines | D48: Allgemeines | E48: Généralités | F48: Allgemeines
A49: 2 | B49: B10 | C49: Land | D49: Land | E49: Pays | F49: Land
A50: 2 | B50: B11 | C50: Klimastation | D50: Klimastation | E50: Station climatologique | F50: Klimastation
A51: 2 | B51: B12 | C51: Tiefste Aussentemperatur [°C] | D51: Tiefste Aussentemperatur [°C] | E51: Température extérieure plus basse [°C] | F51: Tiefste Aussentemperatur [°C]
A52: 2 | B52: E12 | C52: °C = 10-Jahres-Mittelwert (2002 - 2011) | D52: °C = 10-Jahres-Mittelwert (2002 - 2011) | E52: °C = valeur moyenne 10 ans (2002 - 2011) | F52: °C = 10-Jahres-Mittelwert (2002 - 2011)
A53: 2 | B53: B13 | C53: Raumtemperatur [°C] | D53: Raumtemperatur [°C] | E53: Température ambiante [°C] | F53: Raumtemperatur [°C]
A54: 2 | B54: B14 | C54: Heizgrenze [°C] | D54: Heizgrenze [°C] | E54: Limite de chauffage [°C] | F54: Heizgrenze [°C]
A55: 2 | B55: B15 | C55: Max. Haupt-Vorlauftemperatur [°C] | D55: Max. Haupt-Vorlauftemperatur [°C] | E55: Température aller principale max. [°C] | F55: Max. Haupt-Vorlauftemperatur [°C]
A56: 2 | B56: B16 | C56: Sommerbetrieb | D56: Sommerbetrieb | E56: Exploitation estivale | F56: Sommerbetrieb
A57: 2 | B57: A17 | C57: Raumwärme | D57: Raumwärme | E57: Chaleur ambiante | F57: Raumwärme
A58: 2 | B58: B17 | C58: Nicht witterungsabhängiger Anteil Wärmeleistungsbedarf Raumwärme [%] | D58: Nicht witterungsabhängiger Anteil Wärmeleistungsbedarf Raumwärme [%] | E58: Part de la puissance thermique requise chaleur ambiante non dépendante de la température extérieure [%] | F58: Nicht witterungsabhängiger Anteil Wärmeleistungsbedarf Raumwärme [%]
A59: 2 | B59: B18 | C59: Gleichzeitigkeitsfaktor Raumwärme [-] | D59: Gleichzeitigkeitsfaktor Raumwärme [-] | E59: Facteur de simultanéité chaleur ambiante [-] | F59: Gleichzeitigkeitsfaktor Raumwärme [-]
A60: 2 | B60: A19 | C60: Warmwasser | D60: Warmwasser | E60: Eau chaude | F60: Warmwasser
A61: 2 | B61: B19 | C61: Gleichzeitigkeitsfaktor Warmwasser [-] | D61: Gleichzeitigkeitsfaktor Warmwasser [-] | E61: Facteur de simultanéité eau chaude [-] | F61: Gleichzeitigkeitsfaktor Warmwasser [-]
A62: 2 | B62: A20 | C62: Prozesswärme | D62: Prozesswärme | E62: Chaleur industrielle | F62: Prozesswärme
A63: 2 | B63: B20 | C63: Gleichzeitigkeitsfaktor Prozesswärme [-] | D63: Gleichzeitigkeitsfaktor Prozesswärme [-] | E63: Facteur de simultanéité chaleur industrielle [-] | F63: Gleichzeitigkeitsfaktor Prozesswärme [-]
A64: 2 | B64: A21 | C64: Fernleitung | D64: Fernleitung | E64: Conduite à distance | F64: Fernleitung
A65: 2 | B65: B21 | C65: Jahres-Wärmeverlust Fernleitung [MWh/a] | D65: Jahres-Wärmeverlust Fernleitung [MWh/a] | E65: Perte de chaleur annuelle conduite à distance [MWh/a] | F65: Jahres-Wärmeverlust Fernleitung [MWh/a]
A66: 2 | B66: B22 | C66: Verlustleistung Fernleitung [kW] | D66: Verlustleistung Fernleitung [kW] | E66: Perte de puissance conduite à distance [kW] | F66: Verlustleistung Fernleitung [kW]
A67: 2 | C67: =IF(C$1="FR",E67,IF(C$1="IT",F67,D67)) -> 
A68: 2 | B68: A24 | C68: Berechnete Summenwerte | D68: Berechnete Summenwerte | E68: Valeurs cumulées calculées | F68: Berechnete Summenwerte
A69: 2 | B69: A26 | C69: Allgemeines | D69: Allgemeines | E69: Généralités | F69: Allgemeines
A70: 2 | B70: B26 | C70: Gesamt-Energiebezugsfläche [m²] | D70: Gesamt-Energiebezugsfläche [m²] | E70: Surface de référence énergétique totale [m²] | F70: Gesamt-Energiebezugsfläche [m²]
A71: 2 | B71: A27 | C71: Raumwärme | D71: Raumwärme | E71: Chaleur ambiante | F71: Raumwärme
A72: 2 | B72: B27 | C72: Gesamt-Heizwärmebdarf [MWh/a] | D72: Gesamt-Heizwärmebdarf [MWh/a] | E72: Besoin de chaleur total [MWh/a] | F72: Gesamt-Heizwärmebdarf [MWh/a]
A73: 2 | B73: B28 | C73: Max. Gesamt-Wärmeleistungsbedarf Raumwärme [kW] | D73: Max. Gesamt-Wärmeleistungsbedarf Raumwärme [kW] | E73: Puissance thermique totale requise chaleur ambiante max. [kW] | F73: Max. Gesamt-Wärmeleistungsbedarf Raumwärme [kW]
A74: 2 | B74: A29 | C74: Warmwasser | D74: Warmwasser | E74: Eau chaude | F74: Warmwasser
A75: 2 | B75: B29 | C75: Gesamt-Jahreswärmebdarf Warmwasser [MWh/a] | D75: Gesamt-Jahreswärmebdarf Warmwasser [MWh/a] | E75: Besoin de chaleur annuel total eau chaude [MWh/a] | F75: Gesamt-Jahreswärmebdarf Warmwasser [MWh/a]
A76: 2 | B76: B30 | C76: Max. Gesamt-Wärmeleistungsbedarf Warmwasser [kW] | D76: Max. Gesamt-Wärmeleistungsbedarf Warmwasser [kW] | E76: Puissance thermique totale requise eau chaude max. [kW] | F76: Max. Gesamt-Wärmeleistungsbedarf Warmwasser [kW]
A77: 2 | B77: A31 | C77: Prozesswärme | D77: Prozesswärme | E77: Chaleur industrielle | F77: Prozesswärme
A78: 2 | B78: B31 | C78: Gesamt-Jahreswärmebdarf Prozesswärme [MWh/a] | D78: Gesamt-Jahreswärmebdarf Prozesswärme [MWh/a] | E78: Besoin de chaleur annuel total chaleur industrielle [MWh/a] | F78: Gesamt-Jahreswärmebdarf Prozesswärme [MWh/a]
A79: 2 | B79: B32 | C79: Max. Gesamt-Wärmeleistungsbedarf Prozesswärme [kW] | D79: Max. Gesamt-Wärmeleistungsbedarf Prozesswärme [kW] | E79: Puissance thermique totale requise chaleur industrielle max. [kW] | F79: Max. Gesamt-Wärmeleistungsbedarf Prozesswärme [kW]
A80: 2 | B80: A33 | C80: ∑ Wärmeabnehmer | D80: ∑ Wärmeabnehmer | E80: ∑ des consommateurs
A81: 2 | B81: B33 | C81: Gesamt-Wärmebedarf [MWh/a] | D81: Gesamt-Wärmebedarf [MWh/a] | E81: Besoin de chaleur globale [MWh/a]
A82: 2 | B82: B34 | C82: Gesamt-Wärmeleistungbedarf [kW] | D82: Gesamt-Wärmeleistungbedarf [kW] | E82: Puissance thermique à installer globale [kW]
A83: 2
A84: 2 | B84: A36 | C84: Berechnete Kennzahlen | D84: Berechnete Kennzahlen | E84: Données caractéristiques calculées | F84: Berechnete Kennzahlen
A85: 2 | B85: A38 | C85: Allgemeines | D85: Allgemeines | E85: Généralités | F85: Allgemeines
A86: 2 | B86: B38 | C86: Max. Vorlauftemperatur Wärmeabnehmer [°C] | D86: Max. Vorlauftemperatur Wärmeabnehmer [°C] | E86: Température aller consommateurs max. [°C] | F86: Max. Vorlauftemperatur Wärmeabnehmer [°C]
A87: 2 | B87: B39 | C87: Max. Hauptrücklauftemperatur [°C] | D87: Max. Hauptrücklauftemperatur [°C] | E87: Température retour principale max. [°C] | F87: Max. Hauptrücklauftemperatur [°C]
A88: 2 | B88: A40 | C88: Raumwärme | D88: Raumwärme | E88: Chaleur ambiante | F88: Raumwärme
A89: 2 | B89: B40 | C89: Vollbetriebsstundenzahl Raumwärme [h/a] | D89: Vollbetriebsstundenzahl Raumwärme [h/a] | E89: Heures de marche à pleine charge chaleur ambiante [h/a] | F89: Vollbetriebsstundenzahl Raumwärme [h/a]
A90: 2 | B90: B41 | C90: Spezifischer Heizwärmebedarf [kWh/m²a] | D90: Spezifischer Heizwärmebedarf [kWh/m²a] | E90: Besoin de chaleur spécifique [kWh/m²a] | F90: Spezifischer Heizwärmebedarf [kWh/m²a]
A91: 2 | B91: B42 | C91: Spezifischer Wärmeleistungsbedarf [W/m²] | D91: Spezifischer Wärmeleistungsbedarf [W/m²] | E91: Puissance thermique spécifique requise [W/m²] | F91: Spezifischer Wärmeleistungsbedarf [W/m²]
A92: 2 | B92: A43 | C92: Warmwasser | D92: Warmwasser | E92: Eau chaude | F92: Warmwasser
A93: 2 | B93: B43 | C93: Vollbetriebsstundenzahl Warmwasser [h/a] | D93: Vollbetriebsstundenzahl Warmwasser [h/a] | E93: Heures de marche à pleine charge eau chaude [h/a] | F93: Vollbetriebsstundenzahl Warmwasser [h/a]
A94: 2 | B94: B44 | C94: Spezifischer Energiebedarf Warmwasser [kWh/m²a] | D94: Spezifischer Energiebedarf Warmwasser [kWh/m²a] | E94: Besoin d'énergie spécifique eau chaude [kWh/m²a] | F94: Spezifischer Energiebedarf Warmwasser [kWh/m²a]
A95: 2 | B95: A44 | C95: Prozesswärme | D95: Prozesswärme | E95: Chaleur industrielle | F95: Prozesswärme
A96: 2 | B96: B45 | C96: Vollbetriebsstundenzahl Prozesswärme [h/a] | D96: Vollbetriebsstundenzahl Prozesswärme [h/a] | E96: Heures de marche à pleine charge chaleur industrielle [h/a] | F96: Vollbetriebsstundenzahl Prozesswärme [h/a]
A98: Hilfs | B98: S3 | C98: Ja | D98: Ja | E98: oui | F98: Ja
A99: Hilfs | B99: S4 | C99: Nein | D99: Nein | E99: non | F99: Nein
A100: Hilfs | B100: U3 | C100: Franken | D100: Franken | E100: Franc Suisse
A101: Hilfs | B101: U4 | C101: Euro | D101: Euro | E101: Euro
A102: Hilfs | B102: V3 | C102: Holzhackschnitzel | D102: Holzhackschnitzel | E102: Plaquettes de bois
A103: Hilfs | B103: V4 | C103: Pellets | D103: Pellets | E103: Granulé
A105: 1 | B105: C11 | C105: Sanierung | D105: Sanierung | E105: Renovation | F105: Neubauten
A106: 1 | B106: C14 | C106: Öl-Lieferung | D106: Öl-Lieferung | E106: Livraison de mazout
A107: 1 | B107: F11 | C107: Neubau | D107: Neubau | E107: Nouveau bâtiment
A108: 1 | B108: F14 | C108: SIA-Norm | D108: SIA-Norm | E108: Norme SIA | F108: SIA-Norm
A109: 1
A110: 1 | B110: D11 | C110: Altes | D110: Altes | E110: Ecole | F110: Altes
A111: 1 | B111: D12 | C111: Schulhaus | D111: Schulhaus | E111: existente | F111: Schulhaus
A112: 1 | B112: D13 | C112: Musterstrasse | D112: Musterstrasse | E112: Rue Echantillon | F112: Musterstrasse
A113: 1 | B113: D14 | C113: Abrechnung | D113: Abrechnung | E113: Décompte | F113: Verbrauch bisher
A114: 1
A115: 1 | B115: E11 | C115: Prozess | D115: Prozess | E115: Chaleur | F115: Prozess
A116: 1 | B116: E12 | E116: industrielle
A117: 1 | B117: E13
A118: 1 | B118: E14 | C118: Messung | D118: Messung | E118: Mesure | F118: Messung
A120: Q-Plan | B120: A2 | C120: Währungseinheit: Brennstoff: | D120: Währungseinheit: Brennstoff: | E120: Unité monétaire: Combustible:
A121: Q-Plan | C121: Excel-Tabelle «Q-Plan» | D121: Excel-Tabelle «Q-Plan» | E121: Tableau Excel «Plan QM»
A122: Q-Plan | C122: Projekt-Kurzbezeichnung oder Projekt-Nr. | D122: Projekt-Kurzbezeichnung oder Projekt-Nr. | E122: Nom du projet ou projet No
A123: Q-Plan | C123: Planung | D123: Planung | E123: Planification
A124: Q-Plan | C124: Ist, MS 5 | D124: Ist, MS 5 | E124: État réel EP5
A125: Q-Plan | C125: Wärmebedarf aller Wärmeabnehmer | D125: Wärmebedarf aller Wärmeabnehmer | E125: Bilan énergétique de tous leur preneurs de chaleur
A126: Q-Plan | C126: davon über das Wärmenetz | D126: davon über das Wärmenetz | E126: dont ceux raccordés au réseau
A127: Q-Plan | C127: Wärmeverluste Wärmenetz | D127: Wärmeverluste Wärmenetz | E127: Pertes thermiques du réseau de chaleur
A128: Q-Plan | C128: Gesamtwärmebedarf (inkl. Verluste Wärmenetz) | D128: Gesamtwärmebedarf (inkl. Verluste Wärmenetz) | E128: Bilan énergétique global (y compris pertes du réseau de chaleur)
A129: Q-Plan | C129: Wärmeleistungsbedarf aller Wärmeabnehmer | D129: Wärmeleistungsbedarf aller Wärmeabnehmer | E129: Puissance thermique de tous les preneurs de chaleur
A130: Q-Plan | C130: davon über das Wärmenetz | D130: davon über das Wärmenetz | E130: dont ceux raccordés au réseau
A131: Q-Plan | C131: =IF(C$1="FR",E131,IF(C$1="IT",F131,D131)) -> Wärmeleistungsverluste Wärmenetz | D131: Wärmeleistungsverluste Wärmenetz | E131: Pertes de puissance du réseau de chaleur
A132: Q-Plan | C132: Gesamt-Wärmeleistungsbedarf Wärmeerzeugung | D132: Gesamt-Wärmeleistungsbedarf Wärmeerzeugung | E132: Puissance thermique globale de la production de chaleur
A133: Q-Plan | C133: Trassenlänge Wärmenetz (inkl. Hausanschlüsse) | D133: Trassenlänge Wärmenetz (inkl. Hausanschlüsse) | E133: Longueur de fouilles du réseau de chaleur (y compris branchements d'immeubles)
A134: Q-Plan | C134: Nennleistung der/des Holzkessel(s) mit Referenzbrennstoff | D134: Nennleistung der/des Holzkessel(s) mit Referenzbrennstoff | E134: Puissance nominale de la (des) chaudière(s) à bois avec combustible de référence
A135: Q-Plan | C135: Nennleistung der Wärmeerzeugung mit anderen Energieträgern: ....................................... | D135: Nennleistung der Wärmeerzeugung mit anderen Energieträgern: ....................................... | E135: Puissance nominale de la production de chaleur avec d'autres vecteurs énergétiques…......
A136: Q-Plan | C136: Nennleistung der Wärmeerzeugung total | D136: Nennleistung der Wärmeerzeugung total | E136: Total puissance nominale de la production de chaleur
A137: Q-Plan | C137: Anteil der mit Holzenergie produzierte Wärmemenge | D137: Anteil der mit Holzenergie produzierte Wärmemenge | E137: Part de l'énergie produite avec du bois
A138: Q-Plan | C138: Mit Holzenergie produzierte Wärmemenge | D138: Mit Holzenergie produzierte Wärmemenge | E138: Énergie produite avec du bois
A139: Q-Plan | C139: Silogrösse netto | D139: Silogrösse netto | E139: Volume net du silo
A140: Q-Plan | C140: Füllgrad Silo | D140: Füllgrad Silo | E140: Taux de remplissage du silo
A141: Q-Plan | C141: Silogrösse brutto | D141: Silogrösse brutto | E141: Volume brut du silo
A142: Q-Plan | C142: Energie-Inhalt pro Schüttraummeter (Holzhackschnitzel) | D142: Energie-Inhalt pro Schüttraummeter (Holzhackschnitzel) | E142: Pouvoir calorifique par mètre cube de plaquettes
A143: Q-Plan | C143: Energie-Inhalt pro Kilogramm (Pellets) | D143: Energie-Inhalt pro Kilogramm (Pellets) | E143: Pouvoir calorifique par kilogramme de granulé
A144: Q-Plan | C144: Jährlicher Brennstoffverbrauch der/des Holzkessel(s) | D144: Jährlicher Brennstoffverbrauch der/des Holzkessel(s) | E144: Consommation annuelle de combustible
A145: Q-Plan | C145: Kosten | D145: Kosten | E145: Coûts
A146: Q-Plan | C146: Investitionskosten Wärmeerzeugung | D146: Investitionskosten Wärmeerzeugung | E146: Coûts d'investissements pour la production de chaleur
A147: Q-Plan | C147: Investitionskosten Wärmenetz | D147: Investitionskosten Wärmenetz | E147: Coûts d'investissements pour le réseau de chaleur
A148: Q-Plan | C148: Temperaturangaben im Auslegungspunkt | D148: Temperaturangaben im Auslegungspunkt | E148: Données de température au point de dimensionnement
A149: Q-Plan | C149: Temperatur Hauptvorlauf Fernleitung | D149: Temperatur Hauptvorlauf Fernleitung | E149: Température départ principal réseau à distance au point de mesure
A150: Q-Plan | C150: Temperatur Hauptrücklauf Fernleitung | D150: Temperatur Hauptrücklauf Fernleitung | E150: Température retour principal réseau à distance au point de mesure
A151: Q-Plan | C151: Kennzahlen | D151: Kennzahlen | E151: Caractéristiques
A152: Q-Plan | C152: Vereinbarung | D152: Vereinbarung | E152: convenue
A153: Q-Plan | C153: bzw. Zielwert | D153: bzw. Zielwert | E153: resp. valeur
A154: Q-Plan | C154: E.2.6 Vollbetriebsstundenzahl der Wärmeabnehmer | D154: E.2.6 Vollbetriebsstundenzahl der Wärmeabnehmer | E154: E.2.6 Nombre d'heures de fonctionnement à pleine charge des preneurs de chaleur
A155: Q-Plan | C155: E.3.3 Anschlussdichte Wärmenetz | D155: E.3.3 Anschlussdichte Wärmenetz | E155: E.3.3 Densité de raccordement du réseau de chaleur
A156: Q-Plan | C156: E.3.3 Wärmeverluste Wärmenetz (% der zugeführten Wärme) | D156: E.3.3 Wärmeverluste Wärmenetz (% der zugeführten Wärme) | E156: E.3.3Pertes thermiques du réseau (% de la chaleur fournie)
A157: Q-Plan | C157: Wärmeverteilkosten pro Trm | D157: Wärmeverteilkosten pro Trm | E157: Coûts de la distribution de chaleur par mètre de fouille
A158: Q-Plan | C158: E.3.3 Spezifische Investitionskosten Wärmenetz | D158: E.3.3 Spezifische Investitionskosten Wärmenetz | E158: E.3.3 Coûts d'investissements spécifiques du réseau de chaleur
A159: Q-Plan | C159: E.4.10 Spezifische Investitionskosten Wärmeerzeugung | D159: E.4.10 Spezifische Investitionskosten Wärmeerzeugung | E159: E.4.10 Coûts d'investissements spécifiques de la production de chaleur
A160: Q-Plan | C160: E.4.4 Vollbetriebsstundenzahl der/des Holzkessel(s) | D160: E.4.4 Vollbetriebsstundenzahl der/des Holzkessel(s) | E160: E.4.4 Nombre d'heures de fonctionnement à pleine charge de la (des) chaudière(s) à bois
A161: Q-Plan | C161: E.4.6 Vollbetriebsstundenzahl andere Wärmeerzeuger | D161: E.4.6 Vollbetriebsstundenzahl andere Wärmeerzeuger | E161: E.4.6 Nombre d'heures de fonctionnement à pleine charge d'autres producteurs de chaleur
A162: Q-Plan | C162: E.4.5 Silogrösse: Abdeckung des Vollastbedarfs für Anzahl Tage (+30Srm) | D162: E.4.5 Silogrösse: Abdeckung des Vollastbedarfs für Anzahl Tage (+30Srm) | E162: E.4.5 Volume du silo: couverture de la demande à pleine charge pour ……. Jours (+30 m3pl)
A163: Q-Plan | C163: E.4.5 Silogrösse: Abdeckung des Vollastbedarfs für Anzahl Tage | D163: E.4.5 Silogrösse: Abdeckung des Vollastbedarfs für Anzahl Tage | E163: E.4.5 Volume du silo: couverture de la demande à pleine charge pour ……. Jours
A164: Q-Plan | C164: Die grau hinterlegten Felder sind Eingabefelder | D164: Die grau hinterlegten Felder sind Eingabefelder | E164: Les champs grisés doivent être remplis
A165: Q-Plan | C165: Tage | D165: Tage | E165: Jours
A166: Q-Plan | C166: kWh/Srm | D166: kWh/Srm | E166: kWh/m3pl
A167: Q-Plan | C167: Srm | D167: Srm | E167: m3pl
A168: Q-Plan | C168: =IF(C$1="FR",E168,IF(C$1="IT",F168,D168)) -> Trm | D168: Trm | E168: mF
A169: Q-Plan | C169: MWh/(a Trm) | D169: MWh/(a Trm) | E169: MWh/(a mF)
A170: Q-Plan | C170: CHF/Trm | D170: CHF/Trm | E170: CHF/mF
A171: Q-Plan | C171: =IF(C$1="FR",E171,IF(C$1="IT",F171,D171)) -> €/Trm | D171: €/Trm | E171: €/mF
A172: Q-Plan | C172: Vordefinition von Währung und Brennstofftyp | D172: Vordefinition von Währung und Brennstofftyp | E172: Prédéfinition de la monnaie et le type de carburant
A173: Q-Plan | C173: Berechnungs-Basis oder Beispiel für Eingabewert in Spalte "Planung": | D173: Berechnungs-Basis oder Beispiel für Eingabewert in Spalte "Planung": | E173: Calcul basé ou un exemple de valeur d'entrée dans la colonne "Planification":
A174: Q-Plan | C174: Übernahme aus 'Verbraucher_Consommateurs' Zelle B3 | D174: Übernahme aus 'Verbraucher_Consommateurs' Zelle B3 | E174: Texte de la cellule B3 'Verbraucher_Consommateurs'
A175: Q-Plan | C175: Planungswert von 'Hilfsblatt' | D175: Planungswert von 'Hilfsblatt' | E175: Valeur de la planification de la feuille Excel 'Hilfsblatt'
A176: Q-Plan | C176: Eingabewert; Formeleingabe möglich | D176: Eingabewert; Formeleingabe möglich | E176: Valeur d'entrée; entrée possible de Formule
A177: Q-Plan | C177: Planungswert von 'Hilfsblatt' | D177: Planungswert von 'Hilfsblatt' | E177: Valeur de la planification de la feuille Excel 'Hilfsblatt'
A178: Q-Plan | C178: Berechneter Wert: | D178: Berechneter Wert: | E178: Valeur calculée:
A179: Q-Plan | C179: Planungswert von 'Anlage_Installation' | D179: Planungswert von 'Anlage_Installation' | E179: Valeur de la planification de la feuille Excel 'Anlage_Installation'
A180: Q-Plan | C180: Frei einzugebender Wert; Formeleingabe möglich | D180: Frei einzugebender Wert; Formeleingabe möglich | E180: valeur sélectionnable; entrée possible de Formule
A181: Q-Plan | C181: Planungswert von 'Anlage_Installation' | D181: Planungswert von 'Anlage_Installation' | E181: Valeur de la planification de la feuille Excel 'Anlage_Installation'
A182: Q-Plan | C182: Eingabewert; Formeleingabe möglich | D182: Eingabewert; Formeleingabe möglich | E182: Valeur d'entrée; entrée possible de Formule
A183: Q-Plan | C183: Planungswert von 'Wärmezentrale_Chauffage' | D183: Planungswert von 'Wärmezentrale_Chauffage' | E183: Valeur de la planification de la feuille Excel 'Wärmezentrale_Chauffage'
A184: Q-Plan | C184: Planungswert von 'Wärmezentrale_Chauffage' | D184: Planungswert von 'Wärmezentrale_Chauffage' | E184: Valeur de la planification de la feuille Excel 'Wärmezentrale_Chauffage'
A185: Q-Plan | C185: Planungswert von 'Hilfsblatt' | D185: Planungswert von 'Hilfsblatt' | E185: valeur de la planification de la Çfeuille auxiliaireÈ
A186: Q-Plan | C186: Eingabewert; Formeleingabe möglich | D186: Eingabewert; Formeleingabe möglich | E186: Valeur d'entrée; entrée possible de Formule
A187: Q-Plan | C187: Eingabewert; Formeleingabe möglich | D187: Eingabewert; Formeleingabe möglich | E187: Valeur d'entrée; entrée possible de Formule
A188: Q-Plan | C188: Eingabewert; Formeleingabe möglich | D188: Eingabewert; Formeleingabe möglich | E188: Valeur d'entrée; entrée possible de Formule
A189: Q-Plan | C189: Eingabewert; Formeleingabe möglich | D189: Eingabewert; Formeleingabe möglich | E189: Valeur d'entrée; entrée possible de Formule
A190: Q-Plan | C190: Eingabewert; Formeleingabe möglich | D190: Eingabewert; Formeleingabe möglich | E190: Valeur d'entrée; entrée possible de Formule
A191: Q-Plan | C191: Eingabewert; Formeleingabe möglich | D191: Eingabewert; Formeleingabe möglich | E191: Valeur d'entrée; entrée possible de Formule
A192: Q-Plan | C192: Eingabewert; Formeleingabe möglich | D192: Eingabewert; Formeleingabe möglich | E192: Valeur d'entrée; entrée possible de Formule
A193: Q-Plan | C193: ; Jahrenutzungsgrad Holzkessel 85% | D193: ; Jahrenutzungsgrad Holzkessel 85% | E193: ; bois d'efficacité annuel chaudiéres 85%
A195: WE | C195: Eingaben Hauptplaner | D195: Eingaben Hauptplaner | E195: Données planificateur principale
A196: WE | C196: Berechnete Kennzahlen | D196: Berechnete Kennzahlen | E196: Données caractéristiques calculées
A197: WE | C197: Eingabefelder | D197: Eingabefelder | E197: Champs a remplir
A198: WE | C198: Empfohlene Dateiformate: .xlsm oder .xls (Excel 97-2004) | D198: Empfohlene Dateiformate: .xlsm oder .xls (Excel 97-2004) | E198: Formats de fichiers recommandés: .xlsm oder .xls (Excel 97-2004)
A199: WE | C199: Keine | D199: Keine | E199: Aucun
A200: WE | C200: Wärmezentrale | D200: Wärmezentrale | E200: Centrale de chauffage
A201: WE | C201: Standard-Schaltung nach QMH | D201: Standard-Schaltung nach QMH | E201: Solution Standard de QM
A202: WE | C202: Nennleistung Holzkessel 1 (kl. Kessel bei WE1 – WE8) [kW] | D202: Nennleistung Holzkessel 1 (kl. Kessel bei WE1 – WE8) [kW] | E202: Puissance nominale chaudière à bois 1 (petit chaudière WE1 – WE8) [kW]
A203: WE | C203: Nennleistung Holzkessel 2 (gr. Kessel bei WE5 – WE8) [kW] | D203: Nennleistung Holzkessel 2 (gr. Kessel bei WE5 – WE8) [kW] | E203: Puissance nominale chaudière à bois 2 (grande chaudière WE1 – WE8) [kW]
A204: WE | C204: Nennleistung weitere Holzkessel Total [kW] | D204: Nennleistung weitere Holzkessel Total [kW] | E204: Puissance nominale plus chaudière à bois totale [kW]
A205: WE | C205: Anzahl installierte Holzkessel bei mehr als zwei Holzkessel [–] | D205: Anzahl installierte Holzkessel bei mehr als zwei Holzkessel [–] | E205: Nombre de chaudière à bois installé dans les systèmes à plusieurs chaudières à bois
... 46 more rows

Sheet Hilfsblatt (hidden)
B1: Ausgezoge Lastkennlinien | H1: Wärmebedarfsbalken | S1: =IF(S2=1,"Ja","Nein") -> Ja | T1: =IF(T2=1,"DE",IF(T2=2,"FR","IT")) -> DE | U1: Währung | V1: Brennstoff | W1: WE | AK1: =OFFSET($AK$2,AL1,0) -> 0 | AL1: 3 | AN1: =OFFSET($AN$2,AL1,0) -> 25
I2: Energiedaten | J2: Leistungsdaten | S2: 1 | T2: 1 | U2: 1 | V2: 1 | W2: 1
A3: Passwort für EXCEL_Situationserfassung: | B3: AT | C3: Fernleitung | D3: Prozess | E3: Warmwasser | F3: Raumwärme | I3: Jahr | J3: Winter | K3: Sommer | L3: Jahr | S3: =Text!C98 -> Ja | T3: deutsch | U3: =Text!C100 -> Franken | V3: =Text!C102 -> Holzhackschnitzel | W3: =Text!C233 -> WE1 | X3: 1500 | AK3: 3 | AL3: Deutschland (DE) | AN3: 12
A4: Holzenergie | B4: =C$31 -> -7 | C4: =ROUND(Anlage_Installation!$C$22,3) -> 44.9 | D4: =ROUND($C4+Anlage_Installation!$C$20*Anlage_Installation!$C$32,3) -> 100.9 | E4: =ROUND($D4+Anlage_Installation!$C$19*Anlage_Installation!$C$30,3) -> 253.4 | F4: =ROUND((B4-B5)*F12+F5,3) -> 1332.935 | H4: Raumwärme | I4: =Anlage_Installation!C27 -> 2792 | J4: =D33 -> 2797.803744 | L4: =SUM(J4:K4) -> 2797.803744 | M4: Chaleure ambiante | S4: =Text!C99 -> Nein | T4: français | U4: =Text!C101 -> Euro | V4: =Text!C103 -> Pellets | W4: =Text!C234 -> WE2 | X4: 2000 | AK4: 6 | AL4: Österreich (AT) | AN4: 20
B5: =Anlage_Installation!C$12-Anlage_Installation!C$13+Anlage_Installation!C$14 -> -12 | C5: =ROUND(Anlage_Installation!$C$22,3) -> 44.9 | D5: =ROUND($C5+Anlage_Installation!$C$20*Anlage_Installation!$C$32,3) -> 100.9 | E5: =ROUND($D5+Anlage_Installation!$C$19*Anlage_Installation!$C$30,3) -> 253.4 | F5: =ROUND($E5+Anlage_Installation!$C$18*SUM(Verbraucher_Consommateurs!$C$50:$IV$50),3) -> 1563.4 | H5: Warmwasser | I5: =Anlage_Installation!C29 -> 641 | J5: =ROUND(Anlage_Installation!$C$29/8760*$J$9,3) -> 467.14 | K5: =IF($S$1="Ja",ROUND(Anlage_Installation!$C$29/8760*$K$9,3),"") -> 173.86 | L5: =SUM(J5:K5) -> 641 | M5: Eau chaude | T5: italienisch | W5: =Text!C235 -> WE3 | X5: 2500 | AK5: 0 | AL5: Schweiz (CH) | AN5: 25
B6: =Anlage_Installation!C$14 -> 15 | C6: =ROUND(Anlage_Installation!$C$22,3) -> 44.9 | D6: =ROUND($C6+Anlage_Installation!$C$20*Anlage_Installation!$C$32,3) -> 100.9 | E6: =ROUND($D6+Anlage_Installation!$C$19*Anlage_Installation!$C$30,3) -> 253.4 | F6: =ROUND($E6+Anlage_Installation!$C$18*(Anlage_Installation!$C$17/100)*SUM(Verbraucher_Consommateurs!$C$50:$IV$50),3) -> 318.9 | H6: Prozess | I6: =Anlage_Installation!C31 -> 500 | J6: =ROUND(Anlage_Installation!$C$31/8760*$J$9,3) -> 364.384 | K6: =IF($S$1="Ja",ROUND(Anlage_Installation!$C$31/8760*$K$9,3),"") -> 135.616 | L6: =SUM(J6:K6) -> 500 | M6: Chaleure industrielle | W6: =Text!C236 -> WE4 | X6: 3500 | AK6: 9 | AL6: Slowenien (SI) | AN6: 3
B7: =Anlage_Installation!C$14 -> 15 | C7: =IF($S$1="JA",ROUND(Anlage_Installation!$C$22,3),0) -> 44.9 | D7: =IF($S$1="JA",ROUND($C7+Anlage_Installation!$C$20*Anlage_Installation!$C$32,3),0) -> 100.9 | E7: =IF($S$1="JA",ROUND($D7+Anlage_Installation!$C$19*Anlage_Installation!$C$30,3),0) -> 253.4 | F7: =$E7 -> 253.4 | H7: Fernleitung | I7: =Anlage_Installation!C21 -> 393.3 | J7: =ROUND(Anlage_Installation!$C$22*$J$9/1000,3) -> 286.642 | K7: =IF($S$1="Ja",ROUND(Anlage_Installation!$C$22*$K$9/1000,3),"") -> 106.682 | L7: =SUM(J7:K7) -> 393.324 | M7: Conduite à distance | W7: =Text!C237 -> WE5 | X7: 1500 | AK7: 12 | AL7: Italien (IT) | AN7: 4
B8: =Anlage_Installation!C$13 -> 20 | C8: =IF($S$1="JA",ROUND(Anlage_Installation!$C$22,3),0) -> 44.9 | D8: =IF($S$1="JA",ROUND($C8+Anlage_Installation!$C$20*Anlage_Installation!$C$32,3),0) -> 100.9 | E8: =IF($S$1="JA",ROUND($D8+Anlage_Installation!$C$19*Anlage_Installation!$C$30,3),0) -> 253.4 | F8: =$E8 -> 253.4 | I8: =SUM(I4:I7) -> 4326.3 | W8: =Text!C238 -> WE6 | X8: 2000
B9: 30 | C9: =IF($S$1="JA",ROUND(Anlage_Installation!$C$22,3),0) -> 44.9 | D9: =IF($S$1="JA",ROUND($C9+Anlage_Installation!$C$20*Anlage_Installation!$C$32,3),0) -> 100.9 | E9: =IF($S$1="JA",ROUND($D9+Anlage_Installation!$C$19*Anlage_Installation!$C$30,3),0) -> 253.4 | F9: =$E9 -> 253.4 | H9: Heizstunden | J9: =E32*24 -> 6384 | K9: =365*24-J9 -> 2376 | W9: =Text!C239 -> WE7 | X9: 2500
W10: =Text!C240 -> WE8 | X10: 3000 | AO10: CH | AR10: DE | AU10: AT | AX10: SI | BA10: IT
A11: Paralellverschiebung | F11: =ROUND(INDEX(LINEST(F$5:F$6,B$5:B$6),2)-E5,3) -> 756.889 | H11: Gesamt | I11: =SUM(I4:I7) -> 4326.3 | J11: =SUM(J4:J7) -> 3915.969744 | K11: =SUM(K4:K7) -> 416.158 | L11: =SUM(L4:L7) -> 4332.127744 | M11: Total | W11: =Text!C199 -> Keine | X11: – | AK11: =OFFSET($AK$12,AL11,0) -> 6 | AL11: 25
A12: Steilheit | F12: =ROUND(INDEX(LINEST(F$5:F$6,B$5:B$6),1),3) -> -46.093 | H12: Holzkessel | J12: =AF32 -> 3691.98288 | K12: =AF31 -> 416.161152 | L12: =AF33 -> 4108.144032 | M12: Chaudière à bois
H13: Bandleistungsquelle | J13: =X32 -> 0 | K13: =X31 -> 0 | L13: =X33 -> 0 | M13: Source de puissance de base | AK13: =IF(OFFSET($AO13,,$AK$1)="","",OFFSET($AN13,,$AK$1)) -> 190 | AL13: =IF(OFFSET($AO13,,$AK$1)="","",OFFSET($AO13,,$AK$1)) -> Andermatt (CH), 1442 m ü. M. | AN13: 190 | AO13: Andermatt (CH), 1442 m ü. M. | AQ13: 62 | AR13: Augsburg (DE), 461 m ü. M. | AT13: 122 | AU13: Bad Aussee (AT), 659 m ü. M. | AW13: 42 | AX13: BILJE (SI), 55 m ü. M. | AZ13: 222 | BA13: Station 1
B14: Unsichtbare Lastkennlinien | H14: Gesamt | J14: =J11/$L$11*100 -> 90.39368124 | K14: 9.606318756 | L14: 100 | AK14: 194 | AL14: =IF(OFFSET($AO14,,$AK$1)="","",OFFSET($AO14,,$AK$1)) -> Acquarossa/Comprovasco (CH), 575 m ü. M. | AN14: 194 | AO14: Acquarossa/Comprovasco (CH), 575 m ü. M. | AQ14: 66 | AR14: Bamberg (DE), 240 m ü. M. | AT14: 126 | AU14: Bregenz (AT), 427 m ü. M. | AW14: 38 | AX14: BRNIK LETALIŠČE (SI), 364 m ü. M. | AZ14: 226 | BA14: Station 2
H15: Holzkessel | J15: 85.22331515 | K15: 9.606391515 | L15: 94.82970667 | AK15: 198 | AL15: Bad Ragaz (CH), 496 m ü. M. | AN15: 198 | AO15: Bad Ragaz (CH), 496 m ü. M. | AQ15: 50 | AR15: Frankfurt/Main Flughafen (DE), 112 m ü. M. | AT15: 130 | AU15: Eisenstadt (AT), 182 m ü. M. | AW15: 46 | AX15: NOVA VAS [BLOKE] (SI), 722 m ü. M. | AZ15: 230 | BA15: Station 3
B16: AT | C16: Fernleitung | D16: Prozess | E16: Warmwasser | F16: Raumwärme | H16: Bandleistungsquelle | J16: 0 | K16: 0 | L16: 0 | AK16: 86 | AL16: Basel-Binningen (CH), 316 m ü. M. | AN16: 86 | AO16: Basel-Binningen (CH), 316 m ü. M. | AQ16: 70 | AR16: Hof (DE), 565 m ü. M. | AT16: 134 | AU16: Freistadt (AT), 560 m ü. M. | AZ16: 234 | BA16: Station 4
B17: =C$31 -> -7 | C17: =ROUND(Anlage_Installation!$C$22,3) -> 44.9 | D17: =ROUND($C17+Anlage_Installation!$C$31*1000/8760,3) -> 101.978 | E17: =ROUND($D17+Anlage_Installation!$C$29*1000/8760,3) -> 175.152 | F17: =ROUND((B17-B18)*F25+F18,3) -> 1196.592 | AK17: 90 | AL17: Bern/Zollikofen (CH), 553 m ü. M. | AN17: 90 | AO17: Bern/Zollikofen (CH), 553 m ü. M. | AQ17: 34 | AR17: Hohenpeißenberg (DE), 977 m ü. M. | AT17: 138 | AU17: Fürstenfeld (AT), 276 m ü. M.
B18: =Anlage_Installation!C$12-Anlage_Installation!C$13+Anlage_Installation!C$14 -> -12 | C18: =ROUND(Anlage_Installation!$C$22,3) -> 44.9 | D18: =ROUND($C18+Anlage_Installation!$C$31*1000/8760,3) -> 101.978 | E18: =ROUND($D18+Anlage_Installation!$C$29*1000/8760,3) -> 175.152 | F18: =ROUND($E18+SUM(Verbraucher_Consommateurs!$C$49:$IV$49),3) -> 1414.652 | AK18: 238 | AL18: Bullet / La Fretaz (CH), 1205 m ü. M. | AN18: 238 | AO18: Bullet / La Fretaz (CH), 1205 m ü. M. | AQ18: 58 | AR18: Kahler Asten (DE), 839 m ü. M. | AT18: 14 | AU18: Graz Universität (AT), 353 m ü. M.
B19: =Anlage_Installation!C$14 -> 15 | C19: =ROUND(Anlage_Installation!$C$22,3) -> 44.9 | D19: =ROUND($C19+Anlage_Installation!$C$31*1000/8760,3) -> 101.978 | E19: =ROUND($D19+Anlage_Installation!$C$29*1000/8760,3) -> 175.152 | F19: =ROUND($E19+Anlage_Installation!$C$17/100*SUM(Verbraucher_Consommateurs!$C$49:$IV$49),3) -> 237.127 | AK19: 202 | AL19: Château-d'Oex (CH), 1029 m ü. M. | AN19: 202 | AO19: Château-d'Oex (CH), 1029 m ü. M. | AQ19: 26 | AR19: Karlsruhe/Rheinstetten (DE), 116 m ü. M. | AT19: 142 | AU19: Hohenau/March (AT), 155 m ü. M.
B20: =Anlage_Installation!C$14 -> 15 | C20: =IF($S$1="JA",ROUND(Anlage_Installation!$C$22,3),0) -> 44.9 | D20: =IF($S$1="JA",ROUND($C20+Anlage_Installation!$C$31*1000/8760,3),0) -> 101.978 | E20: =IF($S$1="JA",ROUND($D20+Anlage_Installation!$C$29*1000/8760,3),0) -> 175.152 | F20: =$E20 -> 175.152 | AK20: 2 | AL20: Davos (CH), 1594 m ü. M. | AN20: 2 | AO20: Davos (CH), 1594 m ü. M. | AQ20: 74 | AR20: Kempten (DE), 705 m ü. M. | AT20: 146 | AU20: Innsbruck Universität (AT), 574 m ü. M.
B21: =Anlage_Installation!C$13 -> 20 | C21: =IF($S$1="JA",ROUND(Anlage_Installation!$C$22,3),0) -> 44.9 | D21: =IF($S$1="JA",ROUND($C21+Anlage_Installation!$C$31*1000/8760,3),0) -> 101.978 | E21: =IF($S$1="JA",ROUND($D21+Anlage_Installation!$C$29*1000/8760,3),0) -> 175.152 | F21: =$E21 -> 175.152 | T21: =IF(AA$31=0,0,IF(AA$31>=L36,IF(L36>=T35,L36,IF(S$1="JA",T35,IF(AA$31<=L36,AA$31,L36))),T35)) -> 0 | AK21: 206 | AL21: Disentis/Sedrun (CH), 1197 m ü. M. | AN21: 206 | AO21: Disentis/Sedrun (CH), 1197 m ü. M. | AQ21: 30 | AR21: München Flughafen (DE), 446 m ü. M. | AT21: 150 | AU21: Klagenfurt Flughafen (AT), 446 m ü. M.
B22: 30 | C22: =IF($S$1="JA",ROUND(Anlage_Installation!$C$22,3),0) -> 44.9 | D22: =IF($S$1="JA",ROUND($C22+Anlage_Installation!$C$31*1000/8760,3),0) -> 101.978 | E22: =IF($S$1="JA",ROUND($D22+Anlage_Installation!$C$29*1000/8760,3),0) -> 175.152 | F22: =$E22 -> 175.152 | AK22: 242 | AL22: Einsiedeln (CH), 910 m ü. M. | AN22: 242 | AO22: Einsiedeln (CH), 910 m ü. M. | AQ22: 78 | AR22: Nürnberg (DE), 314 m ü. M. | AT22: 154 | AU22: Kufstein (AT), 499 m ü. M.
AK23: 98 | AL23: Engelberg (CH), 1036 m ü. M. | AN23: 98 | AO23: Engelberg (CH), 1036 m ü. M. | AQ23: 54 | AR23: Trier-Petrisberg (DE), 265 m ü. M. | AT23: 158 | AU23: Lienz (AT), 673 m ü. M.
A24: Paralellverschiebung | F24: =ROUND(INDEX(LINEST(F$18:F$19,B$18:B$19),2)-E18,3) -> 716.156 | AK24: 210 | AL24: Fribourg/Posieux (CH), 646 m ü. M. | AN24: 210 | AO24: Fribourg/Posieux (CH), 646 m ü. M. | AQ24: 82 | AR24: Würzburg (DE), 268 m ü. M. | AT24: 162 | AU24: Linz Stadt (AT), 266 m ü. M.
A25: Steilheit | F25: =ROUND(INDEX(LINEST(F$18:F$19,B$18:B$19),1),3) -> -43.612 | AK25: 94 | AL25: La Chaux-de-Fonds (CH), 1018 m ü. M. | AN25: 94 | AO25: La Chaux-de-Fonds (CH), 1018 m ü. M. | AT25: 166 | AU25: Mariazell (AT), 868 m ü. M.
Y26: Bandquelle | AA26: Min. Leistung | AG26: Holzkessel | AK26: 246 | AL26: Langnau i.E. (CH), 745 m ü. M. | AN26: 246 | AO26: Langnau i.E. (CH), 745 m ü. M. | AT26: 170 | AU26: Salzburg-Freisaal (AT), 424 m ü. M.
AA27: =IF(T$1="FR",IF(Figures_FR!M7="",0,Figures_FR!M7),IF(T$1="SI",IF(Bilder_IT!M6="",0,Bilder_IT!M6),IF(Bilder_DE!M7="",0,Bilder_DE!M7))) -> 135 | AB27: =AA27+Y31 -> 135 | AD27: =MAX(AD34:AD87) -> 175.152 | AK27: 10 | AL27: Locarno/Monti (CH), 367 m ü. M. | AN27: 10 | AO27: Locarno/Monti (CH), 367 m ü. M. | AT27: 174 | AU27: Schröcken (AT), 1269 m ü. M.
W28: =IF(OR($G29="Acquarossa/Comprovasco (CH), 575 m ü. M.",$G29="Pully (CH), 456 m ü. M.",$G29="Schröcken (AT), 1269 m ü. M.",$G29="Augsburg (DE), 461 m ü. M.",$G29="Bamberg (DE), 240 m ü. M.",$G29="Karlsruhe/Rheinstetten (DE), 116 m ü. M.",$G29="BILJE (SI), 55 m ü. M."),2,1) -> 1 | Y28: Min. Leistung | AA28: Max. Leistung | AE28: =IF(OR($G29="Acquarossa/Comprovasco (CH), 575 m ü. M.",$G29="Pully (CH), 456 m ü. M.",$G29="Schröcken (AT), 1269 m ü. M.",$G29="Augsburg (DE), 461 m ü. M.",$G29="Bamberg (DE), 240 m ü. M.",$G29="Karlsruhe/Rheinstetten (DE), 116 m ü. M.",$G29="BILJE (SI), 55 m ü. M."),2,1) -> 1 | AG28: Min. Leistung | AK28: 102 | AL28: Luzern (CH), 454 m ü. M. | AN28: 102 | AO28: Luzern (CH), 454 m ü. M. | AT28: 178 | AU28: St. Pölten (AT), 267 m ü. M.
A29: Klimastation | G29: =OFFSET($AL$12,AL11,0) -> Zürich/Fluntern (CH), 556 m ü. M. | Y29: =ROUND(MIN(Y33:Y87),0) -> 0 | AA29: =IF(T$1="FR",IF(Figures_FR!M8="",10^10,Figures_FR!M8),IF(T$1="IT",IF(Bilder_IT!M7="",10^10,Bilder_IT!M7),IF(Bilder_DE!M8="",10^10,Bilder_DE!M8))) -> 810 | AB29: =AA29+Y31 -> 810 | AG29: =ROUND(AD27-T31,0) -> 175 | AK29: 250 | AL29: Payerne (CH), 490 m ü. M. | AN29: 250 | AO29: Payerne (CH), 490 m ü. M. | AT29: 18 | AU29: Tamsweg (AT), 1022 m ü. M.
J30: =C31-B36 -> 13 | K30: =IF($S$1="JA",365,$K$36) -> 365 | L30: =$E$19 -> 175.152 | Y30: Max. Leistung | AA30: Bandleistung | AG30: Max. Leistung | AK30: 214 | AL30: Piotta (CH), 990 m ü. M. | AN30: 214 | AO30: Piotta (CH), 990 m ü. M. | AT30: 22 | AU30: Wien innere Stadt (AT), 170 m ü. M.
A31: Tiefste Aussentemperatur [°C] | C31: =MIN(C36:C86) -> -7 | K31: 1 | L31: =$L$30 -> 175.152 | T31: =MAX(T33:T89) -> 0 | X31: =X33-X32 -> 0 | Y31: =ROUND(MAX(Y33:Y87),0) -> 0 | AA31: =IF(T$1="FR",IF(Figures_FR!M9="",10^10,Figures_FR!M9),IF(T$1="IT",IF(Bilder_IT!M8="",10^10,Bilder_IT!M8),IF(Bilder_DE!M9="",10^10,Bilder_DE!M9))) -> 0 | AF31: =AF33-AF32 -> 416.161152 | AG31: =ROUND(MAX(AG33:AG87),0) -> 804 | AK31: 106 | AL31: Pully (CH), 456 m ü. M. | AN31: 106 | AO31: Pully (CH), 456 m ü. M. | AT31: 182 | AU31: Zell am See (AT), 750 m ü. M.
A32: Heiztage | E32: =ROUND(SUM(E36:E86)/24,1) -> 266 | G32: =SUM(G36:G86) -> 365 | X32: =SUM(X36:X86) -> 0 | AF32: =SUM(AF36:AF86) -> 3691.98288 | AH32: =SUM(AH36:AH86) -> 3691.98288 | AK32: 254 | AL32: Rünenberg (CH), 611 m ü. M. | AN32: 254 | AO32: Rünenberg (CH), 611 m ü. M. | AT32: 186 | AU32: Zeltweg (AT), 659 m ü. M.
A33: Heizwärmebedarf [MWh/a] (inkl. nicht witterungsabhängigem Anteil) | D33: =SUM(D36:D86)/1000 -> 2797.803744 | T33: 0 | U33: =U34 -> 0 | W33: =SUM(W35:W86) -> 364 | X33: =SUM(X35:X86) -> 0 | AA33: =T$31 -> 0 | AB33: =AB34 -> 365 | AE33: =SUM(AE35:AE86) -> 365 | AF33: =SUM(AF35:AF86) -> 4108.144032 | AG33: =IF(S$1="NEIN",0,IF(AA33>0,AA33,0)) -> 0 | AK33: 110 | AL33: Samedan (CH), 1709 m ü. M. | AN33: 110 | AO33: Samedan (CH), 1709 m ü. M.
A34: Nicht witterunsabhängiger Anteil [MWh/a] | D34: =ROUND((F6-F7)*E32*24/1000,3) -> 418.152 | K34: 365 | L34: =IF($S$1="JA",$L$30,0) -> 175.152 | T34: =IF(AA$31=0,0,IF(AA$31>=L34,L34,AA$31)) -> 0 | U34: =IF(U89<365,U89,365) -> 0 | V34: =IF(AND(T33=0,T34>0),$K34,"") ->  | Y34: =IF(T34>0,T34,0) -> 0 | AA34: =IF(L34<AB$27,AA33,IF(L34>AB$29,AA33,IF(L34<T$31,T$31,L34))) -> 175.152 | AB34: =IF(AB89<365,AB89,365) -> 365 | AC34: =IF(AND(AA33=T$31,AA34>T$31),IF(AB$27<T$31,K33,K34),"") -> 365 | AD34: =IF(AC34="","",AA34) -> 175.152 | AG34: =IF(S$1="NEIN",0,IF(AA34>0,AA34,0)) -> 175.152 | AK34: 114 | AL34: St. Gallen (CH), 776 m ü. M. | AN34: 114 | AO34: St. Gallen (CH), 776 m ü. M.
K35: =E32 -> 266 | L35: =IF($S$1="JA",$L$30,0) -> 175.152 | T35: =IF(AA$31=0,0,IF(AA$31>=L35,IF(L35>=T34,L35,T34),T34)) -> 0 | U35: =IF(AND(T35=0,T36>0),K36,IF(T35=0,U$89,K35)) -> 0 | W35: =(365-U36) -> 365 | X35: =W35*24*T35/1000 -> 0 | Y35: =IF(T35>0,T35,0) -> 0 | AA35: 175.152 | AB35: =IF(AND(AA35=T$31,AA36>T$31),IF(AB$27<T$31,K35,K36),IF(AA35=T$31,AB$89,K35)) -> 266 | AD35: =IF(AC35="","",AA35) ->  | AE35: =(365-AB36) -> 99 | AF35: =IF(AE36=0,0,AE35*24*(AA35-T36)/1000) -> 416.161152 | AG35: =IF(S$1="NEIN",0,IF(AA35>0,AA35,0)) -> 175.152 | AH35: =AE35*AG35*24/1000 -> 416.161152 | AK35: 218 | AL35: Ulrichen (CH), 1346 m ü. M. | AN35: 218 | AO35: Ulrichen (CH), 1346 m ü. M.
B36: -20 | C36: =IF(OR(G36=0,B36>B$6),"",B36) ->  | D36: =IF(C36="","",ROUND((B36*F$25+F$24)*E36,3)) ->  | E36: =IF(C36="","",G36*24) ->  | F36: 0 | G36: =OFFSET(Klimadaten!$B$10,$F36,$AK$11) -> 0 | H36: =G36 -> 0 | I36: =IF(OR($G36=0,$B36>$B$6),-10,$B36*$F$25+$F$24+$L$30) -> -10 | J36: =86+(B20-B22)-36 -> 35 | K36: =OFFSET(H$36,$J36,0) -> 266 | L36: =OFFSET(I$36,$J36,0) -> 237.128 | M36: =IF(G36=0,-25,B36) -> -25 | N36: =OFFSET(Klimadaten!$B$10,$F36,$AK$11-1) -> 0 | O36: =N36 -> 0 | P36: =IF(N36=0,-25,$B36) -> -25 | Q36: =OFFSET(Klimadaten!$B$10,$F36,$AK$11+1) -> 0 | R36: =Q36 -> 0 | S36: =IF(Q36=0,-25,$B36) -> -25 | T36: =IF(AA$31=0,0,IF(AA$31>=L36,IF(L36>=T35,L36,T35),IF(S$1="JA",T35,IF(AA$31<=L36,AA$31,L36)))) -> 0 | U36: 0 | W36: =IF(AND(U36=W$28,U35>W$28),(U36-U37)+W$28,U36-U37) -> 0 | X36: =W36*24*T36/1000 -> 0 | Y36: =IF(T36>0,T36,0) -> 0 | AA36: 237.128 | AB36: 266 | AE36: =IF(AND(AB36=AE$28,AB35>AE$28),(AB36-AB37)+AE$28,AB36-AB37) -> 16 | AF36: =AE36*24*(AA36-T36)/1000 -> 91.057152 | AG36: =IF(AA36>0,AA36-T36,0) -> 237.128 | AH36: =AE36*AG36*24/1000 -> 91.057152 | AK36: 118 | AL36: Visp (CH), 639 m ü. M. | AN36: 118 | AO36: Visp (CH), 639 m ü. M.
B37: =B36+1 -> -19 | D37: =IF(C37="","",ROUND((B37*F$25+F$24)*E37,3)) ->  | E37: =IF(C37="","",G37*24) ->  | F37: =F36+1 -> 1 | G37: =OFFSET(Klimadaten!$B$10,$F37,$AK$11) -> 0 | H37: =H36+G37 -> 0 | I37: -10 | J37: =IF(J36-1<J$30,J$30,J36-1) -> 34 | K37: =OFFSET(H$36,$J37,0) -> 250 | L37: =OFFSET(I$36,$J37,0) -> 280.74 | M37: =IF(G37=0,-25,B37) -> -25 | N37: =OFFSET(Klimadaten!$B$10,$F37,$AK$11-1) -> 0 | O37: =O36+N37 -> 0 | P37: =IF(N37=0,-25,$B37) -> -25 | Q37: =OFFSET(Klimadaten!$B$10,$F37,$AK$11+1) -> 0 | R37: =R36+Q37 -> 0 | S37: =IF(Q37=0,-25,$B37) -> -25 | T37: =IF(AA$31=0,0,IF(AA$31>=L37,IF(L37>=T36,L37,T36),T36)) -> 0 | U37: 0 | W37: 0 | X37: 0 | Y37: =IF(T37>0,T37,0) -> 0 | AA37: 280.74 | AB37: 250 | AE37: 16 | AF37: =AE37*24*(AA37-T37)/1000 -> 107.80416 | AG37: =IF(AA37>0,AA37-T37,0) -> 280.74 | AH37: 107.80416 | AK37: 6 | AL37: Zürich/Fluntern (CH), 556 m ü. M. | AN37: 6 | AO37: Zürich/Fluntern (CH), 556 m ü. M.
B38: -18 | F38: =F37+1 -> 2 | G38: =OFFSET(Klimadaten!$B$10,$F38,$AK$11) -> 0 | H38: 0 | I38: -10 | J38: =IF(J37-1<J$30,J$30,J37-1) -> 33 | K38: 234 | L38: 324.352 | M38: =IF(G38=0,-25,B38) -> -25 | N38: =OFFSET(Klimadaten!$B$10,$F38,$AK$11-1) -> 0 | O38: =O37+N38 -> 0 | P38: -25 | Q38: =OFFSET(Klimadaten!$B$10,$F38,$AK$11+1) -> 0 | R38: =R37+Q38 -> 0 | S38: =IF(Q38=0,-25,$B38) -> -25 | T38: 0 | U38: 0 | W38: 0 | X38: 0 | Y38: 0 | AA38: 324.352 | AB38: 234 | AE38: 17 | AF38: 132.335616 | AG38: 324.352 | AH38: 132.335616
B39: -17 | F39: 3 | G39: =OFFSET(Klimadaten!$B$10,$F39,$AK$11) -> 0 | H39: 0 | I39: -10 | J39: 32 | K39: 217 | L39: 367.964 | M39: -25 | N39: =OFFSET(Klimadaten!$B$10,$F39,$AK$11-1) -> 0 | O39: 0 | P39: -25 | Q39: =OFFSET(Klimadaten!$B$10,$F39,$AK$11+1) -> 0 | R39: 0 | S39: -25 | T39: 0 | U39: 0 | W39: 0 | X39: 0 | Y39: 0 | AA39: 367.964 | AB39: 217 | AE39: 17 | AF39: 150.129312 | AG39: 367.964 | AH39: 150.129312
B40: -16 | F40: 4 | G40: =OFFSET(Klimadaten!$B$10,$F40,$AK$11) -> 0 | H40: 0 | I40: -10 | J40: 31 | K40: 200 | L40: 411.576 | M40: -25 | N40: =OFFSET(Klimadaten!$B$10,$F40,$AK$11-1) -> 0 | O40: 0 | P40: -25 | Q40: =OFFSET(Klimadaten!$B$10,$F40,$AK$11+1) -> 0 | R40: 0 | S40: -25 | T40: 0 | U40: 0 | W40: 0 | X40: 0 | Y40: 0 | AA40: 411.576 | AB40: 200 | AE40: 13 | AF40: 128.411712 | AG40: 411.576 | AH40: 128.411712
B41: -15 | F41: 5 | G41: =OFFSET(Klimadaten!$B$10,$F41,$AK$11) -> 0 | H41: 0 | I41: -10 | J41: 30 | K41: 187 | L41: 455.188 | M41: -25 | N41: =OFFSET(Klimadaten!$B$10,$F41,$AK$11-1) -> 0 | O41: 0 | P41: -25 | Q41: =OFFSET(Klimadaten!$B$10,$F41,$AK$11+1) -> 0 | R41: 0 | S41: -25 | T41: 0 | U41: 0 | W41: 0 | X41: 0 | Y41: 0 | AA41: 455.188 | AB41: 187 | AE41: 13 | AF41: 142.018656 | AG41: 455.188 | AH41: 142.018656
B42: -14 | F42: 6 | G42: =OFFSET(Klimadaten!$B$10,$F42,$AK$11) -> 0 | H42: 0 | I42: -10 | J42: 29 | K42: 174 | L42: 498.8 | M42: -25 | N42: =OFFSET(Klimadaten!$B$10,$F42,$AK$11-1) -> 0 | O42: 0 | P42: -25 | Q42: =OFFSET(Klimadaten!$B$10,$F42,$AK$11+1) -> 0 | R42: 0 | S42: -25 | T42: 0 | U42: 0 | W42: 0 | X42: 0 | Y42: 0 | AA42: 498.8 | AB42: 174 | AE42: 15 | AF42: 179.568 | AG42: 498.8 | AH42: 179.568
B43: -13 | F43: 7 | G43: =OFFSET(Klimadaten!$B$10,$F43,$AK$11) -> 0 | H43: 0 | I43: -10 | J43: 28 | K43: 159 | L43: 542.412 | M43: -25 | N43: =OFFSET(Klimadaten!$B$10,$F43,$AK$11-1) -> 0 | O43: 0 | P43: -25 | Q43: =OFFSET(Klimadaten!$B$10,$F43,$AK$11+1) -> 0 | R43: 0 | S43: -25 | T43: 0 | U43: 0 | W43: 0 | X43: 0 | Y43: 0 | AA43: 542.412 | AB43: 159 | AE43: 14 | AF43: 182.250432 | AG43: 542.412 | AH43: 182.250432
B44: -12 | F44: 8 | G44: =OFFSET(Klimadaten!$B$10,$F44,$AK$11) -> 0 | H44: 0 | I44: -10 | J44: 27 | K44: 145 | L44: 586.024 | M44: -25 | N44: =OFFSET(Klimadaten!$B$10,$F44,$AK$11-1) -> 0 | O44: 0 | P44: -25 | Q44: =OFFSET(Klimadaten!$B$10,$F44,$AK$11+1) -> 0 | R44: 0 | S44: -25 | T44: 0 | U44: 0 | W44: 0 | X44: 0 | Y44: 0 | AA44: 586.024 | AB44: 145 | AE44: 15 | AF44: 210.96864 | AG44: 586.024 | AH44: 210.96864
B45: -11 | F45: 9 | G45: =OFFSET(Klimadaten!$B$10,$F45,$AK$11) -> 0 | H45: 0 | I45: -10 | J45: 26 | K45: 130 | L45: 629.636 | M45: -25 | N45: =OFFSET(Klimadaten!$B$10,$F45,$AK$11-1) -> 0 | O45: 0 | P45: -25 | Q45: =OFFSET(Klimadaten!$B$10,$F45,$AK$11+1) -> 0 | R45: 0 | S45: -25 | T45: 0 | U45: 0 | W45: 0 | X45: 0 | Y45: 0 | AA45: 629.636 | AB45: 130 | AE45: 14 | AF45: 211.557696 | AG45: 629.636 | AH45: 211.557696
B46: -10 | F46: 10 | G46: =OFFSET(Klimadaten!$B$10,$F46,$AK$11) -> 0 | H46: 0 | I46: -10 | J46: 25 | K46: 116 | L46: 673.248 | M46: -25 | N46: =OFFSET(Klimadaten!$B$10,$F46,$AK$11-1) -> 1 | O46: 1 | P46: -10 | Q46: =OFFSET(Klimadaten!$B$10,$F46,$AK$11+1) -> 0 | R46: 0 | S46: -25 | T46: 0 | U46: 0 | W46: 0 | X46: 0 | Y46: 0 | AA46: 673.248 | AB46: 116 | AE46: 12 | AF46: 193.895424 | AG46: 673.248 | AH46: 193.895424
B47: -9 | F47: 11 | G47: =OFFSET(Klimadaten!$B$10,$F47,$AK$11) -> 0 | H47: 0 | I47: -10 | J47: 24 | K47: 104 | L47: 716.86 | M47: -25 | N47: =OFFSET(Klimadaten!$B$10,$F47,$AK$11-1) -> 1 | O47: 2 | P47: -9 | Q47: =OFFSET(Klimadaten!$B$10,$F47,$AK$11+1) -> 0 | R47: 0 | S47: -25 | T47: 0 | U47: 0 | W47: 0 | X47: 0 | Y47: 0 | AA47: 716.86 | AB47: 104 | AE47: 13 | AF47: 223.66032 | AG47: 716.86 | AH47: 223.66032
B48: -8 | F48: 12 | G48: =OFFSET(Klimadaten!$B$10,$F48,$AK$11) -> 0 | H48: 0 | I48: -10 | J48: 23 | K48: =OFFSET(H$36,$J48,0) -> 91 | L48: 760.472 | M48: -25 | N48: =OFFSET(Klimadaten!$B$10,$F48,$AK$11-1) -> 3 | O48: 5 | P48: -8 | Q48: =OFFSET(Klimadaten!$B$10,$F48,$AK$11+1) -> 0 | R48: 0 | S48: -25 | T48: 0 | U48: 0 | W48: 0 | X48: 0 | Y48: 0 | AA48: 760.472 | AB48: 91 | AE48: 17 | AF48: 310.272576 | AG48: 760.472 | AH48: 310.272576
B49: -7 | C49: -7 | D49: 24514.56 | E49: 24 | F49: 13 | G49: =OFFSET(Klimadaten!$B$10,$F49,$AK$11) -> 1 | H49: 1 | I49: 1196.592 | J49: 22 | K49: 74 | L49: 804.084 | M49: -7 | N49: =OFFSET(Klimadaten!$B$10,$F49,$AK$11-1) -> 4 | O49: 9 | P49: -7 | Q49: =OFFSET(Klimadaten!$B$10,$F49,$AK$11+1) -> 0 | R49: 0 | S49: -25 | T49: 0 | U49: 0 | W49: 0 | X49: 0 | Y49: 0 | AA49: 804.084 | AB49: 74 | AE49: 14 | AF49: 270.172224 | AG49: 804.084 | AH49: 270.172224
B50: -6 | C50: -6 | D50: 46935.744 | E50: 48 | F50: 14 | G50: =OFFSET(Klimadaten!$B$10,$F50,$AK$11) -> 2 | H50: 3 | I50: 1152.98 | J50: 21 | K50: 60 | L50: 847.696 | M50: -6 | N50: =OFFSET(Klimadaten!$B$10,$F50,$AK$11-1) -> 4 | O50: 13 | P50: -6 | Q50: =OFFSET(Klimadaten!$B$10,$F50,$AK$11+1) -> 0 | R50: 0 | S50: -25 | T50: 0 | U50: 0 | W50: 0 | X50: 0 | Y50: 0 | AA50: 804.084 | AB50: 60 | AE50: 13 | AF50: 250.874208 | AG50: 804.084 | AH50: 250.874208
B51: -5 | C51: -5 | D51: 112105.92 | E51: 120 | F51: 15 | G51: =OFFSET(Klimadaten!$B$10,$F51,$AK$11) -> 5 | H51: 8 | I51: 1109.368 | J51: 20 | K51: 47 | L51: 891.308 | M51: -5 | N51: =OFFSET(Klimadaten!$B$10,$F51,$AK$11-1) -> 8 | O51: 21 | P51: -5 | Q51: =OFFSET(Klimadaten!$B$10,$F51,$AK$11+1) -> 1 | R51: 1 | S51: -5 | T51: 0 | U51: 0 | W51: 0 | X51: 0 | Y51: 0 | AA51: 804.084 | AB51: 47 | AE51: 12 | AF51: 231.576192 | AG51: 804.084 | AH51: 231.576192
B52: -4 | C52: -4 | D52: 106872.48 | E52: 120 | F52: 16 | G52: =OFFSET(Klimadaten!$B$10,$F52,$AK$11) -> 5 | H52: 13 | I52: 1065.756 | J52: 19 | K52: 35 | L52: 934.92 | M52: -4 | N52: =OFFSET(Klimadaten!$B$10,$F52,$AK$11-1) -> 8 | O52: 29 | P52: -4 | Q52: =OFFSET(Klimadaten!$B$10,$F52,$AK$11+1) -> 3 | R52: 4 | S52: -4 | T52: 0 | U52: 0 | W52: 0 | X52: 0 | Y52: 0 | AA52: 804.084 | AB52: 35 | AE52: 8 | AF52: 154.384128 | AG52: 804.084 | AH52: 154.384128
B53: -3 | C53: -3 | D53: 142294.656 | E53: 168 | F53: 17 | G53: =OFFSET(Klimadaten!$B$10,$F53,$AK$11) -> 7 | H53: 20 | I53: 1022.144 | J53: 18 | K53: 27 | L53: 978.532 | M53: -3 | N53: =OFFSET(Klimadaten!$B$10,$F53,$AK$11-1) -> 11 | O53: 40 | P53: -3 | Q53: =OFFSET(Klimadaten!$B$10,$F53,$AK$11+1) -> 4 | R53: 8 | S53: -3 | T53: 0 | U53: 0 | W53: 0 | X53: 0 | Y53: 0 | AA53: 804.084 | AB53: 27 | AE53: 7 | AF53: 135.086112 | AG53: 804.084 | AH53: 135.086112
B54: -2 | C54: -2 | D54: 134967.84 | E54: 168 | F54: 18 | G54: =OFFSET(Klimadaten!$B$10,$F54,$AK$11) -> 7 | H54: 27 | I54: 978.532 | J54: 17 | K54: 20 | L54: 1022.144 | M54: -2 | N54: =OFFSET(Klimadaten!$B$10,$F54,$AK$11-1) -> 12 | O54: 52 | P54: -2 | Q54: =OFFSET(Klimadaten!$B$10,$F54,$AK$11+1) -> 5 | R54: 13 | S54: -2 | T54: 0 | U54: 0 | W54: =IF(AND(U54=W$28,U53>W$28),(U54-U55)+W$28,U54-U55) -> 0 | X54: 0 | Y54: 0 | AA54: 804.084 | AB54: 20 | AE54: =IF(AND(AB54=AE$28,AB53>AE$28),(AB54-AB55)+AE$28,AB54-AB55) -> 7 | AF54: 135.086112 | AG54: 804.084 | AH54: 135.086112
B55: -1 | C55: -1 | D55: 145875.456 | E55: 192 | F55: 19 | G55: =OFFSET(Klimadaten!$B$10,$F55,$AK$11) -> 8 | H55: 35 | I55: 934.92 | J55: 16 | K55: 13 | L55: 1065.756 | M55: -1 | N55: =OFFSET(Klimadaten!$B$10,$F55,$AK$11-1) -> 15 | O55: 67 | P55: -1 | Q55: =OFFSET(Klimadaten!$B$10,$F55,$AK$11+1) -> 5 | R55: 18 | S55: -1 | T55: 0 | U55: 0 | W55: =IF(AND(U55=W$28,U54>W$28),(U55-U56)+W$28,U55-U56) -> 0 | X55: 0 | Y55: 0 | AA55: 804.084 | AB55: 13 | AE55: =IF(AND(AB55=AE$28,AB54>AE$28),(AB55-AB56)+AE$28,AB55-AB56) -> 5 | AF55: 96.49008 | AG55: 804.084 | AH55: 96.49008
B56: 0 | C56: 0 | D56: 206252.928 | E56: 288 | F56: 20 | G56: =OFFSET(Klimadaten!$B$10,$F56,$AK$11) -> 12 | H56: 47 | I56: 891.308 | J56: 15 | K56: 8 | L56: 1109.368 | M56: 0 | N56: =OFFSET(Klimadaten!$B$10,$F56,$AK$11-1) -> 18 | O56: 85 | P56: 0 | Q56: =OFFSET(Klimadaten!$B$10,$F56,$AK$11+1) -> 7 | R56: 25 | S56: 0 | T56: 0 | U56: 0 | W56: 0 | X56: 0 | Y56: 0 | AA56: 804.084 | AB56: 8 | AE56: 5 | AF56: 96.49008 | AG56: 804.084 | AH56: 96.49008
B57: 1 | C57: 1 | D57: 209833.728 | E57: 312 | F57: 21 | G57: =OFFSET(Klimadaten!$B$10,$F57,$AK$11) -> 13 | H57: 60 | I57: 847.696 | J57: 14 | K57: 3 | L57: 1152.98 | M57: 1 | N57: =OFFSET(Klimadaten!$B$10,$F57,$AK$11-1) -> 18 | O57: 103 | P57: 1 | Q57: =OFFSET(Klimadaten!$B$10,$F57,$AK$11+1) -> 8 | R57: 33 | S57: 1 | T57: 0 | U57: 0 | W57: 0 | X57: 0 | Y57: 0 | AA57: 804.084 | AB57: 3 | AE57: 2 | AF57: 38.596032 | AG57: 804.084 | AH57: 38.596032
B58: 2 | C58: 2 | D58: 211321.152 | E58: 336 | F58: 22 | G58: =OFFSET(Klimadaten!$B$10,$F58,$AK$11) -> 14 | H58: 74 | I58: 804.084 | J58: 13 | K58: 1 | L58: 1196.592 | M58: 2 | N58: =OFFSET(Klimadaten!$B$10,$F58,$AK$11-1) -> 15 | O58: 118 | P58: 2 | Q58: =OFFSET(Klimadaten!$B$10,$F58,$AK$11+1) -> 9 | R58: 42 | S58: 2 | T58: 0 | U58: 0 | W58: 0 | X58: 0 | Y58: 0 | AA58: 804.084 | AB58: 1 | AE58: 1 | AF58: 19.298016 | AG58: 804.084 | AH58: 19.298016
B59: 3 | C59: 3 | D59: 238810.56 | E59: 408 | F59: 23 | G59: =OFFSET(Klimadaten!$B$10,$F59,$AK$11) -> 17 | H59: 91 | I59: 760.472 | J59: 13 | K59: 1 | L59: 1196.592 | M59: 3 | N59: =OFFSET(Klimadaten!$B$10,$F59,$AK$11-1) -> 14 | O59: 132 | P59: 3 | Q59: =OFFSET(Klimadaten!$B$10,$F59,$AK$11+1) -> 11 | R59: 53 | S59: 3 | T59: 0 | U59: 0 | W59: 0 | X59: 0 | Y59: 0 | AA59: 804.084 | AB59: 1 | AE59: 0 | AF59: 0 | AG59: 804.084 | AH59: 0
B60: 4 | C60: 4 | D60: 169012.896 | E60: 312 | F60: 24 | G60: =OFFSET(Klimadaten!$B$10,$F60,$AK$11) -> 13 | H60: 104 | I60: 716.86 | J60: 13 | K60: 1 | L60: 1196.592 | M60: 4 | N60: =OFFSET(Klimadaten!$B$10,$F60,$AK$11-1) -> 17 | O60: 149 | P60: 4 | Q60: =OFFSET(Klimadaten!$B$10,$F60,$AK$11+1) -> 13 | R60: 66 | S60: 4 | T60: 0 | U60: 0 | W60: =IF(AND(U60=W$28,U59>W$28),(U60-U61)+W$28,U60-U61) -> 0 | X60: 0 | Y60: 0 | AA60: 804.084 | AB60: 1 | AE60: =IF(AND(AB60=AE$28,AB59>AE$28),(AB60-AB61)+AE$28,AB60-AB61) -> 0 | AF60: 0 | AG60: 804.084 | AH60: 0
B61: 5 | C61: 5 | D61: 143451.648 | E61: 288 | F61: 25 | G61: =OFFSET(Klimadaten!$B$10,$F61,$AK$11) -> 12 | H61: 116 | I61: 673.248 | J61: 13 | K61: 1 | L61: 1196.592 | M61: 5 | N61: =OFFSET(Klimadaten!$B$10,$F61,$AK$11-1) -> 17 | O61: 166 | P61: 5 | Q61: =OFFSET(Klimadaten!$B$10,$F61,$AK$11+1) -> 12 | R61: 78 | S61: 5 | T61: 0 | U61: 0 | W61: 0 | X61: 0 | Y61: 0 | AA61: 804.084 | AB61: 1 | AE61: 0 | AF61: 0 | AG61: 804.084 | AH61: 0
B62: 6 | C62: 6 | D62: 152706.624 | E62: 336 | F62: 26 | G62: =OFFSET(Klimadaten!$B$10,$F62,$AK$11) -> 14 | H62: 130 | I62: 629.636 | J62: 13 | K62: 1 | L62: 1196.592 | M62: 6 | N62: =OFFSET(Klimadaten!$B$10,$F62,$AK$11-1) -> 16 | O62: 182 | P62: 6 | Q62: =OFFSET(Klimadaten!$B$10,$F62,$AK$11+1) -> 10 | R62: 88 | S62: 6 | T62: 0 | U62: 0 | W62: 0 | X62: 0 | Y62: 0 | AA62: 804.084 | AB62: 1 | AE62: 0 | AF62: 0 | AG62: 804.084 | AH62: 0
B63: 7 | C63: 7 | D63: 147913.92 | E63: 360 | F63: 27 | G63: =OFFSET(Klimadaten!$B$10,$F63,$AK$11) -> 15 | H63: 145 | I63: 586.024 | J63: 13 | K63: 1 | L63: 1196.592 | M63: 7 | N63: =OFFSET(Klimadaten!$B$10,$F63,$AK$11-1) -> 17 | O63: 199 | P63: 7 | Q63: =OFFSET(Klimadaten!$B$10,$F63,$AK$11+1) -> 13 | R63: 101 | S63: 7 | T63: 0 | U63: 0 | W63: 0 | X63: 0 | Y63: 0 | AA63: 804.084 | AB63: 1 | AE63: 0 | AF63: 0 | AG63: 804.084 | AH63: 0
B64: 8 | C64: 8 | D64: 123399.36 | E64: 336 | F64: 28 | G64: =OFFSET(Klimadaten!$B$10,$F64,$AK$11) -> 14 | H64: 159 | I64: 542.412 | J64: 13 | K64: 1 | L64: 1196.592 | M64: 8 | N64: =OFFSET(Klimadaten!$B$10,$F64,$AK$11-1) -> 18 | O64: 217 | P64: 8 | Q64: =OFFSET(Klimadaten!$B$10,$F64,$AK$11+1) -> 12 | R64: 113 | S64: 8 | T64: 0 | U64: 0 | W64: 0 | X64: 0 | Y64: 0 | AA64: 804.084 | AB64: 1 | AE64: 0 | AF64: 0 | AG64: 804.084 | AH64: 0
B65: 9 | C65: 9 | D65: 116513.28 | E65: 360 | F65: 29 | G65: =OFFSET(Klimadaten!$B$10,$F65,$AK$11) -> 15 | H65: 174 | I65: 498.8 | J65: 13 | K65: 1 | L65: 1196.592 | M65: 9 | N65: =OFFSET(Klimadaten!$B$10,$F65,$AK$11-1) -> 16 | O65: 233 | P65: 9 | Q65: =OFFSET(Klimadaten!$B$10,$F65,$AK$11+1) -> 11 | R65: 124 | S65: 9 | T65: 0 | U65: 0 | W65: 0 | X65: 0 | Y65: 0 | AA65: 804.084 | AB65: 1 | AE65: 0 | AF65: 0 | AG65: 804.084 | AH65: 0
B66: 10 | C66: 10 | D66: 87371.232 | E66: 312 | F66: 30 | G66: =OFFSET(Klimadaten!$B$10,$F66,$AK$11) -> 13 | H66: 187 | I66: 455.188 | J66: 13 | K66: 1 | L66: 1196.592 | M66: 10 | N66: =OFFSET(Klimadaten!$B$10,$F66,$AK$11-1) -> 16 | O66: 249 | P66: 10 | Q66: =OFFSET(Klimadaten!$B$10,$F66,$AK$11+1) -> 13 | R66: 137 | S66: 10 | T66: 0 | U66: 0 | V66: =IF(AND(T65=0,T66>0),$K66,"") ->  | W66: 0 | X66: 0 | Y66: 0 | AA66: =IF(L66<AB$27,AA65,IF(L66>AB$29,AA65,IF(L66<T$31,T$31,L66))) -> 804.084 | AB66: 1 | AC66: =IF(AND(AA65=T$31,AA66>T$31),IF(AB$27<T$31,K65,K66),"") ->  | AE66: 0 | AF66: 0 | AG66: 804.084 | AH66: 0
B67: 11 | C67: 11 | D67: 73764.288 | E67: 312 | F67: 31 | G67: =OFFSET(Klimadaten!$B$10,$F67,$AK$11) -> 13 | H67: 200 | I67: 411.576 | J67: 13 | K67: 1 | L67: 1196.592 | M67: 11 | N67: =OFFSET(Klimadaten!$B$10,$F67,$AK$11-1) -> 19 | O67: 268 | P67: 11 | Q67: =OFFSET(Klimadaten!$B$10,$F67,$AK$11+1) -> 12 | R67: 149 | S67: 11 | T67: 0 | U67: =IF(AND(T67=0,T68>0),K68,IF(T67=0,U$89,K67)) -> 0 | W67: 0 | X67: 0 | Y67: 0 | AA67: 804.084 | AB67: =IF(AND(AA67=T$31,AA68>T$31),IF(AB$27<T$31,K67,K68),IF(AA67=T$31,AB$89,K67)) -> 1 | AE67: 0 | AF67: 0 | AG67: 804.084 | AH67: 0
B68: 12 | C68: =IF(OR(G68=0,B68>B$6),"",B68) -> 12 | D68: 78667.296 | E68: 408 | F68: 32 | G68: =OFFSET(Klimadaten!$B$10,$F68,$AK$11) -> 17 | H68: 217 | I68: =IF(OR($G68=0,$B68>$B$6),-10,$B68*$F$25+$F$24+$L$30) -> 367.964 | J68: 13 | K68: 1 | L68: 1196.592 | M68: 12 | N68: =OFFSET(Klimadaten!$B$10,$F68,$AK$11-1) -> 15 | O68: 283 | P68: 12 | Q68: =OFFSET(Klimadaten!$B$10,$F68,$AK$11+1) -> 12 | R68: 161 | S68: 12 | T68: 0 | U68: 0 | W68: 0 | X68: 0 | Y68: 0 | AA68: 804.084 | AB68: 1 | AE68: 0 | AF68: 0 | AG68: 804.084 | AH68: 0
B69: =B68+1 -> 13 | C69: 13 | D69: 60873.6 | E69: 408 | F69: 33 | G69: =OFFSET(Klimadaten!$B$10,$F69,$AK$11) -> 17 | H69: =H68+G69 -> 234 | I69: 324.352 | J69: 13 | K69: 1 | L69: 1196.592 | M69: 13 | N69: =OFFSET(Klimadaten!$B$10,$F69,$AK$11-1) -> 19 | O69: 302 | P69: 13 | Q69: =OFFSET(Klimadaten!$B$10,$F69,$AK$11+1) -> 11 | R69: 172 | S69: 13 | T69: =IF(AA$31=0,0,IF(AA$31>=L69,IF(L69>=T68,L69,T68),T68)) -> 0 | U69: 0 | W69: 0 | X69: 0 | Y69: 0 | AA69: 804.084 | AB69: 1 | AE69: 0 | AF69: 0 | AG69: 804.084 | AH69: 0
B70: 14 | C70: 14 | D70: 40545.792 | E70: 384 | F70: 34 | G70: =OFFSET(Klimadaten!$B$10,$F70,$AK$11) -> 16 | H70: 250 | I70: 280.74 | J70: 13 | K70: 1 | L70: 1196.592 | M70: 14 | N70: =OFFSET(Klimadaten!$B$10,$F70,$AK$11-1) -> 18 | O70: 320 | P70: 14 | Q70: =OFFSET(Klimadaten!$B$10,$F70,$AK$11+1) -> 12 | R70: 184 | S70: 14 | T70: 0 | U70: 0 | W70: 0 | X70: 0 | Y70: 0 | AA70: 804.084 | AB70: 1 | AE70: 0 | AF70: 0 | AG70: 804.084 | AH70: 0
B71: 15 | C71: 15 | D71: 23798.784 | E71: 384 | F71: 35 | G71: =OFFSET(Klimadaten!$B$10,$F71,$AK$11) -> 16 | H71: 266 | I71: 237.128 | J71: 13 | K71: 1 | L71: 1196.592 | M71: 15 | N71: =OFFSET(Klimadaten!$B$10,$F71,$AK$11-1) -> 15 | O71: 335 | P71: 15 | Q71: =OFFSET(Klimadaten!$B$10,$F71,$AK$11+1) -> 12 | R71: 196 | S71: 15 | T71: 0 | U71: 0 | W71: 0 | X71: 0 | Y71: 0 | AA71: 804.084 | AB71: 1 | AE71: 0 | AF71: 0 | AG71: 804.084 | AH71: 0
B72: 16 | F72: 36 | G72: =OFFSET(Klimadaten!$B$10,$F72,$AK$11) -> 16 | H72: 282 | I72: -10 | J72: 13 | K72: 1 | L72: 1196.592 | M72: 16 | N72: =OFFSET(Klimadaten!$B$10,$F72,$AK$11-1) -> 11 | O72: 346 | P72: 16 | Q72: =OFFSET(Klimadaten!$B$10,$F72,$AK$11+1) -> 12 | R72: 208 | S72: 16 | T72: 0 | U72: 0 | W72: 0 | X72: 0 | Y72: 0 | AA72: 804.084 | AB72: 1 | AE72: 0 | AF72: 0 | AG72: 804.084 | AH72: 0
B73: 17 | F73: 37 | G73: =OFFSET(Klimadaten!$B$10,$F73,$AK$11) -> 17 | H73: 299 | I73: -10 | J73: 13 | K73: 1 | L73: 1196.592 | M73: 17 | N73: =OFFSET(Klimadaten!$B$10,$F73,$AK$11-1) -> 10 | O73: 356 | P73: 17 | Q73: =OFFSET(Klimadaten!$B$10,$F73,$AK$11+1) -> 14 | R73: 222 | S73: 17 | T73: 0 | U73: 0 | W73: 0 | X73: 0 | Y73: 0 | AA73: 804.084 | AB73: 1 | AE73: 0 | AF73: 0 | AG73: 804.084 | AH73: 0
B74: 18 | F74: 38 | G74: =OFFSET(Klimadaten!$B$10,$F74,$AK$11) -> 16 | H74: 315 | I74: -10 | J74: 13 | K74: 1 | L74: 1196.592 | M74: 18 | N74: =OFFSET(Klimadaten!$B$10,$F74,$AK$11-1) -> 6 | O74: 362 | P74: 18 | Q74: =OFFSET(Klimadaten!$B$10,$F74,$AK$11+1) -> 16 | R74: 238 | S74: 18 | T74: 0 | U74: 0 | W74: 0 | X74: 0 | Y74: 0 | AA74: 804.084 | AB74: 1 | AE74: 0 | AF74: 0 | AG74: 804.084 | AH74: 0
B75: 19 | F75: 39 | G75: =OFFSET(Klimadaten!$B$10,$F75,$AK$11) -> 10 | H75: 325 | I75: -10 | J75: 13 | K75: 1 | L75: 1196.592 | M75: 19 | N75: =OFFSET(Klimadaten!$B$10,$F75,$AK$11-1) -> 3 | O75: 365 | P75: 19 | Q75: =OFFSET(Klimadaten!$B$10,$F75,$AK$11+1) -> 14 | R75: 252 | S75: 19 | T75: 0 | U75: 0 | W75: 0 | X75: 0 | Y75: 0 | AA75: 804.084 | AB75: 1 | AE75: 0 | AF75: 0 | AG75: 804.084 | AH75: 0
B76: 20 | F76: 40 | G76: =OFFSET(Klimadaten!$B$10,$F76,$AK$11) -> 12 | H76: 337 | I76: -10 | J76: 13 | K76: 1 | L76: 1196.592 | M76: 20 | N76: =OFFSET(Klimadaten!$B$10,$F76,$AK$11-1) -> 0 | O76: 365 | P76: -25 | Q76: =OFFSET(Klimadaten!$B$10,$F76,$AK$11+1) -> 13 | R76: 265 | S76: 20 | T76: 0 | U76: 0 | W76: 0 | X76: 0 | Y76: 0 | AA76: 804.084 | AB76: 1 | AE76: 0 | AF76: 0 | AG76: 804.084 | AH76: 0
B77: 21 | F77: 41 | G77: =OFFSET(Klimadaten!$B$10,$F77,$AK$11) -> 10 | H77: 347 | I77: -10 | J77: 13 | K77: 1 | L77: 1196.592 | M77: 21 | N77: =OFFSET(Klimadaten!$B$10,$F77,$AK$11-1) -> 0 | O77: 365 | P77: -25 | Q77: =OFFSET(Klimadaten!$B$10,$F77,$AK$11+1) -> 14 | R77: 279 | S77: 21 | T77: 0 | U77: 0 | W77: 0 | X77: 0 | Y77: 0 | AA77: 804.084 | AB77: 1 | AE77: 0 | AF77: 0 | AG77: 804.084 | AH77: 0
B78: 22 | F78: 42 | G78: =OFFSET(Klimadaten!$B$10,$F78,$AK$11) -> 7 | H78: 354 | I78: -10 | J78: 13 | K78: 1 | L78: 1196.592 | M78: 22 | N78: =OFFSET(Klimadaten!$B$10,$F78,$AK$11-1) -> 0 | O78: 365 | P78: -25 | Q78: =OFFSET(Klimadaten!$B$10,$F78,$AK$11+1) -> 12 | R78: 291 | S78: 22 | T78: 0 | U78: 0 | W78: 0 | X78: 0 | Y78: 0 | AA78: 804.084 | AB78: 1 | AE78: 0 | AF78: 0 | AG78: 804.084 | AH78: 0
B79: 23 | F79: 43 | G79: =OFFSET(Klimadaten!$B$10,$F79,$AK$11) -> 5 | H79: 359 | I79: -10 | J79: 13 | K79: 1 | L79: 1196.592 | M79: 23 | N79: =OFFSET(Klimadaten!$B$10,$F79,$AK$11-1) -> 0 | O79: 365 | P79: -25 | Q79: =OFFSET(Klimadaten!$B$10,$F79,$AK$11+1) -> 14 | R79: 305 | S79: 23 | T79: 0 | U79: 0 | W79: 0 | X79: 0 | Y79: 0 | AA79: 804.084 | AB79: 1 | AE79: 0 | AF79: 0 | AG79: 804.084 | AH79: 0
B80: 24 | F80: 44 | G80: =OFFSET(Klimadaten!$B$10,$F80,$AK$11) -> 3 | H80: 362 | I80: -10 | J80: 13 | K80: 1 | L80: 1196.592 | M80: 24 | N80: =OFFSET(Klimadaten!$B$10,$F80,$AK$11-1) -> 0 | O80: 365 | P80: -25 | Q80: =OFFSET(Klimadaten!$B$10,$F80,$AK$11+1) -> 10 | R80: 315 | S80: 24 | T80: 0 | U80: 0 | W80: 0 | X80: 0 | Y80: 0 | AA80: 804.084 | AB80: 1 | AE80: 0 | AF80: 0 | AG80: 804.084 | AH80: 0
B81: 25 | F81: 45 | G81: =OFFSET(Klimadaten!$B$10,$F81,$AK$11) -> 2 | H81: 364 | I81: -10 | J81: 13 | K81: 1 | L81: 1196.592 | M81: 25 | N81: =OFFSET(Klimadaten!$B$10,$F81,$AK$11-1) -> 0 | O81: 365 | P81: -25 | Q81: =OFFSET(Klimadaten!$B$10,$F81,$AK$11+1) -> 11 | R81: 326 | S81: 25 | T81: 0 | U81: 0 | W81: 0 | X81: 0 | Y81: 0 | AA81: 804.084 | AB81: 1 | AE81: 0 | AF81: 0 | AG81: 804.084 | AH81: 0
B82: 26 | F82: 46 | G82: =OFFSET(Klimadaten!$B$10,$F82,$AK$11) -> 1 | H82: 365 | I82: -10 | J82: 13 | K82: 1 | L82: 1196.592 | M82: 26 | N82: =OFFSET(Klimadaten!$B$10,$F82,$AK$11-1) -> 0 | O82: 365 | P82: -25 | Q82: =OFFSET(Klimadaten!$B$10,$F82,$AK$11+1) -> 9 | R82: 335 | S82: 26 | T82: 0 | U82: 0 | W82: 0 | X82: 0 | Y82: 0 | AA82: 804.084 | AB82: 1 | AE82: 0 | AF82: 0 | AG82: 804.084 | AH82: 0
B83: 27 | F83: 47 | G83: =OFFSET(Klimadaten!$B$10,$F83,$AK$11) -> 0 | H83: 365 | I83: -10 | J83: 13 | K83: 1 | L83: 1196.592 | M83: -25 | N83: =OFFSET(Klimadaten!$B$10,$F83,$AK$11-1) -> 0 | O83: 365 | P83: -25 | Q83: =OFFSET(Klimadaten!$B$10,$F83,$AK$11+1) -> 8 | R83: 343 | S83: 27 | T83: 0 | U83: 0 | W83: 0 | X83: 0 | Y83: 0 | AA83: 804.084 | AB83: 1 | AE83: 0 | AF83: 0 | AG83: 804.084 | AH83: 0
B84: 28 | F84: 48 | G84: =OFFSET(Klimadaten!$B$10,$F84,$AK$11) -> 0 | H84: 365 | I84: -10 | J84: 13 | K84: 1 | L84: 1196.592 | M84: -25 | N84: =OFFSET(Klimadaten!$B$10,$F84,$AK$11-1) -> 0 | O84: 365 | P84: -25 | Q84: =OFFSET(Klimadaten!$B$10,$F84,$AK$11+1) -> 6 | R84: 349 | S84: 28 | T84: 0 | U84: 0 | W84: 0 | X84: 0 | Y84: 0 | AA84: 804.084 | AB84: 1 | AE84: 0 | AF84: 0 | AG84: 804.084 | AH84: 0
B85: 29 | F85: 49 | G85: =OFFSET(Klimadaten!$B$10,$F85,$AK$11) -> 0 | H85: 365 | I85: -10 | J85: 13 | K85: 1 | L85: 1196.592 | M85: -25 | N85: =OFFSET(Klimadaten!$B$10,$F85,$AK$11-1) -> 0 | O85: 365 | P85: -25 | Q85: =OFFSET(Klimadaten!$B$10,$F85,$AK$11+1) -> 6 | R85: 355 | S85: 29 | T85: 0 | U85: 0 | W85: 0 | X85: 0 | Y85: 0 | AA85: 804.084 | AB85: 1 | AE85: 0 | AF85: 0 | AG85: 804.084 | AH85: 0
B86: 30 | F86: 50 | G86: =OFFSET(Klimadaten!$B$10,$F86,$AK$11) -> 0 | H86: 365 | I86: -10 | J86: 13 | K86: 1 | L86: 1196.592 | M86: -25 | N86: =OFFSET(Klimadaten!$B$10,$F86,$AK$11-1) -> 0 | O86: 365 | P86: -25 | Q86: =OFFSET(Klimadaten!$B$10,$F86,$AK$11+1) -> 10 | R86: 365 | S86: 30 | T86: 0 | U86: 0 | W86: =IF(AND(U86=1,U85>1),(U86),U86-W$28) -> -1 | X86: 0 | Y86: 0 | AA86: 804.084 | AB86: 1 | AE86: =IF(AND(AB86=1,AB85>1),(AB86),AB86-AE$28) -> 0 | AF86: 0 | AG86: 804.084 | AH86: 0
T87: 0 | U87: 0 | Y87: 0 | AA87: =AA86 -> 804.084 | AB87: 0 | AG87: 804.084
T88: 0 | U88: 0 | AA88: =T$31 -> 0 | AB88: 0
T89: 0 | U89: =MAX(V34:V87) -> 0 | AA89: =T$31 -> 0 | AB89: =MAX(AC34:AC87) -> 365

Sheet Klimadaten (hidden)
D1: =SUM(D10:D60) -> 365 | H1: =SUM(H10:H60) -> 365 | L1: =SUM(L10:L60) -> 365 | P1: =SUM(P10:P60) -> 365 | T1: =SUM(T10:T60) -> 365 | X1: =SUM(X10:X60) -> 365 | AB1: =SUM(AB10:AB60) -> 365 | AF1: =SUM(AF10:AF60) -> 365 | AJ1: =SUM(AJ10:AJ60) -> 365 | AN1: =SUM(AN10:AN60) -> 365 | AR1: =SUM(AR10:AR60) -> 365 | AV1: =SUM(AV10:AV60) -> 365 | AZ1: =SUM(AZ10:AZ60) -> 365 | BD1: =SUM(BD10:BD60) -> 365 | BH1: =SUM(BH10:BH60) -> 365 | BL1: =SUM(BL10:BL60) -> 365 | BP1: =SUM(BP10:BP60) -> 365 | BT1: =SUM(BT10:BT60) -> 365 | BX1: =SUM(BX10:BX60) -> 365 | CB1: =SUM(CB10:CB60) -> 365 | CF1: =SUM(CF10:CF60) -> 365 | CJ1: =SUM(CJ10:CJ60) -> 365 | CN1: =SUM(CN10:CN60) -> 365 | CR1: =SUM(CR10:CR60) -> 365 | CV1: =SUM(CV10:CV60) -> 365 | CZ1: =SUM(CZ10:CZ60) -> 365 | DD1: =SUM(DD10:DD60) -> 365 | DH1: =SUM(DH10:DH60) -> 365 | DL1: =SUM(DL10:DL60) -> 365 | DP1: =SUM(DP10:DP60) -> 365 | DT1: =SUM(DT10:DT60) -> 365 | DX1: =SUM(DX10:DX60) -> 365 | EB1: =SUM(EB10:EB60) -> 365 | EF1: =SUM(EF10:EF60) -> 365 | EJ1: =SUM(EJ10:EJ60) -> 365 | EN1: =SUM(EN10:EN60) -> 365 | ER1: =SUM(ER10:ER60) -> 365 | EV1: =SUM(EV10:EV60) -> 365 | EZ1: =SUM(EZ10:EZ60) -> 365 | FD1: =SUM(FD10:FD60) -> 365 | FH1: =SUM(FH10:FH60) -> 365 | FL1: =SUM(FL10:FL60) -> 365 | FP1: =SUM(FP10:FP60) -> 365 | FT1: =SUM(FT10:FT60) -> 365 | FX1: =SUM(FX10:FX60) -> 365 | GB1: =SUM(GB10:GB60) -> 365 | GF1: =SUM(GF10:GF60) -> 365 | GJ1: =SUM(GJ10:GJ60) -> 365 | GN1: =SUM(GN10:GN60) -> 365 | GR1: =SUM(GR10:GR60) -> 365 | GV1: =SUM(GV10:GV60) -> 365 | GZ1: =SUM(GZ10:GZ60) -> 365 | HD1: =SUM(HD10:HD60) -> 365 | HH1: =SUM(HH10:HH60) -> 365 | HL1: =SUM(HL10:HL60) -> 365 | HP1: =SUM(HP10:HP60) -> 0 | HT1: =SUM(HT10:HT60) -> 0 | HX1: =SUM(HX10:HX60) -> 0 | IB1: =SUM(IB10:IB60) -> 0 | IF1: =SUM(IF10:IF60) -> 365 | IJ1: =SUM(IJ10:IJ60) -> 365 | IN1: =SUM(IN10:IN60) -> 365 | IR1: =SUM(IR10:IR60) -> 365 | IV1: =SUM(IV10:IV60) -> 365
C3: Davos (CH) | G3: Zürich/Fluntern (CH) | K3: Locarno/Monti (CH) | O3: Graz Universität (AT) | S3: Tamsweg (AT) | W3: Wien innere Stadt (AT) | AA3: Karlsruhe/Rheinstetten (DE) | AE3: München Flughafen (DE) | AI3: Hohenpeißenberg (DE) | AM3: BRNIK LETALIŠČE (SI) | AQ3: BILJE (SI) | AU3: NOVA VAS, BLOKE (SI) | AY3: Frankfurt/Main Flughafen (DE) | BC3: Trier-Petrisberg (DE) | BG3: Kahler Asten (DE) | BK3: Augsburg (DE) | BO3: Bamberg (DE) | BS3: Hof (DE) | BW3: Kempten (DE) | CA3: Nürnberg (DE) | CE3: Würzburg (DE) | CI3: Basel-Binningen (CH) | CM3: Bern/Zollikofen (CH) | CQ3: La Chaux-de-Fonds (CH) | CU3: Engelberg (CH) | CY3: Luzern (CH) | DC3: Pully (CH) | DG3: Samedan (CH) | DK3: St. Gallen (CH) | DO3: Visp (CH) | DS3: Bad Aussee (AT) | DW3: Bregenz (AT) | EA3: Eisenstadt (AT) | EE3: Freistadt (AT) | EI3: Fürstenfeld (AT) | EM3: Hohenau/March (AT) | EQ3: Innsbruck Universität (AT) | EU3: Klagenfurt Flughafen (AT) | EY3: Kufstein (AT) | FC3: Lienz (AT) | FG3: Linz Stadt (AT) | FK3: Mariazell (AT) | FO3: Salzburg-Freisaal (AT) | FS3: Schröcken (AT) | FW3: St. Pölten (AT) | GA3: Zell am See (AT) | GE3: Zeltweg (AT) | GI3: Andermatt (CH) | GM3: Acquarossa/Comprovasco (CH) | GQ3: Bad Ragaz (CH) | GU3: Château-d'Oex (CH) | GY3: Disentis/Sedrun (CH) | HC3: Fribourg/Posieux (CH) | HG3: Piotta (CH) | HK3: Ulrichen (CH) | HO3: Italien 1 | HS3: Italien 2 | HW3: Italien 3 | IA3: Italien 4 | IE3: Bullet / La Fretaz (CH) | II3: Einsiedeln (CH) | IM3: Langnau i.E. (CH) | IQ3: Payerne (CH) | IU3: Rünenberg (CH)
C4: 10 Jahresmittel | G4: 10 Jahresmittel | K4: 10 Jahresmittel | O4: Steiermark | S4: Salzburg | W4: WIEN INNERE STADT | AA4: 10 Jahresmittel | AE4: 10 Jahresmittel | AI4: 10 Jahresmittel | AM4: 10 Jahresmittel | AQ4: 10 Jahresmittel | AU4: 10 Jahresmittel | AY4: 10 Jahresmittel | BC4: 10 Jahresmittel | BG4: 10 Jahresmittel | BK4: 10 Jahresmittel | BO4: 10 Jahresmittel | BS4: 10 Jahresmittel | BW4: 10 Jahresmittel | CA4: 10 Jahresmittel | CE4: 10 Jahresmittel | CI4: 10 Jahresmittel | CM4: 10 Jahresmittel | CQ4: 10 Jahresmittel | CU4: 10 Jahresmittel | CY4: 10 Jahresmittel | DC4: 10 Jahresmittel | DG4: 10 Jahresmittel | DK4: 10 Jahresmittel | DO4: 10 Jahresmittel | DS4: 10 Jahresmittel | DW4: 10 Jahresmittel | EA4: 10 Jahresmittel | EE4: 10 Jahresmittel | EI4: 10 Jahresmittel | EM4: 10 Jahresmittel | EQ4: 10 Jahresmittel | EU4: 10 Jahresmittel | EY4: 10 Jahresmittel | FC4: 10 Jahresmittel | FG4: 10 Jahresmittel | FK4: 10 Jahresmittel | FO4: 10 Jahresmittel | FS4: 10 Jahresmittel | FW4: 10 Jahresmittel | GA4: 10 Jahresmittel | GE4: 10 Jahresmittel | GI4: 10 Jahresmittel | GM4: 10 Jahresmittel | GQ4: 10 Jahresmittel | GU4: 10 Jahresmittel | GY4: 10 Jahresmittel | HC4: 10 Jahresmittel | HG4: 10 Jahresmittel | HK4: 10 Jahresmittel | HO4: 10 Jahresmittel | HS4: 10 Jahresmittel | HW4: 10 Jahresmittel | IA4: 10 Jahresmittel | IE4: 10 Jahresmittel | II4: 10 Jahresmittel | IM4: 10 Jahresmittel | IQ4: 10 Jahresmittel | IU4: 10 Jahresmittel
C5: 2002-2011 | G5: 2002-2011 | K5: 2002-2011 | O5: 2002-2011 | S5: 2002-2011 | W5: 2002-2011 | AA5: 2002-2011 | AE5: 2002-2011 | AI5: 2002-2011 | AM5: 1993-2002 | AQ5: 1993-2002 | AU5: 1993-2002 | AY5: 2002-2011 | BC5: 2002-2011 | BG5: 2002-2011 | BK5: 2002-2011 | BO5: 2002-2011 | BS5: 2002-2011 | BW5: 2002-2011 | CA5: 2002-2011 | CE5: 2002-2011 | CI5: 2002-2011 | CM5: 2002-2011 | CQ5: 2002-2011 | CU5: 2002-2011 | CY5: 2002-2011 | DC5: 2002-2011 | DG5: 2002-2011 | DK5: 2002-2011 | DO5: 2002-2011 | DS5: 2002-2011 | DW5: 2002-2011 | EA5: 2002-2011 | EE5: 2002-2011 | EI5: 2002-2011 | EM5: 2002-2011 | EQ5: 2002-2011 | EU5: 2002-2011 | EY5: 2002-2011 | FC5: 2002-2011 | FG5: 2002-2011 | FK5: 2002-2011 | FO5: 2002-2011 | FS5: 2002-2011 | FW5: 2002-2011 | GA5: 2002-2011 | GE5: 2002-2011 | GI5: 2002-2011 | GM5: 2002-2011 | GQ5: 2002-2011 | GU5: 2002-2011 | GY5: 2002-2011 | HC5: 2002-2011 | HG5: 2002-2011 | HK5: 2002-2011 | IE5: 2002-2011 | II5: 2002-2011 | IM5: 2002-2011 | IQ5: 2002-2011 | IU5: 2002-2011
C6: Häufigkeit | G6: Häufigkeit | K6: Häufigkeit | O6: Häufigkeit | S6: Häufigkeit | W6: Häufigkeit | AA6: Häufigkeit | AE6: Häufigkeit | AI6: Häufigkeit | AM6: Häufigkeit | AQ6: Häufigkeit | AU6: Häufigkeit | AY6: Häufigkeit | BC6: Häufigkeit | BG6: Häufigkeit | BK6: Häufigkeit | BO6: Häufigkeit | BS6: Häufigkeit | BW6: Häufigkeit | CA6: Häufigkeit | CE6: Häufigkeit | CI6: Häufigkeit | CM6: Häufigkeit | CQ6: Häufigkeit | CU6: Häufigkeit | CY6: Häufigkeit | DC6: Häufigkeit | DG6: Häufigkeit | DK6: Häufigkeit | DO6: Häufigkeit | DS6: Häufigkeit | DW6: Häufigkeit | EA6: Häufigkeit | EE6: Häufigkeit | EI6: Häufigkeit | EM6: Häufigkeit | EQ6: Häufigkeit | EU6: Häufigkeit | EY6: Häufigkeit | FC6: Häufigkeit | FG6: Häufigkeit | FK6: Häufigkeit | FO6: Häufigkeit | FS6: Häufigkeit | FW6: Häufigkeit | GA6: Häufigkeit | GE6: Häufigkeit | GI6: Häufigkeit | GM6: Häufigkeit | GQ6: Häufigkeit | GU6: Häufigkeit | GY6: Häufigkeit | HC6: Häufigkeit | HG6: Häufigkeit | HK6: Häufigkeit | HO6: Häufigkeit | HS6: Häufigkeit | HW6: Häufigkeit | IA6: Häufigkeit | IE6: Häufigkeit | II6: Häufigkeit | IM6: Häufigkeit | IQ6: Häufigkeit | IU6: Häufigkeit
C7: Min. | D7: Mittel | E7: Max. | G7: Min. | H7: Mittel | I7: Max. | K7: Min. | L7: Mittel | M7: Max. | O7: Min. | P7: Mittel | Q7: Max. | S7: Min. | T7: Mittel | U7: Max. | W7: Min. | X7: Mittel | Y7: Max. | AA7: Min. | AB7: Mittel | AC7: Max. | AE7: Min. | AF7: Mittel | AG7: Max. | AI7: Min. | AJ7: Mittel | AK7: Max. | AM7: Min. | AN7: Mittel | AO7: Max. | AQ7: Min. | AR7: Mittel | AS7: Max. | AU7: Min. | AV7: Mittel | AW7: Max. | AY7: Min. | AZ7: Mittel | BA7: Max. | BC7: Min. | BD7: Mittel | BE7: Max. | BG7: Min. | BH7: Mittel | BI7: Max. | BK7: Min. | BL7: Mittel | BM7: Max. | BO7: Min. | BP7: Mittel | BQ7: Max. | BS7: Min. | BT7: Mittel | BU7: Max. | BW7: Min. | BX7: Mittel | BY7: Max. | CA7: Min. | CB7: Mittel | CC7: Max. | CE7: Min. | CF7: Mittel | CG7: Max. | CI7: Min. | CJ7: Mittel | CK7: Max. | CM7: Min. | CN7: Mittel | CO7: Max. | CQ7: Min. | CR7: Mittel | CS7: Max. | CU7: Min. | CV7: Mittel | CW7: Max. | CY7: Min. | CZ7: Mittel | DA7: Max. | DC7: Min. | DD7: Mittel | DE7: Max. | DG7: Min. | DH7: Mittel | DI7: Max. | DK7: Min. | DL7: Mittel | DM7: Max. | DO7: Min. | DP7: Mittel | DQ7: Max. | DS7: Min. | DT7: Mittel | DU7: Max. | DW7: Min. | DX7: Mittel | DY7: Max. | EA7: Min. | EB7: Mittel | EC7: Max. | EE7: Min. | EF7: Mittel | EG7: Max. | EI7: Min. | EJ7: Mittel | EK7: Max. | EM7: Min. | EN7: Mittel | EO7: Max. | EQ7: Min. | ER7: Mittel | ES7: Max. | EU7: Min. | EV7: Mittel | EW7: Max. | EY7: Min. | EZ7: Mittel | FA7: Max. | FC7: Min. | FD7: Mittel | FE7: Max. | FG7: Min. | FH7: Mittel | FI7: Max. | FK7: Min. | FL7: Mittel | FM7: Max. | FO7: Min. | FP7: Mittel | FQ7: Max. | FS7: Min. | FT7: Mittel | FU7: Max. | FW7: Min. | FX7: Mittel | FY7: Max. | GA7: Min. | GB7: Mittel | GC7: Max. | GE7: Min. | GF7: Mittel | GG7: Max. | GI7: Min. | GJ7: Mittel | GK7: Max. | GM7: Min. | GN7: Mittel | GO7: Max. | GQ7: Min. | GR7: Mittel | GS7: Max. | GU7: Min. | GV7: Mittel | GW7: Max. | GY7: Min. | GZ7: Mittel | HA7: Max. | HC7: Min. | HD7: Mittel | HE7: Max. | HG7: Min. | HH7: Mittel | HI7: Max. | HK7: Min. | HL7: Mittel | HM7: Max. | HO7: Min. | HP7: Mittel | HQ7: Max. | HS7: Min. | HT7: Mittel | HU7: Max. | HW7: Min. | HX7: Mittel | HY7: Max. | IA7: Min. | IB7: Mittel | IC7: Max. | IE7: Min. | IF7: Mittel | IG7: Max. | II7: Min. | IJ7: Mittel | IK7: Max. | IM7: Min. | IN7: Mittel | IO7: Max. | IQ7: Min. | IR7: Mittel | IS7: Max. | IU7: Min. | IV7: Mittel | IW7: Max.
B8: 0 | C8: =B8+1 -> 1 | D8: =C8+1 -> 2 | E8: 3 | F8: 4 | G8: 5 | H8: 6 | I8: 7 | J8: 8 | K8: 9 | L8: 10 | M8: 11 | N8: 12 | O8: 13 | P8: 14 | Q8: 15 | R8: 16 | S8: 17 | T8: 18 | U8: 19 | V8: 20 | W8: 21 | X8: 22 | Y8: 23 | Z8: 24 | AA8: 25 | AB8: 26 | AC8: 27 | AD8: 28 | AE8: 29 | AF8: 30 | AG8: 31 | AH8: 32 | AI8: 33 | AJ8: 34 | AK8: 35 | AL8: 36 | AM8: 37 | AN8: 38 | AO8: 39 | AP8: 40 | AQ8: 41 | AR8: 42 | AS8: 43 | AT8: 44 | AU8: 45 | AV8: 46 | AW8: 47 | AX8: 48 | AY8: 49 | AZ8: 50 | BA8: 51 | BB8: 52 | BC8: 53 | BD8: 54 | BE8: 55 | BF8: 56 | BG8: 57 | BH8: 58 | BI8: 59 | BJ8: 60 | BK8: 61 | BL8: 62 | BM8: 63 | BN8: 64 | BO8: 65 | BP8: =BO8+1 -> 66 | BQ8: 67 | BR8: 68 | BS8: 69 | BT8: 70 | BU8: 71 | BV8: 72 | BW8: 73 | BX8: 74 | BY8: 75 | BZ8: 76 | CA8: 77 | CB8: 78 | CC8: 79 | CD8: 80 | CE8: 81 | CF8: 82 | CG8: 83 | CH8: 84 | CI8: 85 | CJ8: 86 | CK8: 87 | CL8: 88 | CM8: 89 | CN8: 90 | CO8: 91 | CP8: 92 | CQ8: 93 | CR8: 94 | CS8: 95 | CT8: 96 | CU8: 97 | CV8: 98 | CW8: 99 | CX8: 100 | CY8: 101 | CZ8: 102 | DA8: 103 | DB8: 104 | DC8: 105 | DD8: 106 | DE8: 107 | DF8: 108 | DG8: 109 | DH8: 110 | DI8: 111 | DJ8: 112 | DK8: 113 | DL8: 114 | DM8: 115 | DN8: 116 | DO8: 117 | DP8: 118 | DQ8: 119 | DR8: 120 | DS8: 121 | DT8: 122 | DU8: 123 | DV8: 124 | DW8: 125 | DX8: 126 | DY8: 127 | DZ8: 128 | EA8: 129 | EB8: =EA8+1 -> 130 | EC8: 131 | ED8: 132 | EE8: 133 | EF8: 134 | EG8: 135 | EH8: 136 | EI8: 137 | EJ8: 138 | EK8: 139 | EL8: 140 | EM8: 141 | EN8: 142 | EO8: 143 | EP8: 144 | EQ8: 145 | ER8: 146 | ES8: 147 | ET8: 148 | EU8: 149 | EV8: 150 | EW8: 151 | EX8: 152 | EY8: 153 | EZ8: 154 | FA8: 155 | FB8: 156 | FC8: 157 | FD8: 158 | FE8: 159 | FF8: 160 | FG8: 161 | FH8: 162 | FI8: 163 | FJ8: 164 | FK8: 165 | FL8: 166 | FM8: 167 | FN8: 168 | FO8: 169 | FP8: 170 | FQ8: 171 | FR8: 172 | FS8: 173 | FT8: 174 | FU8: 175 | FV8: 176 | FW8: 177 | FX8: 178 | FY8: 179 | FZ8: 180 | GA8: 181 | GB8: 182 | GC8: 183 | GD8: 184 | GE8: 185 | GF8: 186 | GG8: 187 | GH8: 188 | GI8: 189 | GJ8: 190 | GK8: 191 | GL8: 192 | GM8: 193 | GN8: =GM8+1 -> 194 | GO8: 195 | GP8: 196 | GQ8: 197 | GR8: 198 | GS8: 199 | GT8: 200 | GU8: 201 | GV8: 202 | GW8: 203 | GX8: 204 | GY8: 205 | GZ8: 206 | HA8: 207 | HB8: 208 | HC8: 209 | HD8: 210 | HE8: 211 | HF8: 212 | HG8: 213 | HH8: 214 | HI8: 215 | HJ8: 216 | HK8: 217 | HL8: 218 | HM8: 219 | HN8: =HM8+1 -> 220 | HO8: 221 | HP8: 222 | HQ8: 223 | HR8: 224 | HS8: 225 | HT8: 226 | HU8: 227 | HV8: 228 | HW8: 229 | HX8: 230 | HY8: 231 | HZ8: 232 | IA8: 233 | IB8: 234 | IC8: 235 | ID8: =IC8+1 -> 236 | IE8: =ID8+1 -> 237 | IF8: =IE8+1 -> 238 | IG8: =IF8+1 -> 239 | IH8: =IG8+1 -> 240 | II8: =IH8+1 -> 241 | IJ8: =II8+1 -> 242 | IK8: =IJ8+1 -> 243 | IL8: =IK8+1 -> 244 | IM8: =IL8+1 -> 245 | IN8: =IM8+1 -> 246 | IO8: =IN8+1 -> 247 | IP8: =IO8+1 -> 248 | IQ8: =IP8+1 -> 249 | IR8: =IQ8+1 -> 250 | IS8: =IR8+1 -> 251 | IT8: =IS8+1 -> 252 | IU8: =IT8+1 -> 253 | IV8: =IU8+1 -> 254 | IW8: =IV8+1 -> 255
A10: -20 | C10: 1 | D10: 0 | E10: 0 | G10: 0 | H10: 0 | I10: 0 | K10: 0 | L10: 0 | M10: 0 | O10: 0 | P10: 0 | Q10: 0 | S10: 2 | T10: 0 | U10: 0 | W10: 0 | X10: 0 | Y10: 0 | AA10: 0 | AB10: 0 | AC10: 0 | AE10: 0 | AF10: 0 | AG10: 0 | AI10: 0 | AJ10: 0 | AK10: 0 | AM10: 0 | AN10: 0 | AO10: 0 | AQ10: 0 | AR10: 0 | AS10: 0 | AU10: 1 | AV10: 0 | AW10: 0 | AY10: 0 | AZ10: 0 | BA10: 0 | BC10: 0 | BD10: 0 | BE10: 0 | BG10: 0 | BH10: 0 | BI10: 0 | BK10: 0 | BL10: 0 | BM10: 0 | BO10: 0 | BP10: 0 | BQ10: 0 | BS10: 0 | BT10: 0 | BU10: 0 | BW10: 0 | BX10: 0 | BY10: 0 | CA10: 0 | CB10: 0 | CC10: 0 | CE10: 0 | CF10: 0 | CG10: 0 | CI10: 0 | CJ10: 0 | CK10: 0 | CM10: 0 | CN10: 0 | CO10: 0 | CQ10: 0 | CR10: 0 | CS10: 0 | CU10: 0 | CV10: 0 | CW10: 0 | CY10: 0 | CZ10: 0 | DA10: 0 | DC10: 0 | DD10: 0 | DE10: 0 | DG10: 32 | DH10: 1 | DI10: 0 | DK10: 0 | DL10: 0 | DM10: 0 | DO10: 0 | DP10: 0 | DQ10: 0 | DS10: 0 | DT10: 0 | DU10: 0 | DW10: 0 | DX10: 0 | DY10: 0 | EA10: 0 | EB10: 0 | EC10: 0 | EE10: 0 | EF10: 0 | EG10: 0 | EI10: 0 | EJ10: 0 | EK10: 0 | EM10: 0 | EN10: 0 | EO10: 0 | EQ10: 0 | ER10: 0 | ES10: 0 | EU10: 0 | EV10: 0 | EW10: 0 | EY10: 0 | EZ10: 0 | FA10: 0 | FC10: 0 | FD10: 0 | FE10: 0 | FG10: 0 | FH10: 0 | FI10: 0 | FK10: 1 | FL10: 0 | FM10: 0 | FO10: 0 | FP10: 0 | FQ10: 0 | FS10: 0 | FT10: 0 | FU10: 0 | FW10: 0 | FX10: 0 | FY10: 0 | GA10: 0 | GB10: 0 | GC10: 0 | GE10: 1 | GF10: 0 | GG10: 0 | GI10: 1 | GJ10: 0 | GK10: 0 | GM10: 0 | GN10: 0 | GO10: 0 | GQ10: 0 | GR10: 0 | GS10: 0 | GU10: 0 | GV10: 0 | GW10: 0 | GY10: 0 | GZ10: 0 | HA10: 0 | HC10: 0 | HD10: 0 | HE10: 0 | HG10: 0 | HH10: 0 | HI10: 0 | HK10: 17 | HL10: 0 | HM10: 0 | IE10: 0 | IF10: 0 | IG10: 0 | II10: 0 | IJ10: 0 | IK10: 0 | IM10: 0 | IN10: 0 | IO10: 0 | IQ10: 0 | IR10: 0 | IS10: 0 | IU10: 0 | IV10: 0 | IW10: 0
A11: -19 | C11: 0 | D11: 0 | E11: 0 | G11: 0 | H11: 0 | I11: 0 | K11: 0 | L11: 0 | M11: 0 | O11: 0 | P11: 0 | Q11: 0 | S11: 2 | T11: 0 | U11: 0 | W11: 0 | X11: 0 | Y11: 0 | AA11: 0 | AB11: 0 | AC11: 0 | AE11: 0 | AF11: 0 | AG11: 0 | AI11: 0 | AJ11: 0 | AK11: 0 | AM11: 0 | AN11: 0 | AO11: 0 | AQ11: 0 | AR11: 0 | AS11: 0 | AU11: 1 | AV11: 0 | AW11: 0 | AY11: 0 | AZ11: 0 | BA11: 0 | BC11: 0 | BD11: 0 | BE11: 0 | BG11: 0 | BH11: 0 | BI11: 0 | BK11: 0 | BL11: 0 | BM11: 0 | BO11: 0 | BP11: 0 | BQ11: 0 | BS11: 0 | BT11: 0 | BU11: 0 | BW11: 0 | BX11: 0 | BY11: 0 | CA11: 0 | CB11: 0 | CC11: 0 | CE11: 0 | CF11: 0 | CG11: 0 | CI11: 0 | CJ11: 0 | CK11: 0 | CM11: 0 | CN11: 0 | CO11: 0 | CQ11: 1 | CR11: 0 | CS11: 0 | CU11: 0 | CV11: 0 | CW11: 0 | CY11: 0 | CZ11: 0 | DA11: 0 | DC11: 0 | DD11: 0 | DE11: 0 | DG11: 6 | DH11: 1 | DI11: 0 | DK11: 0 | DL11: 0 | DM11: 0 | DO11: 0 | DP11: 0 | DQ11: 0 | DS11: 0 | DT11: 0 | DU11: 0 | DW11: 0 | DX11: 0 | DY11: 0 | EA11: 0 | EB11: 0 | EC11: 0 | EE11: 1 | EF11: 0 | EG11: 0 | EI11: 0 | EJ11: 0 | EK11: 0 | EM11: 0 | EN11: 0 | EO11: 0 | EQ11: 0 | ER11: 0 | ES11: 0 | EU11: 0 | EV11: 0 | EW11: 0 | EY11: 0 | EZ11: 0 | FA11: 0 | FC11: 0 | FD11: 0 | FE11: 0 | FG11: 0 | FH11: 0 | FI11: 0 | FK11: 1 | FL11: 0 | FM11: 0 | FO11: 0 | FP11: 0 | FQ11: 0 | FS11: 0 | FT11: 0 | FU11: 0 | FW11: 0 | FX11: 0 | FY11: 0 | GA11: 0 | GB11: 0 | GC11: 0 | GE11: 1 | GF11: 0 | GG11: 0 | GI11: 1 | GJ11: 0 | GK11: 0 | GM11: 0 | GN11: 0 | GO11: 0 | GQ11: 0 | GR11: 0 | GS11: 0 | GU11: 0 | GV11: 0 | GW11: 0 | GY11: 0 | GZ11: 0 | HA11: 0 | HC11: 0 | HD11: 0 | HE11: 0 | HG11: 0 | HH11: 0 | HI11: 0 | HK11: 4 | HL11: 1 | HM11: 0 | IE11: 0 | IF11: 0 | IG11: 0 | II11: 0 | IJ11: 0 | IK11: 0 | IM11: 0 | IN11: 0 | IO11: 0 | IQ11: 0 | IR11: 0 | IS11: 0 | IU11: 0 | IV11: 0 | IW11: 0
A12: -18 | C12: 2 | D12: 0 | E12: 0 | G12: 0 | H12: 0 | I12: 0 | K12: 0 | L12: 0 | M12: 0 | O12: 0 | P12: 0 | Q12: 0 | S12: 2 | T12: 0 | U12: 0 | W12: 0 | X12: 0 | Y12: 0 | AA12: 0 | AB12: 0 | AC12: 0 | AE12: 0 | AF12: 0 | AG12: 0 | AI12: 0 | AJ12: 0 | AK12: 0 | AM12: 0 | AN12: 0 | AO12: 0 | AQ12: 0 | AR12: 0 | AS12: 0 | AU12: 0 | AV12: 0 | AW12: 0 | AY12: 0 | AZ12: 0 | BA12: 0 | BC12: 0 | BD12: 0 | BE12: 0 | BG12: 0 | BH12: 0 | BI12: 0 | BK12: 0 | BL12: 0 | BM12: 0 | BO12: 0 | BP12: 0 | BQ12: 0 | BS12: 0 | BT12: 0 | BU12: 0 | BW12: 1 | BX12: 0 | BY12: 0 | CA12: 0 | CB12: 0 | CC12: 0 | CE12: 0 | CF12: 0 | CG12: 0 | CI12: 0 | CJ12: 0 | CK12: 0 | CM12: 0 | CN12: 0 | CO12: 0 | CQ12: 1 | CR12: 0 | CS12: 0 | CU12: 0 | CV12: 0 | CW12: 0 | CY12: 0 | CZ12: 0 | DA12: 0 | DC12: 0 | DD12: 0 | DE12: 0 | DG12: 6 | DH12: 1 | DI12: 0 | DK12: 0 | DL12: 0 | DM12: 0 | DO12: 0 | DP12: 0 | DQ12: 0 | DS12: 0 | DT12: 0 | DU12: 0 | DW12: 0 | DX12: 0 | DY12: 0 | EA12: 0 | EB12: 0 | EC12: 0 | EE12: 1 | EF12: 0 | EG12: 0 | EI12: 0 | EJ12: 0 | EK12: 0 | EM12: 0 | EN12: 0 | EO12: 0 | EQ12: 0 | ER12: 0 | ES12: 0 | EU12: 0 | EV12: 0 | EW12: 0 | EY12: 0 | EZ12: 0 | FA12: 0 | FC12: 1 | FD12: 0 | FE12: 0 | FG12: 0 | FH12: 0 | FI12: 0 | FK12: 0 | FL12: 0 | FM12: 0 | FO12: 0 | FP12: 0 | FQ12: 0 | FS12: 0 | FT12: 0 | FU12: 0 | FW12: 0 | FX12: 0 | FY12: 0 | GA12: 0 | GB12: 0 | GC12: 0 | GE12: 1 | GF12: 0 | GG12: 0 | GI12: 1 | GJ12: 0 | GK12: 0 | GM12: 0 | GN12: 0 | GO12: 0 | GQ12: 0 | GR12: 0 | GS12: 0 | GU12: 0 | GV12: 0 | GW12: 0 | GY12: 0 | GZ12: 0 | HA12: 0 | HC12: 0 | HD12: 0 | HE12: 0 | HG12: 0 | HH12: 0 | HI12: 0 | HK12: 4 | HL12: 1 | HM12: 0 | IE12: 0 | IF12: 0 | IG12: 0 | II12: 1 | IJ12: 0 | IK12: 0 | IM12: 0 | IN12: 0 | IO12: 0 | IQ12: 0 | IR12: 0 | IS12: 0 | IU12: 0 | IV12: 0 | IW12: 0
A13: -17 | C13: 3 | D13: 0 | E13: 0 | G13: 0 | H13: 0 | I13: 0 | K13: 0 | L13: 0 | M13: 0 | O13: 0 | P13: 0 | Q13: 0 | S13: 2 | T13: 0 | U13: 0 | W13: 0 | X13: 0 | Y13: 0 | AA13: 0 | AB13: 0 | AC13: 0 | AE13: 1 | AF13: 0 | AG13: 0 | AI13: 0 | AJ13: 0 | AK13: 0 | AM13: 1 | AN13: 0 | AO13: 0 | AQ13: 0 | AR13: 0 | AS13: 0 | AU13: 1 | AV13: 0 | AW13: 0 | AY13: 0 | AZ13: 0 | BA13: 0 | BC13: 0 | BD13: 0 | BE13: 0 | BG13: 0 | BH13: 0 | BI13: 0 | BK13: 1 | BL13: 0 | BM13: 0 | BO13: 0 | BP13: 0 | BQ13: 0 | BS13: 0 | BT13: 0 | BU13: 0 | BW13: 1 | BX13: 0 | BY13: 0 | CA13: 0 | CB13: 0 | CC13: 0 | CE13: 0 | CF13: 0 | CG13: 0 | CI13: 0 | CJ13: 0 | CK13: 0 | CM13: 0 | CN13: 0 | CO13: 0 | CQ13: 1 | CR13: 0 | CS13: 0 | CU13: 0 | CV13: 0 | CW13: 0 | CY13: 0 | CZ13: 0 | DA13: 0 | DC13: 0 | DD13: 0 | DE13: 0 | DG13: 6 | DH13: 2 | DI13: 0 | DK13: 0 | DL13: 0 | DM13: 0 | DO13: 1 | DP13: 0 | DQ13: 0 | DS13: 1 | DT13: 0 | DU13: 0 | DW13: 0 | DX13: 0 | DY13: 0 | EA13: 0 | EB13: 0 | EC13: 0 | EE13: 1 | EF13: 0 | EG13: 0 | EI13: 0 | EJ13: 0 | EK13: 0 | EM13: 1 | EN13: 0 | EO13: 0 | EQ13: 0 | ER13: 0 | ES13: 0 | EU13: 0 | EV13: 0 | EW13: 0 | EY13: 0 | EZ13: 0 | FA13: 0 | FC13: 1 | FD13: 0 | FE13: 0 | FG13: 0 | FH13: 0 | FI13: 0 | FK13: 1 | FL13: 0 | FM13: 0 | FO13: 0 | FP13: 0 | FQ13: 0 | FS13: 1 | FT13: 0 | FU13: 0 | FW13: 0 | FX13: 0 | FY13: 0 | GA13: 1 | GB13: 0 | GC13: 0 | GE13: 2 | GF13: 0 | GG13: 0 | GI13: 3 | GJ13: 0 | GK13: 0 | GM13: 0 | GN13: 0 | GO13: 0 | GQ13: 0 | GR13: 0 | GS13: 0 | GU13: 1 | GV13: 0 | GW13: 0 | GY13: 0 | GZ13: 0 | HA13: 0 | HC13: 0 | HD13: 0 | HE13: 0 | HG13: 0 | HH13: 0 | HI13: 0 | HK13: 7 | HL13: 1 | HM13: 0 | IE13: 0 | IF13: 0 | IG13: 0 | II13: 0 | IJ13: 0 | IK13: 0 | IM13: 0 | IN13: 0 | IO13: 0 | IQ13: 0 | IR13: 0 | IS13: 0 | IU13: 0 | IV13: 0 | IW13: 0
A14: -16 | C14: 4 | D14: 0 | E14: 0 | G14: 0 | H14: 0 | I14: 0 | K14: 0 | L14: 0 | M14: 0 | O14: 0 | P14: 0 | Q14: 0 | S14: 3 | T14: 1 | U14: 0 | W14: 0 | X14: 0 | Y14: 0 | AA14: 0 | AB14: 0 | AC14: 0 | AE14: 1 | AF14: 0 | AG14: 0 | AI14: 0 | AJ14: 0 | AK14: 0 | AM14: 1 | AN14: 0 | AO14: 0 | AQ14: 0 | AR14: 0 | AS14: 0 | AU14: 1 | AV14: 0 | AW14: 0 | AY14: 0 | AZ14: 0 | BA14: 0 | BC14: 0 | BD14: 0 | BE14: 0 | BG14: 0 | BH14: 0 | BI14: 0 | BK14: 1 | BL14: 0 | BM14: 0 | BO14: 1 | BP14: 0 | BQ14: 0 | BS14: 1 | BT14: 0 | BU14: 0 | BW14: 2 | BX14: 0 | BY14: 0 | CA14: 0 | CB14: 0 | CC14: 0 | CE14: 0 | CF14: 0 | CG14: 0 | CI14: 0 | CJ14: 0 | CK14: 0 | CM14: 0 | CN14: 0 | CO14: 0 | CQ14: 2 | CR14: 0 | CS14: 0 | CU14: 1 | CV14: 0 | CW14: 0 | CY14: 0 | CZ14: 0 | DA14: 0 | DC14: 0 | DD14: 0 | DE14: 0 | DG14: 7 | DH14: 2 | DI14: 0 | DK14: 0 | DL14: 0 | DM14: 0 | DO14: 1 | DP14: 0 | DQ14: 0 | DS14: 1 | DT14: 0 | DU14: 0 | DW14: 0 | DX14: 0 | DY14: 0 | EA14: 0 | EB14: 0 | EC14: 0 | EE14: 0 | EF14: 0 | EG14: 0 | EI14: 1 | EJ14: 0 | EK14: 0 | EM14: 1 | EN14: 0 | EO14: 0 | EQ14: 0 | ER14: 0 | ES14: 0 | EU14: 1 | EV14: 0 | EW14: 0 | EY14: 0 | EZ14: 0 | FA14: 0 | FC14: 1 | FD14: 0 | FE14: 0 | FG14: 0 | FH14: 0 | FI14: 0 | FK14: 2 | FL14: 0 | FM14: 0 | FO14: 0 | FP14: 0 | FQ14: 0 | FS14: 1 | FT14: 0 | FU14: 0 | FW14: 0 | FX14: 0 | FY14: 0 | GA14: 0 | GB14: 0 | GC14: 0 | GE14: 2 | GF14: 0 | GG14: 0 | GI14: 3 | GJ14: 1 | GK14: 0 | GM14: 0 | GN14: 0 | GO14: 0 | GQ14: 0 | GR14: 0 | GS14: 0 | GU14: 0 | GV14: 0 | GW14: 0 | GY14: 0 | GZ14: 0 | HA14: 0 | HC14: 0 | HD14: 0 | HE14: 0 | HG14: 0 | HH14: 0 | HI14: 0 | HK14: 5 | HL14: 2 | HM14: 0 | IE14: 0 | IF14: 0 | IG14: 0 | II14: 2 | IJ14: 0 | IK14: 0 | IM14: 0 | IN14: 0 | IO14: 0 | IQ14: 0 | IR14: 0 | IS14: 0 | IU14: 0 | IV14: 0 | IW14: 0
A15: -15 | C15: 3 | D15: 0 | E15: 0 | G15: 0 | H15: 0 | I15: 0 | K15: 0 | L15: 0 | M15: 0 | O15: 0 | P15: 0 | Q15: 0 | S15: 3 | T15: 1 | U15: 0 | W15: 0 | X15: 0 | Y15: 0 | AA15: 0 | AB15: 0 | AC15: 0 | AE15: 1 | AF15: 0 | AG15: 0 | AI15: 0 | AJ15: 0 | AK15: 0 | AM15: 0 | AN15: 0 | AO15: 0 | AQ15: 0 | AR15: 0 | AS15: 0 | AU15: 3 | AV15: 0 | AW15: 0 | AY15: 0 | AZ15: 0 | BA15: 0 | BC15: 0 | BD15: 0 | BE15: 0 | BG15: 0 | BH15: 0 | BI15: 0 | BK15: 0 | BL15: 0 | BM15: 0 | BO15: 1 | BP15: 0 | BQ15: 0 | BS15: 1 | BT15: 0 | BU15: 0 | BW15: 1 | BX15: 0 | BY15: 0 | CA15: 1 | CB15: 0 | CC15: 0 | CE15: 0 | CF15: 0 | CG15: 0 | CI15: 0 | CJ15: 0 | CK15: 0 | CM15: 0 | CN15: 0 | CO15: 0 | CQ15: 4 | CR15: 0 | CS15: 0 | CU15: 2 | CV15: 0 | CW15: 0 | CY15: 0 | CZ15: 0 | DA15: 0 | DC15: 0 | DD15: 0 | DE15: 0 | DG15: 7 | DH15: 4 | DI15: 0 | DK15: 0 | DL15: 0 | DM15: 0 | DO15: 1 | DP15: 0 | DQ15: 0 | DS15: 1 | DT15: 0 | DU15: 0 | DW15: 0 | DX15: 0 | DY15: 0 | EA15: 0 | EB15: 0 | EC15: 0 | EE15: 2 | EF15: 0 | EG15: 0 | EI15: 1 | EJ15: 0 | EK15: 0 | EM15: 1 | EN15: 0 | EO15: 0 | EQ15: 0 | ER15: 0 | ES15: 0 | EU15: 1 | EV15: 0 | EW15: 0 | EY15: 0 | EZ15: 0 | FA15: 0 | FC15: 3 | FD15: 0 | FE15: 0 | FG15: 0 | FH15: 0 | FI15: 0 | FK15: 2 | FL15: 0 | FM15: 0 | FO15: 1 | FP15: 0 | FQ15: 0 | FS15: 2 | FT15: 0 | FU15: 0 | FW15: 0 | FX15: 0 | FY15: 0 | GA15: 1 | GB15: 0 | GC15: 0 | GE15: 4 | GF15: 1 | GG15: 0 | GI15: 3 | GJ15: 1 | GK15: 0 | GM15: 0 | GN15: 0 | GO15: 0 | GQ15: 0 | GR15: 0 | GS15: 0 | GU15: 2 | GV15: 0 | GW15: 0 | GY15: 0 | GZ15: 0 | HA15: 0 | HC15: 0 | HD15: 0 | HE15: 0 | HG15: 0 | HH15: 0 | HI15: 0 | HK15: 6 | HL15: 2 | HM15: 0 | IE15: 0 | IF15: 0 | IG15: 0 | II15: 2 | IJ15: 0 | IK15: 0 | IM15: 0 | IN15: 0 | IO15: 0 | IQ15: 0 | IR15: 0 | IS15: 0 | IU15: 0 | IV15: 0 | IW15: 0
A16: -14 | C16: 5 | D16: 1 | E16: 0 | G16: 0 | H16: 0 | I16: 0 | K16: 0 | L16: 0 | M16: 0 | O16: 0 | P16: 0 | Q16: 0 | S16: 4 | T16: 1 | U16: 0 | W16: 0 | X16: 0 | Y16: 0 | AA16: 0 | AB16: 0 | AC16: 0 | AE16: 2 | AF16: 0 | AG16: 0 | AI16: 0 | AJ16: 0 | AK16: 0 | AM16: 1 | AN16: 0 | AO16: 0 | AQ16: 0 | AR16: 0 | AS16: 0 | AU16: 2 | AV16: 0 | AW16: 0 | AY16: 0 | AZ16: 0 | BA16: 0 | BC16: 0 | BD16: 0 | BE16: 0 | BG16: 1 | BH16: 0 | BI16: 0 | BK16: 1 | BL16: 0 | BM16: 0 | BO16: 1 | BP16: 0 | BQ16: 0 | BS16: 2 | BT16: 0 | BU16: 0 | BW16: 3 | BX16: 0 | BY16: 0 | CA16: 1 | CB16: 0 | CC16: 0 | CE16: 1 | CF16: 0 | CG16: 0 | CI16: 0 | CJ16: 0 | CK16: 0 | CM16: 0 | CN16: 0 | CO16: 0 | CQ16: 2 | CR16: 0 | CS16: 0 | CU16: 2 | CV16: 0 | CW16: 0 | CY16: 0 | CZ16: 0 | DA16: 0 | DC16: 0 | DD16: 0 | DE16: 0 | DG16: 7 | DH16: 4 | DI16: 0 | DK16: 0 | DL16: 0 | DM16: 0 | DO16: 2 | DP16: 0 | DQ16: 0 | DS16: 1 | DT16: 0 | DU16: 0 | DW16: 0 | DX16: 0 | DY16: 0 | EA16: 0 | EB16: 0 | EC16: 0 | EE16: 2 | EF16: 0 | EG16: 0 | EI16: 0 | EJ16: 0 | EK16: 0 | EM16: 1 | EN16: 0 | EO16: 0 | EQ16: 0 | ER16: 0 | ES16: 0 | EU16: 1 | EV16: 0 | EW16: 0 | EY16: 1 | EZ16: 0 | FA16: 0 | FC16: 3 | FD16: 0 | FE16: 0 | FG16: 0 | FH16: 0 | FI16: 0 | FK16: 2 | FL16: 1 | FM16: 0 | FO16: 1 | FP16: 0 | FQ16: 0 | FS16: 2 | FT16: 0 | FU16: 0 | FW16: 1 | FX16: 0 | FY16: 0 | GA16: 2 | GB16: 0 | GC16: 0 | GE16: 3 | GF16: 0 | GG16: 0 | GI16: 5 | GJ16: 1 | GK16: 0 | GM16: 0 | GN16: 0 | GO16: 0 | GQ16: 0 | GR16: 0 | GS16: 0 | GU16: 2 | GV16: 0 | GW16: 0 | GY16: 1 | GZ16: 0 | HA16: 0 | HC16: 0 | HD16: 0 | HE16: 0 | HG16: 0 | HH16: 0 | HI16: 0 | HK16: 5 | HL16: 3 | HM16: 0 | IE16: 0 | IF16: 0 | IG16: 0 | II16: 1 | IJ16: 0 | IK16: 0 | IM16: 1 | IN16: 0 | IO16: 0 | IQ16: 0 | IR16: 0 | IS16: 0 | IU16: 0 | IV16: 0 | IW16: 0
A17: -13 | C17: 7 | D17: 2 | E17: 0 | G17: 0 | H17: 0 | I17: 0 | K17: 0 | L17: 0 | M17: 0 | O17: 1 | P17: 0 | Q17: 0 | S17: 4 | T17: 1 | U17: 0 | W17: 0 | X17: 0 | Y17: 0 | AA17: 0 | AB17: 0 | AC17: 0 | AE17: 1 | AF17: 0 | AG17: 0 | AI17: 1 | AJ17: 0 | AK17: 0 | AM17: 2 | AN17: 0 | AO17: 0 | AQ17: 0 | AR17: 0 | AS17: 0 | AU17: 3 | AV17: 1 | AW17: 0 | AY17: 0 | AZ17: 0 | BA17: 0 | BC17: 0 | BD17: 0 | BE17: 0 | BG17: 1 | BH17: 0 | BI17: 0 | BK17: 2 | BL17: 0 | BM17: 0 | BO17: 1 | BP17: 0 | BQ17: 0 | BS17: 1 | BT17: 0 | BU17: 0 | BW17: 2 | BX17: 0 | BY17: 0 | CA17: 1 | CB17: 0 | CC17: 0 | CE17: 0 | CF17: 0 | CG17: 0 | CI17: 0 | CJ17: 0 | CK17: 0 | CM17: 0 | CN17: 0 | CO17: 0 | CQ17: 4 | CR17: 0 | CS17: 0 | CU17: 3 | CV17: 0 | CW17: 0 | CY17: 0 | CZ17: 0 | DA17: 0 | DC17: 0 | DD17: 0 | DE17: 0 | DG17: 8 | DH17: 5 | DI17: 0 | DK17: 0 | DL17: 0 | DM17: 0 | DO17: 2 | DP17: 0 | DQ17: 0 | DS17: 3 | DT17: 0 | DU17: 0 | DW17: 0 | DX17: 0 | DY17: 0 | EA17: 0 | EB17: 0 | EC17: 0 | EE17: 3 | EF17: 1 | EG17: 0 | EI17: 1 | EJ17: 0 | EK17: 0 | EM17: 1 | EN17: 0 | EO17: 0 | EQ17: 0 | ER17: 0 | ES17: 0 | EU17: 2 | EV17: 0 | EW17: 0 | EY17: 1 | EZ17: 0 | FA17: 0 | FC17: 4 | FD17: 1 | FE17: 0 | FG17: 0 | FH17: 0 | FI17: 0 | FK17: 3 | FL17: 0 | FM17: 0 | FO17: 1 | FP17: 0 | FQ17: 0 | FS17: 4 | FT17: 0 | FU17: 0 | FW17: 1 | FX17: 0 | FY17: 0 | GA17: 4 | GB17: 1 | GC17: 0 | GE17: 3 | GF17: 2 | GG17: 0 | GI17: 5 | GJ17: 1 | GK17: 0 | GM17: 0 | GN17: 0 | GO17: 0 | GQ17: 0 | GR17: 0 | GS17: 0 | GU17: 3 | GV17: 0 | GW17: 0 | GY17: 2 | GZ17: 0 | HA17: 0 | HC17: 1 | HD17: 0 | HE17: 0 | HG17: 1 | HH17: 0 | HI17: 0 | HK17: 8 | HL17: 4 | HM17: 0 | IE17: 2 | IF17: 0 | IG17: 0 | II17: 5 | IJ17: 0 | IK17: 0 | IM17: 1 | IN17: 0 | IO17: 0 | IQ17: 0 | IR17: 0 | IS17: 0 | IU17: 0 | IV17: 0 | IW17: 0
A18: -12 | C18: 6 | D18: 4 | E18: 0 | G18: 0 | H18: 0 | I18: 0 | K18: 0 | L18: 0 | M18: 0 | O18: 1 | P18: 0 | Q18: 0 | S18: 5 | T18: 2 | U18: 0 | W18: 0 | X18: 0 | Y18: 0 | AA18: 1 | AB18: 0 | AC18: 0 | AE18: 2 | AF18: 0 | AG18: 0 | AI18: 1 | AJ18: 0 | AK18: 0 | AM18: 3 | AN18: 0 | AO18: 0 | AQ18: 0 | AR18: 0 | AS18: 0 | AU18: 4 | AV18: 1 | AW18: 0 | AY18: 1 | AZ18: 0 | BA18: 0 | BC18: 0 | BD18: 0 | BE18: 0 | BG18: 1 | BH18: 1 | BI18: 0 | BK18: 2 | BL18: 0 | BM18: 0 | BO18: 2 | BP18: 0 | BQ18: 0 | BS18: 2 | BT18: 1 | BU18: 0 | BW18: 3 | BX18: 1 | BY18: 0 | CA18: 2 | CB18: 0 | CC18: 0 | CE18: 1 | CF18: 0 | CG18: 0 | CI18: 0 | CJ18: 0 | CK18: 0 | CM18: 1 | CN18: 0 | CO18: 0 | CQ18: 3 | CR18: 0 | CS18: 0 | CU18: 4 | CV18: 1 | CW18: 0 | CY18: 0 | CZ18: 0 | DA18: 0 | DC18: 0 | DD18: 0 | DE18: 0 | DG18: 8 | DH18: 6 | DI18: 0 | DK18: 1 | DL18: 0 | DM18: 0 | DO18: 4 | DP18: 0 | DQ18: 0 | DS18: 2 | DT18: 1 | DU18: 0 | DW18: 0 | DX18: 0 | DY18: 0 | EA18: 1 | EB18: 0 | EC18: 0 | EE18: 2 | EF18: 1 | EG18: 0 | EI18: 1 | EJ18: 0 | EK18: 0 | EM18: 2 | EN18: 1 | EO18: 0 | EQ18: 1 | ER18: 0 | ES18: 0 | EU18: 3 | EV18: 1 | EW18: 0 | EY18: 2 | EZ18: 0 | FA18: 0 | FC18: 3 | FD18: 1 | FE18: 0 | FG18: 1 | FH18: 0 | FI18: 0 | FK18: 3 | FL18: 1 | FM18: 0 | FO18: 2 | FP18: 0 | FQ18: 0 | FS18: 2 | FT18: 2 | FU18: 0 | FW18: 0 | FX18: 0 | FY18: 0 | GA18: 4 | GB18: 0 | GC18: 0 | GE18: 4 | GF18: 1 | GG18: 0 | GI18: 7 | GJ18: 3 | GK18: 0 | GM18: 0 | GN18: 0 | GO18: 0 | GQ18: 1 | GR18: 0 | GS18: 0 | GU18: 4 | GV18: 0 | GW18: 0 | GY18: 3 | GZ18: 0 | HA18: 0 | HC18: 1 | HD18: 0 | HE18: 0 | HG18: 1 | HH18: 0 | HI18: 0 | HK18: 6 | HL18: 4 | HM18: 0 | IE18: 2 | IF18: 0 | IG18: 0 | II18: 3 | IJ18: 0 | IK18: 0 | IM18: 2 | IN18: 0 | IO18: 0 | IQ18: 1 | IR18: 0 | IS18: 0 | IU18: 0 | IV18: 0 | IW18: 0
A19: -11 | C19: 8 | D19: 2 | E19: 0 | G19: 0 | H19: 0 | I19: 0 | K19: 0 | L19: 0 | M19: 0 | O19: 1 | P19: 0 | Q19: 0 | S19: 6 | T19: 4 | U19: 0 | W19: 0 | X19: 0 | Y19: 0 | AA19: 1 | AB19: 0 | AC19: 0 | AE19: 2 | AF19: 1 | AG19: 0 | AI19: 3 | AJ19: 1 | AK19: 0 | AM19: 2 | AN19: 1 | AO19: 0 | AQ19: 0 | AR19: 0 | AS19: 0 | AU19: 3 | AV19: 1 | AW19: 0 | AY19: 0 | AZ19: 0 | BA19: 0 | BC19: 2 | BD19: 0 | BE19: 0 | BG19: 2 | BH19: 1 | BI19: 0 | BK19: 3 | BL19: 0 | BM19: 0 | BO19: 2 | BP19: 0 | BQ19: 0 | BS19: 3 | BT19: 1 | BU19: 0 | BW19: 3 | BX19: 0 | BY19: 0 | CA19: 2 | CB19: 0 | CC19: 0 | CE19: 1 | CF19: 0 | CG19: 0 | CI19: 1 | CJ19: 0 | CK19: 0 | CM19: 2 | CN19: 0 | CO19: 0 | CQ19: 4 | CR19: 1 | CS19: 0 | CU19: 4 | CV19: 1 | CW19: 0 | CY19: 1 | CZ19: 0 | DA19: 0 | DC19: 0 | DD19: 0 | DE19: 0 | DG19: 8 | DH19: 6 | DI19: 1 | DK19: 1 | DL19: 0 | DM19: 0 | DO19: 2 | DP19: 1 | DQ19: 0 | DS19: 4 | DT19: 1 | DU19: 0 | DW19: 0 | DX19: 0 | DY19: 0 | EA19: 1 | EB19: 0 | EC19: 0 | EE19: 3 | EF19: 1 | EG19: 0 | EI19: 2 | EJ19: 1 | EK19: 0 | EM19: 3 | EN19: 1 | EO19: 0 | EQ19: 1 | ER19: 0 | ES19: 0 | EU19: 3 | EV19: 1 | EW19: 0 | EY19: 3 | EZ19: 0 | FA19: 0 | FC19: 5 | FD19: 2 | FE19: 0 | FG19: 1 | FH19: 0 | FI19: 0 | FK19: 2 | FL19: 2 | FM19: 0 | FO19: 3 | FP19: 0 | FQ19: 0 | FS19: 5 | FT19: 2 | FU19: 0 | FW19: 2 | FX19: 0 | FY19: 0 | GA19: 4 | GB19: 1 | GC19: 0 | GE19: 6 | GF19: 2 | GG19: 0 | GI19: 7 | GJ19: 3 | GK19: 0 | GM19: 0 | GN19: 0 | GO19: 0 | GQ19: 1 | GR19: 0 | GS19: 0 | GU19: 4 | GV19: 1 | GW19: 0 | GY19: 3 | GZ19: 0 | HA19: 0 | HC19: 2 | HD19: 0 | HE19: 0 | HG19: 3 | HH19: 0 | HI19: 0 | HK19: 7 | HL19: 4 | HM19: 1 | IE19: 3 | IF19: 1 | IG19: 0 | II19: 4 | IJ19: 1 | IK19: 0 | IM19: 2 | IN19: 0 | IO19: 0 | IQ19: 0 | IR19: 0 | IS19: 0 | IU19: 1 | IV19: 0 | IW19: 0
A20: -10 | C20: 10 | D20: 5 | E20: 1 | G20: 1 | H20: 0 | I20: 0 | K20: 0 | L20: 0 | M20: 0 | O20: 1 | P20: 0 | Q20: 0 | S20: 7 | T20: 3 | U20: 0 | W20: 1 | X20: 0 | Y20: 0 | AA20: 1 | AB20: 0 | AC20: 0 | AE20: 3 | AF20: 1 | AG20: 0 | AI20: 4 | AJ20: 1 | AK20: 0 | AM20: 3 | AN20: 1 | AO20: 0 | AQ20: 0 | AR20: 0 | AS20: 0 | AU20: 5 | AV20: 1 | AW20: 0 | AY20: 2 | AZ20: 0 | BA20: 0 | BC20: 1 | BD20: 0 | BE20: 0 | BG20: 2 | BH20: 1 | BI20: 0 | BK20: 4 | BL20: 2 | BM20: 0 | BO20: 3 | BP20: 2 | BQ20: 0 | BS20: 3 | BT20: 1 | BU20: 0 | BW20: 4 | BX20: 2 | BY20: 0 | CA20: 2 | CB20: 1 | CC20: 0 | CE20: 2 | CF20: 0 | CG20: 0 | CI20: 1 | CJ20: 0 | CK20: 0 | CM20: 3 | CN20: 0 | CO20: 0 | CQ20: 5 | CR20: 1 | CS20: 0 | CU20: 5 | CV20: 3 | CW20: 0 | CY20: 0 | CZ20: 0 | DA20: 0 | DC20: 0 | DD20: 0 | DE20: 0 | DG20: 9 | DH20: 8 | DI20: 1 | DK20: 3 | DL20: 0 | DM20: 0 | DO20: 4 | DP20: 1 | DQ20: 0 | DS20: 3 | DT20: 1 | DU20: 0 | DW20: 2 | DX20: 0 | DY20: 0 | EA20: 1 | EB20: 0 | EC20: 0 | EE20: 5 | EF20: 1 | EG20: 0 | EI20: 2 | EJ20: 0 | EK20: 0 | EM20: 2 | EN20: 1 | EO20: 0 | EQ20: 4 | ER20: 0 | ES20: 0 | EU20: 4 | EV20: 0 | EW20: 0 | EY20: 2 | EZ20: 1 | FA20: 0 | FC20: 5 | FD20: 3 | FE20: 0 | FG20: 1 | FH20: 0 | FI20: 0 | FK20: 5 | FL20: 1 | FM20: 0 | FO20: 2 | FP20: 1 | FQ20: 0 | FS20: 6 | FT20: 3 | FU20: 0 | FW20: 2 | FX20: 1 | FY20: 0 | GA20: 3 | GB20: 3 | GC20: 0 | GE20: 4 | GF20: 4 | GG20: 0 | GI20: 6 | GJ20: 4 | GK20: 0 | GM20: 0 | GN20: 0 | GO20: 0 | GQ20: 3 | GR20: 0 | GS20: 0 | GU20: 5 | GV20: 1 | GW20: 0 | GY20: 4 | GZ20: 1 | HA20: 0 | HC20: 2 | HD20: 0 | HE20: 0 | HG20: 2 | HH20: 0 | HI20: 0 | HK20: 7 | HL20: 5 | HM20: 0 | IE20: 4 | IF20: 1 | IG20: 0 | II20: 5 | IJ20: 2 | IK20: 0 | IM20: 4 | IN20: 0 | IO20: 0 | IQ20: 2 | IR20: 0 | IS20: 0 | IU20: 1 | IV20: 0 | IW20: 0
A21: -9 | C21: 11 | D21: 6 | E21: 1 | G21: 1 | H21: 0 | I21: 0 | K21: 0 | L21: 0 | M21: 0 | O21: 3 | P21: 1 | Q21: 0 | S21: 6 | T21: 3 | U21: 1 | W21: 1 | X21: 0 | Y21: 0 | AA21: 1 | AB21: 0 | AC21: 0 | AE21: 5 | AF21: 1 | AG21: 0 | AI21: 4 | AJ21: 3 | AK21: 1 | AM21: 4 | AN21: 1 | AO21: 0 | AQ21: 1 | AR21: 0 | AS21: 0 | AU21: 5 | AV21: 2 | AW21: 1 | AY21: 2 | AZ21: 0 | BA21: 0 | BC21: 1 | BD21: 0 | BE21: 0 | BG21: 5 | BH21: 1 | BI21: 1 | BK21: 4 | BL21: 1 | BM21: 0 | BO21: 3 | BP21: 1 | BQ21: 0 | BS21: 4 | BT21: 2 | BU21: 1 | BW21: 5 | BX21: 3 | BY21: 0 | CA21: 3 | CB21: 1 | CC21: 0 | CE21: 2 | CF21: 1 | CG21: 0 | CI21: 1 | CJ21: 0 | CK21: 0 | CM21: 3 | CN21: 0 | CO21: 0 | CQ21: 6 | CR21: 2 | CS21: 0 | CU21: 7 | CV21: 2 | CW21: 0 | CY21: 1 | CZ21: 0 | DA21: 0 | DC21: 0 | DD21: 0 | DE21: 0 | DG21: 7 | DH21: 7 | DI21: 2 | DK21: 5 | DL21: 1 | DM21: 0 | DO21: 6 | DP21: 2 | DQ21: 0 | DS21: 4 | DT21: 2 | DU21: 0 | DW21: 2 | DX21: 0 | DY21: 0 | EA21: 3 | EB21: 1 | EC21: 0 | EE21: 5 | EF21: 3 | EG21: 0 | EI21: 3 | EJ21: 1 | EK21: 0 | EM21: 4 | EN21: 2 | EO21: 0 | EQ21: 4 | ER21: 1 | ES21: 0 | EU21: 5 | EV21: 2 | EW21: 0 | EY21: 4 | EZ21: 1 | FA21: 0 | FC21: 7 | FD21: 3 | FE21: 0 | FG21: 1 | FH21: 1 | FI21: 0 | FK21: 5 | FL21: 4 | FM21: 0 | FO21: 3 | FP21: 1 | FQ21: 0 | FS21: 5 | FT21: 3 | FU21: 0 | FW21: 2 | FX21: 1 | FY21: 0 | GA21: 5 | GB21: 3 | GC21: 0 | GE21: 7 | GF21: 3 | GG21: 0 | GI21: 8 | GJ21: 6 | GK21: 0 | GM21: 0 | GN21: 0 | GO21: 0 | GQ21: 3 | GR21: 0 | GS21: 0 | GU21: 4 | GV21: 2 | GW21: 0 | GY21: 6 | GZ21: 3 | HA21: 0 | HC21: 1 | HD21: 0 | HE21: 0 | HG21: 4 | HH21: 1 | HI21: 0 | HK21: 9 | HL21: 7 | HM21: 1 | IE21: 5 | IF21: 1 | IG21: 1 | II21: 5 | IJ21: 4 | IK21: 0 | IM21: 4 | IN21: 1 | IO21: 0 | IQ21: 2 | IR21: 0 | IS21: 0 | IU21: 3 | IV21: 0 | IW21: 0
A22: -8 | C22: 13 | D22: 7 | E22: 2 | G22: 3 | H22: 0 | I22: 0 | K22: 0 | L22: 0 | M22: 0 | O22: 3 | P22: 1 | Q22: 0 | S22: 6 | T22: 5 | U22: 1 | W22: 2 | X22: 0 | Y22: 0 | AA22: 2 | AB22: 0 | AC22: 0 | AE22: 4 | AF22: 2 | AG22: 0 | AI22: 5 | AJ22: 2 | AK22: 1 | AM22: 6 | AN22: 2 | AO22: 0 | AQ22: 1 | AR22: 0 | AS22: 0 | AU22: 6 | AV22: 3 | AW22: 0 | AY22: 1 | AZ22: 0 | BA22: 0 | BC22: 2 | BD22: 1 | BE22: 0 | BG22: 6 | BH22: 2 | BI22: 1 | BK22: 4 | BL22: 2 | BM22: 0 | BO22: 5 | BP22: 1 | BQ22: 0 | BS22: 5 | BT22: 3 | BU22: 1 | BW22: 7 | BX22: 2 | BY22: 0 | CA22: 4 | CB22: 1 | CC22: 0 | CE22: 3 | CF22: 1 | CG22: 0 | CI22: 2 | CJ22: 0 | CK22: 0 | CM22: 3 | CN22: 1 | CO22: 0 | CQ22: 5 | CR22: 3 | CS22: 0 | CU22: 6 | CV22: 3 | CW22: 2 | CY22: 2 | CZ22: 0 | DA22: 0 | DC22: 0 | DD22: 0 | DE22: 0 | DG22: 9 | DH22: 9 | DI22: 3 | DK22: 4 | DL22: 2 | DM22: 0 | DO22: 5 | DP22: 2 | DQ22: 0 | DS22: 6 | DT22: 3 | DU22: 0 | DW22: 3 | DX22: 0 | DY22: 0 | EA22: 3 | EB22: 1 | EC22: 0 | EE22: 6 | EF22: 5 | EG22: 0 | EI22: 5 | EJ22: 2 | EK22: 0 | EM22: 4 | EN22: 1 | EO22: 0 | EQ22: 5 | ER22: 1 | ES22: 0 | EU22: 7 | EV22: 3 | EW22: 0 | EY22: 5 | EZ22: 2 | FA22: 0 | FC22: 7 | FD22: 3 | FE22: 0 | FG22: 3 | FH22: 0 | FI22: 0 | FK22: 6 | FL22: 4 | FM22: 1 | FO22: 5 | FP22: 2 | FQ22: 0 | FS22: 8 | FT22: 4 | FU22: 1 | FW22: 3 | FX22: 1 | FY22: 0 | GA22: 6 | GB22: 4 | GC22: 1 | GE22: 8 | GF22: 4 | GG22: 1 | GI22: 10 | GJ22: 5 | GK22: 0 | GM22: 2 | GN22: 0 | GO22: 0 | GQ22: 2 | GR22: 1 | GS22: 0 | GU22: 8 | GV22: 5 | GW22: 0 | GY22: 5 | GZ22: 3 | HA22: 0 | HC22: 5 | HD22: 1 | HE22: 0 | HG22: 6 | HH22: 1 | HI22: 0 | HK22: 8 | HL22: 7 | HM22: 3 | IE22: 7 | IF22: 4 | IG22: 0 | II22: 5 | IJ22: 3 | IK22: 0 | IM22: 5 | IN22: 1 | IO22: 0 | IQ22: 2 | IR22: 0 | IS22: 0 | IU22: 4 | IV22: 1 | IW22: 0
A23: -7 | C23: 10 | D23: 7 | E23: 4 | G23: 4 | H23: 1 | I23: 0 | K23: 0 | L23: 0 | M23: 0 | O23: 4 | P23: 2 | Q23: 0 | S23: 9 | T23: 5 | U23: 1 | W23: 2 | X23: 1 | Y23: 0 | AA23: 3 | AB23: 2 | AC23: 0 | AE23: 6 | AF23: 3 | AG23: 0 | AI23: 7 | AJ23: 6 | AK23: 2 | AM23: 6 | AN23: 2 | AO23: 0 | AQ23: 2 | AR23: 0 | AS23: 0 | AU23: 8 | AV23: 3 | AW23: 1 | AY23: 3 | AZ23: 1 | BA23: 0 | BC23: 2 | BD23: 0 | BE23: 0 | BG23: 8 | BH23: 4 | BI23: 2 | BK23: 5 | BL23: 3 | BM23: 0 | BO23: 4 | BP23: 1 | BQ23: 0 | BS23: 6 | BT23: 3 | BU23: 0 | BW23: 6 | BX23: 4 | BY23: 0 | CA23: 5 | CB23: 2 | CC23: 0 | CE23: 4 | CF23: 2 | CG23: 0 | CI23: 2 | CJ23: 0 | CK23: 0 | CM23: 5 | CN23: 1 | CO23: 0 | CQ23: 7 | CR23: 6 | CS23: 1 | CU23: 9 | CV23: 6 | CW23: 1 | CY23: 3 | CZ23: 0 | DA23: 0 | DC23: 1 | DD23: 0 | DE23: 0 | DG23: 10 | DH23: 8 | DI23: 3 | DK23: 6 | DL23: 4 | DM23: 1 | DO23: 7 | DP23: 2 | DQ23: 0 | DS23: 5 | DT23: 3 | DU23: 0 | DW23: 3 | DX23: 1 | DY23: 0 | EA23: 3 | EB23: 2 | EC23: 0 | EE23: 7 | EF23: 3 | EG23: 1 | EI23: 5 | EJ23: 1 | EK23: 0 | EM23: 7 | EN23: 3 | EO23: 0 | EQ23: 4 | ER23: 2 | ES23: 0 | EU23: 8 | EV23: 3 | EW23: 1 | EY23: 5 | EZ23: 4 | FA23: 0 | FC23: 9 | FD23: 5 | FE23: 1 | FG23: 4 | FH23: 2 | FI23: 0 | FK23: 9 | FL23: 5 | FM23: 1 | FO23: 5 | FP23: 3 | FQ23: 0 | FS23: 8 | FT23: 5 | FU23: 2 | FW23: 4 | FX23: 3 | FY23: 1 | GA23: 7 | GB23: 4 | GC23: 1 | GE23: 8 | GF23: 4 | GG23: 1 | GI23: 12 | GJ23: 6 | GK23: 0 | GM23: 2 | GN23: 0 | GO23: 0 | GQ23: 4 | GR23: 2 | GS23: 0 | GU23: 9 | GV23: 5 | GW23: 0 | GY23: 8 | GZ23: 4 | HA23: 1 | HC23: 5 | HD23: 2 | HE23: 0 | HG23: 8 | HH23: 2 | HI23: 0 | HK23: 9 | HL23: 8 | HM23: 3 | IE23: 8 | IF23: 5 | IG23: 2 | II23: 9 | IJ23: 5 | IK23: 2 | IM23: 6 | IN23: 3 | IO23: 0 | IQ23: 6 | IR23: 1 | IS23: 0 | IU23: 4 | IV23: 2 | IW23: 0
A24: -6 | C24: 13 | D24: 10 | E24: 4 | G24: 4 | H24: 2 | I24: 0 | K24: 0 | L24: 0 | M24: 0 | O24: 6 | P24: 2 | Q24: 1 | S24: 12 | T24: 8 | U24: 2 | W24: 3 | X24: 2 | Y24: 0 | AA24: 4 | AB24: 1 | AC24: 0 | AE24: 5 | AF24: 4 | AG24: 1 | AI24: 8 | AJ24: 3 | AK24: 3 | AM24: 6 | AN24: 3 | AO24: 1 | AQ24: 3 | AR24: 0 | AS24: 0 | AU24: 9 | AV24: 5 | AW24: 1 | AY24: 4 | AZ24: 2 | BA24: 0 | BC24: 5 | BD24: 2 | BE24: 0 | BG24: 10 | BH24: 6 | BI24: 2 | BK24: 8 | BL24: 4 | BM24: 2 | BO24: 4 | BP24: 2 | BQ24: 0 | BS24: 9 | BT24: 5 | BU24: 3 | BW24: 8 | BX24: 4 | BY24: 2 | CA24: 5 | CB24: 2 | CC24: 1 | CE24: 4 | CF24: 2 | CG24: 1 | CI24: 4 | CJ24: 1 | CK24: 0 | CM24: 7 | CN24: 3 | CO24: 0 | CQ24: 10 | CR24: 6 | CS24: 1 | CU24: 10 | CV24: 5 | CW24: 3 | CY24: 4 | CZ24: 1 | DA24: 0 | DC24: 1 | DD24: 0 | DE24: 0 | DG24: 12 | DH24: 9 | DI24: 5 | DK24: 6 | DL24: 5 | DM24: 2 | DO24: 9 | DP24: 5 | DQ24: 1 | DS24: 7 | DT24: 6 | DU24: 1 | DW24: 4 | DX24: 3 | DY24: 0 | EA24: 5 | EB24: 3 | EC24: 1 | EE24: 10 | EF24: 6 | EG24: 1 | EI24: 7 | EJ24: 4 | EK24: 0 | EM24: 5 | EN24: 3 | EO24: 1 | EQ24: 6 | ER24: 3 | ES24: 0 | EU24: 7 | EV24: 5 | EW24: 0 | EY24: 5 | EZ24: 3 | FA24: 0 | FC24: 9 | FD24: 5 | FE24: 1 | FG24: 4 | FH24: 2 | FI24: 0 | FK24: 9 | FL24: 6 | FM24: 3 | FO24: 3 | FP24: 4 | FQ24: 0 | FS24: 12 | FT24: 7 | FU24: 2 | FW24: 6 | FX24: 3 | FY24: 0 | GA24: 8 | GB24: 6 | GC24: 2 | GE24: 11 | GF24: 5 | GG24: 1 | GI24: 10 | GJ24: 10 | GK24: 0 | GM24: 3 | GN24: 0 | GO24: 0 | GQ24: 5 | GR24: 3 | GS24: 0 | GU24: 10 | GV24: 5 | GW24: 2 | GY24: 10 | GZ24: 4 | HA24: 2 | HC24: 6 | HD24: 2 | HE24: 0 | HG24: 10 | HH24: 4 | HI24: 1 | HK24: 11 | HL24: 8 | HM24: 3 | IE24: 9 | IF24: 7 | IG24: 3 | II24: 10 | IJ24: 5 | IK24: 1 | IM24: 8 | IN24: 4 | IO24: 0 | IQ24: 6 | IR24: 2 | IS24: 0 | IU24: 5 | IV24: 4 | IW24: 1
A25: -5 | C25: 13 | D25: 13 | E25: 6 | G25: 8 | H25: 5 | I25: 1 | K25: 1 | L25: 0 | M25: 0 | O25: 7 | P25: 4 | Q25: 1 | S25: 14 | T25: 8 | U25: 3 | W25: 4 | X25: 3 | Y25: 1 | AA25: 4 | AB25: 1 | AC25: 0 | AE25: 9 | AF25: 4 | AG25: 2 | AI25: 11 | AJ25: 6 | AK25: 4 | AM25: 10 | AN25: 4 | AO25: 1 | AQ25: 6 | AR25: 0 | AS25: 0 | AU25: 11 | AV25: 6 | AW25: 2 | AY25: 4 | AZ25: 2 | BA25: 0 | BC25: 4 | BD25: 2 | BE25: 0 | BG25: 10 | BH25: 9 | BI25: 4 | BK25: 9 | BL25: 3 | BM25: 2 | BO25: 9 | BP25: 3 | BQ25: 2 | BS25: 11 | BT25: 6 | BU25: 4 | BW25: 9 | BX25: 5 | BY25: 1 | CA25: 10 | CB25: 3 | CC25: 0 | CE25: 6 | CF25: 3 | CG25: 0 | CI25: 5 | CJ25: 3 | CK25: 0 | CM25: 9 | CN25: 5 | CO25: 1 | CQ25: 11 | CR25: 5 | CS25: 3 | CU25: 12 | CV25: 6 | CW25: 3 | CY25: 9 | CZ25: 3 | DA25: 0 | DC25: 3 | DD25: 0 | DE25: 0 | DG25: 13 | DH25: 14 | DI25: 4 | DK25: 9 | DL25: 5 | DM25: 4 | DO25: 10 | DP25: 5 | DQ25: 2 | DS25: 10 | DT25: 5 | DU25: 2 | DW25: 4 | DX25: 4 | DY25: 0 | EA25: 6 | EB25: 4 | EC25: 1 | EE25: 8 | EF25: 6 | EG25: 2 | EI25: 10 | EJ25: 5 | EK25: 2 | EM25: 7 | EN25: 6 | EO25: 2 | EQ25: 9 | ER25: 5 | ES25: 0 | EU25: 11 | EV25: 6 | EW25: 2 | EY25: 7 | EZ25: 5 | FA25: 2 | FC25: 13 | FD25: 5 | FE25: 1 | FG25: 6 | FH25: 4 | FI25: 1 | FK25: 13 | FL25: 7 | FM25: 2 | FO25: 7 | FP25: 4 | FQ25: 1 | FS25: 12 | FT25: 7 | FU25: 4 | FW25: 6 | FX25: 4 | FY25: 2 | GA25: 9 | GB25: 5 | GC25: 3 | GE25: 11 | GF25: 6 | GG25: 3 | GI25: 11 | GJ25: 13 | GK25: 0 | GM25: 6 | GN25: 0 | GO25: 0 | GQ25: 5 | GR25: 4 | GS25: 1 | GU25: 11 | GV25: 6 | GW25: 1 | GY25: 12 | GZ25: 8 | HA25: 3 | HC25: 9 | HD25: 4 | HE25: 0 | HG25: 13 | HH25: 5 | HI25: 1 | HK25: 12 | HL25: 10 | HM25: 5 | IE25: 10 | IF25: 7 | IG25: 4 | II25: 11 | IJ25: 6 | IK25: 3 | IM25: 12 | IN25: 6 | IO25: 1 | IQ25: 9 | IR25: 3 | IS25: 0 | IU25: 7 | IV25: 4 | IW25: 2
A26: -4 | C26: 14 | D26: 13 | E26: 6 | G26: 8 | H26: 5 | I26: 3 | K26: 1 | L26: 0 | M26: 0 | O26: 8 | P26: 5 | Q26: 2 | S26: 13 | T26: 11 | U26: 4 | W26: 6 | X26: 3 | Y26: 2 | AA26: 6 | AB26: 3 | AC26: 2 | AE26: 9 | AF26: 7 | AG26: 4 | AI26: 12 | AJ26: 8 | AK26: 5 | AM26: 12 | AN26: 6 | AO26: 2 | AQ26: 8 | AR26: 0 | AS26: 0 | AU26: 12 | AV26: 8 | AW26: 3 | AY26: 7 | AZ26: 3 | BA26: 1 | BC26: 7 | BD26: 3 | BE26: 1 | BG26: 15 | BH26: 10 | BI26: 8 | BK26: 10 | BL26: 7 | BM26: 2 | BO26: 11 | BP26: 6 | BQ26: 1 | BS26: 10 | BT26: 9 | BU26: 4 | BW26: 12 | BX26: 5 | BY26: 4 | CA26: 11 | CB26: 6 | CC26: 3 | CE26: 8 | CF26: 3 | CG26: 3 | CI26: 6 | CJ26: 3 | CK26: 0 | CM26: 12 | CN26: 5 | CO26: 2 | CQ26: 11 | CR26: 7 | CS26: 3 | CU26: 12 | CV26: 9 | CW26: 5 | CY26: 12 | CZ26: 3 | DA26: 1 | DC26: 4 | DD26: 2 | DE26: 0 | DG26: 15 | DH26: 11 | DI26: 7 | DK26: 10 | DL26: 6 | DM26: 4 | DO26: 12 | DP26: 5 | DQ26: 2 | DS26: 11 | DT26: 6 | DU26: 2 | DW26: 8 | DX26: 4 | DY26: 1 | EA26: 7 | EB26: 5 | EC26: 3 | EE26: 11 | EF26: 7 | EG26: 3 | EI26: 11 | EJ26: 4 | EK26: 3 | EM26: 9 | EN26: 5 | EO26: 3 | EQ26: 11 | ER26: 4 | ES26: 1 | EU26: 11 | EV26: 7 | EW26: 2 | EY26: 10 | EZ26: 5 | FA26: 2 | FC26: 11 | FD26: 10 | FE26: 4 | FG26: 7 | FH26: 4 | FI26: 2 | FK26: 12 | FL26: 8 | FM26: 4 | FO26: 9 | FP26: 4 | FQ26: 3 | FS26: 10 | FT26: 10 | FU26: 4 | FW26: 9 | FX26: 7 | FY26: 3 | GA26: 12 | GB26: 7 | GC26: 3 | GE26: 13 | GF26: 9 | GG26: 3 | GI26: 13 | GJ26: 10 | GK26: 0 | GM26: 8 | GN26: 2 | GO26: 0 | GQ26: 8 | GR26: 5 | GS26: 2 | GU26: 14 | GV26: 7 | GW26: 3 | GY26: 14 | GZ26: 8 | HA26: 4 | HC26: 12 | HD26: 4 | HE26: 1 | HG26: 13 | HH26: 6 | HI26: 2 | HK26: 10 | HL26: 11 | HM26: 5 | IE26: 13 | IF26: 8 | IG26: 6 | II26: 13 | IJ26: 7 | IK26: 5 | IM26: 14 | IN26: 6 | IO26: 2 | IQ26: 12 | IR26: 6 | IS26: 2 | IU26: 9 | IV26: 7 | IW26: 2
A27: -3 | C27: 15 | D27: 13 | E27: 9 | G27: 11 | H27: 7 | I27: 4 | K27: 4 | L27: 0 | M27: 0 | O27: 13 | P27: 6 | Q27: 3 | S27: 14 | T27: 9 | U27: 5 | W27: 7 | X27: 5 | Y27: 2 | AA27: 9 | AB27: 4 | AC27: 1 | AE27: 13 | AF27: 5 | AG27: 4 | AI27: 14 | AJ27: 11 | AK27: 5 | AM27: 13 | AN27: 7 | AO27: 3 | AQ27: 8 | AR27: 2 | AS27: 0 | AU27: 12 | AV27: 7 | AW27: 4 | AY27: 12 | AZ27: 4 | BA27: 2 | BC27: 9 | BD27: 5 | BE27: 2 | BG27: 15 | BH27: 13 | BI27: 9 | BK27: 14 | BL27: 6 | BM27: 4 | BO27: 11 | BP27: 5 | BQ27: 3 | BS27: 13 | BT27: 9 | BU27: 7 | BW27: 12 | BX27: 8 | BY27: 4 | CA27: 13 | CB27: 5 | CC27: 2 | CE27: 12 | CF27: 6 | CG27: 3 | CI27: 10 | CJ27: 4 | CK27: 3 | CM27: 17 | CN27: 7 | CO27: 3 | CQ27: 12 | CR27: 9 | CS27: 4 | CU27: 13 | CV27: 12 | CW27: 7 | CY27: 13 | CZ27: 7 | DA27: 3 | DC27: 7 | DD27: 2 | DE27: 0 | DG27: 13 | DH27: 10 | DI27: 10 | DK27: 12 | DL27: 6 | DM27: 5 | DO27: 14 | DP27: 6 | DQ27: 2 | DS27: 14 | DT27: 8 | DU27: 4 | DW27: 10 | DX27: 5 | DY27: 3 | EA27: 10 | EB27: 4 | EC27: 3 | EE27: 15 | EF27: 8 | EG27: 5 | EI27: 13 | EJ27: 6 | EK27: 2 | EM27: 13 | EN27: 6 | EO27: 4 | EQ27: 11 | ER27: 7 | ES27: 2 | EU27: 14 | EV27: 10 | EW27: 3 | EY27: 11 | EZ27: 7 | FA27: 2 | FC27: 12 | FD27: 11 | FE27: 3 | FG27: 9 | FH27: 8 | FI27: 4 | FK27: 16 | FL27: 11 | FM27: 6 | FO27: 9 | FP27: 6 | FQ27: 2 | FS27: 15 | FT27: 13 | FU27: 5 | FW27: 9 | FX27: 5 | FY27: 5 | GA27: 14 | GB27: 11 | GC27: 5 | GE27: 14 | GF27: 12 | GG27: 3 | GI27: 13 | GJ27: 11 | GK27: 0 | GM27: 13 | GN27: 2 | GO27: 0 | GQ27: 10 | GR27: 5 | GS27: 2 | GU27: 14 | GV27: 9 | GW27: 4 | GY27: 14 | GZ27: 10 | HA27: 3 | HC27: 13 | HD27: 7 | HE27: 2 | HG27: 15 | HH27: 9 | HI27: 3 | HK27: 14 | HL27: 12 | HM27: 8 | IE27: 16 | IF27: 11 | IG27: 6 | II27: 12 | IJ27: 11 | IK27: 4 | IM27: 13 | IN27: 8 | IO27: 3 | IQ27: 13 | IR27: 6 | IS27: 4 | IU27: 11 | IV27: 4 | IW27: 6
A28: -2 | C28: 19 | D28: 15 | E28: 10 | G28: 12 | H28: 7 | I28: 5 | K28: 5 | L28: 1 | M28: 0 | O28: 15 | P28: 7 | Q28: 3 | S28: 17 | T28: 14 | U28: 5 | W28: 7 | X28: 5 | Y28: 4 | AA28: 13 | AB28: 5 | AC28: 3 | AE28: 14 | AF28: 9 | AG28: 6 | AI28: 14 | AJ28: 12 | AK28: 7 | AM28: 16 | AN28: 10 | AO28: 3 | AQ28: 12 | AR28: 2 | AS28: 0 | AU28: 14 | AV28: 8 | AW28: 6 | AY28: 14 | AZ28: 5 | BA28: 3 | BC28: 14 | BD28: 6 | BE28: 3 | BG28: 17 | BH28: 12 | BI28: 10 | BK28: 16 | BL28: 9 | BM28: 6 | BO28: 14 | BP28: 7 | BQ28: 4 | BS28: 14 | BT28: 11 | BU28: 8 | BW28: 15 | BX28: 10 | BY28: 5 | CA28: 13 | CB28: 8 | CC28: 4 | CE28: 13 | CF28: 7 | CG28: 3 | CI28: 12 | CJ28: 6 | CK28: 2 | CM28: 14 | CN28: 7 | CO28: 6 | CQ28: 15 | CR28: 9 | CS28: 6 | CU28: 16 | CV28: 12 | CW28: 6 | CY28: 15 | CZ28: 9 | DA28: 5 | DC28: 9 | DD28: 5 | DE28: 2 | DG28: 17 | DH28: 12 | DI28: 10 | DK28: 14 | DL28: 11 | DM28: 5 | DO28: 14 | DP28: 7 | DQ28: 5 | DS28: 17 | DT28: 12 | DU28: 4 | DW28: 10 | DX28: 6 | DY28: 4 | EA28: 11 | EB28: 8 | EC28: 4 | EE28: 16 | EF28: 10 | EG28: 7 | EI28: 16 | EJ28: 9 | EK28: 5 | EM28: 15 | EN28: 7 | EO28: 4 | EQ28: 14 | ER28: 9 | ES28: 3 | EU28: 15 | EV28: 12 | EW28: 5 | EY28: 16 | EZ28: 9 | FA28: 5 | FC28: 16 | FD28: 11 | FE28: 3 | FG28: 12 | FH28: 6 | FI28: 4 | FK28: 18 | FL28: 12 | FM28: 7 | FO28: 15 | FP28: 7 | FQ28: 4 | FS28: 13 | FT28: 12 | FU28: 7 | FW28: 13 | FX28: 8 | FY28: 6 | GA28: 16 | GB28: 12 | GC28: 6 | GE28: 15 | GF28: 12 | GG28: 6 | GI28: 15 | GJ28: 14 | GK28: 0 | GM28: 17 | GN28: 6 | GO28: 0 | GQ28: 11 | GR28: 6 | GS28: 4 | GU28: 14 | GV28: 12 | GW28: 6 | GY28: 15 | GZ28: 13 | HA28: 7 | HC28: 15 | HD28: 8 | HE28: 3 | HG28: 16 | HH28: 13 | HI28: 5 | HK28: 15 | HL28: 12 | HM28: 9 | IE28: 16 | IF28: 10 | IG28: 7 | II28: 14 | IJ28: 11 | IK28: 7 | IM28: 16 | IN28: 10 | IO28: 4 | IQ28: 15 | IR28: 8 | IS28: 4 | IU28: 11 | IV28: 8 | IW28: 6
A29: -1 | C29: 20 | D29: 15 | E29: 11 | G29: 15 | H29: 8 | I29: 5 | K29: 11 | L29: 2 | M29: 0 | O29: 17 | P29: 9 | Q29: 4 | S29: 19 | T29: 13 | U29: 8 | W29: 11 | X29: 7 | Y29: 4 | AA29: 14 | AB29: 7 | AC29: 2 | AE29: 19 | AF29: 9 | AG29: 7 | AI29: 14 | AJ29: 11 | AK29: 9 | AM29: 16 | AN29: 9 | AO29: 7 | AQ29: 12 | AR29: 3 | AS29: 0 | AU29: 14 | AV29: 11 | AW29: 3 | AY29: 16 | AZ29: 7 | BA29: 3 | BC29: 16 | BD29: 8 | BE29: 4 | BG29: 18 | BH29: 16 | BI29: 11 | BK29: 20 | BL29: 11 | BM29: 7 | BO29: 19 | BP29: 10 | BQ29: 4 | BS29: 16 | BT29: 12 | BU29: 9 | BW29: 17 | BX29: 12 | BY29: 7 | CA29: 17 | CB29: 11 | CC29: 7 | CE29: 13 | CF29: 9 | CG29: 5 | CI29: 12 | CJ29: 7 | CK29: 5 | CM29: 15 | CN29: 10 | CO29: 5 | CQ29: 15 | CR29: 13 | CS29: 9 | CU29: 16 | CV29: 13 | CW29: 9 | CY29: 15 | CZ29: 8 | DA29: 7 | DC29: 12 | DD29: 7 | DE29: 3 | DG29: 16 | DH29: 11 | DI29: 13 | DK29: 12 | DL29: 11 | DM29: 8 | DO29: 13 | DP29: 10 | DQ29: 4 | DS29: 19 | DT29: 14 | DU29: 7 | DW29: 15 | DX29: 8 | DY29: 4 | EA29: 15 | EB29: 8 | EC29: 6 | EE29: 18 | EF29: 13 | EG29: 7 | EI29: 19 | EJ29: 10 | EK29: 4 | EM29: 15 | EN29: 11 | EO29: 5 | EQ29: 16 | ER29: 10 | ES29: 4 | EU29: 15 | EV29: 12 | EW29: 10 | EY29: 17 | EZ29: 12 | FA29: 6 | FC29: 15 | FD29: 12 | FE29: 7 | FG29: 15 | FH29: 9 | FI29: 6 | FK29: 22 | FL29: 13 | FM29: 9 | FO29: 16 | FP29: 9 | FQ29: 5 | FS29: 15 | FT29: 12 | FU29: 9 | FW29: 15 | FX29: 9 | FY29: 6 | GA29: 15 | GB29: 13 | GC29: 8 | GE29: 16 | GF29: 11 | GG29: 7 | GI29: 17 | GJ29: 14 | GK29: 0 | GM29: 18 | GN29: 8 | GO29: 2 | GQ29: 15 | GR29: 9 | GS29: 5 | GU29: 15 | GV29: 13 | GW29: 7 | GY29: 19 | GZ29: 14 | HA29: 9 | HC29: 18 | HD29: 9 | HE29: 6 | HG29: 17 | HH29: 15 | HI29: 6 | HK29: 18 | HL29: 13 | HM29: 10 | IE29: 16 | IF29: 15 | IG29: 10 | II29: 16 | IJ29: 14 | IK29: 8 | IM29: 17 | IN29: 13 | IO29: 8 | IQ29: 17 | IR29: 9 | IS29: 7 | IU29: 13 | IV29: 9 | IW29: 5
A30: 0 | C30: 21 | D30: 14 | E30: 13 | G30: 18 | H30: 12 | I30: 7 | K30: 16 | L30: 5 | M30: 1 | O30: 19 | P30: 12 | Q30: 5 | S30: 20 | T30: 15 | U30: 10 | W30: 11 | X30: 8 | Y30: 6 | AA30: 17 | AB30: 7 | AC30: 5 | AE30: 20 | AF30: 12 | AG30: 7 | AI30: 18 | AJ30: 14 | AK30: 9 | AM30: 16 | AN30: 12 | AO30: 8 | AQ30: 14 | AR30: 6 | AS30: 0 | AU30: 16 | AV30: 14 | AW30: 7 | AY30: 13 | AZ30: 8 | BA30: 5 | BC30: 15 | BD30: 9 | BE30: 5 | BG30: 21 | BH30: 19 | BI30: 14 | BK30: 21 | BL30: 14 | BM30: 7 | BO30: 20 | BP30: 11 | BQ30: 7 | BS30: 19 | BT30: 15 | BU30: 11 | BW30: 20 | BX30: 13 | BY30: 6 | CA30: 20 | CB30: 11 | CC30: 6 | CE30: 17 | CF30: 11 | CG30: 6 | CI30: 19 | CJ30: 9 | CK30: 6 | CM30: 19 | CN30: 15 | CO30: 7 | CQ30: 19 | CR30: 15 | CS30: 9 | CU30: 19 | CV30: 13 | CW30: 9 | CY30: 19 | CZ30: 11 | DA30: 5 | DC30: 15 | DD30: 8 | DE30: 5 | DG30: 19 | DH30: 12 | DI30: 13 | DK30: 16 | DL30: 12 | DM30: 9 | DO30: 18 | DP30: 13 | DQ30: 7 | DS30: 20 | DT30: 17 | DU30: 8 | DW30: 16 | DX30: 10 | DY30: 7 | EA30: 15 | EB30: 11 | EC30: 6 | EE30: 21 | EF30: 15 | EG30: 7 | EI30: 18 | EJ30: 14 | EK30: 5 | EM30: 19 | EN30: 11 | EO30: 7 | EQ30: 19 | ER30: 14 | ES30: 6 | EU30: 16 | EV30: 15 | EW30: 7 | EY30: 21 | EZ30: 14 | FA30: 8 | FC30: 16 | FD30: 12 | FE30: 7 | FG30: 19 | FH30: 10 | FI30: 7 | FK30: 20 | FL30: 15 | FM30: 9 | FO30: 18 | FP30: 13 | FQ30: 6 | FS30: 21 | FT30: 13 | FU30: 12 | FW30: 17 | FX30: 11 | FY30: 7 | GA30: 20 | GB30: 15 | GC30: 12 | GE30: 15 | GF30: 15 | GG30: 9 | GI30: 18 | GJ30: 13 | GK30: 0 | GM30: 20 | GN30: 10 | GO30: 2 | GQ30: 11 | GR30: 10 | GS30: 6 | GU30: 18 | GV30: 16 | GW30: 8 | GY30: 18 | GZ30: 15 | HA30: 10 | HC30: 17 | HD30: 12 | HE30: 6 | HG30: 19 | HH30: 18 | HI30: 8 | HK30: 21 | HL30: 12 | HM30: 13 | IE30: 19 | IF30: 16 | IG30: 12 | II30: 19 | IJ30: 13 | IK30: 10 | IM30: 18 | IN30: 14 | IO30: 7 | IQ30: 17 | IR30: 13 | IS30: 5 | IU30: 17 | IV30: 12 | IW30: 7
A31: 1 | C31: 18 | D31: 14 | E31: 12 | G31: 18 | H31: 13 | I31: 8 | K31: 19 | L31: 8 | M31: 2 | O31: 16 | P31: 16 | Q31: 6 | S31: 15 | T31: 16 | U31: 13 | W31: 13 | X31: 10 | Y31: 7 | AA31: 15 | AB31: 11 | AC31: 6 | AE31: 19 | AF31: 16 | AG31: 9 | AI31: 14 | AJ31: 13 | AK31: 8 | AM31: 16 | AN31: 15 | AO31: 8 | AQ31: 12 | AR31: 9 | AS31: 1 | AU31: 16 | AV31: 12 | AW31: 6 | AY31: 14 | AZ31: 12 | BA31: 6 | BC31: 16 | BD31: 11 | BE31: 8 | BG31: 17 | BH31: 16 | BI31: 14 | BK31: 21 | BL31: 14 | BM31: 10 | BO31: 19 | BP31: 14 | BQ31: 7 | BS31: 20 | BT31: 13 | BU31: 12 | BW31: 18 | BX31: 14 | BY31: 10 | CA31: 19 | CB31: 14 | CC31: 9 | CE31: 18 | CF31: 12 | CG31: 7 | CI31: 16 | CJ31: 11 | CK31: 6 | CM31: 17 | CN31: 14 | CO31: 8 | CQ31: 22 | CR31: 16 | CS31: 10 | CU31: 17 | CV31: 15 | CW31: 12 | CY31: 18 | CZ31: 17 | DA31: 7 | DC31: 16 | DD31: 11 | DE31: 7 | DG31: 18 | DH31: 13 | DI31: 14 | DK31: 16 | DL31: 12 | DM31: 9 | DO31: 16 | DP31: 13 | DQ31: 5 | DS31: 19 | DT31: 14 | DU31: 12 | DW31: 19 | DX31: 15 | DY31: 6 | EA31: 18 | EB31: 12 | EC31: 7 | EE31: 18 | EF31: 16 | EG31: 12 | EI31: 16 | EJ31: 16 | EK31: 6 | EM31: 15 | EN31: 14 | EO31: 8 | EQ31: 18 | ER31: 14 | ES31: 8 | EU31: 14 | EV31: 15 | EW31: 11 | EY31: 20 | EZ31: 16 | FA31: 10 | FC31: 14 | FD31: 14 | FE31: 9 | FG31: 16 | FH31: 15 | FI31: 8 | FK31: 17 | FL31: 16 | FM31: 10 | FO31: 20 | FP31: 15 | FQ31: 8 | FS31: 16 | FT31: 14 | FU31: 11 | FW31: 18 | FX31: 15 | FY31: 8 | GA31: 18 | GB31: 15 | GC31: 12 | GE31: 13 | GF31: 12 | GG31: 8 | GI31: 18 | GJ31: 15 | GK31: 0 | GM31: 16 | GN31: 16 | GO31: 5 | GQ31: 18 | GR31: 13 | GS31: 8 | GU31: 21 | GV31: 14 | GW31: 9 | GY31: 14 | GZ31: 14 | HA31: 11 | HC31: 17 | HD31: 16 | HE31: 6 | HG31: 19 | HH31: 13 | HI31: 10 | HK31: 17 | HL31: 13 | HM31: 12 | IE31: 17 | IF31: 15 | IG31: 11 | II31: 19 | IJ31: 16 | IK31: 11 | IM31: 19 | IN31: 17 | IO31: 10 | IQ31: 17 | IR31: 14 | IS31: 7 | IU31: 16 | IV31: 12 | IW31: 8
A32: 2 | C32: 15 | D32: 15 | E32: 13 | G32: 15 | H32: 14 | I32: 9 | K32: 18 | L32: 13 | M32: 3 | O32: 13 | P32: 16 | Q32: 10 | S32: 17 | T32: 14 | U32: 12 | W32: 16 | X32: 12 | Y32: 8 | AA32: 17 | AB32: 12 | AC32: 6 | AE32: 16 | AF32: 13 | AG32: 9 | AI32: 14 | AJ32: 10 | AK32: 12 | AM32: 16 | AN32: 15 | AO32: 8 | AQ32: 12 | AR32: 9 | AS32: 2 | AU32: 15 | AV32: 14 | AW32: 7 | AY32: 14 | AZ32: 12 | BA32: 8 | BC32: 14 | BD32: 13 | BE32: 7 | BG32: 17 | BH32: 16 | BI32: 16 | BK32: 18 | BL32: 13 | BM32: 10 | BO32: 19 | BP32: 13 | BQ32: 13 | BS32: 18 | BT32: 15 | BU32: 12 | BW32: 19 | BX32: 17 | BY32: 9 | CA32: 17 | CB32: 14 | CC32: 11 | CE32: 18 | CF32: 11 | CG32: 9 | CI32: 16 | CJ32: 14 | CK32: 7 | CM32: 15 | CN32: 16 | CO32: 9 | CQ32: 21 | CR32: 13 | CS32: 11 | CU32: 16 | CV32: 14 | CW32: 11 | CY32: 15 | CZ32: 14 | DA32: 8 | DC32: 18 | DD32: 13 | DE32: 8 | DG32: 16 | DH32: 15 | DI32: 14 | DK32: 18 | DL32: 15 | DM32: 9 | DO32: 15 | DP32: 13 | DQ32: 10 | DS32: 17 | DT32: 15 | DU32: 13 | DW32: 17 | DX32: 15 | DY32: 9 | EA32: 12 | EB32: 13 | EC32: 10 | EE32: 17 | EF32: 15 | EG32: 11 | EI32: 11 | EJ32: 15 | EK32: 10 | EM32: 16 | EN32: 14 | EO32: 9 | EQ32: 13 | ER32: 15 | ES32: 9 | EU32: 12 | EV32: 15 | EW32: 11 | EY32: 13 | EZ32: 17 | FA32: 10 | FC32: 13 | FD32: 14 | FE32: 11 | FG32: 16 | FH32: 18 | FI32: 9 | FK32: 16 | FL32: 15 | FM32: 13 | FO32: 16 | FP32: 13 | FQ32: 10 | FS32: 16 | FT32: 15 | FU32: 11 | FW32: 16 | FX32: 15 | FY32: 10 | GA32: 15 | GB32: 16 | GC32: 12 | GE32: 14 | GF32: 13 | GG32: 12 | GI32: 17 | GJ32: 14 | GK32: 0 | GM32: 17 | GN32: 18 | GO32: 7 | GQ32: 14 | GR32: 13 | GS32: 9 | GU32: 18 | GV32: 14 | GW32: 11 | GY32: 15 | GZ32: 14 | HA32: 10 | HC32: 19 | HD32: 13 | HE32: 7 | HG32: 14 | HH32: 16 | HI32: 16 | HK32: 17 | HL32: 16 | HM32: 15 | IE32: 16 | IF32: 16 | IG32: 13 | II32: 17 | IJ32: 14 | IK32: 11 | IM32: 14 | IN32: 15 | IO32: 10 | IQ32: 14 | IR32: 13 | IS32: 8 | IU32: 16 | IV32: 13 | IW32: 8
A33: 3 | C33: 15 | D33: 15 | E33: 11 | G33: 14 | H33: 17 | I33: 11 | K33: 17 | L33: 15 | M33: 6 | O33: 12 | P33: 13 | Q33: 8 | S33: 13 | T33: 14 | U33: 10 | W33: 16 | X33: 13 | Y33: 9 | AA33: 16 | AB33: 14 | AC33: 8 | AE33: 15 | AF33: 13 | AG33: 11 | AI33: 16 | AJ33: 12 | AK33: 12 | AM33: 12 | AN33: 16 | AO33: 8 | AQ33: 15 | AR33: 12 | AS33: 2 | AU33: 16 | AV33: 13 | AW33: 10 | AY33: 17 | AZ33: 13 | BA33: 8 | BC33: 17 | BD33: 14 | BE33: 8 | BG33: 18 | BH33: 16 | BI33: 15 | BK33: 16 | BL33: 15 | BM33: 12 | BO33: 18 | BP33: 16 | BQ33: 9 | BS33: 17 | BT33: 15 | BU33: 11 | BW33: 18 | BX33: 13 | BY33: 12 | CA33: 18 | CB33: 16 | CC33: 9 | CE33: 15 | CF33: 16 | CG33: 9 | CI33: 15 | CJ33: 13 | CK33: 8 | CM33: 18 | CN33: 15 | CO33: 11 | CQ33: 15 | CR33: 15 | CS33: 13 | CU33: 19 | CV33: 14 | CW33: 10 | CY33: 15 | CZ33: 16 | DA33: 11 | DC33: 18 | DD33: 15 | DE33: 9 | DG33: 17 | DH33: 15 | DI33: 11 | DK33: 14 | DL33: 11 | DM33: 12 | DO33: 14 | DP33: 13 | DQ33: 9 | DS33: 14 | DT33: 14 | DU33: 13 | DW33: 14 | DX33: 16 | DY33: 11 | EA33: 15 | EB33: 13 | EC33: 8 | EE33: 15 | EF33: 14 | EG33: 12 | EI33: 12 | EJ33: 13 | EK33: 12 | EM33: 15 | EN33: 14 | EO33: 9 | EQ33: 13 | ER33: 16 | ES33: 10 | EU33: 10 | EV33: 10 | EW33: 13 | EY33: 15 | EZ33: 15 | FA33: 12 | FC33: 12 | FD33: 12 | FE33: 11 | FG33: 16 | FH33: 14 | FI33: 12 | FK33: 13 | FL33: 15 | FM33: 11 | FO33: 15 | FP33: 15 | FQ33: 9 | FS33: 18 | FT33: 15 | FU33: 10 | FW33: 14 | FX33: 13 | FY33: 11 | GA33: 12 | GB33: 13 | GC33: 14 | GE33: 15 | GF33: 13 | GG33: 12 | GI33: 16 | GJ33: 14 | GK33: 0 | GM33: 17 | GN33: 14 | GO33: 9 | GQ33: 15 | GR33: 12 | GS33: 9 | GU33: 18 | GV33: 14 | GW33: 12 | GY33: 17 | GZ33: 13 | HA33: 10 | HC33: 19 | HD33: 15 | HE33: 10 | HG33: 14 | HH33: 15 | HI33: 14 | HK33: 13 | HL33: 11 | HM33: 12 | IE33: 19 | IF33: 16 | IG33: 14 | II33: 15 | IJ33: 14 | IK33: 12 | IM33: 18 | IN33: 13 | IO33: 12 | IQ33: 17 | IR33: 16 | IS33: 10 | IU33: 16 | IV33: 14 | IW33: 11
A34: 4 | C34: 16 | D34: 17 | E34: 12 | G34: 17 | H34: 13 | I34: 13 | K34: 16 | L34: 16 | M34: 7 | O34: 11 | P34: 11 | Q34: 10 | S34: 12 | T34: 13 | U34: 16 | W34: 15 | X34: 13 | Y34: 10 | AA34: 18 | AB34: 13 | AC34: 9 | AE34: 16 | AF34: 15 | AG34: 11 | AI34: 16 | AJ34: 15 | AK34: 9 | AM34: 12 | AN34: 13 | AO34: 9 | AQ34: 15 | AR34: 15 | AS34: 4 | AU34: 18 | AV34: 15 | AW34: 9 | AY34: 17 | AZ34: 13 | BA34: 8 | BC34: 18 | BD34: 15 | BE34: 11 | BG34: 16 | BH34: 15 | BI34: 12 | BK34: 16 | BL34: 16 | BM34: 12 | BO34: 14 | BP34: 16 | BQ34: 10 | BS34: 17 | BT34: 14 | BU34: 14 | BW34: 15 | BX34: 12 | BY34: 13 | CA34: 18 | CB34: 13 | CC34: 13 | CE34: 17 | CF34: 15 | CG34: 11 | CI34: 18 | CJ34: 14 | CK34: 9 | CM34: 13 | CN34: 13 | CO34: 13 | CQ34: 19 | CR34: 16 | CS34: 12 | CU34: 16 | CV34: 14 | CW34: 10 | CY34: 16 | CZ34: 16 | DA34: 14 | DC34: 14 | DD34: 17 | DE34: 10 | DG34: 16 | DH34: 14 | DI34: 11 | DK34: 14 | DL34: 14 | DM34: 12 | DO34: 14 | DP34: 10 | DQ34: 11 | DS34: 14 | DT34: 13 | DU34: 14 | DW34: 16 | DX34: 14 | DY34: 12 | EA34: 14 | EB34: 12 | EC34: 10 | EE34: 14 | EF34: 14 | EG34: 13 | EI34: 13 | EJ34: 11 | EK34: 11 | EM34: 14 | EN34: 12 | EO34: 11 | EQ34: 15 | ER34: 12 | ES34: 11 | EU34: 14 | EV34: 10 | EW34: 11 | EY34: 14 | EZ34: 11 | FA34: 14 | FC34: 14 | FD34: 10 | FE34: 12 | FG34: 16 | FH34: 13 | FI34: 13 | FK34: 14 | FL34: 14 | FM34: 12 | FO34: 14 | FP34: 14 | FQ34: 10 | FS34: 13 | FT34: 15 | FU34: 12 | FW34: 15 | FX34: 13 | FY34: 12 | GA34: 14 | GB34: 12 | GC34: 13 | GE34: 12 | GF34: 11 | GG34: 12 | GI34: 18 | GJ34: 14 | GK34: 0 | GM34: 15 | GN34: 16 | GO34: 10 | GQ34: 11 | GR34: 14 | GS34: 10 | GU34: 14 | GV34: 14 | GW34: 13 | GY34: 19 | GZ34: 14 | HA34: 14 | HC34: 18 | HD34: 15 | HE34: 11 | HG34: 15 | HH34: 12 | HI34: 13 | HK34: 18 | HL34: 10 | HM34: 13 | IE34: 15 | IF34: 15 | IG34: 14 | II34: 16 | IJ34: 14 | IK34: 14 | IM34: 16 | IN34: 13 | IO34: 11 | IQ34: 18 | IR34: 15 | IS34: 11 | IU34: 16 | IV34: 12 | IW34: 11
A35: 5 | C35: 18 | D35: 16 | E35: 13 | G35: 17 | H35: 12 | I35: 12 | K35: 17 | L35: 17 | M35: 11 | O35: 14 | P35: 15 | Q35: 10 | S35: 12 | T35: 11 | U35: 11 | W35: 13 | X35: 12 | Y35: 11 | AA35: 16 | AB35: 15 | AC35: 11 | AE35: 13 | AF35: 13 | AG35: 13 | AI35: 15 | AJ35: 14 | AK35: 10 | AM35: 16 | AN35: 12 | AO35: 12 | AQ35: 15 | AR35: 16 | AS35: 6 | AU35: 15 | AV35: 14 | AW35: 11 | AY35: 18 | AZ35: 16 | BA35: 12 | BC35: 18 | BD35: 15 | BE35: 12 | BG35: 20 | BH35: 15 | BI35: 13 | BK35: 17 | BL35: 12 | BM35: 11 | BO35: 20 | BP35: 14 | BQ35: 13 | BS35: 17 | BT35: 15 | BU35: 12 | BW35: 14 | BX35: 13 | BY35: 11 | CA35: 13 | CB35: 15 | CC35: 12 | CE35: 19 | CF35: 14 | CG35: 12 | CI35: 17 | CJ35: 15 | CK35: 13 | CM35: 19 | CN35: 12 | CO35: 11 | CQ35: 16 | CR35: 15 | CS35: 13 | CU35: 16 | CV35: 13 | CW35: 13 | CY35: 16 | CZ35: 12 | DA35: 12 | DC35: 16 | DD35: 14 | DE35: 15 | DG35: 18 | DH35: 14 | DI35: 11 | DK35: 13 | DL35: 14 | DM35: 9 | DO35: 15 | DP35: 13 | DQ35: 11 | DS35: 13 | DT35: 11 | DU35: 12 | DW35: 14 | DX35: 14 | DY35: 13 | EA35: 15 | EB35: 13 | EC35: 10 | EE35: 16 | EF35: 12 | EG35: 12 | EI35: 15 | EJ35: 13 | EK35: 9 | EM35: 14 | EN35: 12 | EO35: 12 | EQ35: 13 | ER35: 12 | ES35: 10 | EU35: 13 | EV35: 9 | EW35: 12 | EY35: 15 | EZ35: 13 | FA35: 13 | FC35: 12 | FD35: 12 | FE35: 12 | FG35: 11 | FH35: 13 | FI35: 13 | FK35: 13 | FL35: 15 | FM35: 11 | FO35: 15 | FP35: 14 | FQ35: 12 | FS35: 19 | FT35: 14 | FU35: 10 | FW35: 14 | FX35: 12 | FY35: 13 | GA35: 13 | GB35: 10 | GC35: 11 | GE35: 14 | GF35: 11 | GG35: 10 | GI35: 17 | GJ35: 14 | GK35: 0 | GM35: 15 | GN35: 13 | GO35: 12 | GQ35: 20 | GR35: 13 | GS35: 11 | GU35: 16 | GV35: 13 | GW35: 13 | GY35: 17 | GZ35: 13 | HA35: 13 | HC35: 16 | HD35: 14 | HE35: 12 | HG35: 16 | HH35: 14 | HI35: 12 | HK35: 17 | HL35: 13 | HM35: 9 | IE35: 22 | IF35: 14 | IG35: 13 | II35: 14 | IJ35: 13 | IK35: 10 | IM35: 17 | IN35: 13 | IO35: 13 | IQ35: 20 | IR35: 12 | IS35: 13 | IU35: 16 | IV35: 14 | IW35: 12
A36: 6 | C36: 18 | D36: 15 | E36: 14 | G36: 16 | H36: 14 | I36: 10 | K36: 16 | L36: 13 | M36: 11 | O36: 16 | P36: 12 | Q36: 13 | S36: 13 | T36: 13 | U36: 11 | W36: 14 | X36: 14 | Y36: 11 | AA36: 21 | AB36: 14 | AC36: 10 | AE36: 17 | AF36: 14 | AG36: 12 | AI36: 18 | AJ36: 16 | AK36: 9 | AM36: 16 | AN36: 11 | AO36: 11 | AQ36: 15 | AR36: 16 | AS36: 10 | AU36: 20 | AV36: 15 | AW36: 12 | AY36: 18 | AZ36: 14 | BA36: 11 | BC36: 20 | BD36: 15 | BE36: 13 | BG36: 19 | BH36: 16 | BI36: 14 | BK36: 17 | BL36: 17 | BM36: 12 | BO36: 15 | BP36: 15 | BQ36: 12 | BS36: 17 | BT36: 12 | BU36: 10 | BW36: 15 | BX36: 15 | BY36: 10 | CA36: 17 | CB36: 14 | CC36: 14 | CE36: 16 | CF36: 13 | CG36: 13 | CI36: 18 | CJ36: 13 | CK36: 11 | CM36: 15 | CN36: 13 | CO36: 11 | CQ36: 17 | CR36: 15 | CS36: 14 | CU36: 16 | CV36: 14 | CW36: 11 | CY36: 16 | CZ36: 12 | DA36: 11 | DC36: 18 | DD36: 15 | DE36: 11 | DG36: 15 | DH36: 11 | DI36: 13 | DK36: 19 | DL36: 13 | DM36: 11 | DO36: 16 | DP36: 9 | DQ36: 10 | DS36: 11 | DT36: 15 | DU36: 10 | DW36: 17 | DX36: 12 | DY36: 12 | EA36: 13 | EB36: 13 | EC36: 9 | EE36: 13 | EF36: 14 | EG36: 9 | EI36: 15 | EJ36: 14 | EK36: 11 | EM36: 16 | EN36: 14 | EO36: 11 | EQ36: 16 | ER36: 10 | ES36: 12 | EU36: 13 | EV36: 11 | EW36: 9 | EY36: 15 | EZ36: 11 | FA36: 12 | FC36: 13 | FD36: 11 | FE36: 11 | FG36: 17 | FH36: 13 | FI36: 11 | FK36: 13 | FL36: 15 | FM36: 11 | FO36: 17 | FP36: 14 | FQ36: 14 | FS36: 16 | FT36: 16 | FU36: 11 | FW36: 17 | FX36: 14 | FY36: 11 | GA36: 15 | GB36: 12 | GC36: 10 | GE36: 13 | GF36: 13 | GG36: 11 | GI36: 16 | GJ36: 16 | GK36: 0 | GM36: 16 | GN36: 16 | GO36: 11 | GQ36: 15 | GR36: 11 | GS36: 10 | GU36: 15 | GV36: 13 | GW36: 13 | GY36: 18 | GZ36: 14 | HA36: 12 | HC36: 15 | HD36: 14 | HE36: 11 | HG36: 13 | HH36: 15 | HI36: 15 | HK36: 19 | HL36: 13 | HM36: 10 | IE36: 19 | IF36: 17 | IG36: 16 | II36: 17 | IJ36: 16 | IK36: 15 | IM36: 16 | IN36: 14 | IO36: 13 | IQ36: 15 | IR36: 11 | IS36: 13 | IU36: 17 | IV36: 16 | IW36: 11
A37: 7 | C37: 16 | D37: 14 | E37: 13 | G37: 17 | H37: 15 | I37: 13 | K37: 14 | L37: 17 | M37: 14 | O37: 15 | P37: 11 | Q37: 11 | S37: 15 | T37: 13 | U37: 10 | W37: 14 | X37: 12 | Y37: 11 | AA37: 17 | AB37: 14 | AC37: 14 | AE37: 14 | AF37: 14 | AG37: 10 | AI37: 17 | AJ37: 14 | AK37: 11 | AM37: 15 | AN37: 13 | AO37: 12 | AQ37: 18 | AR37: 17 | AS37: 10 | AU37: 16 | AV37: 14 | AW37: 14 | AY37: 19 | AZ37: 13 | BA37: 13 | BC37: 20 | BD37: 14 | BE37: 13 | BG37: 20 | BH37: 16 | BI37: 14 | BK37: 13 | BL37: 13 | BM37: 9 | BO37: 18 | BP37: 13 | BQ37: 14 | BS37: 16 | BT37: 13 | BU37: 13 | BW37: 16 | BX37: 15 | BY37: 12 | CA37: 18 | CB37: 13 | CC37: 11 | CE37: 17 | CF37: 17 | CG37: 14 | CI37: 17 | CJ37: 14 | CK37: 11 | CM37: 16 | CN37: 15 | CO37: 12 | CQ37: 17 | CR37: 15 | CS37: 11 | CU37: 20 | CV37: 15 | CW37: 12 | CY37: 14 | CZ37: 15 | DA37: 13 | DC37: 17 | DD37: 14 | DE37: 15 | DG37: 10 | DH37: 14 | DI37: 11 | DK37: 18 | DL37: 15 | DM37: 11 | DO37: 17 | DP37: 10 | DQ37: 10 | DS37: 16 | DT37: 12 | DU37: 11 | DW37: 16 | DX37: 14 | DY37: 10 | EA37: 14 | EB37: 14 | EC37: 13 | EE37: 14 | EF37: 11 | EG37: 10 | EI37: 16 | EJ37: 10 | EK37: 10 | EM37: 15 | EN37: 11 | EO37: 10 | EQ37: 16 | ER37: 12 | ES37: 11 | EU37: 16 | EV37: 11 | EW37: 8 | EY37: 14 | EZ37: 11 | FA37: 10 | FC37: 14 | FD37: 12 | FE37: 11 | FG37: 15 | FH37: 13 | FI37: 12 | FK37: 14 | FL37: 14 | FM37: 11 | FO37: 12 | FP37: 12 | FQ37: 10 | FS37: 15 | FT37: 16 | FU37: 16 | FW37: 15 | FX37: 12 | FY37: 9 | GA37: 16 | GB37: 11 | GC37: 9 | GE37: 11 | GF37: 9 | GG37: 10 | GI37: 18 | GJ37: 16 | GK37: 0 | GM37: 19 | GN37: 13 | GO37: 13 | GQ37: 12 | GR37: 12 | GS37: 10 | GU37: 17 | GV37: 14 | GW37: 14 | GY37: 17 | GZ37: 16 | HA37: 10 | HC37: 17 | HD37: 17 | HE37: 13 | HG37: 15 | HH37: 14 | HI37: 11 | HK37: 16 | HL37: 11 | HM37: 10 | IE37: 18 | IF37: 17 | IG37: 14 | II37: 16 | IJ37: 16 | IK37: 11 | IM37: 18 | IN37: 12 | IO37: 12 | IQ37: 16 | IR37: 17 | IS37: 12 | IU37: 17 | IV37: 14 | IW37: 12
A38: 8 | C38: 16 | D38: 15 | E38: 12 | G38: 18 | H38: 14 | I38: 12 | K38: 15 | L38: 15 | M38: 13 | O38: 15 | P38: 12 | Q38: 11 | S38: 15 | T38: 13 | U38: 9 | W38: 14 | X38: 12 | Y38: 12 | AA38: 18 | AB38: 14 | AC38: 11 | AE38: 15 | AF38: 11 | AG38: 9 | AI38: 19 | AJ38: 16 | AK38: 15 | AM38: 17 | AN38: 11 | AO38: 12 | AQ38: 15 | AR38: 16 | AS38: 11 | AU38: 17 | AV38: 15 | AW38: 14 | AY38: 17 | AZ38: 17 | BA38: 15 | BC38: 20 | BD38: 14 | BE38: 12 | BG38: 19 | BH38: 18 | BI38: 14 | BK38: 16 | BL38: 12 | BM38: 11 | BO38: 17 | BP38: 14 | BQ38: 12 | BS38: 19 | BT38: 15 | BU38: 10 | BW38: 14 | BX38: 13 | BY38: 10 | CA38: 16 | CB38: 15 | CC38: 10 | CE38: 17 | CF38: 14 | CG38: 11 | CI38: 16 | CJ38: 13 | CK38: 12 | CM38: 17 | CN38: 14 | CO38: 11 | CQ38: 22 | CR38: 15 | CS38: 17 | CU38: 16 | CV38: 15 | CW38: 13 | CY38: 16 | CZ38: 13 | DA38: 9 | DC38: 15 | DD38: 16 | DE38: 15 | DG38: 10 | DH38: 17 | DI38: 12 | DK38: 16 | DL38: 14 | DM38: 13 | DO38: 14 | DP38: 13 | DQ38: 10 | DS38: 14 | DT38: 13 | DU38: 7 | DW38: 16 | DX38: 14 | DY38: 12 | EA38: 15 | EB38: 13 | EC38: 8 | EE38: 14 | EF38: 12 | EG38: 10 | EI38: 11 | EJ38: 10 | EK38: 11 | EM38: 16 | EN38: 11 | EO38: 9 | EQ38: 16 | ER38: 11 | ES38: 12 | EU38: 12 | EV38: 10 | EW38: 9 | EY38: 14 | EZ38: 12 | FA38: 10 | FC38: 15 | FD38: 9 | FE38: 8 | FG38: 14 | FH38: 13 | FI38: 9 | FK38: 17 | FL38: 14 | FM38: 12 | FO38: 15 | FP38: 13 | FQ38: 11 | FS38: 15 | FT38: 16 | FU38: 12 | FW38: 14 | FX38: 13 | FY38: 10 | GA38: 13 | GB38: 13 | GC38: 7 | GE38: 16 | GF38: 12 | GG38: 10 | GI38: 18 | GJ38: 15 | GK38: 0 | GM38: 16 | GN38: 14 | GO38: 13 | GQ38: 15 | GR38: 13 | GS38: 11 | GU38: 17 | GV38: 15 | GW38: 9 | GY38: 17 | GZ38: 17 | HA38: 12 | HC38: 15 | HD38: 15 | HE38: 13 | HG38: 19 | HH38: 12 | HI38: 12 | HK38: 15 | HL38: 15 | HM38: 11 | IE38: 18 | IF38: 18 | IG38: 13 | II38: 14 | IJ38: 13 | IK38: 16 | IM38: 14 | IN38: 14 | IO38: 13 | IQ38: 18 | IR38: 15 | IS38: 11 | IU38: 18 | IV38: 15 | IW38: 12
A39: 9 | C39: 15 | D39: 17 | E39: 13 | G39: 16 | H39: 15 | I39: 11 | K39: 16 | L39: 12 | M39: 14 | O39: 14 | P39: 10 | Q39: 10 | S39: 17 | T39: 14 | U39: 10 | W39: 13 | X39: 13 | Y39: 10 | AA39: 15 | AB39: 15 | AC39: 11 | AE39: 15 | AF39: 12 | AG39: 11 | AI39: 15 | AJ39: 15 | AK39: 13 | AM39: 14 | AN39: 13 | AO39: 12 | AQ39: 15 | AR39: 15 | AS39: 14 | AU39: 17 | AV39: 15 | AW39: 15 | AY39: 18 | AZ39: 13 | BA39: 12 | BC39: 20 | BD39: 18 | BE39: 15 | BG39: 20 | BH39: 18 | BI39: 15 | BK39: 17 | BL39: 14 | BM39: 12 | BO39: 15 | BP39: 15 | BQ39: 10 | BS39: 18 | BT39: 14 | BU39: 13 | BW39: 16 | BX39: 15 | BY39: 12 | CA39: 15 | CB39: 12 | CC39: 13 | CE39: 18 | CF39: 13 | CG39: 11 | CI39: 16 | CJ39: 16 | CK39: 11 | CM39: 15 | CN39: 13 | CO39: 12 | CQ39: 18 | CR39: 19 | CS39: 12 | CU39: 18 | CV39: 18 | CW39: 13 | CY39: 16 | CZ39: 14 | DA39: 10 | DC39: 17 | DD39: 15 | DE39: 12 | DG39: 6 | DH39: 16 | DI39: 11 | DK39: 16 | DL39: 15 | DM39: 14 | DO39: 15 | DP39: 13 | DQ39: 9 | DS39: 16 | DT39: 11 | DU39: 10 | DW39: 17 | DX39: 14 | DY39: 10 | EA39: 15 | EB39: 12 | EC39: 11 | EE39: 15 | EF39: 12 | EG39: 13 | EI39: 13 | EJ39: 12 | EK39: 12 | EM39: 16 | EN39: 13 | EO39: 10 | EQ39: 15 | ER39: 13 | ES39: 9 | EU39: 16 | EV39: 11 | EW39: 9 | EY39: 15 | EZ39: 13 | FA39: 7 | FC39: 14 | FD39: 11 | FE39: 9 | FG39: 15 | FH39: 11 | FI39: 11 | FK39: 18 | FL39: 12 | FM39: 11 | FO39: 16 | FP39: 12 | FQ39: 10 | FS39: 19 | FT39: 14 | FU39: 15 | FW39: 14 | FX39: 11 | FY39: 9 | GA39: 14 | GB39: 13 | GC39: 9 | GE39: 14 | GF39: 15 | GG39: 9 | GI39: 17 | GJ39: 17 | GK39: 0 | GM39: 15 | GN39: 16 | GO39: 15 | GQ39: 16 | GR39: 12 | GS39: 11 | GU39: 18 | GV39: 15 | GW39: 12 | GY39: 18 | GZ39: 17 | HA39: 12 | HC39: 16 | HD39: 13 | HE39: 13 | HG39: 18 | HH39: 12 | HI39: 10 | HK39: 14 | HL39: 15 | HM39: 10 | IE39: 18 | IF39: 18 | IG39: 14 | II39: 15 | IJ39: 15 | IK39: 11 | IM39: 20 | IN39: 15 | IO39: 9 | IQ39: 16 | IR39: 15 | IS39: 13 | IU39: 18 | IV39: 14 | IW39: 14
A40: 10 | C40: 11 | D40: 17 | E40: 15 | G40: 16 | H40: 13 | I40: 13 | K40: 15 | L40: 15 | M40: 13 | O40: 13 | P40: 11 | Q40: 11 | S40: 15 | T40: 11 | U40: 10 | W40: 17 | X40: 13 | Y40: 10 | AA40: 17 | AB40: 14 | AC40: 12 | AE40: 15 | AF40: 15 | AG40: 11 | AI40: 19 | AJ40: 17 | AK40: 14 | AM40: 18 | AN40: 12 | AO40: 10 | AQ40: 17 | AR40: 12 | AS40: 13 | AU40: 19 | AV40: 15 | AW40: 13 | AY40: 17 | AZ40: 17 | BA40: 12 | BC40: 18 | BD40: 13 | BE40: 12 | BG40: 15 | BH40: 17 | BI40: 13 | BK40: 15 | BL40: 13 | BM40: 10 | BO40: 18 | BP40: 12 | BQ40: 13 | BS40: 17 | BT40: 17 | BU40: 11 | BW40: 18 | BX40: 17 | BY40: 13 | CA40: 18 | CB40: 15 | CC40: 11 | CE40: 16 | CF40: 14 | CG40: 12 | CI40: 17 | CJ40: 15 | CK40: 12 | CM40: 16 | CN40: 13 | CO40: 13 | CQ40: 15 | CR40: 16 | CS40: 11 | CU40: 18 | CV40: 16 | CW40: 12 | CY40: 14 | CZ40: 14 | DA40: 12 | DC40: 18 | DD40: 14 | DE40: 14 | DG40: 2 | DH40: 19 | DI40: 13 | DK40: 20 | DL40: 15 | DM40: 14 | DO40: 19 | DP40: 11 | DQ40: 9 | DS40: 17 | DT40: 15 | DU40: 9 | DW40: 14 | DX40: 13 | DY40: 14 | EA40: 15 | EB40: 10 | EC40: 11 | EE40: 16 | EF40: 13 | EG40: 10 | EI40: 16 | EJ40: 11 | EK40: 9 | EM40: 16 | EN40: 12 | EO40: 9 | EQ40: 13 | ER40: 12 | ES40: 10 | EU40: 13 | EV40: 12 | EW40: 10 | EY40: 15 | EZ40: 13 | FA40: 10 | FC40: 14 | FD40: 11 | FE40: 7 | FG40: 14 | FH40: 11 | FI40: 11 | FK40: 18 | FL40: 14 | FM40: 13 | FO40: 13 | FP40: 12 | FQ40: 9 | FS40: 19 | FT40: 16 | FU40: 13 | FW40: 14 | FX40: 13 | FY40: 12 | GA40: 17 | GB40: 15 | GC40: 9 | GE40: 16 | GF40: 14 | GG40: 9 | GI40: 16 | GJ40: 16 | GK40: 0 | GM40: 18 | GN40: 14 | GO40: 13 | GQ40: 20 | GR40: 12 | GS40: 10 | GU40: 17 | GV40: 18 | GW40: 12 | GY40: 19 | GZ40: 16 | HA40: 13 | HC40: 15 | HD40: 15 | HE40: 14 | HG40: 17 | HH40: 13 | HI40: 12 | HK40: 9 | HL40: 16 | HM40: 10 | IE40: 19 | IF40: 18 | IG40: 15 | II40: 18 | IJ40: 17 | IK40: 12 | IM40: 19 | IN40: 15 | IO40: 12 | IQ40: 16 | IR40: 13 | IS40: 11 | IU40: 17 | IV40: 15 | IW40: 12
A41: 11 | C41: 6 | D41: 15 | E41: 16 | G41: 19 | H41: 13 | I41: 12 | K41: 12 | L41: 14 | M41: 14 | O41: 16 | P41: 14 | Q41: 10 | S41: 15 | T41: 13 | U41: 10 | W41: 15 | X41: 11 | Y41: 11 | AA41: 14 | AB41: 15 | AC41: 11 | AE41: 17 | AF41: 14 | AG41: 13 | AI41: 18 | AJ41: 18 | AK41: 12 | AM41: 17 | AN41: 18 | AO41: 10 | AQ41: 17 | AR41: 15 | AS41: 16 | AU41: 17 | AV41: 15 | AW41: 14 | AY41: 18 | AZ41: 11 | BA41: 12 | BC41: 21 | BD41: 17 | BE41: 11 | BG41: 14 | BH41: 18 | BI41: 15 | BK41: 18 | BL41: 16 | BM41: 14 | BO41: 18 | BP41: 14 | BQ41: 9 | BS41: 19 | BT41: 14 | BU41: 11 | BW41: 17 | BX41: 14 | BY41: 12 | CA41: 18 | CB41: 13 | CC41: 12 | CE41: 19 | CF41: 13 | CG41: 12 | CI41: 16 | CJ41: 14 | CK41: 11 | CM41: 19 | CN41: 15 | CO41: 13 | CQ41: 13 | CR41: 18 | CS41: 12 | CU41: 17 | CV41: 17 | CW41: 13 | CY41: 18 | CZ41: 13 | DA41: 14 | DC41: 17 | DD41: 13 | DE41: 13 | DG41: 2 | DH41: 15 | DI41: 11 | DK41: 16 | DL41: 18 | DM41: 13 | DO41: 18 | DP41: 13 | DQ41: 9 | DS41: 17 | DT41: 12 | DU41: 9 | DW41: 17 | DX41: 15 | DY41: 13 | EA41: 14 | EB41: 11 | EC41: 11 | EE41: 15 | EF41: 14 | EG41: 10 | EI41: 17 | EJ41: 16 | EK41: 9 | EM41: 13 | EN41: 13 | EO41: 11 | EQ41: 15 | ER41: 13 | ES41: 8 | EU41: 15 | EV41: 13 | EW41: 8 | EY41: 15 | EZ41: 15 | FA41: 10 | FC41: 16 | FD41: 12 | FE41: 11 | FG41: 15 | FH41: 12 | FI41: 11 | FK41: 19 | FL41: 14 | FM41: 11 | FO41: 15 | FP41: 13 | FQ41: 10 | FS41: 14 | FT41: 16 | FU41: 14 | FW41: 17 | FX41: 12 | FY41: 10 | GA41: 19 | GB41: 12 | GC41: 10 | GE41: 16 | GF41: 13 | GG41: 10 | GI41: 12 | GJ41: 18 | GK41: 0 | GM41: 22 | GN41: 14 | GO41: 13 | GQ41: 15 | GR41: 14 | GS41: 12 | GU41: 16 | GV41: 16 | GW41: 11 | GY41: 20 | GZ41: 17 | HA41: 13 | HC41: 19 | HD41: 15 | HE41: 11 | HG41: 18 | HH41: 14 | HI41: 11 | HK41: 5 | HL41: 18 | HM41: 12 | IE41: 14 | IF41: 17 | IG41: 17 | II41: 18 | IJ41: 16 | IK41: 12 | IM41: 16 | IN41: 19 | IO41: 11 | IQ41: 18 | IR41: 13 | IS41: 13 | IU41: 16 | IV41: 15 | IW41: 14
A42: 12 | C42: 3 | D42: 15 | E42: 16 | G42: 15 | H42: 17 | I42: 12 | K42: 15 | L42: 13 | M42: 13 | O42: 15 | P42: 13 | Q42: 10 | S42: 16 | T42: 13 | U42: 11 | W42: 14 | X42: 12 | Y42: 12 | AA42: 18 | AB42: 13 | AC42: 11 | AE42: 16 | AF42: 15 | AG42: 12 | AI42: 17 | AJ42: 16 | AK42: 15 | AM42: 20 | AN42: 13 | AO42: 9 | AQ42: 15 | AR42: 15 | AS42: 15 | AU42: 18 | AV42: 16 | AW42: 11 | AY42: 17 | AZ42: 16 | BA42: 11 | BC42: 19 | BD42: 18 | BE42: 11 | BG42: 12 | BH42: 15 | BI42: 15 | BK42: 15 | BL42: 17 | BM42: 12 | BO42: 16 | BP42: 16 | BQ42: 13 | BS42: 14 | BT42: 16 | BU42: 12 | BW42: 16 | BX42: 16 | BY42: 12 | CA42: 15 | CB42: 16 | CC42: 11 | CE42: 18 | CF42: 15 | CG42: 12 | CI42: 18 | CJ42: 13 | CK42: 14 | CM42: 19 | CN42: 16 | CO42: 12 | CQ42: 12 | CR42: 17 | CS42: 15 | CU42: 14 | CV42: 18 | CW42: 12 | CY42: 16 | CZ42: 13 | DA42: 12 | DC42: 15 | DD42: 14 | DE42: 11 | DG42: 0 | DH42: 15 | DI42: 15 | DK42: 19 | DL42: 17 | DM42: 11 | DO42: 20 | DP42: 14 | DQ42: 10 | DS42: 18 | DT42: 12 | DU42: 10 | DW42: 16 | DX42: 14 | DY42: 11 | EA42: 17 | EB42: 14 | EC42: 11 | EE42: 19 | EF42: 12 | EG42: 9 | EI42: 17 | EJ42: 13 | EK42: 9 | EM42: 15 | EN42: 14 | EO42: 10 | EQ42: 19 | ER42: 17 | ES42: 9 | EU42: 14 | EV42: 13 | EW42: 9 | EY42: 18 | EZ42: 13 | FA42: 9 | FC42: 18 | FD42: 15 | FE42: 9 | FG42: 16 | FH42: 13 | FI42: 9 | FK42: 15 | FL42: 15 | FM42: 13 | FO42: 17 | FP42: 15 | FQ42: 12 | FS42: 13 | FT42: 17 | FU42: 14 | FW42: 15 | FX42: 13 | FY42: 10 | GA42: 18 | GB42: 14 | GC42: 10 | GE42: 17 | GF42: 11 | GG42: 10 | GI42: 6 | GJ42: 16 | GK42: 0 | GM42: 17 | GN42: 15 | GO42: 12 | GQ42: 17 | GR42: 14 | GS42: 11 | GU42: 16 | GV42: 15 | GW42: 10 | GY42: 16 | GZ42: 17 | HA42: 15 | HC42: 16 | HD42: 16 | HE42: 13 | HG42: 20 | HH42: 15 | HI42: 12 | HK42: 2 | HL42: 14 | HM42: 10 | IE42: 13 | IF42: 16 | IG42: 16 | II42: 16 | IJ42: 16 | IK42: 14 | IM42: 19 | IN42: 16 | IO42: 12 | IQ42: 18 | IR42: 15 | IS42: 13 | IU42: 19 | IV42: 18 | IW42: 12
A43: 13 | C43: 0 | D43: 14 | E43: 15 | G43: 19 | H43: 17 | I43: 11 | K43: 17 | L43: 14 | M43: 13 | O43: 17 | P43: 16 | Q43: 11 | S43: 11 | T43: 15 | U43: 13 | W43: 15 | X43: 13 | Y43: 9 | AA43: 17 | AB43: 15 | AC43: 14 | AE43: 16 | AF43: 16 | AG43: 10 | AI43: 16 | AJ43: 16 | AK43: 17 | AM43: 18 | AN43: 13 | AO43: 12 | AQ43: 19 | AR43: 13 | AS43: 13 | AU43: 12 | AV43: 15 | AW43: 13 | AY43: 20 | AZ43: 16 | BA43: 14 | BC43: 17 | BD43: 17 | BE43: 12 | BG43: 9 | BH43: 16 | BI43: 17 | BK43: 15 | BL43: 16 | BM43: 10 | BO43: 14 | BP43: 16 | BQ43: 11 | BS43: 13 | BT43: 15 | BU43: 11 | BW43: 14 | BX43: 15 | BY43: 12 | CA43: 14 | CB43: 15 | CC43: 10 | CE43: 17 | CF43: 15 | CG43: 12 | CI43: 19 | CJ43: 15 | CK43: 11 | CM43: 15 | CN43: 16 | CO43: 9 | CQ43: 10 | CR43: 17 | CS43: 16 | CU43: 10 | CV43: 16 | CW43: 13 | CY43: 18 | CZ43: 16 | DA43: 13 | DC43: 21 | DD43: 16 | DE43: 13 | DG43: 0 | DH43: 17 | DI43: 14 | DK43: 18 | DL43: 17 | DM43: 14 | DO43: 18 | DP43: 15 | DQ43: 8 | DS43: 19 | DT43: 15 | DU43: 11 | DW43: 17 | DX43: 17 | DY43: 11 | EA43: 14 | EB43: 15 | EC43: 11 | EE43: 13 | EF43: 13 | EG43: 9 | EI43: 14 | EJ43: 14 | EK43: 10 | EM43: 18 | EN43: 13 | EO43: 9 | EQ43: 19 | ER43: 15 | ES43: 9 | EU43: 18 | EV43: 13 | EW43: 10 | EY43: 18 | EZ43: 15 | FA43: 10 | FC43: 15 | FD43: 14 | FE43: 11 | FG43: 18 | FH43: 14 | FI43: 10 | FK43: 12 | FL43: 17 | FM43: 12 | FO43: 19 | FP43: 15 | FQ43: 12 | FS43: 13 | FT43: 17 | FU43: 19 | FW43: 17 | FX43: 14 | FY43: 10 | GA43: 16 | GB43: 16 | GC43: 10 | GE43: 15 | GF43: 13 | GG43: 10 | GI43: 4 | GJ43: 15 | GK43: 0 | GM43: 19 | GN43: 13 | GO43: 11 | GQ43: 11 | GR43: 16 | GS43: 8 | GU43: 12 | GV43: 17 | GW43: 13 | GY43: 10 | GZ43: 15 | HA43: 14 | HC43: 16 | HD43: 16 | HE43: 13 | HG43: 16 | HH43: 17 | HI43: 9 | HK43: 0 | HL43: 16 | HM43: 14 | IE43: 8 | IF43: 18 | IG43: 18 | II43: 14 | IJ43: 16 | IK43: 17 | IM43: 16 | IN43: 15 | IO43: 14 | IQ43: 17 | IR43: 17 | IS43: 9 | IU43: 21 | IV43: 16 | IW43: 15
A44: 14 | C44: 0 | D44: 11 | E44: 12 | G44: 18 | H44: 16 | I44: 12 | K44: 20 | L44: 14 | M44: 11 | O44: 17 | P44: 13 | Q44: 11 | S44: 7 | T44: 17 | U44: 11 | W44: 16 | X44: 12 | Y44: 11 | AA44: 17 | AB44: 17 | AC44: 11 | AE44: 15 | AF44: 16 | AG44: 11 | AI44: 11 | AJ44: 16 | AK44: 13 | AM44: 18 | AN44: 15 | AO44: 13 | AQ44: 18 | AR44: 13 | AS44: 15 | AU44: 9 | AV44: 18 | AW44: 13 | AY44: 14 | AZ44: 15 | BA44: 12 | BC44: 16 | BD44: 16 | BE44: 14 | BG44: 5 | BH44: 13 | BI44: 13 | BK44: 12 | BL44: 15 | BM44: 12 | BO44: 11 | BP44: 16 | BQ44: 10 | BS44: 10 | BT44: 16 | BU44: 13 | BW44: 11 | BX44: 18 | BY44: 11 | CA44: 13 | CB44: 16 | CC44: 12 | CE44: 15 | CF44: 16 | CG44: 11 | CI44: 17 | CJ44: 19 | CK44: 13 | CM44: 13 | CN44: 16 | CO44: 12 | CQ44: 6 | CR44: 17 | CS44: 16 | CU44: 7 | CV44: 19 | CW44: 16 | CY44: 18 | CZ44: 18 | DA44: 10 | DC44: 17 | DD44: 14 | DE44: 13 | DG44: 0 | DH44: 12 | DI44: 12 | DK44: 13 | DL44: 15 | DM44: 15 | DO44: 11 | DP44: 17 | DQ44: 9 | DS44: 13 | DT44: 16 | DU44: 12 | DW44: 18 | DX44: 15 | DY44: 12 | EA44: 18 | EB44: 12 | EC44: 10 | EE44: 12 | EF44: 15 | EG44: 10 | EI44: 18 | EJ44: 13 | EK44: 10 | EM44: 14 | EN44: 13 | EO44: 9 | EQ44: 17 | ER44: 14 | ES44: 12 | EU44: 17 | EV44: 13 | EW44: 8 | EY44: 17 | EZ44: 14 | FA44: 10 | FC44: 17 | FD44: 14 | FE44: 9 | FG44: 17 | FH44: 15 | FI44: 8 | FK44: 8 | FL44: 16 | FM44: 14 | FO44: 16 | FP44: 15 | FQ44: 11 | FS44: 6 | FT44: 16 | FU44: 13 | FW44: 19 | FX44: 14 | FY44: 9 | GA44: 16 | GB44: 16 | GC44: 9 | GE44: 15 | GF44: 16 | GG44: 11 | GI44: 2 | GJ44: 13 | GK44: 0 | GM44: 19 | GN44: 17 | GO44: 14 | GQ44: 20 | GR44: 18 | GS44: 10 | GU44: 7 | GV44: 16 | GW44: 14 | GY44: 8 | GZ44: 17 | HA44: 16 | HC44: 15 | HD44: 15 | HE44: 13 | HG44: 12 | HH44: 17 | HI44: 13 | HK44: 0 | HL44: 13 | HM44: 13 | IE44: 8 | IF44: 14 | IG44: 16 | II44: 10 | IJ44: 19 | IK44: 15 | IM44: 11 | IN44: 16 | IO44: 13 | IQ44: 14 | IR44: 16 | IS44: 11 | IU44: 15 | IV44: 17 | IW44: 12
A45: 15 | C45: 0 | D45: 12 | E45: 15 | G45: 15 | H45: 16 | I45: 12 | K45: 18 | L45: 11 | M45: 14 | O45: 16 | P45: 14 | Q45: 8 | S45: 2 | T45: 15 | U45: 11 | W45: 17 | X45: 14 | Y45: 10 | AA45: 16 | AB45: 15 | AC45: 11 | AE45: 13 | AF45: 14 | AG45: 10 | AI45: 8 | AJ45: 17 | AK45: 17 | AM45: 11 | AN45: 17 | AO45: 11 | AQ45: 19 | AR45: 13 | AS45: 15 | AU45: 5 | AV45: 16 | AW45: 12 | AY45: 15 | AZ45: 17 | BA45: 11 | BC45: 14 | BD45: 17 | BE45: 13 | BG45: 6 | BH45: 11 | BI45: 13 | BK45: 8 | BL45: 17 | BM45: 11 | BO45: 9 | BP45: 15 | BQ45: 12 | BS45: 6 | BT45: 16 | BU45: 15 | BW45: 8 | BX45: 16 | BY45: 14 | CA45: 11 | CB45: 15 | CC45: 10 | CE45: 14 | CF45: 18 | CG45: 11 | CI45: 16 | CJ45: 18 | CK45: 13 | CM45: 13 | CN45: 16 | CO45: 12 | CQ45: 4 | CR45: 15 | CS45: 16 | CU45: 3 | CV45: 13 | CW45: 16 | CY45: 15 | CZ45: 15 | DA45: 10 | DC45: 19 | DD45: 16 | DE45: 10 | DG45: 0 | DH45: 9 | DI45: 16 | DK45: 13 | DL45: 17 | DM45: 18 | DO45: 10 | DP45: 16 | DQ45: 11 | DS45: 10 | DT45: 16 | DU45: 8 | DW45: 17 | DX45: 16 | DY45: 12 | EA45: 16 | EB45: 14 | EC45: 9 | EE45: 9 | EF45: 16 | EG45: 11 | EI45: 17 | EJ45: 12 | EK45: 8 | EM45: 14 | EN45: 11 | EO45: 12 | EQ45: 15 | ER45: 15 | ES45: 10 | EU45: 19 | EV45: 14 | EW45: 10 | EY45: 14 | EZ45: 14 | FA45: 10 | FC45: 11 | FD45: 16 | FE45: 11 | FG45: 17 | FH45: 12 | FI45: 10 | FK45: 4 | FL45: 15 | FM45: 15 | FO45: 16 | FP45: 14 | FQ45: 10 | FS45: 6 | FT45: 12 | FU45: 15 | FW45: 18 | FX45: 13 | FY45: 9 | GA45: 11 | GB45: 16 | GC45: 11 | GE45: 9 | GF45: 14 | GG45: 11 | GI45: 1 | GJ45: 13 | GK45: 0 | GM45: 14 | GN45: 18 | GO45: 12 | GQ45: 22 | GR45: 15 | GS45: 14 | GU45: 4 | GV45: 15 | GW45: 12 | GY45: 4 | GZ45: 17 | HA45: 17 | HC45: 12 | HD45: 18 | HE45: 13 | HG45: 7 | HH45: 17 | HI45: 13 | HK45: 0 | HL45: 15 | HM45: 13 | IE45: 5 | IF45: 13 | IG45: 15 | II45: 5 | IJ45: 14 | IK45: 15 | IM45: 5 | IN45: 18 | IO45: 13 | IQ45: 11 | IR45: 16 | IS45: 12 | IU45: 14 | IV45: 18 | IW45: 12
A46: 16 | C46: 0 | D46: 6 | E46: 13 | G46: 11 | H46: 16 | I46: 12 | K46: 20 | L46: 13 | M46: 12 | O46: 17 | P46: 14 | Q46: 11 | S46: 0 | T46: 14 | U46: 15 | W46: 18 | X46: 15 | Y46: 9 | AA46: 15 | AB46: 15 | AC46: 11 | AE46: 8 | AF46: 16 | AG46: 12 | AI46: 6 | AJ46: 12 | AK46: 15 | AM46: 8 | AN46: 17 | AO46: 12 | AQ46: 20 | AR46: 14 | AS46: 12 | AU46: 3 | AV46: 16 | AW46: 13 | AY46: 12 | AZ46: 15 | BA46: 11 | BC46: 9 | BD46: 20 | BE46: 12 | BG46: 3 | BH46: 9 | BI46: 16 | BK46: 4 | BL46: 16 | BM46: 12 | BO46: 7 | BP46: 15 | BQ46: 10 | BS46: 5 | BT46: 15 | BU46: 14 | BW46: 4 | BX46: 14 | BY46: 16 | CA46: 7 | CB46: 16 | CC46: 11 | CE46: 10 | CF46: 15 | CG46: 10 | CI46: 14 | CJ46: 16 | CK46: 12 | CM46: 8 | CN46: 16 | CO46: 12 | CQ46: 0 | CR46: 12 | CS46: 16 | CU46: 1 | CV46: 12 | CW46: 16 | CY46: 14 | CZ46: 17 | DA46: 13 | DC46: 17 | DD46: 17 | DE46: 11 | DG46: 0 | DH46: 5 | DI46: 16 | DK46: 9 | DL46: 17 | DM46: 15 | DO46: 5 | DP46: 19 | DQ46: 11 | DS46: 5 | DT46: 14 | DU46: 13 | DW46: 13 | DX46: 15 | DY46: 15 | EA46: 19 | EB46: 13 | EC46: 10 | EE46: 4 | EF46: 15 | EG46: 13 | EI46: 13 | EJ46: 14 | EK46: 11 | EM46: 12 | EN46: 13 | EO46: 7 | EQ46: 13 | ER46: 15 | ES46: 12 | EU46: 13 | EV46: 12 | EW46: 8 | EY46: 11 | EZ46: 19 | FA46: 11 | FC46: 8 | FD46: 14 | FE46: 9 | FG46: 16 | FH46: 15 | FI46: 11 | FK46: 1 | FL46: 15 | FM46: 16 | FO46: 12 | FP46: 16 | FQ46: 11 | FS46: 3 | FT46: 11 | FU46: 15 | FW46: 14 | FX46: 15 | FY46: 11 | GA46: 4 | GB46: 16 | GC46: 11 | GE46: 4 | GF46: 16 | GG46: 11 | GI46: 0 | GJ46: 9 | GK46: 0 | GM46: 12 | GN46: 17 | GO46: 14 | GQ46: 16 | GR46: 19 | GS46: 15 | GU46: 1 | GV46: 15 | GW46: 13 | GY46: 1 | GZ46: 12 | HA46: 15 | HC46: 7 | HD46: 15 | HE46: 12 | HG46: 3 | HH46: 16 | HI46: 15 | HK46: 0 | HL46: 12 | HM46: 13 | IE46: 3 | IF46: 11 | IG46: 15 | II46: 3 | IJ46: 13 | IK46: 14 | IM46: 3 | IN46: 18 | IO46: 14 | IQ46: 11 | IR46: 16 | IS46: 12 | IU46: 10 | IV46: 15 | IW46: 16
A47: 17 | C47: 0 | D47: 5 | E47: 15 | G47: 10 | H47: 17 | I47: 14 | K47: 17 | L47: 18 | M47: 10 | O47: 13 | P47: 14 | Q47: 11 | S47: 0 | T47: 13 | U47: 12 | W47: 16 | X47: 12 | Y47: 11 | AA47: 9 | AB47: 18 | AC47: 11 | AE47: 5 | AF47: 16 | AG47: 15 | AI47: 4 | AJ47: 11 | AK47: 14 | AM47: 2 | AN47: 14 | AO47: 12 | AQ47: 17 | AR47: 17 | AS47: 12 | AU47: 1 | AV47: 16 | AW47: 15 | AY47: 9 | AZ47: 18 | BA47: 11 | BC47: 5 | BD47: 16 | BE47: 11 | BG47: 1 | BH47: 8 | BI47: 14 | BK47: 2 | BL47: 13 | BM47: 16 | BO47: 4 | BP47: 16 | BQ47: 12 | BS47: 1 | BT47: 13 | BU47: 13 | BW47: 1 | BX47: 15 | BY47: 16 | CA47: 5 | CB47: 17 | CC47: 14 | CE47: 8 | CF47: 14 | CG47: 13 | CI47: 10 | CJ47: 16 | CK47: 10 | CM47: 5 | CN47: 15 | CO47: 15 | CQ47: 0 | CR47: 11 | CS47: 15 | CU47: 0 | CV47: 14 | CW47: 14 | CY47: 9 | CZ47: 15 | DA47: 14 | DC47: 13 | DD47: 18 | DE47: 16 | DG47: 0 | DH47: 1 | DI47: 14 | DK47: 6 | DL47: 14 | DM47: 16 | DO47: 2 | DP47: 16 | DQ47: 11 | DS47: 2 | DT47: 16 | DU47: 12 | DW47: 14 | DX47: 15 | DY47: 15 | EA47: 15 | EB47: 13 | EC47: 12 | EE47: 3 | EF47: 14 | EG47: 14 | EI47: 10 | EJ47: 17 | EK47: 10 | EM47: 8 | EN47: 14 | EO47: 10 | EQ47: 8 | ER47: 18 | ES47: 12 | EU47: 8 | EV47: 16 | EW47: 11 | EY47: 8 | EZ47: 15 | FA47: 13 | FC47: 3 | FD47: 14 | FE47: 9 | FG47: 14 | FH47: 16 | FI47: 10 | FK47: 1 | FL47: 14 | FM47: 13 | FO47: 8 | FP47: 16 | FQ47: 11 | FS47: 2 | FT47: 11 | FU47: 12 | FW47: 10 | FX47: 17 | FY47: 11 | GA47: 2 | GB47: 14 | GC47: 15 | GE47: 2 | GF47: 15 | GG47: 13 | GI47: 0 | GJ47: 6 | GK47: 0 | GM47: 6 | GN47: 18 | GO47: 13 | GQ47: 9 | GR47: 16 | GS47: 14 | GU47: 0 | GV47: 13 | GW47: 16 | GY47: 1 | GZ47: 12 | HA47: 13 | HC47: 4 | HD47: 17 | HE47: 13 | HG47: 1 | HH47: 17 | HI47: 14 | HK47: 0 | HL47: 9 | HM47: 12 | IE47: 2 | IF47: 8 | IG47: 13 | II47: 1 | IJ47: 12 | IK47: 17 | IM47: 1 | IN47: 13 | IO47: 14 | IQ47: 5 | IR47: 16 | IS47: 13 | IU47: 7 | IV47: 17 | IW47: 16
A48: 18 | C48: 0 | D48: 3 | E48: 11 | G48: 6 | H48: 16 | I48: 16 | K48: 18 | L48: 16 | M48: 13 | O48: 8 | P48: 17 | Q48: 13 | S48: 0 | T48: 12 | U48: 12 | W48: 15 | X48: 16 | Y48: 11 | AA48: 7 | AB48: 17 | AC48: 10 | AE48: 3 | AF48: 14 | AG48: 15 | AI48: 3 | AJ48: 10 | AK48: 15 | AM48: 1 | AN48: 15 | AO48: 13 | AQ48: 12 | AR48: 16 | AS48: 12 | AU48: 0 | AV48: 14 | AW48: 15 | AY48: 6 | AZ48: 16 | BA48: 13 | BC48: 3 | BD48: 17 | BE48: 15 | BG48: 2 | BH48: 4 | BI48: 11 | BK48: 0 | BL48: 14 | BM48: 15 | BO48: 2 | BP48: 15 | BQ48: 15 | BS48: 1 | BT48: 10 | BU48: 14 | BW48: 0 | BX48: 10 | BY48: 13 | CA48: 2 | CB48: 14 | CC48: 16 | CE48: 3 | CF48: 16 | CG48: 13 | CI48: 8 | CJ48: 17 | CK48: 14 | CM48: 2 | CN48: 15 | CO48: 13 | CQ48: 0 | CR48: 10 | CS48: 14 | CU48: 0 | CV48: 9 | CW48: 16 | CY48: 5 | CZ48: 17 | DA48: 15 | DC48: 11 | DD48: 15 | DE48: 12 | DG48: 0 | DH48: 0 | DI48: 13 | DK48: 4 | DL48: 12 | DM48: 14 | DO48: 1 | DP48: 16 | DQ48: 13 | DS48: 1 | DT48: 12 | DU48: 14 | DW48: 8 | DX48: 16 | DY48: 15 | EA48: 10 | EB48: 19 | EC48: 11 | EE48: 1 | EF48: 13 | EG48: 15 | EI48: 3 | EJ48: 15 | EK48: 13 | EM48: 4 | EN48: 16 | EO48: 11 | EQ48: 3 | ER48: 14 | ES48: 12 | EU48: 3 | EV48: 14 | EW48: 12 | EY48: 3 | EZ48: 14 | FA48: 14 | FC48: 1 | FD48: 15 | FE48: 13 | FG48: 10 | FH48: 17 | FI48: 14 | FK48: 0 | FL48: 10 | FM48: 14 | FO48: 6 | FP48: 15 | FQ48: 14 | FS48: 0 | FT48: 8 | FU48: 14 | FW48: 8 | FX48: 14 | FY48: 12 | GA48: 1 | GB48: 14 | GC48: 14 | GE48: 0 | GF48: 16 | GG48: 14 | GI48: 0 | GJ48: 5 | GK48: 0 | GM48: 3 | GN48: 17 | GO48: 13 | GQ48: 8 | GR48: 17 | GS48: 12 | GU48: 0 | GV48: 12 | GW48: 16 | GY48: 0 | GZ48: 9 | HA48: 14 | HC48: 1 | HD48: 15 | HE48: 16 | HG48: 0 | HH48: 13 | HI48: 13 | HK48: 0 | HL48: 5 | HM48: 14 | IE48: 1 | IF48: 6 | IG48: 14 | II48: 0 | IJ48: 11 | IK48: 14 | IM48: 0 | IN48: 14 | IO48: 15 | IQ48: 1 | IR48: 16 | IS48: 14 | IU48: 5 | IV48: 12 | IW48: 15
A49: 19 | C49: 0 | D49: 2 | E49: 13 | G49: 3 | H49: 10 | I49: 14 | K49: 12 | L49: 18 | M49: 13 | O49: 5 | P49: 15 | Q49: 12 | S49: 0 | T49: 9 | U49: 12 | W49: 13 | X49: 16 | Y49: 13 | AA49: 4 | AB49: 16 | AC49: 12 | AE49: 0 | AF49: 12 | AG49: 13 | AI49: 2 | AJ49: 9 | AK49: 16 | AM49: 0 | AN49: 16 | AO49: 14 | AQ49: 7 | AR49: 18 | AS49: 10 | AU49: 0 | AV49: 9 | AW49: 14 | AY49: 4 | AZ49: 16 | BA49: 15 | BC49: 2 | BD49: 14 | BE49: 16 | BG49: 0 | BH49: 5 | BI49: 9 | BK49: 0 | BL49: 11 | BM49: 13 | BO49: 0 | BP49: 14 | BQ49: 15 | BS49: 0 | BT49: 9 | BU49: 12 | BW49: 0 | BX49: 11 | BY49: 14 | CA49: 1 | CB49: 13 | CC49: 13 | CE49: 3 | CF49: 16 | CG49: 16 | CI49: 4 | CJ49: 16 | CK49: 16 | CM49: 0 | CN49: 14 | CO49: 15 | CQ49: 0 | CR49: 6 | CS49: 13 | CU49: 0 | CV49: 5 | CW49: 13 | CY49: 2 | CZ49: 13 | DA49: 15 | DC49: 7 | DD49: 17 | DE49: 14 | DG49: 0 | DH49: 0 | DI49: 12 | DK49: 2 | DL49: 10 | DM49: 15 | DO49: 0 | DP49: 15 | DQ49: 18 | DS49: 0 | DT49: 13 | DU49: 13 | DW49: 5 | DX49: 13 | DY49: 14 | EA49: 8 | EB49: 14 | EC49: 13 | EE49: 0 | EF49: 10 | EG49: 12 | EI49: 2 | EJ49: 16 | EK49: 12 | EM49: 2 | EN49: 14 | EO49: 14 | EQ49: 2 | ER49: 13 | ES49: 15 | EU49: 1 | EV49: 15 | EW49: 14 | EY49: 1 | EZ49: 12 | FA49: 13 | FC49: 0 | FD49: 15 | FE49: 14 | FG49: 6 | FH49: 14 | FI49: 12 | FK49: 0 | FL49: 6 | FM49: 14 | FO49: 2 | FP49: 13 | FQ49: 14 | FS49: 0 | FT49: 6 | FU49: 16 | FW49: 4 | FX49: 14 | FY49: 12 | GA49: 0 | GB49: 12 | GC49: 13 | GE49: 0 | GF49: 13 | GG49: 13 | GI49: 0 | GJ49: 2 | GK49: 0 | GM49: 0 | GN49: 18 | GO49: 12 | GQ49: 6 | GR49: 15 | GS49: 15 | GU49: 0 | GV49: 8 | GW49: 15 | GY49: 0 | GZ49: 7 | HA49: 15 | HC49: 1 | HD49: 13 | HE49: 13 | HG49: 0 | HH49: 11 | HI49: 15 | HK49: 0 | HL49: 3 | HM49: 13 | IE49: 0 | IF49: 5 | IG49: 12 | II49: 0 | IJ49: 8 | IK49: 13 | IM49: 0 | IN49: 10 | IO49: 14 | IQ49: 1 | IR49: 12 | IS49: 15 | IU49: 2 | IV49: 12 | IW49: 15
A50: 20 | C50: 0 | D50: 0 | E50: 8 | G50: 0 | H50: 12 | I50: 13 | K50: 8 | L50: 16 | M50: 12 | O50: 2 | P50: 15 | Q50: 14 | S50: 0 | T50: 4 | U50: 13 | W50: 13 | X50: 15 | Y50: 12 | AA50: 1 | AB50: 14 | AC50: 15 | AE50: 0 | AF50: 11 | AG50: 14 | AI50: 0 | AJ50: 6 | AK50: 13 | AM50: 0 | AN50: 12 | AO50: 14 | AQ50: 3 | AR50: 13 | AS50: 13 | AU50: 0 | AV50: 9 | AW50: 16 | AY50: 1 | AZ50: 14 | BA50: 14 | BC50: 0 | BD50: 10 | BE50: 13 | BG50: 0 | BH50: 4 | BI50: 9 | BK50: 0 | BL50: 10 | BM50: 12 | BO50: 0 | BP50: 11 | BQ50: 13 | BS50: 0 | BT50: 8 | BU50: 13 | BW50: 0 | BX50: 8 | BY50: 13 | CA50: 0 | CB50: 11 | CC50: 14 | CE50: 0 | CF50: 12 | CG50: 14 | CI50: 2 | CJ50: 12 | CK50: 17 | CM50: 0 | CN50: 11 | CO50: 14 | CQ50: 0 | CR50: 5 | CS50: 14 | CU50: 0 | CV50: 4 | CW50: 11 | CY50: 0 | CZ50: 13 | DA50: 14 | DC50: 4 | DD50: 15 | DE50: 16 | DG50: 0 | DH50: 0 | DI50: 11 | DK50: 2 | DL50: 9 | DM50: 15 | DO50: 0 | DP50: 14 | DQ50: 14 | DS50: 0 | DT50: 10 | DU50: 13 | DW50: 2 | DX50: 13 | DY50: 15 | EA50: 4 | EB50: 14 | EC50: 14 | EE50: 0 | EF50: 11 | EG50: 14 | EI50: 1 | EJ50: 14 | EK50: 13 | EM50: 1 | EN50: 14 | EO50: 11 | EQ50: 1 | ER50: 14 | ES50: 15 | EU50: 0 | EV50: 16 | EW50: 12 | EY50: 0 | EZ50: 13 | FA50: 14 | FC50: 0 | FD50: 13 | FE50: 15 | FG50: 2 | FH50: 13 | FI50: 14 | FK50: 0 | FL50: 4 | FM50: 14 | FO50: 1 | FP50: 13 | FQ50: 15 | FS50: 0 | FT50: 4 | FU50: 14 | FW50: 1 | FX50: 12 | FY50: 13 | GA50: 0 | GB50: 8 | GC50: 13 | GE50: 0 | GF50: 10 | GG50: 15 | GI50: 0 | GJ50: 1 | GK50: 0 | GM50: 0 | GN50: 16 | GO50: 14 | GQ50: 4 | GR50: 13 | GS50: 16 | GU50: 0 | GV50: 5 | GW50: 14 | GY50: 0 | GZ50: 5 | HA50: 11 | HC50: 0 | HD50: 9 | HE50: 14 | HG50: 0 | HH50: 10 | HI50: 16 | HK50: 0 | HL50: 0 | HM50: 12 | IE50: 0 | IF50: 4 | IG50: 10 | II50: 0 | IJ50: 4 | IK50: 12 | IM50: 0 | IN50: 9 | IO50: 14 | IQ50: 0 | IR50: 13 | IS50: 13 | IU50: 3 | IV50: 11 | IW50: 14
A51: 21 | C51: 0 | D51: 0 | E51: 9 | G51: 0 | H51: 10 | I51: 14 | K51: 5 | L51: 15 | M51: 13 | O51: 1 | P51: 13 | Q51: 14 | S51: 0 | T51: 3 | U51: 12 | W51: 6 | X51: 13 | Y51: 14 | AA51: 1 | AB51: 12 | AC51: 15 | AE51: 0 | AF51: 9 | AG51: 13 | AI51: 1 | AJ51: 6 | AK51: 11 | AM51: 0 | AN51: 12 | AO51: 15 | AQ51: 1 | AR51: 15 | AS51: 15 | AU51: 0 | AV51: 5 | AW51: 13 | AY51: 1 | AZ51: 12 | BA51: 15 | BC51: 0 | BD51: 8 | BE51: 16 | BG51: 0 | BH51: 2 | BI51: 7 | BK51: 0 | BL51: 9 | BM51: 15 | BO51: 0 | BP51: 8 | BQ51: 13 | BS51: 0 | BT51: 4 | BU51: 10 | BW51: 0 | BX51: 7 | BY51: 12 | CA51: 0 | CB51: 8 | CC51: 13 | CE51: 0 | CF51: 8 | CG51: 13 | CI51: 0 | CJ51: 11 | CK51: 13 | CM51: 0 | CN51: 9 | CO51: 15 | CQ51: 0 | CR51: 3 | CS51: 10 | CU51: 0 | CV51: 3 | CW51: 13 | CY51: 0 | CZ51: 11 | DA51: 13 | DC51: 4 | DD51: 11 | DE51: 14 | DG51: 0 | DH51: 0 | DI51: 12 | DK51: 0 | DL51: 6 | DM51: 11 | DO51: 0 | DP51: 13 | DQ51: 14 | DS51: 0 | DT51: 8 | DU51: 12 | DW51: 0 | DX51: 11 | DY51: 13 | EA51: 2 | EB51: 13 | EC51: 13 | EE51: 0 | EF51: 8 | EG51: 12 | EI51: 0 | EJ51: 14 | EK51: 16 | EM51: 1 | EN51: 14 | EO51: 13 | EQ51: 0 | ER51: 12 | ES51: 15 | EU51: 0 | EV51: 11 | EW51: 14 | EY51: 0 | EZ51: 9 | FA51: 13 | FC51: 0 | FD51: 10 | FE51: 15 | FG51: 1 | FH51: 12 | FI51: 15 | FK51: 0 | FL51: 3 | FM51: 12 | FO51: 0 | FP51: 9 | FQ51: 11 | FS51: 0 | FT51: 2 | FU51: 13 | FW51: 1 | FX51: 14 | FY51: 13 | GA51: 0 | GB51: 6 | GC51: 12 | GE51: 0 | GF51: 7 | GG51: 13 | GI51: 0 | GJ51: 0 | GK51: 0 | GM51: 0 | GN51: 11 | GO51: 15 | GQ51: 1 | GR51: 12 | GS51: 13 | GU51: 0 | GV51: 4 | GW51: 13 | GY51: 0 | GZ51: 4 | HA51: 12 | HC51: 0 | HD51: 8 | HE51: 14 | HG51: 0 | HH51: 4 | HI51: 13 | HK51: 0 | HL51: 0 | HM51: 12 | IE51: 0 | IF51: 2 | IG51: 9 | II51: 0 | IJ51: 3 | IK51: 13 | IM51: 0 | IN51: 5 | IO51: 13 | IQ51: 0 | IR51: 8 | IS51: 14 | IU51: 0 | IV51: 7 | IW51: 15
A52: 22 | C52: 0 | D52: 0 | E52: 10 | G52: 0 | H52: 7 | I52: 12 | K52: 2 | L52: 16 | M52: 14 | O52: 0 | P52: 12 | Q52: 14 | S52: 0 | T52: 1 | U52: 13 | W52: 4 | X52: 12 | Y52: 13 | AA52: 0 | AB52: 9 | AC52: 14 | AE52: 0 | AF52: 8 | AG52: 16 | AI52: 0 | AJ52: 4 | AK52: 10 | AM52: 0 | AN52: 8 | AO52: 14 | AQ52: 1 | AR52: 14 | AS52: 14 | AU52: 0 | AV52: 2 | AW52: 13 | AY52: 0 | AZ52: 8 | BA52: 14 | BC52: 0 | BD52: 6 | BE52: 14 | BG52: 0 | BH52: 1 | BI52: 8 | BK52: 0 | BL52: 4 | BM52: 14 | BO52: 0 | BP52: 7 | BQ52: 11 | BS52: 0 | BT52: 4 | BU52: 11 | BW52: 0 | BX52: 5 | BY52: 16 | CA52: 0 | CB52: 7 | CC52: 13 | CE52: 0 | CF52: 8 | CG52: 12 | CI52: 0 | CJ52: 9 | CK52: 15 | CM52: 0 | CN52: 6 | CO52: 13 | CQ52: 0 | CR52: 2 | CS52: 11 | CU52: 0 | CV52: 1 | CW52: 11 | CY52: 0 | CZ52: 7 | DA52: 14 | DC52: 1 | DD52: 11 | DE52: 14 | DG52: 0 | DH52: 0 | DI52: 8 | DK52: 0 | DL52: 4 | DM52: 12 | DO52: 0 | DP52: 9 | DQ52: 14 | DS52: 0 | DT52: 4 | DU52: 14 | DW52: 1 | DX52: 9 | DY52: 13 | EA52: 1 | EB52: 13 | EC52: 14 | EE52: 0 | EF52: 5 | EG52: 13 | EI52: 0 | EJ52: 10 | EK52: 15 | EM52: 0 | EN52: 12 | EO52: 11 | EQ52: 0 | ER52: 9 | ES52: 12 | EU52: 0 | EV52: 10 | EW52: 13 | EY52: 0 | EZ52: 8 | FA52: 14 | FC52: 0 | FD52: 6 | FE52: 12 | FG52: 0 | FH52: 10 | FI52: 12 | FK52: 0 | FL52: 1 | FM52: 11 | FO52: 0 | FP52: 10 | FQ52: 14 | FS52: 0 | FT52: 1 | FU52: 10 | FW52: 0 | FX52: 11 | FY52: 11 | GA52: 0 | GB52: 4 | GC52: 14 | GE52: 0 | GF52: 4 | GG52: 13 | GI52: 0 | GJ52: 0 | GK52: 0 | GM52: 0 | GN52: 7 | GO52: 17 | GQ52: 1 | GR52: 9 | GS52: 15 | GU52: 0 | GV52: 3 | GW52: 11 | GY52: 0 | GZ52: 2 | HA52: 9 | HC52: 0 | HD52: 4 | HE52: 13 | HG52: 0 | HH52: 3 | HI52: 13 | HK52: 0 | HL52: 0 | HM52: 12 | IE52: 0 | IF52: 1 | IG52: 7 | II52: 0 | IJ52: 3 | IK52: 10 | IM52: 0 | IN52: 3 | IO52: 12 | IQ52: 0 | IR52: 7 | IS52: 13 | IU52: 0 | IV52: 6 | IW52: 12
A53: 23 | C53: 0 | D53: 0 | E53: 5 | G53: 0 | H53: 5 | I53: 14 | K53: 0 | L53: 14 | M53: 15 | O53: 0 | P53: 7 | Q53: 15 | S53: 0 | T53: 0 | U53: 11 | W53: 2 | X53: 13 | Y53: 13 | AA53: 0 | AB53: 8 | AC53: 13 | AE53: 0 | AF53: 5 | AG53: 12 | AI53: 0 | AJ53: 2 | AK53: 11 | AM53: 0 | AN53: 4 | AO53: 13 | AQ53: 0 | AR53: 13 | AS53: 15 | AU53: 0 | AV53: 1 | AW53: 13 | AY53: 0 | AZ53: 7 | BA53: 13 | BC53: 0 | BD53: 5 | BE53: 14 | BG53: 0 | BH53: 1 | BI53: 4 | BK53: 0 | BL53: 4 | BM53: 13 | BO53: 0 | BP53: 5 | BQ53: 13 | BS53: 0 | BT53: 2 | BU53: 10 | BW53: 0 | BX53: 2 | BY53: 10 | CA53: 0 | CB53: 5 | CC53: 12 | CE53: 0 | CF53: 5 | CG53: 13 | CI53: 0 | CJ53: 6 | CK53: 12 | CM53: 0 | CN53: 5 | CO53: 13 | CQ53: 0 | CR53: 0 | CS53: 10 | CU53: 0 | CV53: 0 | CW53: 9 | CY53: 0 | CZ53: 5 | DA53: 13 | DC53: 0 | DD53: 8 | DE53: 15 | DG53: 0 | DH53: 0 | DI53: 8 | DK53: 0 | DL53: 5 | DM53: 10 | DO53: 0 | DP53: 6 | DQ53: 15 | DS53: 0 | DT53: 3 | DU53: 13 | DW53: 0 | DX53: 6 | DY53: 14 | EA53: 0 | EB53: 11 | EC53: 13 | EE53: 0 | EF53: 4 | EG53: 12 | EI53: 0 | EJ53: 7 | EK53: 16 | EM53: 0 | EN53: 8 | EO53: 14 | EQ53: 0 | ER53: 6 | ES53: 12 | EU53: 0 | EV53: 6 | EW53: 13 | EY53: 0 | EZ53: 5 | FA53: 15 | FC53: 0 | FD53: 5 | FE53: 14 | FG53: 0 | FH53: 10 | FI53: 13 | FK53: 0 | FL53: 1 | FM53: 11 | FO53: 0 | FP53: 6 | FQ53: 15 | FS53: 0 | FT53: 0 | FU53: 8 | FW53: 0 | FX53: 8 | FY53: 14 | GA53: 0 | GB53: 1 | GC53: 13 | GE53: 0 | GF53: 2 | GG53: 15 | GI53: 0 | GJ53: 0 | GK53: 0 | GM53: 0 | GN53: 5 | GO53: 13 | GQ53: 0 | GR53: 5 | GS53: 13 | GU53: 0 | GV53: 0 | GW53: 11 | GY53: 0 | GZ53: 0 | HA53: 10 | HC53: 0 | HD53: 5 | HE53: 14 | HG53: 0 | HH53: 1 | HI53: 11 | HK53: 0 | HL53: 0 | HM53: 10 | IE53: 0 | IF53: 0 | IG53: 5 | II53: 0 | IJ53: 0 | IK53: 9 | IM53: 0 | IN53: 2 | IO53: 12 | IQ53: 0 | IR53: 5 | IS53: 13 | IU53: 0 | IV53: 5 | IW53: 11
A54: 24 | C54: 0 | D54: 0 | E54: 5 | G54: 0 | H54: 3 | I54: 10 | K54: 0 | L54: 12 | M54: 16 | O54: 0 | P54: 6 | Q54: 16 | S54: 0 | T54: 0 | U54: 11 | W54: 1 | X54: 12 | Y54: 10 | AA54: 0 | AB54: 6 | AC54: 15 | AE54: 0 | AF54: 3 | AG54: 11 | AI54: 0 | AJ54: 1 | AK54: 6 | AM54: 0 | AN54: 2 | AO54: 13 | AQ54: 0 | AR54: 12 | AS54: 16 | AU54: 0 | AV54: 0 | AW54: 12 | AY54: 0 | AZ54: 5 | BA54: 14 | BC54: 0 | BD54: 3 | BE54: 13 | BG54: 0 | BH54: 0 | BI54: 4 | BK54: 0 | BL54: 2 | BM54: 9 | BO54: 0 | BP54: 4 | BQ54: 13 | BS54: 0 | BT54: 1 | BU54: 9 | BW54: 0 | BX54: 1 | BY54: 12 | CA54: 0 | CB54: 4 | CC54: 12 | CE54: 0 | CF54: 6 | CG54: 11 | CI54: 0 | CJ54: 6 | CK54: 14 | CM54: 0 | CN54: 2 | CO54: 10 | CQ54: 0 | CR54: 0 | CS54: 7 | CU54: 0 | CV54: 0 | CW54: 10 | CY54: 0 | CZ54: 4 | DA54: 11 | DC54: 0 | DD54: 4 | DE54: 12 | DG54: 0 | DH54: 0 | DI54: 6 | DK54: 0 | DL54: 2 | DM54: 10 | DO54: 0 | DP54: 3 | DQ54: 12 | DS54: 0 | DT54: 1 | DU54: 11 | DW54: 0 | DX54: 5 | DY54: 12 | EA54: 0 | EB54: 8 | EC54: 14 | EE54: 0 | EF54: 2 | EG54: 13 | EI54: 0 | EJ54: 4 | EK54: 13 | EM54: 0 | EN54: 5 | EO54: 14 | EQ54: 0 | ER54: 3 | ES54: 14 | EU54: 0 | EV54: 4 | EW54: 13 | EY54: 0 | EZ54: 2 | FA54: 15 | FC54: 0 | FD54: 2 | FE54: 13 | FG54: 0 | FH54: 5 | FI54: 13 | FK54: 0 | FL54: 0 | FM54: 9 | FO54: 0 | FP54: 4 | FQ54: 14 | FS54: 0 | FT54: 0 | FU54: 8 | FW54: 0 | FX54: 4 | FY54: 14 | GA54: 0 | GB54: 1 | GC54: 11 | GE54: 0 | GF54: 1 | GG54: 11 | GI54: 0 | GJ54: 0 | GK54: 0 | GM54: 0 | GN54: 1 | GO54: 12 | GQ54: 0 | GR54: 5 | GS54: 14 | GU54: 0 | GV54: 0 | GW54: 9 | GY54: 0 | GZ54: 0 | HA54: 8 | HC54: 0 | HD54: 2 | HE54: 12 | HG54: 0 | HH54: 0 | HI54: 10 | HK54: 0 | HL54: 0 | HM54: 8 | IE54: 0 | IF54: 0 | IG54: 5 | II54: 0 | IJ54: 0 | IK54: 7 | IM54: 0 | IN54: 0 | IO54: 12 | IQ54: 0 | IR54: 5 | IS54: 12 | IU54: 0 | IV54: 2 | IW54: 10
A55: 25 | C55: 0 | D55: 0 | E55: 4 | G55: 0 | H55: 2 | I55: 11 | K55: 0 | L55: 6 | M55: 13 | O55: 0 | P55: 3 | Q55: 13 | S55: 0 | T55: 0 | U55: 9 | W55: 0 | X55: 9 | Y55: 15 | AA55: 0 | AB55: 5 | AC55: 13 | AE55: 0 | AF55: 2 | AG55: 11 | AI55: 0 | AJ55: 1 | AK55: 7 | AM55: 0 | AN55: 0 | AO55: 10 | AQ55: 0 | AR55: 9 | AS55: 13 | AU55: 0 | AV55: 0 | AW55: 10 | AY55: 0 | AZ55: 4 | BA55: 14 | BC55: 0 | BD55: 2 | BE55: 10 | BG55: 0 | BH55: 0 | BI55: 2 | BK55: 0 | BL55: 0 | BM55: 9 | BO55: 0 | BP55: 1 | BQ55: 12 | BS55: 0 | BT55: 1 | BU55: 8 | BW55: 0 | BX55: 0 | BY55: 8 | CA55: 0 | CB55: 2 | CC55: 13 | CE55: 0 | CF55: 2 | CG55: 15 | CI55: 0 | CJ55: 3 | CK55: 13 | CM55: 0 | CN55: 1 | CO55: 11 | CQ55: 0 | CR55: 0 | CS55: 6 | CU55: 0 | CV55: 0 | CW55: 6 | CY55: 0 | CZ55: 3 | DA55: 12 | DC55: 0 | DD55: 5 | DE55: 11 | DG55: 0 | DH55: 0 | DI55: 3 | DK55: 0 | DL55: 1 | DM55: 6 | DO55: 0 | DP55: 2 | DQ55: 13 | DS55: 0 | DT55: 1 | DU55: 11 | DW55: 0 | DX55: 2 | DY55: 10 | EA55: 0 | EB55: 4 | EC55: 12 | EE55: 0 | EF55: 0 | EG55: 10 | EI55: 0 | EJ55: 3 | EK55: 14 | EM55: 0 | EN55: 3 | EO55: 13 | EQ55: 0 | ER55: 3 | ES55: 13 | EU55: 0 | EV55: 4 | EW55: 12 | EY55: 0 | EZ55: 2 | FA55: 10 | FC55: 0 | FD55: 0 | FE55: 12 | FG55: 0 | FH55: 4 | FI55: 14 | FK55: 0 | FL55: 0 | FM55: 9 | FO55: 0 | FP55: 2 | FQ55: 12 | FS55: 0 | FT55: 0 | FU55: 6 | FW55: 0 | FX55: 3 | FY55: 12 | GA55: 0 | GB55: 0 | GC55: 10 | GE55: 0 | GF55: 0 | GG55: 10 | GI55: 0 | GJ55: 0 | GK55: 0 | GM55: 0 | GN55: 0 | GO55: 14 | GQ55: 0 | GR55: 4 | GS55: 15 | GU55: 0 | GV55: 0 | GW55: 9 | GY55: 0 | GZ55: 0 | HA55: 9 | HC55: 0 | HD55: 1 | HE55: 12 | HG55: 0 | HH55: 0 | HI55: 11 | HK55: 0 | HL55: 0 | HM55: 9 | IE55: 0 | IF55: 0 | IG55: 2 | II55: 0 | IJ55: 0 | IK55: 7 | IM55: 0 | IN55: 0 | IO55: 10 | IQ55: 0 | IR55: 1 | IS55: 10 | IU55: 0 | IV55: 3 | IW55: 8
A56: 26 | C56: 0 | D56: 0 | E56: 2 | G56: 0 | H56: 1 | I56: 9 | K56: 0 | L56: 5 | M56: 14 | O56: 0 | P56: 3 | Q56: 12 | S56: 0 | T56: 0 | U56: 9 | W56: 0 | X56: 4 | Y56: 11 | AA56: 0 | AB56: 2 | AC56: 11 | AE56: 0 | AF56: 0 | AG56: 8 | AI56: 0 | AJ56: 0 | AK56: 5 | AM56: 0 | AN56: 0 | AO56: 12 | AQ56: 0 | AR56: 4 | AS56: 13 | AU56: 0 | AV56: 0 | AW56: 9 | AY56: 0 | AZ56: 2 | BA56: 11 | BC56: 0 | BD56: 1 | BE56: 9 | BG56: 0 | BH56: 0 | BI56: 3 | BK56: 0 | BL56: 0 | BM56: 9 | BO56: 0 | BP56: 1 | BQ56: 10 | BS56: 0 | BT56: 0 | BU56: 6 | BW56: 0 | BX56: 0 | BY56: 8 | CA56: 0 | CB56: 1 | CC56: 7 | CE56: 0 | CF56: 1 | CG56: 9 | CI56: 0 | CJ56: 2 | CK56: 10 | CM56: 0 | CN56: 0 | CO56: 9 | CQ56: 0 | CR56: 0 | CS56: 6 | CU56: 0 | CV56: 0 | CW56: 5 | CY56: 0 | CZ56: 0 | DA56: 10 | DC56: 0 | DD56: 3 | DE56: 11 | DG56: 0 | DH56: 0 | DI56: 1 | DK56: 0 | DL56: 0 | DM56: 6 | DO56: 0 | DP56: 0 | DQ56: 12 | DS56: 0 | DT56: 0 | DU56: 10 | DW56: 0 | DX56: 1 | DY56: 11 | EA56: 0 | EB56: 2 | EC56: 10 | EE56: 0 | EF56: 0 | EG56: 10 | EI56: 0 | EJ56: 1 | EK56: 12 | EM56: 0 | EN56: 2 | EO56: 13 | EQ56: 0 | ER56: 1 | ES56: 12 | EU56: 0 | EV56: 0 | EW56: 12 | EY56: 0 | EZ56: 0 | FA56: 10 | FC56: 0 | FD56: 0 | FE56: 11 | FG56: 0 | FH56: 2 | FI56: 12 | FK56: 0 | FL56: 0 | FM56: 7 | FO56: 0 | FP56: 1 | FQ56: 10 | FS56: 0 | FT56: 0 | FU56: 4 | FW56: 0 | FX56: 2 | FY56: 10 | GA56: 0 | GB56: 0 | GC56: 8 | GE56: 0 | GF56: 0 | GG56: 9 | GI56: 0 | GJ56: 0 | GK56: 0 | GM56: 0 | GN56: 0 | GO56: 12 | GQ56: 0 | GR56: 2 | GS56: 12 | GU56: 0 | GV56: 0 | GW56: 10 | GY56: 0 | GZ56: 0 | HA56: 6 | HC56: 0 | HD56: 0 | HE56: 10 | HG56: 0 | HH56: 0 | HI56: 9 | HK56: 0 | HL56: 0 | HM56: 8 | IE56: 0 | IF56: 0 | IG56: 2 | II56: 0 | IJ56: 0 | IK56: 4 | IM56: 0 | IN56: 0 | IO56: 8 | IQ56: 0 | IR56: 0 | IS56: 10 | IU56: 0 | IV56: 1 | IW56: 8
A57: 27 | C57: 0 | D57: 0 | E57: 1 | G57: 0 | H57: 0 | I57: 8 | K57: 0 | L57: 1 | M57: 14 | O57: 0 | P57: 0 | Q57: 11 | S57: 0 | T57: 0 | U57: 9 | W57: 0 | X57: 4 | Y57: 11 | AA57: 0 | AB57: 1 | AC57: 13 | AE57: 0 | AF57: 0 | AG57: 9 | AI57: 0 | AJ57: 0 | AK57: 4 | AM57: 0 | AN57: 0 | AO57: 12 | AQ57: 0 | AR57: 1 | AS57: 15 | AU57: 0 | AV57: 0 | AW57: 7 | AY57: 0 | AZ57: 1 | BA57: 10 | BC57: 0 | BD57: 0 | BE57: 9 | BG57: 0 | BH57: 0 | BI57: 2 | BK57: 0 | BL57: 0 | BM57: 8 | BO57: 0 | BP57: 0 | BQ57: 9 | BS57: 0 | BT57: 0 | BU57: 6 | BW57: 0 | BX57: 0 | BY57: 7 | CA57: 0 | CB57: 0 | CC57: 9 | CE57: 0 | CF57: 1 | CG57: 9 | CI57: 0 | CJ57: 1 | CK57: 10 | CM57: 0 | CN57: 0 | CO57: 9 | CQ57: 0 | CR57: 0 | CS57: 3 | CU57: 0 | CV57: 0 | CW57: 4 | CY57: 0 | CZ57: 0 | DA57: 8 | DC57: 0 | DD57: 0 | DE57: 8 | DG57: 0 | DH57: 0 | DI57: 0 | DK57: 0 | DL57: 0 | DM57: 5 | DO57: 0 | DP57: 0 | DQ57: 12 | DS57: 0 | DT57: 0 | DU57: 7 | DW57: 0 | DX57: 0 | DY57: 9 | EA57: 0 | EB57: 3 | EC57: 13 | EE57: 0 | EF57: 0 | EG57: 9 | EI57: 0 | EJ57: 0 | EK57: 11 | EM57: 0 | EN57: 1 | EO57: 11 | EQ57: 0 | ER57: 0 | ES57: 12 | EU57: 0 | EV57: 0 | EW57: 13 | EY57: 0 | EZ57: 0 | FA57: 9 | FC57: 0 | FD57: 0 | FE57: 11 | FG57: 0 | FH57: 1 | FI57: 10 | FK57: 0 | FL57: 0 | FM57: 4 | FO57: 0 | FP57: 0 | FQ57: 9 | FS57: 0 | FT57: 0 | FU57: 2 | FW57: 0 | FX57: 1 | FY57: 10 | GA57: 0 | GB57: 0 | GC57: 7 | GE57: 0 | GF57: 0 | GG57: 10 | GI57: 0 | GJ57: 0 | GK57: 0 | GM57: 0 | GN57: 0 | GO57: 13 | GQ57: 0 | GR57: 1 | GS57: 10 | GU57: 0 | GV57: 0 | GW57: 6 | GY57: 0 | GZ57: 0 | HA57: 5 | HC57: 0 | HD57: 0 | HE57: 9 | HG57: 0 | HH57: 0 | HI57: 7 | HK57: 0 | HL57: 0 | HM57: 4 | IE57: 0 | IF57: 0 | IG57: 1 | II57: 0 | IJ57: 0 | IK57: 5 | IM57: 0 | IN57: 0 | IO57: 7 | IQ57: 0 | IR57: 0 | IS57: 9 | IU57: 0 | IV57: 0 | IW57: 6
A58: 28 | C58: 0 | D58: 0 | E58: 0 | G58: 0 | H58: 0 | I58: 6 | K58: 0 | L58: 0 | M58: 14 | O58: 0 | P58: 0 | Q58: 12 | S58: 0 | T58: 0 | U58: 7 | W58: 0 | X58: 3 | Y58: 10 | AA58: 0 | AB58: 1 | AC58: 10 | AE58: 0 | AF58: 0 | AG58: 7 | AI58: 0 | AJ58: 0 | AK58: 3 | AM58: 0 | AN58: 0 | AO58: 9 | AQ58: 0 | AR58: 0 | AS58: 10 | AU58: 0 | AV58: 0 | AW58: 6 | AY58: 0 | AZ58: 0 | BA58: 8 | BC58: 0 | BD58: 0 | BE58: 6 | BG58: 0 | BH58: 0 | BI58: 1 | BK58: 0 | BL58: 0 | BM58: 7 | BO58: 0 | BP58: 0 | BQ58: 7 | BS58: 0 | BT58: 0 | BU58: 4 | BW58: 0 | BX58: 0 | BY58: 6 | CA58: 0 | CB58: 0 | CC58: 7 | CE58: 0 | CF58: 0 | CG58: 7 | CI58: 0 | CJ58: 0 | CK58: 8 | CM58: 0 | CN58: 0 | CO58: 8 | CQ58: 0 | CR58: 0 | CS58: 3 | CU58: 0 | CV58: 0 | CW58: 3 | CY58: 0 | CZ58: 0 | DA58: 8 | DC58: 0 | DD58: 0 | DE58: 9 | DG58: 0 | DH58: 0 | DI58: 0 | DK58: 0 | DL58: 0 | DM58: 4 | DO58: 0 | DP58: 0 | DQ58: 10 | DS58: 0 | DT58: 0 | DU58: 8 | DW58: 0 | DX58: 0 | DY58: 7 | EA58: 0 | EB58: 0 | EC58: 11 | EE58: 0 | EF58: 0 | EG58: 6 | EI58: 0 | EJ58: 0 | EK58: 12 | EM58: 0 | EN58: 0 | EO58: 12 | EQ58: 0 | ER58: 0 | ES58: 7 | EU58: 0 | EV58: 0 | EW58: 10 | EY58: 0 | EZ58: 0 | FA58: 8 | FC58: 0 | FD58: 0 | FE58: 10 | FG58: 0 | FH58: 0 | FI58: 9 | FK58: 0 | FL58: 0 | FM58: 4 | FO58: 0 | FP58: 0 | FQ58: 8 | FS58: 0 | FT58: 0 | FU58: 1 | FW58: 0 | FX58: 0 | FY58: 11 | GA58: 0 | GB58: 0 | GC58: 9 | GE58: 0 | GF58: 0 | GG58: 9 | GI58: 0 | GJ58: 0 | GK58: 0 | GM58: 0 | GN58: 0 | GO58: 11 | GQ58: 0 | GR58: 0 | GS58: 8 | GU58: 0 | GV58: 0 | GW58: 5 | GY58: 0 | GZ58: 0 | HA58: 4 | HC58: 0 | HD58: 0 | HE58: 6 | HG58: 0 | HH58: 0 | HI58: 4 | HK58: 0 | HL58: 0 | HM58: 2 | IE58: 0 | IF58: 0 | IG58: 0 | II58: 0 | IJ58: 0 | IK58: 2 | IM58: 0 | IN58: 0 | IO58: 5 | IQ58: 0 | IR58: 0 | IS58: 7 | IU58: 0 | IV58: 0 | IW58: 5
A59: 29 | C59: 0 | D59: 0 | E59: 0 | G59: 0 | H59: 0 | I59: 6 | K59: 0 | L59: 0 | M59: 13 | O59: 0 | P59: 0 | Q59: 10 | S59: 0 | T59: 0 | U59: 5 | W59: 0 | X59: 1 | Y59: 11 | AA59: 0 | AB59: 0 | AC59: 8 | AE59: 0 | AF59: 0 | AG59: 6 | AI59: 0 | AJ59: 0 | AK59: 1 | AM59: 0 | AN59: 0 | AO59: 8 | AQ59: 0 | AR59: 0 | AS59: 11 | AU59: 0 | AV59: 0 | AW59: 3 | AY59: 0 | AZ59: 0 | BA59: 6 | BC59: 0 | BD59: 0 | BE59: 6 | BG59: 0 | BH59: 0 | BI59: 0 | BK59: 0 | BL59: 0 | BM59: 5 | BO59: 0 | BP59: 0 | BQ59: 6 | BS59: 0 | BT59: 0 | BU59: 3 | BW59: 0 | BX59: 0 | BY59: 5 | CA59: 0 | CB59: 0 | CC59: 5 | CE59: 0 | CF59: 0 | CG59: 5 | CI59: 0 | CJ59: 0 | CK59: 5 | CM59: 0 | CN59: 0 | CO59: 5 | CQ59: 0 | CR59: 0 | CS59: 1 | CU59: 0 | CV59: 0 | CW59: 2 | CY59: 0 | CZ59: 0 | DA59: 6 | DC59: 0 | DD59: 0 | DE59: 5 | DG59: 0 | DH59: 0 | DI59: 0 | DK59: 0 | DL59: 0 | DM59: 2 | DO59: 0 | DP59: 0 | DQ59: 9 | DS59: 0 | DT59: 0 | DU59: 8 | DW59: 0 | DX59: 0 | DY59: 6 | EA59: 0 | EB59: 0 | EC59: 10 | EE59: 0 | EF59: 0 | EG59: 6 | EI59: 0 | EJ59: 0 | EK59: 8 | EM59: 0 | EN59: 0 | EO59: 10 | EQ59: 0 | ER59: 0 | ES59: 9 | EU59: 0 | EV59: 0 | EW59: 10 | EY59: 0 | EZ59: 0 | FA59: 7 | FC59: 0 | FD59: 0 | FE59: 10 | FG59: 0 | FH59: 0 | FI59: 8 | FK59: 0 | FL59: 0 | FM59: 2 | FO59: 0 | FP59: 0 | FQ59: 9 | FS59: 0 | FT59: 0 | FU59: 0 | FW59: 0 | FX59: 0 | FY59: 9 | GA59: 0 | GB59: 0 | GC59: 7 | GE59: 0 | GF59: 0 | GG59: 7 | GI59: 0 | GJ59: 0 | GK59: 0 | GM59: 0 | GN59: 0 | GO59: 6 | GQ59: 0 | GR59: 0 | GS59: 5 | GU59: 0 | GV59: 0 | GW59: 4 | GY59: 0 | GZ59: 0 | HA59: 2 | HC59: 0 | HD59: 0 | HE59: 5 | HG59: 0 | HH59: 0 | HI59: 3 | HK59: 0 | HL59: 0 | HM59: 1 | IE59: 0 | IF59: 0 | IG59: 0 | II59: 0 | IJ59: 0 | IK59: 2 | IM59: 0 | IN59: 0 | IO59: 6 | IQ59: 0 | IR59: 0 | IS59: 7 | IU59: 0 | IV59: 0 | IW59: 4
A60: 30 | C60: 0 | D60: 0 | E60: 0 | G60: 0 | H60: 0 | I60: 10 | K60: 0 | L60: 0 | M60: 19 | O60: 0 | P60: 0 | Q60: 18 | S60: 0 | T60: 0 | U60: 7 | W60: 0 | X60: 0 | Y60: 30 | AA60: 0 | AB60: 0 | AC60: 25 | AE60: 0 | AF60: 0 | AG60: 10 | AI60: 0 | AJ60: 0 | AK60: 1 | AM60: 0 | AN60: 0 | AO60: 12 | AQ60: 0 | AR60: 0 | AS60: 37 | AU60: 0 | AV60: 0 | AW60: 4 | AY60: 0 | AZ60: 0 | BA60: 17 | BC60: 0 | BD60: 0 | BE60: 14 | BG60: 0 | BH60: 0 | BI60: 0 | BK60: 0 | BL60: 0 | BM60: 10 | BO60: 0 | BP60: 0 | BQ60: 17 | BS60: 0 | BT60: 0 | BU60: 4 | BW60: 0 | BX60: 0 | BY60: 7 | CA60: 0 | CB60: 0 | CC60: 15 | CE60: 0 | CF60: 0 | CG60: 17 | CI60: 0 | CJ60: 0 | CK60: 18 | CM60: 0 | CN60: 0 | CO60: 10 | CQ60: 0 | CR60: 0 | CS60: 1 | CU60: 0 | CV60: 0 | CW60: 0 | CY60: 0 | CZ60: 0 | DA60: 12 | DC60: 0 | DD60: 0 | DE60: 11 | DG60: 0 | DH60: 0 | DI60: 0 | DK60: 0 | DL60: 0 | DM60: 1 | DO60: 0 | DP60: 0 | DQ60: 23 | DS60: 0 | DT60: 0 | DU60: 17 | DW60: 0 | DX60: 0 | DY60: 9 | EA60: 0 | EB60: 0 | EC60: 22 | EE60: 0 | EF60: 0 | EG60: 12 | EI60: 0 | EJ60: 0 | EK60: 21 | EM60: 0 | EN60: 0 | EO60: 26 | EQ60: 0 | ER60: 0 | ES60: 27 | EU60: 0 | EV60: 0 | EW60: 20 | EY60: 0 | EZ60: 0 | FA60: 17 | FC60: 0 | FD60: 0 | FE60: 18 | FG60: 0 | FH60: 0 | FI60: 17 | FK60: 0 | FL60: 0 | FM60: 3 | FO60: 0 | FP60: 0 | FQ60: 19 | FS60: 0 | FT60: 0 | FU60: 0 | FW60: 0 | FX60: 0 | FY60: 19 | GA60: 0 | GB60: 0 | GC60: 11 | GE60: 0 | GF60: 0 | GG60: 13 | GI60: 0 | GJ60: 0 | GK60: 0 | GM60: 0 | GN60: 0 | GO60: 12 | GQ60: 0 | GR60: 0 | GS60: 14 | GU60: 0 | GV60: 0 | GW60: 4 | GY60: 0 | GZ60: 0 | HA60: 1 | HC60: 0 | HD60: 0 | HE60: 11 | HG60: 0 | HH60: 0 | HI60: 2 | HK60: 0 | HL60: 0 | HM60: 0 | IE60: 0 | IF60: 0 | IG60: 0 | II60: 0 | IJ60: 0 | IK60: 0 | IM60: 0 | IN60: 0 | IO60: 6 | IQ60: 0 | IR60: 0 | IS60: 14 | IU60: 0 | IV60: 0 | IW60: 5

Sheet AT-Vergleichsdaten (hidden)
C1: Davos (CH) | G1: Zürich/Fluntern (CH) | K1: Locarno/Monti (CH) | O1: Graz Universität (AT) | S1: Tamsweg (AT) | W1: Wien innere Stadt (AT) | AA1: Karlsruhe/Rheinstetten (DE) | AE1: München Flughafen (DE) | AI1: Hohenpeißenberg (DE) | AM1: BRNIK LETALIŠČE (SI) | AQ1: BILJE (SI) | AU1: NOVA VAS, BLOKE (SI) | AY1: Frankfurt/Main Flughafen (DE) | BC1: Trier-Petrisberg (DE) | BG1: Kahler Asten (DE) | BK1: Augsburg (DE) | BO1: Bamberg (DE) | BS1: Hof (DE) | BW1: Kempten (DE) | CA1: Nürnberg (DE) | CE1: Würzburg (DE) | CI1: Basel-Binningen (CH) | CM1: Bern/Zollikofen (CH) | CQ1: La Chaux-de-Fonds (CH) | CU1: Engelberg (CH) | CY1: Luzern (CH) | DC1: Pully (CH) | DG1: Samedan (CH) | DK1: St. Gallen (CH) | DO1: Visp (CH) | DS1: Bad Aussee (AT) | DW1: Bregenz (AT) | EA1: Eisenstadt (AT) | EE1: Freistadt (AT) | EI1: Fürstenfeld (AT) | EM1: Hohenau/March (AT) | EQ1: Innsbruck Universität (AT) | EU1: Klagenfurt Flughafen (AT) | EY1: Kufstein (AT) | FC1: Lienz (AT) | FG1: Linz Stadt (AT) | FK1: Mariazell (AT) | FO1: Salzburg-Freisaal (AT) | FS1: Schröcken (AT) | FW1: St. Pölten (AT) | GA1: Zell am See (AT) | GE1: Zeltweg (AT) | GI1: Andermatt (CH) | GM1: Acquarossa/Comprovasco (CH) | GQ1: Bad Ragaz (CH) | GU1: Château-d'Oex (CH) | GY1: Disentis/Sedrun (CH) | HC1: Fribourg/Posieux (CH) | HG1: Piotta (CH) | HK1: Ulrichen (CH) | HO1: Italien 1 | HS1: Italien 2 | HW1: Italien 3 | IA1: Italien 4 | IE1: Bullet / La Fretaz (CH) | II1: Einsiedeln (CH) | IM1: Langnau i.E. (CH) | IQ1: Payerne (CH) | IU1: Rünenberg (CH)
D2: 0 | H2: 1 | L2: 1 | P2: 0 | T2: 0 | X2: 0 | AB2: 0 | AF2: 0 | AJ2: 0 | AN2: 0 | AR2: 0 | AV2: 0 | AZ2: 0 | BD2: 0 | BH2: 0 | BL2: 0 | BP2: 0 | BT2: 0 | BX2: 0 | CB2: 0 | CF2: 0 | CJ2: 0 | CN2: 0 | CR2: 1 | CV2: 0 | CZ2: 0 | DD2: 0 | DH2: 0 | DL2: 0 | DP2: 0 | DT2: 0 | DX2: 0 | EB2: 0 | EF2: 0 | EJ2: 0 | EN2: 0 | ER2: 0 | EV2: 0 | EZ2: 0 | FD2: 0 | FH2: 0 | FL2: 0 | FP2: 0 | FT2: 0 | FX2: 0 | GB2: 0 | GF2: 0 | GJ2: 0 | GN2: 0 | GR2: 0 | GV2: 0 | GZ2: 0 | HD2: 0 | HH2: 0 | HL2: 1 | HP2: 0 | HT2: 0 | HX2: 0 | IB2: 0 | IF2: 0 | IJ2: 0 | IN2: 0 | IR2: 0 | IV2: 0
C3: =IF(D2=1,Klimadaten!C3,"") ->  | G3: =IF(H2=1,Klimadaten!G3,"") -> Zürich/Fluntern (CH) | K3: =IF(L2=1,Klimadaten!K3,"") -> Locarno/Monti (CH) | O3: =IF(P2=1,Klimadaten!O3,"") ->  | S3: =IF(T2=1,Klimadaten!S3,"") ->  | W3: =IF(X2=1,Klimadaten!W3,"") ->  | AA3: =IF(AB2=1,Klimadaten!AA3,"") ->  | AE3: =IF(AF2=1,Klimadaten!AE3,"") ->  | AI3: =IF(AJ2=1,Klimadaten!AI3,"") ->  | AM3: =IF(AN2=1,Klimadaten!AM3,"") ->  | AQ3: =IF(AR2=1,Klimadaten!AQ3,"") ->  | AU3: =IF(AV2=1,Klimadaten!AU3,"") ->  | AY3: =IF(AZ2=1,Klimadaten!AY3,"") ->  | BC3: =IF(BD2=1,Klimadaten!BC3,"") ->  | BG3: =IF(BH2=1,Klimadaten!BG3,"") ->  | BK3: =IF(BL2=1,Klimadaten!BK3,"") ->  | BO3: =IF(BP2=1,Klimadaten!BO3,"") ->  | BS3: =IF(BT2=1,Klimadaten!BS3,"") ->  | BW3: =IF(BX2=1,Klimadaten!BW3,"") ->  | CA3: =IF(CB2=1,Klimadaten!CA3,"") ->  | CE3: =IF(CF2=1,Klimadaten!CE3,"") ->  | CI3: =IF(CJ2=1,Klimadaten!CI3,"") ->  | CM3: =IF(CN2=1,Klimadaten!CM3,"") ->  | CQ3: =IF(CR2=1,Klimadaten!CQ3,"") -> La Chaux-de-Fonds (CH) | CU3: =IF(CV2=1,Klimadaten!CU3,"") ->  | CY3: =IF(CZ2=1,Klimadaten!CY3,"") ->  | DC3: =IF(DD2=1,Klimadaten!DC3,"") ->  | DG3: =IF(DH2=1,Klimadaten!DG3,"") ->  | DK3: =IF(DL2=1,Klimadaten!DK3,"") ->  | DO3: =IF(DP2=1,Klimadaten!DO3,"") ->  | DS3: =IF(DT2=1,Klimadaten!DS3,"") ->  | DW3: =IF(DX2=1,Klimadaten!DW3,"") ->  | EA3: =IF(EB2=1,Klimadaten!EA3,"") ->  | EE3: =IF(EF2=1,Klimadaten!EE3,"") ->  | EI3: =IF(EJ2=1,Klimadaten!EI3,"") ->  | EM3: =IF(EN2=1,Klimadaten!EM3,"") ->  | EQ3: =IF(ER2=1,Klimadaten!EQ3,"") ->  | EU3: =IF(EV2=1,Klimadaten!EU3,"") ->  | EY3: =IF(EZ2=1,Klimadaten!EY3,"") ->  | FC3: =IF(FD2=1,Klimadaten!FC3,"") ->  | FG3: =IF(FH2=1,Klimadaten!FG3,"") ->  | FK3: =IF(FL2=1,Klimadaten!FK3,"") ->  | FO3: =IF(FP2=1,Klimadaten!FO3,"") ->  | FS3: =IF(FT2=1,Klimadaten!FS3,"") ->  | FW3: =IF(FX2=1,Klimadaten!FW3,"") ->  | GA3: =IF(GB2=1,Klimadaten!GA3,"") ->  | GE3: =IF(GF2=1,Klimadaten!GE3,"") ->  | GI3: =IF(GJ2=1,Klimadaten!GI3,"") ->  | GM3: =IF(GN2=1,Klimadaten!GM3,"") ->  | GQ3: =IF(GR2=1,Klimadaten!GQ3,"") ->  | GU3: =IF(GV2=1,Klimadaten!GU3,"") ->  | GY3: =IF(GZ2=1,Klimadaten!GY3,"") ->  | HC3: =IF(HD2=1,Klimadaten!HC3,"") ->  | HG3: =IF(HH2=1,Klimadaten!HG3,"") ->  | HK3: =IF(HL2=1,Klimadaten!HK3,"") -> Ulrichen (CH) | HO3: =IF(HP2=1,Klimadaten!HO3,"") ->  | HS3: =IF(HT2=1,Klimadaten!HS3,"") ->  | HW3: =IF(HX2=1,Klimadaten!HW3,"") ->  | IA3: =IF(IB2=1,Klimadaten!IA3,"") ->  | IE3: =IF(IF2=1,Klimadaten!IE3,"") ->  | II3: =IF(IJ2=1,Klimadaten!II3,"") ->  | IM3: =IF(IN2=1,Klimadaten!IM3,"") ->  | IQ3: =IF(IR2=1,Klimadaten!IQ3,"") ->  | IU3: =IF(IV2=1,Klimadaten!IU3,"") -> 
C6: Häufigkeit | G6: Häufigkeit | K6: Häufigkeit | O6: Häufigkeit | S6: Häufigkeit | W6: Häufigkeit | AA6: Häufigkeit | AE6: Häufigkeit | AI6: Häufigkeit | AM6: Häufigkeit | AQ6: Häufigkeit | AU6: Häufigkeit | AY6: Häufigkeit | BC6: Häufigkeit | BG6: Häufigkeit | BK6: Häufigkeit | BO6: Häufigkeit | BS6: Häufigkeit | BW6: Häufigkeit | CA6: Häufigkeit | CE6: Häufigkeit | CI6: Häufigkeit | CM6: Häufigkeit | CQ6: Häufigkeit | CU6: Häufigkeit | CY6: Häufigkeit | DC6: Häufigkeit | DG6: Häufigkeit | DK6: Häufigkeit | DO6: Häufigkeit | DS6: Häufigkeit | DW6: Häufigkeit | EA6: Häufigkeit | EE6: Häufigkeit | EI6: Häufigkeit | EM6: Häufigkeit | EQ6: Häufigkeit | EU6: Häufigkeit | EY6: Häufigkeit | FC6: Häufigkeit | FG6: Häufigkeit | FK6: Häufigkeit | FO6: Häufigkeit | FS6: Häufigkeit | FW6: Häufigkeit | GA6: Häufigkeit | GE6: Häufigkeit | GI6: Häufigkeit | GM6: Häufigkeit | GQ6: Häufigkeit | GU6: Häufigkeit | GY6: Häufigkeit | HC6: Häufigkeit | HG6: Häufigkeit | HK6: Häufigkeit | HO6: Häufigkeit | HS6: Häufigkeit | HW6: Häufigkeit | IA6: Häufigkeit | IE6: Häufigkeit | II6: Häufigkeit | IM6: Häufigkeit | IQ6: Häufigkeit | IU6: Häufigkeit
C7: Min. | D7: Mittel | E7: Max. | G7: Min. | H7: Mittel | I7: Max. | K7: Min. | L7: Mittel | M7: Max. | O7: Min. | P7: Mittel | Q7: Max. | S7: Min. | T7: Mittel | U7: Max. | W7: Min. | X7: Mittel | Y7: Max. | AA7: Min. | AB7: Mittel | AC7: Max. | AE7: Min. | AF7: Mittel | AG7: Max. | AI7: Min. | AJ7: Mittel | AK7: Max. | AM7: Min. | AN7: Mittel | AO7: Max. | AQ7: Min. | AR7: Mittel | AS7: Max. | AU7: Min. | AV7: Mittel | AW7: Max. | AY7: Min. | AZ7: Mittel | BA7: Max. | BC7: Min. | BD7: Mittel | BE7: Max. | BG7: Min. | BH7: Mittel | BI7: Max. | BK7: Min. | BL7: Mittel | BM7: Max. | BO7: Min. | BP7: Mittel | BQ7: Max. | BS7: Min. | BT7: Mittel | BU7: Max. | BW7: Min. | BX7: Mittel | BY7: Max. | CA7: Min. | CB7: Mittel | CC7: Max. | CE7: Min. | CF7: Mittel | CG7: Max. | CI7: Min. | CJ7: Mittel | CK7: Max. | CM7: Min. | CN7: Mittel | CO7: Max. | CQ7: Min. | CR7: Mittel | CS7: Max. | CU7: Min. | CV7: Mittel | CW7: Max. | CY7: Min. | CZ7: Mittel | DA7: Max. | DC7: Min. | DD7: Mittel | DE7: Max. | DG7: Min. | DH7: Mittel | DI7: Max. | DK7: Min. | DL7: Mittel | DM7: Max. | DO7: Min. | DP7: Mittel | DQ7: Max. | DS7: Min. | DT7: Mittel | DU7: Max. | DW7: Min. | DX7: Mittel | DY7: Max. | EA7: Min. | EB7: Mittel | EC7: Max. | EE7: Min. | EF7: Mittel | EG7: Max. | EI7: Min. | EJ7: Mittel | EK7: Max. | EM7: Min. | EN7: Mittel | EO7: Max. | EQ7: Min. | ER7: Mittel | ES7: Max. | EU7: Min. | EV7: Mittel | EY7: Min. | EZ7: Mittel | FA7: Max. | FC7: Min. | FD7: Mittel | FE7: Max. | FG7: Min. | FH7: Mittel | FI7: Max. | FK7: Min. | FL7: Mittel | FM7: Max. | FO7: Min. | FP7: Mittel | FQ7: Max. | FS7: Min. | FT7: Mittel | FU7: Max. | FW7: Min. | FX7: Mittel | FY7: Max. | GA7: Min. | GB7: Mittel | GC7: Max. | GE7: Min. | GF7: Mittel | GG7: Max. | GI7: Min. | GJ7: Mittel | GK7: Max. | GM7: Min. | GN7: Mittel | GO7: Max. | GQ7: Min. | GR7: Mittel | GS7: Max. | GU7: Min. | GV7: Mittel | GW7: Max. | GY7: Min. | GZ7: Mittel | HA7: Max. | HC7: Min. | HD7: Mittel | HE7: Max. | HG7: Min. | HH7: Mittel | HI7: Max. | HK7: Min. | HL7: Mittel | HM7: Max. | HO7: Min. | HP7: Mittel | HQ7: Max. | HS7: Min. | HT7: Mittel | HU7: Max. | HW7: Min. | HX7: Mittel | HY7: Max. | IA7: Min. | IB7: Mittel | IC7: Max. | IE7: Min. | IF7: Mittel | IG7: Max. | II7: Min. | IJ7: Mittel | IK7: Max. | IM7: Min. | IN7: Mittel | IO7: Max. | IQ7: Min. | IR7: Mittel | IS7: Max. | IU7: Min. | IV7: Mittel | IW7: Max.
A10: -20 | D10: =IF(D$2=1,Klimadaten!D10,"") ->  | H10: =IF(H$2=1,Klimadaten!H10,"") -> 0 | L10: =IF(L$2=1,Klimadaten!L10,"") -> 0 | P10: =IF(P$2=1,Klimadaten!P10,"") ->  | T10: =IF(T$2=1,Klimadaten!T10,"") ->  | X10: =IF(X$2=1,Klimadaten!X10,"") ->  | AB10: =IF(AB$2=1,Klimadaten!AB10,"") ->  | AF10: =IF(AF$2=1,Klimadaten!AF10,"") ->  | AJ10: =IF(AJ$2=1,Klimadaten!AJ10,"") ->  | AN10: =IF(AN$2=1,Klimadaten!AN10,"") ->  | AR10: =IF(AR$2=1,Klimadaten!AR10,"") ->  | AV10: =IF(AV$2=1,Klimadaten!AV10,"") ->  | AZ10: =IF(AZ$2=1,Klimadaten!AZ10,"") ->  | BD10: =IF(BD$2=1,Klimadaten!BD10,"") ->  | BH10: =IF(BH$2=1,Klimadaten!BH10,"") ->  | BL10: =IF(BL$2=1,Klimadaten!BL10,"") ->  | BP10: =IF(BP$2=1,Klimadaten!BP10,"") ->  | BT10: =IF(BT$2=1,Klimadaten!BT10,"") ->  | BX10: =IF(BX$2=1,Klimadaten!BX10,"") ->  | CB10: =IF(CB$2=1,Klimadaten!CB10,"") ->  | CF10: =IF(CF$2=1,Klimadaten!CF10,"") ->  | CJ10: =IF(CJ$2=1,Klimadaten!CJ10,"") ->  | CN10: =IF(CN$2=1,Klimadaten!CN10,"") ->  | CR10: =IF(CR$2=1,Klimadaten!CR10,"") -> 0 | CV10: =IF(CV$2=1,Klimadaten!CV10,"") ->  | CZ10: =IF(CZ$2=1,Klimadaten!CZ10,"") ->  | DD10: =IF(DD$2=1,Klimadaten!DD10,"") ->  | DH10: =IF(DH$2=1,Klimadaten!DH10,"") ->  | DL10: =IF(DL$2=1,Klimadaten!DL10,"") ->  | DP10: =IF(DP$2=1,Klimadaten!DP10,"") ->  | DT10: =IF(DT$2=1,Klimadaten!DT10,"") ->  | DX10: =IF(DX$2=1,Klimadaten!DX10,"") ->  | EB10: =IF(EB$2=1,Klimadaten!EB10,"") ->  | EF10: =IF(EF$2=1,Klimadaten!EF10,"") ->  | EJ10: =IF(EJ$2=1,Klimadaten!EJ10,"") ->  | EN10: =IF(EN$2=1,Klimadaten!EN10,"") ->  | ER10: =IF(ER$2=1,Klimadaten!ER10,"") ->  | EV10: =IF(EV$2=1,Klimadaten!EV10,"") ->  | EZ10: =IF(EZ$2=1,Klimadaten!EZ10,"") ->  | FD10: =IF(FD$2=1,Klimadaten!FD10,"") ->  | FH10: =IF(FH$2=1,Klimadaten!FH10,"") ->  | FL10: =IF(FL$2=1,Klimadaten!FL10,"") ->  | FP10: =IF(FP$2=1,Klimadaten!FP10,"") ->  | FT10: =IF(FT$2=1,Klimadaten!FT10,"") ->  | FX10: =IF(FX$2=1,Klimadaten!FX10,"") ->  | GB10: =IF(GB$2=1,Klimadaten!GB10,"") ->  | GF10: =IF(GF$2=1,Klimadaten!GF10,"") ->  | GJ10: =IF(GJ$2=1,Klimadaten!GJ10,"") ->  | GN10: =IF(GN$2=1,Klimadaten!GN10,"") ->  | GR10: =IF(GR$2=1,Klimadaten!GR10,"") ->  | GV10: =IF(GV$2=1,Klimadaten!GV10,"") ->  | GZ10: =IF(GZ$2=1,Klimadaten!GZ10,"") ->  | HD10: =IF(HD$2=1,Klimadaten!HD10,"") ->  | HH10: =IF(HH$2=1,Klimadaten!HH10,"") ->  | HL10: =IF(HL$2=1,Klimadaten!HL10,"") -> 0 | IF10: =IF(IF$2=1,Klimadaten!IF10,"") ->  | IJ10: =IF(IJ$2=1,Klimadaten!IJ10,"") ->  | IN10: =IF(IN$2=1,Klimadaten!IN10,"") ->  | IR10: =IF(IR$2=1,Klimadaten!IR10,"") ->  | IV10: =IF(IV$2=1,Klimadaten!IV10,"") -> 
A11: -19 | D11: =IF(D$2=1,Klimadaten!D11,"") ->  | H11: =IF(H$2=1,Klimadaten!H11,"") -> 0 | L11: =IF(L$2=1,Klimadaten!L11,"") -> 0 | P11: =IF(P$2=1,Klimadaten!P11,"") ->  | T11: =IF(T$2=1,Klimadaten!T11,"") ->  | X11: =IF(X$2=1,Klimadaten!X11,"") ->  | AB11: =IF(AB$2=1,Klimadaten!AB11,"") ->  | AF11: =IF(AF$2=1,Klimadaten!AF11,"") ->  | AJ11: =IF(AJ$2=1,Klimadaten!AJ11,"") ->  | AN11: =IF(AN$2=1,Klimadaten!AN11,"") ->  | AR11: =IF(AR$2=1,Klimadaten!AR11,"") ->  | AV11: =IF(AV$2=1,Klimadaten!AV11,"") ->  | AZ11: =IF(AZ$2=1,Klimadaten!AZ11,"") ->  | BD11: =IF(BD$2=1,Klimadaten!BD11,"") ->  | BH11: =IF(BH$2=1,Klimadaten!BH11,"") ->  | BL11: =IF(BL$2=1,Klimadaten!BL11,"") ->  | BP11: =IF(BP$2=1,Klimadaten!BP11,"") ->  | BT11: =IF(BT$2=1,Klimadaten!BT11,"") ->  | BX11: =IF(BX$2=1,Klimadaten!BX11,"") ->  | CB11: =IF(CB$2=1,Klimadaten!CB11,"") ->  | CF11: =IF(CF$2=1,Klimadaten!CF11,"") ->  | CJ11: =IF(CJ$2=1,Klimadaten!CJ11,"") ->  | CN11: =IF(CN$2=1,Klimadaten!CN11,"") ->  | CR11: =IF(CR$2=1,Klimadaten!CR11,"") -> 0 | CV11: =IF(CV$2=1,Klimadaten!CV11,"") ->  | CZ11: =IF(CZ$2=1,Klimadaten!CZ11,"") ->  | DD11: =IF(DD$2=1,Klimadaten!DD11,"") ->  | DH11: =IF(DH$2=1,Klimadaten!DH11,"") ->  | DL11: =IF(DL$2=1,Klimadaten!DL11,"") ->  | DP11: =IF(DP$2=1,Klimadaten!DP11,"") ->  | DT11: =IF(DT$2=1,Klimadaten!DT11,"") ->  | DX11: =IF(DX$2=1,Klimadaten!DX11,"") ->  | EB11: =IF(EB$2=1,Klimadaten!EB11,"") ->  | EF11: =IF(EF$2=1,Klimadaten!EF11,"") ->  | EJ11: =IF(EJ$2=1,Klimadaten!EJ11,"") ->  | EN11: =IF(EN$2=1,Klimadaten!EN11,"") ->  | ER11: =IF(ER$2=1,Klimadaten!ER11,"") ->  | EV11: =IF(EV$2=1,Klimadaten!EV11,"") ->  | EZ11: =IF(EZ$2=1,Klimadaten!EZ11,"") ->  | FD11: =IF(FD$2=1,Klimadaten!FD11,"") ->  | FH11: =IF(FH$2=1,Klimadaten!FH11,"") ->  | FL11: =IF(FL$2=1,Klimadaten!FL11,"") ->  | FP11: =IF(FP$2=1,Klimadaten!FP11,"") ->  | FT11: =IF(FT$2=1,Klimadaten!FT11,"") ->  | FX11: =IF(FX$2=1,Klimadaten!FX11,"") ->  | GB11: =IF(GB$2=1,Klimadaten!GB11,"") ->  | GF11: =IF(GF$2=1,Klimadaten!GF11,"") ->  | GJ11: =IF(GJ$2=1,Klimadaten!GJ11,"") ->  | GN11: =IF(GN$2=1,Klimadaten!GN11,"") ->  | GR11: =IF(GR$2=1,Klimadaten!GR11,"") ->  | GV11: =IF(GV$2=1,Klimadaten!GV11,"") ->  | GZ11: =IF(GZ$2=1,Klimadaten!GZ11,"") ->  | HD11: =IF(HD$2=1,Klimadaten!HD11,"") ->  | HH11: =IF(HH$2=1,Klimadaten!HH11,"") ->  | HL11: =IF(HL$2=1,Klimadaten!HL11,"") -> 1 | IF11: =IF(IF$2=1,Klimadaten!IF11,"") ->  | IJ11: =IF(IJ$2=1,Klimadaten!IJ11,"") ->  | IN11: =IF(IN$2=1,Klimadaten!IN11,"") ->  | IR11: =IF(IR$2=1,Klimadaten!IR11,"") ->  | IV11: =IF(IV$2=1,Klimadaten!IV11,"") -> 
A12: -18 | D12: =IF(D$2=1,Klimadaten!D12,"") ->  | H12: =IF(H$2=1,Klimadaten!H12,"") -> 0 | L12: =IF(L$2=1,Klimadaten!L12,"") -> 0 | P12: =IF(P$2=1,Klimadaten!P12,"") ->  | T12: =IF(T$2=1,Klimadaten!T12,"") ->  | X12: =IF(X$2=1,Klimadaten!X12,"") ->  | AB12: =IF(AB$2=1,Klimadaten!AB12,"") ->  | AF12: =IF(AF$2=1,Klimadaten!AF12,"") ->  | AJ12: =IF(AJ$2=1,Klimadaten!AJ12,"") ->  | AN12: =IF(AN$2=1,Klimadaten!AN12,"") ->  | AR12: =IF(AR$2=1,Klimadaten!AR12,"") ->  | AV12: =IF(AV$2=1,Klimadaten!AV12,"") ->  | AZ12: =IF(AZ$2=1,Klimadaten!AZ12,"") ->  | BD12: =IF(BD$2=1,Klimadaten!BD12,"") ->  | BH12: =IF(BH$2=1,Klimadaten!BH12,"") ->  | BL12: =IF(BL$2=1,Klimadaten!BL12,"") ->  | BP12: =IF(BP$2=1,Klimadaten!BP12,"") ->  | BT12: =IF(BT$2=1,Klimadaten!BT12,"") ->  | BX12: =IF(BX$2=1,Klimadaten!BX12,"") ->  | CB12: =IF(CB$2=1,Klimadaten!CB12,"") ->  | CF12: =IF(CF$2=1,Klimadaten!CF12,"") ->  | CJ12: =IF(CJ$2=1,Klimadaten!CJ12,"") ->  | CN12: =IF(CN$2=1,Klimadaten!CN12,"") ->  | CR12: =IF(CR$2=1,Klimadaten!CR12,"") -> 0 | CV12: =IF(CV$2=1,Klimadaten!CV12,"") ->  | CZ12: =IF(CZ$2=1,Klimadaten!CZ12,"") ->  | DD12: =IF(DD$2=1,Klimadaten!DD12,"") ->  | DH12: =IF(DH$2=1,Klimadaten!DH12,"") ->  | DL12: =IF(DL$2=1,Klimadaten!DL12,"") ->  | DP12: =IF(DP$2=1,Klimadaten!DP12,"") ->  | DT12: =IF(DT$2=1,Klimadaten!DT12,"") ->  | DX12: =IF(DX$2=1,Klimadaten!DX12,"") ->  | EB12: =IF(EB$2=1,Klimadaten!EB12,"") ->  | EF12: =IF(EF$2=1,Klimadaten!EF12,"") ->  | EJ12: =IF(EJ$2=1,Klimadaten!EJ12,"") ->  | EN12: =IF(EN$2=1,Klimadaten!EN12,"") ->  | ER12: =IF(ER$2=1,Klimadaten!ER12,"") ->  | EV12: =IF(EV$2=1,Klimadaten!EV12,"") ->  | EZ12: =IF(EZ$2=1,Klimadaten!EZ12,"") ->  | FD12: =IF(FD$2=1,Klimadaten!FD12,"") ->  | FH12: =IF(FH$2=1,Klimadaten!FH12,"") ->  | FL12: =IF(FL$2=1,Klimadaten!FL12,"") ->  | FP12: =IF(FP$2=1,Klimadaten!FP12,"") ->  | FT12: =IF(FT$2=1,Klimadaten!FT12,"") ->  | FX12: =IF(FX$2=1,Klimadaten!FX12,"") ->  | GB12: =IF(GB$2=1,Klimadaten!GB12,"") ->  | GF12: =IF(GF$2=1,Klimadaten!GF12,"") ->  | GJ12: =IF(GJ$2=1,Klimadaten!GJ12,"") ->  | GN12: =IF(GN$2=1,Klimadaten!GN12,"") ->  | GR12: =IF(GR$2=1,Klimadaten!GR12,"") ->  | GV12: =IF(GV$2=1,Klimadaten!GV12,"") ->  | GZ12: =IF(GZ$2=1,Klimadaten!GZ12,"") ->  | HD12: =IF(HD$2=1,Klimadaten!HD12,"") ->  | HH12: =IF(HH$2=1,Klimadaten!HH12,"") ->  | HL12: =IF(HL$2=1,Klimadaten!HL12,"") -> 1 | IF12: =IF(IF$2=1,Klimadaten!IF12,"") ->  | IJ12: =IF(IJ$2=1,Klimadaten!IJ12,"") ->  | IN12: =IF(IN$2=1,Klimadaten!IN12,"") ->  | IR12: =IF(IR$2=1,Klimadaten!IR12,"") ->  | IV12: =IF(IV$2=1,Klimadaten!IV12,"") -> 
A13: -17 | D13: =IF(D$2=1,Klimadaten!D13,"") ->  | H13: =IF(H$2=1,Klimadaten!H13,"") -> 0 | L13: =IF(L$2=1,Klimadaten!L13,"") -> 0 | P13: =IF(P$2=1,Klimadaten!P13,"") ->  | T13: =IF(T$2=1,Klimadaten!T13,"") ->  | X13: =IF(X$2=1,Klimadaten!X13,"") ->  | AB13: =IF(AB$2=1,Klimadaten!AB13,"") ->  | AF13: =IF(AF$2=1,Klimadaten!AF13,"") ->  | AJ13: =IF(AJ$2=1,Klimadaten!AJ13,"") ->  | AN13: =IF(AN$2=1,Klimadaten!AN13,"") ->  | AR13: =IF(AR$2=1,Klimadaten!AR13,"") ->  | AV13: =IF(AV$2=1,Klimadaten!AV13,"") ->  | AZ13: =IF(AZ$2=1,Klimadaten!AZ13,"") ->  | BD13: =IF(BD$2=1,Klimadaten!BD13,"") ->  | BH13: =IF(BH$2=1,Klimadaten!BH13,"") ->  | BL13: =IF(BL$2=1,Klimadaten!BL13,"") ->  | BP13: =IF(BP$2=1,Klimadaten!BP13,"") ->  | BT13: =IF(BT$2=1,Klimadaten!BT13,"") ->  | BX13: =IF(BX$2=1,Klimadaten!BX13,"") ->  | CB13: =IF(CB$2=1,Klimadaten!CB13,"") ->  | CF13: =IF(CF$2=1,Klimadaten!CF13,"") ->  | CJ13: =IF(CJ$2=1,Klimadaten!CJ13,"") ->  | CN13: =IF(CN$2=1,Klimadaten!CN13,"") ->  | CR13: =IF(CR$2=1,Klimadaten!CR13,"") -> 0 | CV13: =IF(CV$2=1,Klimadaten!CV13,"") ->  | CZ13: =IF(CZ$2=1,Klimadaten!CZ13,"") ->  | DD13: =IF(DD$2=1,Klimadaten!DD13,"") ->  | DH13: =IF(DH$2=1,Klimadaten!DH13,"") ->  | DL13: =IF(DL$2=1,Klimadaten!DL13,"") ->  | DP13: =IF(DP$2=1,Klimadaten!DP13,"") ->  | DT13: =IF(DT$2=1,Klimadaten!DT13,"") ->  | DX13: =IF(DX$2=1,Klimadaten!DX13,"") ->  | EB13: =IF(EB$2=1,Klimadaten!EB13,"") ->  | EF13: =IF(EF$2=1,Klimadaten!EF13,"") ->  | EJ13: =IF(EJ$2=1,Klimadaten!EJ13,"") ->  | EN13: =IF(EN$2=1,Klimadaten!EN13,"") ->  | ER13: =IF(ER$2=1,Klimadaten!ER13,"") ->  | EV13: =IF(EV$2=1,Klimadaten!EV13,"") ->  | EZ13: =IF(EZ$2=1,Klimadaten!EZ13,"") ->  | FD13: =IF(FD$2=1,Klimadaten!FD13,"") ->  | FH13: =IF(FH$2=1,Klimadaten!FH13,"") ->  | FL13: =IF(FL$2=1,Klimadaten!FL13,"") ->  | FP13: =IF(FP$2=1,Klimadaten!FP13,"") ->  | FT13: =IF(FT$2=1,Klimadaten!FT13,"") ->  | FX13: =IF(FX$2=1,Klimadaten!FX13,"") ->  | GB13: =IF(GB$2=1,Klimadaten!GB13,"") ->  | GF13: =IF(GF$2=1,Klimadaten!GF13,"") ->  | GJ13: =IF(GJ$2=1,Klimadaten!GJ13,"") ->  | GN13: =IF(GN$2=1,Klimadaten!GN13,"") ->  | GR13: =IF(GR$2=1,Klimadaten!GR13,"") ->  | GV13: =IF(GV$2=1,Klimadaten!GV13,"") ->  | GZ13: =IF(GZ$2=1,Klimadaten!GZ13,"") ->  | HD13: =IF(HD$2=1,Klimadaten!HD13,"") ->  | HH13: =IF(HH$2=1,Klimadaten!HH13,"") ->  | HL13: =IF(HL$2=1,Klimadaten!HL13,"") -> 1 | IF13: =IF(IF$2=1,Klimadaten!IF13,"") ->  | IJ13: =IF(IJ$2=1,Klimadaten!IJ13,"") ->  | IN13: =IF(IN$2=1,Klimadaten!IN13,"") ->  | IR13: =IF(IR$2=1,Klimadaten!IR13,"") ->  | IV13: =IF(IV$2=1,Klimadaten!IV13,"") -> 
A14: -16 | D14: =IF(D$2=1,Klimadaten!D14,"") ->  | H14: =IF(H$2=1,Klimadaten!H14,"") -> 0 | L14: =IF(L$2=1,Klimadaten!L14,"") -> 0 | P14: =IF(P$2=1,Klimadaten!P14,"") ->  | T14: =IF(T$2=1,Klimadaten!T14,"") ->  | X14: =IF(X$2=1,Klimadaten!X14,"") ->  | AB14: =IF(AB$2=1,Klimadaten!AB14,"") ->  | AF14: =IF(AF$2=1,Klimadaten!AF14,"") ->  | AJ14: =IF(AJ$2=1,Klimadaten!AJ14,"") ->  | AN14: =IF(AN$2=1,Klimadaten!AN14,"") ->  | AR14: =IF(AR$2=1,Klimadaten!AR14,"") ->  | AV14: =IF(AV$2=1,Klimadaten!AV14,"") ->  | AZ14: =IF(AZ$2=1,Klimadaten!AZ14,"") ->  | BD14: =IF(BD$2=1,Klimadaten!BD14,"") ->  | BH14: =IF(BH$2=1,Klimadaten!BH14,"") ->  | BL14: =IF(BL$2=1,Klimadaten!BL14,"") ->  | BP14: =IF(BP$2=1,Klimadaten!BP14,"") ->  | BT14: =IF(BT$2=1,Klimadaten!BT14,"") ->  | BX14: =IF(BX$2=1,Klimadaten!BX14,"") ->  | CB14: =IF(CB$2=1,Klimadaten!CB14,"") ->  | CF14: =IF(CF$2=1,Klimadaten!CF14,"") ->  | CJ14: =IF(CJ$2=1,Klimadaten!CJ14,"") ->  | CN14: =IF(CN$2=1,Klimadaten!CN14,"") ->  | CR14: =IF(CR$2=1,Klimadaten!CR14,"") -> 0 | CV14: =IF(CV$2=1,Klimadaten!CV14,"") ->  | CZ14: =IF(CZ$2=1,Klimadaten!CZ14,"") ->  | DD14: =IF(DD$2=1,Klimadaten!DD14,"") ->  | DH14: =IF(DH$2=1,Klimadaten!DH14,"") ->  | DL14: =IF(DL$2=1,Klimadaten!DL14,"") ->  | DP14: =IF(DP$2=1,Klimadaten!DP14,"") ->  | DT14: =IF(DT$2=1,Klimadaten!DT14,"") ->  | DX14: =IF(DX$2=1,Klimadaten!DX14,"") ->  | EB14: =IF(EB$2=1,Klimadaten!EB14,"") ->  | EF14: =IF(EF$2=1,Klimadaten!EF14,"") ->  | EJ14: =IF(EJ$2=1,Klimadaten!EJ14,"") ->  | EN14: =IF(EN$2=1,Klimadaten!EN14,"") ->  | ER14: =IF(ER$2=1,Klimadaten!ER14,"") ->  | EV14: =IF(EV$2=1,Klimadaten!EV14,"") ->  | EZ14: =IF(EZ$2=1,Klimadaten!EZ14,"") ->  | FD14: =IF(FD$2=1,Klimadaten!FD14,"") ->  | FH14: =IF(FH$2=1,Klimadaten!FH14,"") ->  | FL14: =IF(FL$2=1,Klimadaten!FL14,"") ->  | FP14: =IF(FP$2=1,Klimadaten!FP14,"") ->  | FT14: =IF(FT$2=1,Klimadaten!FT14,"") ->  | FX14: =IF(FX$2=1,Klimadaten!FX14,"") ->  | GB14: =IF(GB$2=1,Klimadaten!GB14,"") ->  | GF14: =IF(GF$2=1,Klimadaten!GF14,"") ->  | GJ14: =IF(GJ$2=1,Klimadaten!GJ14,"") ->  | GN14: =IF(GN$2=1,Klimadaten!GN14,"") ->  | GR14: =IF(GR$2=1,Klimadaten!GR14,"") ->  | GV14: =IF(GV$2=1,Klimadaten!GV14,"") ->  | GZ14: =IF(GZ$2=1,Klimadaten!GZ14,"") ->  | HD14: =IF(HD$2=1,Klimadaten!HD14,"") ->  | HH14: =IF(HH$2=1,Klimadaten!HH14,"") ->  | HL14: =IF(HL$2=1,Klimadaten!HL14,"") -> 2 | IF14: =IF(IF$2=1,Klimadaten!IF14,"") ->  | IJ14: =IF(IJ$2=1,Klimadaten!IJ14,"") ->  | IN14: =IF(IN$2=1,Klimadaten!IN14,"") ->  | IR14: =IF(IR$2=1,Klimadaten!IR14,"") ->  | IV14: =IF(IV$2=1,Klimadaten!IV14,"") -> 
A15: -15 | D15: =IF(D$2=1,Klimadaten!D15,"") ->  | H15: =IF(H$2=1,Klimadaten!H15,"") -> 0 | L15: =IF(L$2=1,Klimadaten!L15,"") -> 0 | P15: =IF(P$2=1,Klimadaten!P15,"") ->  | T15: =IF(T$2=1,Klimadaten!T15,"") ->  | X15: =IF(X$2=1,Klimadaten!X15,"") ->  | AB15: =IF(AB$2=1,Klimadaten!AB15,"") ->  | AF15: =IF(AF$2=1,Klimadaten!AF15,"") ->  | AJ15: =IF(AJ$2=1,Klimadaten!AJ15,"") ->  | AN15: =IF(AN$2=1,Klimadaten!AN15,"") ->  | AR15: =IF(AR$2=1,Klimadaten!AR15,"") ->  | AV15: =IF(AV$2=1,Klimadaten!AV15,"") ->  | AZ15: =IF(AZ$2=1,Klimadaten!AZ15,"") ->  | BD15: =IF(BD$2=1,Klimadaten!BD15,"") ->  | BH15: =IF(BH$2=1,Klimadaten!BH15,"") ->  | BL15: =IF(BL$2=1,Klimadaten!BL15,"") ->  | BP15: =IF(BP$2=1,Klimadaten!BP15,"") ->  | BT15: =IF(BT$2=1,Klimadaten!BT15,"") ->  | BX15: =IF(BX$2=1,Klimadaten!BX15,"") ->  | CB15: =IF(CB$2=1,Klimadaten!CB15,"") ->  | CF15: =IF(CF$2=1,Klimadaten!CF15,"") ->  | CJ15: =IF(CJ$2=1,Klimadaten!CJ15,"") ->  | CN15: =IF(CN$2=1,Klimadaten!CN15,"") ->  | CR15: =IF(CR$2=1,Klimadaten!CR15,"") -> 0 | CV15: =IF(CV$2=1,Klimadaten!CV15,"") ->  | CZ15: =IF(CZ$2=1,Klimadaten!CZ15,"") ->  | DD15: =IF(DD$2=1,Klimadaten!DD15,"") ->  | DH15: =IF(DH$2=1,Klimadaten!DH15,"") ->  | DL15: =IF(DL$2=1,Klimadaten!DL15,"") ->  | DP15: =IF(DP$2=1,Klimadaten!DP15,"") ->  | DT15: =IF(DT$2=1,Klimadaten!DT15,"") ->  | DX15: =IF(DX$2=1,Klimadaten!DX15,"") ->  | EB15: =IF(EB$2=1,Klimadaten!EB15,"") ->  | EF15: =IF(EF$2=1,Klimadaten!EF15,"") ->  | EJ15: =IF(EJ$2=1,Klimadaten!EJ15,"") ->  | EN15: =IF(EN$2=1,Klimadaten!EN15,"") ->  | ER15: =IF(ER$2=1,Klimadaten!ER15,"") ->  | EV15: =IF(EV$2=1,Klimadaten!EV15,"") ->  | EZ15: =IF(EZ$2=1,Klimadaten!EZ15,"") ->  | FD15: =IF(FD$2=1,Klimadaten!FD15,"") ->  | FH15: =IF(FH$2=1,Klimadaten!FH15,"") ->  | FL15: =IF(FL$2=1,Klimadaten!FL15,"") ->  | FP15: =IF(FP$2=1,Klimadaten!FP15,"") ->  | FT15: =IF(FT$2=1,Klimadaten!FT15,"") ->  | FX15: =IF(FX$2=1,Klimadaten!FX15,"") ->  | GB15: =IF(GB$2=1,Klimadaten!GB15,"") ->  | GF15: =IF(GF$2=1,Klimadaten!GF15,"") ->  | GJ15: =IF(GJ$2=1,Klimadaten!GJ15,"") ->  | GN15: =IF(GN$2=1,Klimadaten!GN15,"") ->  | GR15: =IF(GR$2=1,Klimadaten!GR15,"") ->  | GV15: =IF(GV$2=1,Klimadaten!GV15,"") ->  | GZ15: =IF(GZ$2=1,Klimadaten!GZ15,"") ->  | HD15: =IF(HD$2=1,Klimadaten!HD15,"") ->  | HH15: =IF(HH$2=1,Klimadaten!HH15,"") ->  | HL15: =IF(HL$2=1,Klimadaten!HL15,"") -> 2 | IF15: =IF(IF$2=1,Klimadaten!IF15,"") ->  | IJ15: =IF(IJ$2=1,Klimadaten!IJ15,"") ->  | IN15: =IF(IN$2=1,Klimadaten!IN15,"") ->  | IR15: =IF(IR$2=1,Klimadaten!IR15,"") ->  | IV15: =IF(IV$2=1,Klimadaten!IV15,"") -> 
A16: -14 | D16: =IF(D$2=1,Klimadaten!D16,"") ->  | H16: =IF(H$2=1,Klimadaten!H16,"") -> 0 | L16: =IF(L$2=1,Klimadaten!L16,"") -> 0 | P16: =IF(P$2=1,Klimadaten!P16,"") ->  | T16: =IF(T$2=1,Klimadaten!T16,"") ->  | X16: =IF(X$2=1,Klimadaten!X16,"") ->  | AB16: =IF(AB$2=1,Klimadaten!AB16,"") ->  | AF16: =IF(AF$2=1,Klimadaten!AF16,"") ->  | AJ16: =IF(AJ$2=1,Klimadaten!AJ16,"") ->  | AN16: =IF(AN$2=1,Klimadaten!AN16,"") ->  | AR16: =IF(AR$2=1,Klimadaten!AR16,"") ->  | AV16: =IF(AV$2=1,Klimadaten!AV16,"") ->  | AZ16: =IF(AZ$2=1,Klimadaten!AZ16,"") ->  | BD16: =IF(BD$2=1,Klimadaten!BD16,"") ->  | BH16: =IF(BH$2=1,Klimadaten!BH16,"") ->  | BL16: =IF(BL$2=1,Klimadaten!BL16,"") ->  | BP16: =IF(BP$2=1,Klimadaten!BP16,"") ->  | BT16: =IF(BT$2=1,Klimadaten!BT16,"") ->  | BX16: =IF(BX$2=1,Klimadaten!BX16,"") ->  | CB16: =IF(CB$2=1,Klimadaten!CB16,"") ->  | CF16: =IF(CF$2=1,Klimadaten!CF16,"") ->  | CJ16: =IF(CJ$2=1,Klimadaten!CJ16,"") ->  | CN16: =IF(CN$2=1,Klimadaten!CN16,"") ->  | CR16: =IF(CR$2=1,Klimadaten!CR16,"") -> 0 | CV16: =IF(CV$2=1,Klimadaten!CV16,"") ->  | CZ16: =IF(CZ$2=1,Klimadaten!CZ16,"") ->  | DD16: =IF(DD$2=1,Klimadaten!DD16,"") ->  | DH16: =IF(DH$2=1,Klimadaten!DH16,"") ->  | DL16: =IF(DL$2=1,Klimadaten!DL16,"") ->  | DP16: =IF(DP$2=1,Klimadaten!DP16,"") ->  | DT16: =IF(DT$2=1,Klimadaten!DT16,"") ->  | DX16: =IF(DX$2=1,Klimadaten!DX16,"") ->  | EB16: =IF(EB$2=1,Klimadaten!EB16,"") ->  | EF16: =IF(EF$2=1,Klimadaten!EF16,"") ->  | EJ16: =IF(EJ$2=1,Klimadaten!EJ16,"") ->  | EN16: =IF(EN$2=1,Klimadaten!EN16,"") ->  | ER16: =IF(ER$2=1,Klimadaten!ER16,"") ->  | EV16: =IF(EV$2=1,Klimadaten!EV16,"") ->  | EZ16: =IF(EZ$2=1,Klimadaten!EZ16,"") ->  | FD16: =IF(FD$2=1,Klimadaten!FD16,"") ->  | FH16: =IF(FH$2=1,Klimadaten!FH16,"") ->  | FL16: =IF(FL$2=1,Klimadaten!FL16,"") ->  | FP16: =IF(FP$2=1,Klimadaten!FP16,"") ->  | FT16: =IF(FT$2=1,Klimadaten!FT16,"") ->  | FX16: =IF(FX$2=1,Klimadaten!FX16,"") ->  | GB16: =IF(GB$2=1,Klimadaten!GB16,"") ->  | GF16: =IF(GF$2=1,Klimadaten!GF16,"") ->  | GJ16: =IF(GJ$2=1,Klimadaten!GJ16,"") ->  | GN16: =IF(GN$2=1,Klimadaten!GN16,"") ->  | GR16: =IF(GR$2=1,Klimadaten!GR16,"") ->  | GV16: =IF(GV$2=1,Klimadaten!GV16,"") ->  | GZ16: =IF(GZ$2=1,Klimadaten!GZ16,"") ->  | HD16: =IF(HD$2=1,Klimadaten!HD16,"") ->  | HH16: =IF(HH$2=1,Klimadaten!HH16,"") ->  | HL16: =IF(HL$2=1,Klimadaten!HL16,"") -> 3 | IF16: =IF(IF$2=1,Klimadaten!IF16,"") ->  | IJ16: =IF(IJ$2=1,Klimadaten!IJ16,"") ->  | IN16: =IF(IN$2=1,Klimadaten!IN16,"") ->  | IR16: =IF(IR$2=1,Klimadaten!IR16,"") ->  | IV16: =IF(IV$2=1,Klimadaten!IV16,"") -> 
A17: -13 | D17: =IF(D$2=1,Klimadaten!D17,"") ->  | H17: =IF(H$2=1,Klimadaten!H17,"") -> 0 | L17: =IF(L$2=1,Klimadaten!L17,"") -> 0 | P17: =IF(P$2=1,Klimadaten!P17,"") ->  | T17: =IF(T$2=1,Klimadaten!T17,"") ->  | X17: =IF(X$2=1,Klimadaten!X17,"") ->  | AB17: =IF(AB$2=1,Klimadaten!AB17,"") ->  | AF17: =IF(AF$2=1,Klimadaten!AF17,"") ->  | AJ17: =IF(AJ$2=1,Klimadaten!AJ17,"") ->  | AN17: =IF(AN$2=1,Klimadaten!AN17,"") ->  | AR17: =IF(AR$2=1,Klimadaten!AR17,"") ->  | AV17: =IF(AV$2=1,Klimadaten!AV17,"") ->  | AZ17: =IF(AZ$2=1,Klimadaten!AZ17,"") ->  | BD17: =IF(BD$2=1,Klimadaten!BD17,"") ->  | BH17: =IF(BH$2=1,Klimadaten!BH17,"") ->  | BL17: =IF(BL$2=1,Klimadaten!BL17,"") ->  | BP17: =IF(BP$2=1,Klimadaten!BP17,"") ->  | BT17: =IF(BT$2=1,Klimadaten!BT17,"") ->  | BX17: =IF(BX$2=1,Klimadaten!BX17,"") ->  | CB17: =IF(CB$2=1,Klimadaten!CB17,"") ->  | CF17: =IF(CF$2=1,Klimadaten!CF17,"") ->  | CJ17: =IF(CJ$2=1,Klimadaten!CJ17,"") ->  | CN17: =IF(CN$2=1,Klimadaten!CN17,"") ->  | CR17: =IF(CR$2=1,Klimadaten!CR17,"") -> 0 | CV17: =IF(CV$2=1,Klimadaten!CV17,"") ->  | CZ17: =IF(CZ$2=1,Klimadaten!CZ17,"") ->  | DD17: =IF(DD$2=1,Klimadaten!DD17,"") ->  | DH17: =IF(DH$2=1,Klimadaten!DH17,"") ->  | DL17: =IF(DL$2=1,Klimadaten!DL17,"") ->  | DP17: =IF(DP$2=1,Klimadaten!DP17,"") ->  | DT17: =IF(DT$2=1,Klimadaten!DT17,"") ->  | DX17: =IF(DX$2=1,Klimadaten!DX17,"") ->  | EB17: =IF(EB$2=1,Klimadaten!EB17,"") ->  | EF17: =IF(EF$2=1,Klimadaten!EF17,"") ->  | EJ17: =IF(EJ$2=1,Klimadaten!EJ17,"") ->  | EN17: =IF(EN$2=1,Klimadaten!EN17,"") ->  | ER17: =IF(ER$2=1,Klimadaten!ER17,"") ->  | EV17: =IF(EV$2=1,Klimadaten!EV17,"") ->  | EZ17: =IF(EZ$2=1,Klimadaten!EZ17,"") ->  | FD17: =IF(FD$2=1,Klimadaten!FD17,"") ->  | FH17: =IF(FH$2=1,Klimadaten!FH17,"") ->  | FL17: =IF(FL$2=1,Klimadaten!FL17,"") ->  | FP17: =IF(FP$2=1,Klimadaten!FP17,"") ->  | FT17: =IF(FT$2=1,Klimadaten!FT17,"") ->  | FX17: =IF(FX$2=1,Klimadaten!FX17,"") ->  | GB17: =IF(GB$2=1,Klimadaten!GB17,"") ->  | GF17: =IF(GF$2=1,Klimadaten!GF17,"") ->  | GJ17: =IF(GJ$2=1,Klimadaten!GJ17,"") ->  | GN17: =IF(GN$2=1,Klimadaten!GN17,"") ->  | GR17: =IF(GR$2=1,Klimadaten!GR17,"") ->  | GV17: =IF(GV$2=1,Klimadaten!GV17,"") ->  | GZ17: =IF(GZ$2=1,Klimadaten!GZ17,"") ->  | HD17: =IF(HD$2=1,Klimadaten!HD17,"") ->  | HH17: =IF(HH$2=1,Klimadaten!HH17,"") ->  | HL17: =IF(HL$2=1,Klimadaten!HL17,"") -> 4 | IF17: =IF(IF$2=1,Klimadaten!IF17,"") ->  | IJ17: =IF(IJ$2=1,Klimadaten!IJ17,"") ->  | IN17: =IF(IN$2=1,Klimadaten!IN17,"") ->  | IR17: =IF(IR$2=1,Klimadaten!IR17,"") ->  | IV17: =IF(IV$2=1,Klimadaten!IV17,"") -> 
A18: -12 | D18: =IF(D$2=1,Klimadaten!D18,"") ->  | H18: =IF(H$2=1,Klimadaten!H18,"") -> 0 | L18: =IF(L$2=1,Klimadaten!L18,"") -> 0 | P18: =IF(P$2=1,Klimadaten!P18,"") ->  | T18: =IF(T$2=1,Klimadaten!T18,"") ->  | X18: =IF(X$2=1,Klimadaten!X18,"") ->  | AB18: =IF(AB$2=1,Klimadaten!AB18,"") ->  | AF18: =IF(AF$2=1,Klimadaten!AF18,"") ->  | AJ18: =IF(AJ$2=1,Klimadaten!AJ18,"") ->  | AN18: =IF(AN$2=1,Klimadaten!AN18,"") ->  | AR18: =IF(AR$2=1,Klimadaten!AR18,"") ->  | AV18: =IF(AV$2=1,Klimadaten!AV18,"") ->  | AZ18: =IF(AZ$2=1,Klimadaten!AZ18,"") ->  | BD18: =IF(BD$2=1,Klimadaten!BD18,"") ->  | BH18: =IF(BH$2=1,Klimadaten!BH18,"") ->  | BL18: =IF(BL$2=1,Klimadaten!BL18,"") ->  | BP18: =IF(BP$2=1,Klimadaten!BP18,"") ->  | BT18: =IF(BT$2=1,Klimadaten!BT18,"") ->  | BX18: =IF(BX$2=1,Klimadaten!BX18,"") ->  | CB18: =IF(CB$2=1,Klimadaten!CB18,"") ->  | CF18: =IF(CF$2=1,Klimadaten!CF18,"") ->  | CJ18: =IF(CJ$2=1,Klimadaten!CJ18,"") ->  | CN18: =IF(CN$2=1,Klimadaten!CN18,"") ->  | CR18: =IF(CR$2=1,Klimadaten!CR18,"") -> 0 | CV18: =IF(CV$2=1,Klimadaten!CV18,"") ->  | CZ18: =IF(CZ$2=1,Klimadaten!CZ18,"") ->  | DD18: =IF(DD$2=1,Klimadaten!DD18,"") ->  | DH18: =IF(DH$2=1,Klimadaten!DH18,"") ->  | DL18: =IF(DL$2=1,Klimadaten!DL18,"") ->  | DP18: =IF(DP$2=1,Klimadaten!DP18,"") ->  | DT18: =IF(DT$2=1,Klimadaten!DT18,"") ->  | DX18: =IF(DX$2=1,Klimadaten!DX18,"") ->  | EB18: =IF(EB$2=1,Klimadaten!EB18,"") ->  | EF18: =IF(EF$2=1,Klimadaten!EF18,"") ->  | EJ18: =IF(EJ$2=1,Klimadaten!EJ18,"") ->  | EN18: =IF(EN$2=1,Klimadaten!EN18,"") ->  | ER18: =IF(ER$2=1,Klimadaten!ER18,"") ->  | EV18: =IF(EV$2=1,Klimadaten!EV18,"") ->  | EZ18: =IF(EZ$2=1,Klimadaten!EZ18,"") ->  | FD18: =IF(FD$2=1,Klimadaten!FD18,"") ->  | FH18: =IF(FH$2=1,Klimadaten!FH18,"") ->  | FL18: =IF(FL$2=1,Klimadaten!FL18,"") ->  | FP18: =IF(FP$2=1,Klimadaten!FP18,"") ->  | FT18: =IF(FT$2=1,Klimadaten!FT18,"") ->  | FX18: =IF(FX$2=1,Klimadaten!FX18,"") ->  | GB18: =IF(GB$2=1,Klimadaten!GB18,"") ->  | GF18: =IF(GF$2=1,Klimadaten!GF18,"") ->  | GJ18: =IF(GJ$2=1,Klimadaten!GJ18,"") ->  | GN18: =IF(GN$2=1,Klimadaten!GN18,"") ->  | GR18: =IF(GR$2=1,Klimadaten!GR18,"") ->  | GV18: =IF(GV$2=1,Klimadaten!GV18,"") ->  | GZ18: =IF(GZ$2=1,Klimadaten!GZ18,"") ->  | HD18: =IF(HD$2=1,Klimadaten!HD18,"") ->  | HH18: =IF(HH$2=1,Klimadaten!HH18,"") ->  | HL18: =IF(HL$2=1,Klimadaten!HL18,"") -> 4 | IF18: =IF(IF$2=1,Klimadaten!IF18,"") ->  | IJ18: =IF(IJ$2=1,Klimadaten!IJ18,"") ->  | IN18: =IF(IN$2=1,Klimadaten!IN18,"") ->  | IR18: =IF(IR$2=1,Klimadaten!IR18,"") ->  | IV18: =IF(IV$2=1,Klimadaten!IV18,"") -> 
A19: -11 | D19: =IF(D$2=1,Klimadaten!D19,"") ->  | H19: =IF(H$2=1,Klimadaten!H19,"") -> 0 | L19: =IF(L$2=1,Klimadaten!L19,"") -> 0 | P19: =IF(P$2=1,Klimadaten!P19,"") ->  | T19: =IF(T$2=1,Klimadaten!T19,"") ->  | X19: =IF(X$2=1,Klimadaten!X19,"") ->  | AB19: =IF(AB$2=1,Klimadaten!AB19,"") ->  | AF19: =IF(AF$2=1,Klimadaten!AF19,"") ->  | AJ19: =IF(AJ$2=1,Klimadaten!AJ19,"") ->  | AN19: =IF(AN$2=1,Klimadaten!AN19,"") ->  | AR19: =IF(AR$2=1,Klimadaten!AR19,"") ->  | AV19: =IF(AV$2=1,Klimadaten!AV19,"") ->  | AZ19: =IF(AZ$2=1,Klimadaten!AZ19,"") ->  | BD19: =IF(BD$2=1,Klimadaten!BD19,"") ->  | BH19: =IF(BH$2=1,Klimadaten!BH19,"") ->  | BL19: =IF(BL$2=1,Klimadaten!BL19,"") ->  | BP19: =IF(BP$2=1,Klimadaten!BP19,"") ->  | BT19: =IF(BT$2=1,Klimadaten!BT19,"") ->  | BX19: =IF(BX$2=1,Klimadaten!BX19,"") ->  | CB19: =IF(CB$2=1,Klimadaten!CB19,"") ->  | CF19: =IF(CF$2=1,Klimadaten!CF19,"") ->  | CJ19: =IF(CJ$2=1,Klimadaten!CJ19,"") ->  | CN19: =IF(CN$2=1,Klimadaten!CN19,"") ->  | CR19: =IF(CR$2=1,Klimadaten!CR19,"") -> 1 | CV19: =IF(CV$2=1,Klimadaten!CV19,"") ->  | CZ19: =IF(CZ$2=1,Klimadaten!CZ19,"") ->  | DD19: =IF(DD$2=1,Klimadaten!DD19,"") ->  | DH19: =IF(DH$2=1,Klimadaten!DH19,"") ->  | DL19: =IF(DL$2=1,Klimadaten!DL19,"") ->  | DP19: =IF(DP$2=1,Klimadaten!DP19,"") ->  | DT19: =IF(DT$2=1,Klimadaten!DT19,"") ->  | DX19: =IF(DX$2=1,Klimadaten!DX19,"") ->  | EB19: =IF(EB$2=1,Klimadaten!EB19,"") ->  | EF19: =IF(EF$2=1,Klimadaten!EF19,"") ->  | EJ19: =IF(EJ$2=1,Klimadaten!EJ19,"") ->  | EN19: =IF(EN$2=1,Klimadaten!EN19,"") ->  | ER19: =IF(ER$2=1,Klimadaten!ER19,"") ->  | EV19: =IF(EV$2=1,Klimadaten!EV19,"") ->  | EZ19: =IF(EZ$2=1,Klimadaten!EZ19,"") ->  | FD19: =IF(FD$2=1,Klimadaten!FD19,"") ->  | FH19: =IF(FH$2=1,Klimadaten!FH19,"") ->  | FL19: =IF(FL$2=1,Klimadaten!FL19,"") ->  | FP19: =IF(FP$2=1,Klimadaten!FP19,"") ->  | FT19: =IF(FT$2=1,Klimadaten!FT19,"") ->  | FX19: =IF(FX$2=1,Klimadaten!FX19,"") ->  | GB19: =IF(GB$2=1,Klimadaten!GB19,"") ->  | GF19: =IF(GF$2=1,Klimadaten!GF19,"") ->  | GJ19: =IF(GJ$2=1,Klimadaten!GJ19,"") ->  | GN19: =IF(GN$2=1,Klimadaten!GN19,"") ->  | GR19: =IF(GR$2=1,Klimadaten!GR19,"") ->  | GV19: =IF(GV$2=1,Klimadaten!GV19,"") ->  | GZ19: =IF(GZ$2=1,Klimadaten!GZ19,"") ->  | HD19: =IF(HD$2=1,Klimadaten!HD19,"") ->  | HH19: =IF(HH$2=1,Klimadaten!HH19,"") ->  | HL19: =IF(HL$2=1,Klimadaten!HL19,"") -> 4 | IF19: =IF(IF$2=1,Klimadaten!IF19,"") ->  | IJ19: =IF(IJ$2=1,Klimadaten!IJ19,"") ->  | IN19: =IF(IN$2=1,Klimadaten!IN19,"") ->  | IR19: =IF(IR$2=1,Klimadaten!IR19,"") ->  | IV19: =IF(IV$2=1,Klimadaten!IV19,"") -> 
A20: -10 | D20: =IF(D$2=1,Klimadaten!D20,"") ->  | H20: =IF(H$2=1,Klimadaten!H20,"") -> 0 | L20: =IF(L$2=1,Klimadaten!L20,"") -> 0 | P20: =IF(P$2=1,Klimadaten!P20,"") ->  | T20: =IF(T$2=1,Klimadaten!T20,"") ->  | X20: =IF(X$2=1,Klimadaten!X20,"") ->  | AB20: =IF(AB$2=1,Klimadaten!AB20,"") ->  | AF20: =IF(AF$2=1,Klimadaten!AF20,"") ->  | AJ20: =IF(AJ$2=1,Klimadaten!AJ20,"") ->  | AN20: =IF(AN$2=1,Klimadaten!AN20,"") ->  | AR20: =IF(AR$2=1,Klimadaten!AR20,"") ->  | AV20: =IF(AV$2=1,Klimadaten!AV20,"") ->  | AZ20: =IF(AZ$2=1,Klimadaten!AZ20,"") ->  | BD20: =IF(BD$2=1,Klimadaten!BD20,"") ->  | BH20: =IF(BH$2=1,Klimadaten!BH20,"") ->  | BL20: =IF(BL$2=1,Klimadaten!BL20,"") ->  | BP20: =IF(BP$2=1,Klimadaten!BP20,"") ->  | BT20: =IF(BT$2=1,Klimadaten!BT20,"") ->  | BX20: =IF(BX$2=1,Klimadaten!BX20,"") ->  | CB20: =IF(CB$2=1,Klimadaten!CB20,"") ->  | CF20: =IF(CF$2=1,Klimadaten!CF20,"") ->  | CJ20: =IF(CJ$2=1,Klimadaten!CJ20,"") ->  | CN20: =IF(CN$2=1,Klimadaten!CN20,"") ->  | CR20: =IF(CR$2=1,Klimadaten!CR20,"") -> 1 | CV20: =IF(CV$2=1,Klimadaten!CV20,"") ->  | CZ20: =IF(CZ$2=1,Klimadaten!CZ20,"") ->  | DD20: =IF(DD$2=1,Klimadaten!DD20,"") ->  | DH20: =IF(DH$2=1,Klimadaten!DH20,"") ->  | DL20: =IF(DL$2=1,Klimadaten!DL20,"") ->  | DP20: =IF(DP$2=1,Klimadaten!DP20,"") ->  | DT20: =IF(DT$2=1,Klimadaten!DT20,"") ->  | DX20: =IF(DX$2=1,Klimadaten!DX20,"") ->  | EB20: =IF(EB$2=1,Klimadaten!EB20,"") ->  | EF20: =IF(EF$2=1,Klimadaten!EF20,"") ->  | EJ20: =IF(EJ$2=1,Klimadaten!EJ20,"") ->  | EN20: =IF(EN$2=1,Klimadaten!EN20,"") ->  | ER20: =IF(ER$2=1,Klimadaten!ER20,"") ->  | EV20: =IF(EV$2=1,Klimadaten!EV20,"") ->  | EZ20: =IF(EZ$2=1,Klimadaten!EZ20,"") ->  | FD20: =IF(FD$2=1,Klimadaten!FD20,"") ->  | FH20: =IF(FH$2=1,Klimadaten!FH20,"") ->  | FL20: =IF(FL$2=1,Klimadaten!FL20,"") ->  | FP20: =IF(FP$2=1,Klimadaten!FP20,"") ->  | FT20: =IF(FT$2=1,Klimadaten!FT20,"") ->  | FX20: =IF(FX$2=1,Klimadaten!FX20,"") ->  | GB20: =IF(GB$2=1,Klimadaten!GB20,"") ->  | GF20: =IF(GF$2=1,Klimadaten!GF20,"") ->  | GJ20: =IF(GJ$2=1,Klimadaten!GJ20,"") ->  | GN20: =IF(GN$2=1,Klimadaten!GN20,"") ->  | GR20: =IF(GR$2=1,Klimadaten!GR20,"") ->  | GV20: =IF(GV$2=1,Klimadaten!GV20,"") ->  | GZ20: =IF(GZ$2=1,Klimadaten!GZ20,"") ->  | HD20: =IF(HD$2=1,Klimadaten!HD20,"") ->  | HH20: =IF(HH$2=1,Klimadaten!HH20,"") ->  | HL20: =IF(HL$2=1,Klimadaten!HL20,"") -> 5 | IF20: =IF(IF$2=1,Klimadaten!IF20,"") ->  | IJ20: =IF(IJ$2=1,Klimadaten!IJ20,"") ->  | IN20: =IF(IN$2=1,Klimadaten!IN20,"") ->  | IR20: =IF(IR$2=1,Klimadaten!IR20,"") ->  | IV20: =IF(IV$2=1,Klimadaten!IV20,"") -> 
A21: -9 | D21: =IF(D$2=1,Klimadaten!D21,"") ->  | H21: =IF(H$2=1,Klimadaten!H21,"") -> 0 | L21: =IF(L$2=1,Klimadaten!L21,"") -> 0 | P21: =IF(P$2=1,Klimadaten!P21,"") ->  | T21: =IF(T$2=1,Klimadaten!T21,"") ->  | X21: =IF(X$2=1,Klimadaten!X21,"") ->  | AB21: =IF(AB$2=1,Klimadaten!AB21,"") ->  | AF21: =IF(AF$2=1,Klimadaten!AF21,"") ->  | AJ21: =IF(AJ$2=1,Klimadaten!AJ21,"") ->  | AN21: =IF(AN$2=1,Klimadaten!AN21,"") ->  | AR21: =IF(AR$2=1,Klimadaten!AR21,"") ->  | AV21: =IF(AV$2=1,Klimadaten!AV21,"") ->  | AZ21: =IF(AZ$2=1,Klimadaten!AZ21,"") ->  | BD21: =IF(BD$2=1,Klimadaten!BD21,"") ->  | BH21: =IF(BH$2=1,Klimadaten!BH21,"") ->  | BL21: =IF(BL$2=1,Klimadaten!BL21,"") ->  | BP21: =IF(BP$2=1,Klimadaten!BP21,"") ->  | BT21: =IF(BT$2=1,Klimadaten!BT21,"") ->  | BX21: =IF(BX$2=1,Klimadaten!BX21,"") ->  | CB21: =IF(CB$2=1,Klimadaten!CB21,"") ->  | CF21: =IF(CF$2=1,Klimadaten!CF21,"") ->  | CJ21: =IF(CJ$2=1,Klimadaten!CJ21,"") ->  | CN21: =IF(CN$2=1,Klimadaten!CN21,"") ->  | CR21: =IF(CR$2=1,Klimadaten!CR21,"") -> 2 | CV21: =IF(CV$2=1,Klimadaten!CV21,"") ->  | CZ21: =IF(CZ$2=1,Klimadaten!CZ21,"") ->  | DD21: =IF(DD$2=1,Klimadaten!DD21,"") ->  | DH21: =IF(DH$2=1,Klimadaten!DH21,"") ->  | DL21: =IF(DL$2=1,Klimadaten!DL21,"") ->  | DP21: =IF(DP$2=1,Klimadaten!DP21,"") ->  | DT21: =IF(DT$2=1,Klimadaten!DT21,"") ->  | DX21: =IF(DX$2=1,Klimadaten!DX21,"") ->  | EB21: =IF(EB$2=1,Klimadaten!EB21,"") ->  | EF21: =IF(EF$2=1,Klimadaten!EF21,"") ->  | EJ21: =IF(EJ$2=1,Klimadaten!EJ21,"") ->  | EN21: =IF(EN$2=1,Klimadaten!EN21,"") ->  | ER21: =IF(ER$2=1,Klimadaten!ER21,"") ->  | EV21: =IF(EV$2=1,Klimadaten!EV21,"") ->  | EZ21: =IF(EZ$2=1,Klimadaten!EZ21,"") ->  | FD21: =IF(FD$2=1,Klimadaten!FD21,"") ->  | FH21: =IF(FH$2=1,Klimadaten!FH21,"") ->  | FL21: =IF(FL$2=1,Klimadaten!FL21,"") ->  | FP21: =IF(FP$2=1,Klimadaten!FP21,"") ->  | FT21: =IF(FT$2=1,Klimadaten!FT21,"") ->  | FX21: =IF(FX$2=1,Klimadaten!FX21,"") ->  | GB21: =IF(GB$2=1,Klimadaten!GB21,"") ->  | GF21: =IF(GF$2=1,Klimadaten!GF21,"") ->  | GJ21: =IF(GJ$2=1,Klimadaten!GJ21,"") ->  | GN21: =IF(GN$2=1,Klimadaten!GN21,"") ->  | GR21: =IF(GR$2=1,Klimadaten!GR21,"") ->  | GV21: =IF(GV$2=1,Klimadaten!GV21,"") ->  | GZ21: =IF(GZ$2=1,Klimadaten!GZ21,"") ->  | HD21: =IF(HD$2=1,Klimadaten!HD21,"") ->  | HH21: =IF(HH$2=1,Klimadaten!HH21,"") ->  | HL21: =IF(HL$2=1,Klimadaten!HL21,"") -> 7 | IF21: =IF(IF$2=1,Klimadaten!IF21,"") ->  | IJ21: =IF(IJ$2=1,Klimadaten!IJ21,"") ->  | IN21: =IF(IN$2=1,Klimadaten!IN21,"") ->  | IR21: =IF(IR$2=1,Klimadaten!IR21,"") ->  | IV21: =IF(IV$2=1,Klimadaten!IV21,"") -> 
A22: -8 | D22: =IF(D$2=1,Klimadaten!D22,"") ->  | H22: =IF(H$2=1,Klimadaten!H22,"") -> 0 | L22: =IF(L$2=1,Klimadaten!L22,"") -> 0 | P22: =IF(P$2=1,Klimadaten!P22,"") ->  | T22: =IF(T$2=1,Klimadaten!T22,"") ->  | X22: =IF(X$2=1,Klimadaten!X22,"") ->  | AB22: =IF(AB$2=1,Klimadaten!AB22,"") ->  | AF22: =IF(AF$2=1,Klimadaten!AF22,"") ->  | AJ22: =IF(AJ$2=1,Klimadaten!AJ22,"") ->  | AN22: =IF(AN$2=1,Klimadaten!AN22,"") ->  | AR22: =IF(AR$2=1,Klimadaten!AR22,"") ->  | AV22: =IF(AV$2=1,Klimadaten!AV22,"") ->  | AZ22: =IF(AZ$2=1,Klimadaten!AZ22,"") ->  | BD22: =IF(BD$2=1,Klimadaten!BD22,"") ->  | BH22: =IF(BH$2=1,Klimadaten!BH22,"") ->  | BL22: =IF(BL$2=1,Klimadaten!BL22,"") ->  | BP22: =IF(BP$2=1,Klimadaten!BP22,"") ->  | BT22: =IF(BT$2=1,Klimadaten!BT22,"") ->  | BX22: =IF(BX$2=1,Klimadaten!BX22,"") ->  | CB22: =IF(CB$2=1,Klimadaten!CB22,"") ->  | CF22: =IF(CF$2=1,Klimadaten!CF22,"") ->  | CJ22: =IF(CJ$2=1,Klimadaten!CJ22,"") ->  | CN22: =IF(CN$2=1,Klimadaten!CN22,"") ->  | CR22: =IF(CR$2=1,Klimadaten!CR22,"") -> 3 | CV22: =IF(CV$2=1,Klimadaten!CV22,"") ->  | CZ22: =IF(CZ$2=1,Klimadaten!CZ22,"") ->  | DD22: =IF(DD$2=1,Klimadaten!DD22,"") ->  | DH22: =IF(DH$2=1,Klimadaten!DH22,"") ->  | DL22: =IF(DL$2=1,Klimadaten!DL22,"") ->  | DP22: =IF(DP$2=1,Klimadaten!DP22,"") ->  | DT22: =IF(DT$2=1,Klimadaten!DT22,"") ->  | DX22: =IF(DX$2=1,Klimadaten!DX22,"") ->  | EB22: =IF(EB$2=1,Klimadaten!EB22,"") ->  | EF22: =IF(EF$2=1,Klimadaten!EF22,"") ->  | EJ22: =IF(EJ$2=1,Klimadaten!EJ22,"") ->  | EN22: =IF(EN$2=1,Klimadaten!EN22,"") ->  | ER22: =IF(ER$2=1,Klimadaten!ER22,"") ->  | EV22: =IF(EV$2=1,Klimadaten!EV22,"") ->  | EZ22: =IF(EZ$2=1,Klimadaten!EZ22,"") ->  | FD22: =IF(FD$2=1,Klimadaten!FD22,"") ->  | FH22: =IF(FH$2=1,Klimadaten!FH22,"") ->  | FL22: =IF(FL$2=1,Klimadaten!FL22,"") ->  | FP22: =IF(FP$2=1,Klimadaten!FP22,"") ->  | FT22: =IF(FT$2=1,Klimadaten!FT22,"") ->  | FX22: =IF(FX$2=1,Klimadaten!FX22,"") ->  | GB22: =IF(GB$2=1,Klimadaten!GB22,"") ->  | GF22: =IF(GF$2=1,Klimadaten!GF22,"") ->  | GJ22: =IF(GJ$2=1,Klimadaten!GJ22,"") ->  | GN22: =IF(GN$2=1,Klimadaten!GN22,"") ->  | GR22: =IF(GR$2=1,Klimadaten!GR22,"") ->  | GV22: =IF(GV$2=1,Klimadaten!GV22,"") ->  | GZ22: =IF(GZ$2=1,Klimadaten!GZ22,"") ->  | HD22: =IF(HD$2=1,Klimadaten!HD22,"") ->  | HH22: =IF(HH$2=1,Klimadaten!HH22,"") ->  | HL22: =IF(HL$2=1,Klimadaten!HL22,"") -> 7 | IF22: =IF(IF$2=1,Klimadaten!IF22,"") ->  | IJ22: =IF(IJ$2=1,Klimadaten!IJ22,"") ->  | IN22: =IF(IN$2=1,Klimadaten!IN22,"") ->  | IR22: =IF(IR$2=1,Klimadaten!IR22,"") ->  | IV22: =IF(IV$2=1,Klimadaten!IV22,"") -> 
A23: -7 | D23: =IF(D$2=1,Klimadaten!D23,"") ->  | H23: =IF(H$2=1,Klimadaten!H23,"") -> 1 | L23: =IF(L$2=1,Klimadaten!L23,"") -> 0 | P23: =IF(P$2=1,Klimadaten!P23,"") ->  | T23: =IF(T$2=1,Klimadaten!T23,"") ->  | X23: =IF(X$2=1,Klimadaten!X23,"") ->  | AB23: =IF(AB$2=1,Klimadaten!AB23,"") ->  | AF23: =IF(AF$2=1,Klimadaten!AF23,"") ->  | AJ23: =IF(AJ$2=1,Klimadaten!AJ23,"") ->  | AN23: =IF(AN$2=1,Klimadaten!AN23,"") ->  | AR23: =IF(AR$2=1,Klimadaten!AR23,"") ->  | AV23: =IF(AV$2=1,Klimadaten!AV23,"") ->  | AZ23: =IF(AZ$2=1,Klimadaten!AZ23,"") ->  | BD23: =IF(BD$2=1,Klimadaten!BD23,"") ->  | BH23: =IF(BH$2=1,Klimadaten!BH23,"") ->  | BL23: =IF(BL$2=1,Klimadaten!BL23,"") ->  | BP23: =IF(BP$2=1,Klimadaten!BP23,"") ->  | BT23: =IF(BT$2=1,Klimadaten!BT23,"") ->  | BX23: =IF(BX$2=1,Klimadaten!BX23,"") ->  | CB23: =IF(CB$2=1,Klimadaten!CB23,"") ->  | CF23: =IF(CF$2=1,Klimadaten!CF23,"") ->  | CJ23: =IF(CJ$2=1,Klimadaten!CJ23,"") ->  | CN23: =IF(CN$2=1,Klimadaten!CN23,"") ->  | CR23: =IF(CR$2=1,Klimadaten!CR23,"") -> 6 | CV23: =IF(CV$2=1,Klimadaten!CV23,"") ->  | CZ23: =IF(CZ$2=1,Klimadaten!CZ23,"") ->  | DD23: =IF(DD$2=1,Klimadaten!DD23,"") ->  | DH23: =IF(DH$2=1,Klimadaten!DH23,"") ->  | DL23: =IF(DL$2=1,Klimadaten!DL23,"") ->  | DP23: =IF(DP$2=1,Klimadaten!DP23,"") ->  | DT23: =IF(DT$2=1,Klimadaten!DT23,"") ->  | DX23: =IF(DX$2=1,Klimadaten!DX23,"") ->  | EB23: =IF(EB$2=1,Klimadaten!EB23,"") ->  | EF23: =IF(EF$2=1,Klimadaten!EF23,"") ->  | EJ23: =IF(EJ$2=1,Klimadaten!EJ23,"") ->  | EN23: =IF(EN$2=1,Klimadaten!EN23,"") ->  | ER23: =IF(ER$2=1,Klimadaten!ER23,"") ->  | EV23: =IF(EV$2=1,Klimadaten!EV23,"") ->  | EZ23: =IF(EZ$2=1,Klimadaten!EZ23,"") ->  | FD23: =IF(FD$2=1,Klimadaten!FD23,"") ->  | FH23: =IF(FH$2=1,Klimadaten!FH23,"") ->  | FL23: =IF(FL$2=1,Klimadaten!FL23,"") ->  | FP23: =IF(FP$2=1,Klimadaten!FP23,"") ->  | FT23: =IF(FT$2=1,Klimadaten!FT23,"") ->  | FX23: =IF(FX$2=1,Klimadaten!FX23,"") ->  | GB23: =IF(GB$2=1,Klimadaten!GB23,"") ->  | GF23: =IF(GF$2=1,Klimadaten!GF23,"") ->  | GJ23: =IF(GJ$2=1,Klimadaten!GJ23,"") ->  | GN23: =IF(GN$2=1,Klimadaten!GN23,"") ->  | GR23: =IF(GR$2=1,Klimadaten!GR23,"") ->  | GV23: =IF(GV$2=1,Klimadaten!GV23,"") ->  | GZ23: =IF(GZ$2=1,Klimadaten!GZ23,"") ->  | HD23: =IF(HD$2=1,Klimadaten!HD23,"") ->  | HH23: =IF(HH$2=1,Klimadaten!HH23,"") ->  | HL23: =IF(HL$2=1,Klimadaten!HL23,"") -> 8 | IF23: =IF(IF$2=1,Klimadaten!IF23,"") ->  | IJ23: =IF(IJ$2=1,Klimadaten!IJ23,"") ->  | IN23: =IF(IN$2=1,Klimadaten!IN23,"") ->  | IR23: =IF(IR$2=1,Klimadaten!IR23,"") ->  | IV23: =IF(IV$2=1,Klimadaten!IV23,"") -> 
A24: -6 | D24: =IF(D$2=1,Klimadaten!D24,"") ->  | H24: =IF(H$2=1,Klimadaten!H24,"") -> 2 | L24: =IF(L$2=1,Klimadaten!L24,"") -> 0 | P24: =IF(P$2=1,Klimadaten!P24,"") ->  | T24: =IF(T$2=1,Klimadaten!T24,"") ->  | X24: =IF(X$2=1,Klimadaten!X24,"") ->  | AB24: =IF(AB$2=1,Klimadaten!AB24,"") ->  | AF24: =IF(AF$2=1,Klimadaten!AF24,"") ->  | AJ24: =IF(AJ$2=1,Klimadaten!AJ24,"") ->  | AN24: =IF(AN$2=1,Klimadaten!AN24,"") ->  | AR24: =IF(AR$2=1,Klimadaten!AR24,"") ->  | AV24: =IF(AV$2=1,Klimadaten!AV24,"") ->  | AZ24: =IF(AZ$2=1,Klimadaten!AZ24,"") ->  | BD24: =IF(BD$2=1,Klimadaten!BD24,"") ->  | BH24: =IF(BH$2=1,Klimadaten!BH24,"") ->  | BL24: =IF(BL$2=1,Klimadaten!BL24,"") ->  | BP24: =IF(BP$2=1,Klimadaten!BP24,"") ->  | BT24: =IF(BT$2=1,Klimadaten!BT24,"") ->  | BX24: =IF(BX$2=1,Klimadaten!BX24,"") ->  | CB24: =IF(CB$2=1,Klimadaten!CB24,"") ->  | CF24: =IF(CF$2=1,Klimadaten!CF24,"") ->  | CJ24: =IF(CJ$2=1,Klimadaten!CJ24,"") ->  | CN24: =IF(CN$2=1,Klimadaten!CN24,"") ->  | CR24: =IF(CR$2=1,Klimadaten!CR24,"") -> 6 | CV24: =IF(CV$2=1,Klimadaten!CV24,"") ->  | CZ24: =IF(CZ$2=1,Klimadaten!CZ24,"") ->  | DD24: =IF(DD$2=1,Klimadaten!DD24,"") ->  | DH24: =IF(DH$2=1,Klimadaten!DH24,"") ->  | DL24: =IF(DL$2=1,Klimadaten!DL24,"") ->  | DP24: =IF(DP$2=1,Klimadaten!DP24,"") ->  | DT24: =IF(DT$2=1,Klimadaten!DT24,"") ->  | DX24: =IF(DX$2=1,Klimadaten!DX24,"") ->  | EB24: =IF(EB$2=1,Klimadaten!EB24,"") ->  | EF24: =IF(EF$2=1,Klimadaten!EF24,"") ->  | EJ24: =IF(EJ$2=1,Klimadaten!EJ24,"") ->  | EN24: =IF(EN$2=1,Klimadaten!EN24,"") ->  | ER24: =IF(ER$2=1,Klimadaten!ER24,"") ->  | EV24: =IF(EV$2=1,Klimadaten!EV24,"") ->  | EZ24: =IF(EZ$2=1,Klimadaten!EZ24,"") ->  | FD24: =IF(FD$2=1,Klimadaten!FD24,"") ->  | FH24: =IF(FH$2=1,Klimadaten!FH24,"") ->  | FL24: =IF(FL$2=1,Klimadaten!FL24,"") ->  | FP24: =IF(FP$2=1,Klimadaten!FP24,"") ->  | FT24: =IF(FT$2=1,Klimadaten!FT24,"") ->  | FX24: =IF(FX$2=1,Klimadaten!FX24,"") ->  | GB24: =IF(GB$2=1,Klimadaten!GB24,"") ->  | GF24: =IF(GF$2=1,Klimadaten!GF24,"") ->  | GJ24: =IF(GJ$2=1,Klimadaten!GJ24,"") ->  | GN24: =IF(GN$2=1,Klimadaten!GN24,"") ->  | GR24: =IF(GR$2=1,Klimadaten!GR24,"") ->  | GV24: =IF(GV$2=1,Klimadaten!GV24,"") ->  | GZ24: =IF(GZ$2=1,Klimadaten!GZ24,"") ->  | HD24: =IF(HD$2=1,Klimadaten!HD24,"") ->  | HH24: =IF(HH$2=1,Klimadaten!HH24,"") ->  | HL24: =IF(HL$2=1,Klimadaten!HL24,"") -> 8 | IF24: =IF(IF$2=1,Klimadaten!IF24,"") ->  | IJ24: =IF(IJ$2=1,Klimadaten!IJ24,"") ->  | IN24: =IF(IN$2=1,Klimadaten!IN24,"") ->  | IR24: =IF(IR$2=1,Klimadaten!IR24,"") ->  | IV24: =IF(IV$2=1,Klimadaten!IV24,"") -> 
A25: -5 | D25: =IF(D$2=1,Klimadaten!D25,"") ->  | H25: =IF(H$2=1,Klimadaten!H25,"") -> 5 | L25: =IF(L$2=1,Klimadaten!L25,"") -> 0 | P25: =IF(P$2=1,Klimadaten!P25,"") ->  | T25: =IF(T$2=1,Klimadaten!T25,"") ->  | X25: =IF(X$2=1,Klimadaten!X25,"") ->  | AB25: =IF(AB$2=1,Klimadaten!AB25,"") ->  | AF25: =IF(AF$2=1,Klimadaten!AF25,"") ->  | AJ25: =IF(AJ$2=1,Klimadaten!AJ25,"") ->  | AN25: =IF(AN$2=1,Klimadaten!AN25,"") ->  | AR25: =IF(AR$2=1,Klimadaten!AR25,"") ->  | AV25: =IF(AV$2=1,Klimadaten!AV25,"") ->  | AZ25: =IF(AZ$2=1,Klimadaten!AZ25,"") ->  | BD25: =IF(BD$2=1,Klimadaten!BD25,"") ->  | BH25: =IF(BH$2=1,Klimadaten!BH25,"") ->  | BL25: =IF(BL$2=1,Klimadaten!BL25,"") ->  | BP25: =IF(BP$2=1,Klimadaten!BP25,"") ->  | BT25: =IF(BT$2=1,Klimadaten!BT25,"") ->  | BX25: =IF(BX$2=1,Klimadaten!BX25,"") ->  | CB25: =IF(CB$2=1,Klimadaten!CB25,"") ->  | CF25: =IF(CF$2=1,Klimadaten!CF25,"") ->  | CJ25: =IF(CJ$2=1,Klimadaten!CJ25,"") ->  | CN25: =IF(CN$2=1,Klimadaten!CN25,"") ->  | CR25: =IF(CR$2=1,Klimadaten!CR25,"") -> 5 | CV25: =IF(CV$2=1,Klimadaten!CV25,"") ->  | CZ25: =IF(CZ$2=1,Klimadaten!CZ25,"") ->  | DD25: =IF(DD$2=1,Klimadaten!DD25,"") ->  | DH25: =IF(DH$2=1,Klimadaten!DH25,"") ->  | DL25: =IF(DL$2=1,Klimadaten!DL25,"") ->  | DP25: =IF(DP$2=1,Klimadaten!DP25,"") ->  | DT25: =IF(DT$2=1,Klimadaten!DT25,"") ->  | DX25: =IF(DX$2=1,Klimadaten!DX25,"") ->  | EB25: =IF(EB$2=1,Klimadaten!EB25,"") ->  | EF25: =IF(EF$2=1,Klimadaten!EF25,"") ->  | EJ25: =IF(EJ$2=1,Klimadaten!EJ25,"") ->  | EN25: =IF(EN$2=1,Klimadaten!EN25,"") ->  | ER25: =IF(ER$2=1,Klimadaten!ER25,"") ->  | EV25: =IF(EV$2=1,Klimadaten!EV25,"") ->  | EZ25: =IF(EZ$2=1,Klimadaten!EZ25,"") ->  | FD25: =IF(FD$2=1,Klimadaten!FD25,"") ->  | FH25: =IF(FH$2=1,Klimadaten!FH25,"") ->  | FL25: =IF(FL$2=1,Klimadaten!FL25,"") ->  | FP25: =IF(FP$2=1,Klimadaten!FP25,"") ->  | FT25: =IF(FT$2=1,Klimadaten!FT25,"") ->  | FX25: =IF(FX$2=1,Klimadaten!FX25,"") ->  | GB25: =IF(GB$2=1,Klimadaten!GB25,"") ->  | GF25: =IF(GF$2=1,Klimadaten!GF25,"") ->  | GJ25: =IF(GJ$2=1,Klimadaten!GJ25,"") ->  | GN25: =IF(GN$2=1,Klimadaten!GN25,"") ->  | GR25: =IF(GR$2=1,Klimadaten!GR25,"") ->  | GV25: =IF(GV$2=1,Klimadaten!GV25,"") ->  | GZ25: =IF(GZ$2=1,Klimadaten!GZ25,"") ->  | HD25: =IF(HD$2=1,Klimadaten!HD25,"") ->  | HH25: =IF(HH$2=1,Klimadaten!HH25,"") ->  | HL25: =IF(HL$2=1,Klimadaten!HL25,"") -> 10 | IF25: =IF(IF$2=1,Klimadaten!IF25,"") ->  | IJ25: =IF(IJ$2=1,Klimadaten!IJ25,"") ->  | IN25: =IF(IN$2=1,Klimadaten!IN25,"") ->  | IR25: =IF(IR$2=1,Klimadaten!IR25,"") ->  | IV25: =IF(IV$2=1,Klimadaten!IV25,"") -> 
A26: -4 | D26: =IF(D$2=1,Klimadaten!D26,"") ->  | H26: =IF(H$2=1,Klimadaten!H26,"") -> 5 | L26: =IF(L$2=1,Klimadaten!L26,"") -> 0 | P26: =IF(P$2=1,Klimadaten!P26,"") ->  | T26: =IF(T$2=1,Klimadaten!T26,"") ->  | X26: =IF(X$2=1,Klimadaten!X26,"") ->  | AB26: =IF(AB$2=1,Klimadaten!AB26,"") ->  | AF26: =IF(AF$2=1,Klimadaten!AF26,"") ->  | AJ26: =IF(AJ$2=1,Klimadaten!AJ26,"") ->  | AN26: =IF(AN$2=1,Klimadaten!AN26,"") ->  | AR26: =IF(AR$2=1,Klimadaten!AR26,"") ->  | AV26: =IF(AV$2=1,Klimadaten!AV26,"") ->  | AZ26: =IF(AZ$2=1,Klimadaten!AZ26,"") ->  | BD26: =IF(BD$2=1,Klimadaten!BD26,"") ->  | BH26: =IF(BH$2=1,Klimadaten!BH26,"") ->  | BL26: =IF(BL$2=1,Klimadaten!BL26,"") ->  | BP26: =IF(BP$2=1,Klimadaten!BP26,"") ->  | BT26: =IF(BT$2=1,Klimadaten!BT26,"") ->  | BX26: =IF(BX$2=1,Klimadaten!BX26,"") ->  | CB26: =IF(CB$2=1,Klimadaten!CB26,"") ->  | CF26: =IF(CF$2=1,Klimadaten!CF26,"") ->  | CJ26: =IF(CJ$2=1,Klimadaten!CJ26,"") ->  | CN26: =IF(CN$2=1,Klimadaten!CN26,"") ->  | CR26: =IF(CR$2=1,Klimadaten!CR26,"") -> 7 | CV26: =IF(CV$2=1,Klimadaten!CV26,"") ->  | CZ26: =IF(CZ$2=1,Klimadaten!CZ26,"") ->  | DD26: =IF(DD$2=1,Klimadaten!DD26,"") ->  | DH26: =IF(DH$2=1,Klimadaten!DH26,"") ->  | DL26: =IF(DL$2=1,Klimadaten!DL26,"") ->  | DP26: =IF(DP$2=1,Klimadaten!DP26,"") ->  | DT26: =IF(DT$2=1,Klimadaten!DT26,"") ->  | DX26: =IF(DX$2=1,Klimadaten!DX26,"") ->  | EB26: =IF(EB$2=1,Klimadaten!EB26,"") ->  | EF26: =IF(EF$2=1,Klimadaten!EF26,"") ->  | EJ26: =IF(EJ$2=1,Klimadaten!EJ26,"") ->  | EN26: =IF(EN$2=1,Klimadaten!EN26,"") ->  | ER26: =IF(ER$2=1,Klimadaten!ER26,"") ->  | EV26: =IF(EV$2=1,Klimadaten!EV26,"") ->  | EZ26: =IF(EZ$2=1,Klimadaten!EZ26,"") ->  | FD26: =IF(FD$2=1,Klimadaten!FD26,"") ->  | FH26: =IF(FH$2=1,Klimadaten!FH26,"") ->  | FL26: =IF(FL$2=1,Klimadaten!FL26,"") ->  | FP26: =IF(FP$2=1,Klimadaten!FP26,"") ->  | FT26: =IF(FT$2=1,Klimadaten!FT26,"") ->  | FX26: =IF(FX$2=1,Klimadaten!FX26,"") ->  | GB26: =IF(GB$2=1,Klimadaten!GB26,"") ->  | GF26: =IF(GF$2=1,Klimadaten!GF26,"") ->  | GJ26: =IF(GJ$2=1,Klimadaten!GJ26,"") ->  | GN26: =IF(GN$2=1,Klimadaten!GN26,"") ->  | GR26: =IF(GR$2=1,Klimadaten!GR26,"") ->  | GV26: =IF(GV$2=1,Klimadaten!GV26,"") ->  | GZ26: =IF(GZ$2=1,Klimadaten!GZ26,"") ->  | HD26: =IF(HD$2=1,Klimadaten!HD26,"") ->  | HH26: =IF(HH$2=1,Klimadaten!HH26,"") ->  | HL26: =IF(HL$2=1,Klimadaten!HL26,"") -> 11 | IF26: =IF(IF$2=1,Klimadaten!IF26,"") ->  | IJ26: =IF(IJ$2=1,Klimadaten!IJ26,"") ->  | IN26: =IF(IN$2=1,Klimadaten!IN26,"") ->  | IR26: =IF(IR$2=1,Klimadaten!IR26,"") ->  | IV26: =IF(IV$2=1,Klimadaten!IV26,"") -> 
A27: -3 | D27: =IF(D$2=1,Klimadaten!D27,"") ->  | H27: =IF(H$2=1,Klimadaten!H27,"") -> 7 | L27: =IF(L$2=1,Klimadaten!L27,"") -> 0 | P27: =IF(P$2=1,Klimadaten!P27,"") ->  | T27: =IF(T$2=1,Klimadaten!T27,"") ->  | X27: =IF(X$2=1,Klimadaten!X27,"") ->  | AB27: =IF(AB$2=1,Klimadaten!AB27,"") ->  | AF27: =IF(AF$2=1,Klimadaten!AF27,"") ->  | AJ27: =IF(AJ$2=1,Klimadaten!AJ27,"") ->  | AN27: =IF(AN$2=1,Klimadaten!AN27,"") ->  | AR27: =IF(AR$2=1,Klimadaten!AR27,"") ->  | AV27: =IF(AV$2=1,Klimadaten!AV27,"") ->  | AZ27: =IF(AZ$2=1,Klimadaten!AZ27,"") ->  | BD27: =IF(BD$2=1,Klimadaten!BD27,"") ->  | BH27: =IF(BH$2=1,Klimadaten!BH27,"") ->  | BL27: =IF(BL$2=1,Klimadaten!BL27,"") ->  | BP27: =IF(BP$2=1,Klimadaten!BP27,"") ->  | BT27: =IF(BT$2=1,Klimadaten!BT27,"") ->  | BX27: =IF(BX$2=1,Klimadaten!BX27,"") ->  | CB27: =IF(CB$2=1,Klimadaten!CB27,"") ->  | CF27: =IF(CF$2=1,Klimadaten!CF27,"") ->  | CJ27: =IF(CJ$2=1,Klimadaten!CJ27,"") ->  | CN27: =IF(CN$2=1,Klimadaten!CN27,"") ->  | CR27: =IF(CR$2=1,Klimadaten!CR27,"") -> 9 | CV27: =IF(CV$2=1,Klimadaten!CV27,"") ->  | CZ27: =IF(CZ$2=1,Klimadaten!CZ27,"") ->  | DD27: =IF(DD$2=1,Klimadaten!DD27,"") ->  | DH27: =IF(DH$2=1,Klimadaten!DH27,"") ->  | DL27: =IF(DL$2=1,Klimadaten!DL27,"") ->  | DP27: =IF(DP$2=1,Klimadaten!DP27,"") ->  | DT27: =IF(DT$2=1,Klimadaten!DT27,"") ->  | DX27: =IF(DX$2=1,Klimadaten!DX27,"") ->  | EB27: =IF(EB$2=1,Klimadaten!EB27,"") ->  | EF27: =IF(EF$2=1,Klimadaten!EF27,"") ->  | EJ27: =IF(EJ$2=1,Klimadaten!EJ27,"") ->  | EN27: =IF(EN$2=1,Klimadaten!EN27,"") ->  | ER27: =IF(ER$2=1,Klimadaten!ER27,"") ->  | EV27: =IF(EV$2=1,Klimadaten!EV27,"") ->  | EZ27: =IF(EZ$2=1,Klimadaten!EZ27,"") ->  | FD27: =IF(FD$2=1,Klimadaten!FD27,"") ->  | FH27: =IF(FH$2=1,Klimadaten!FH27,"") ->  | FL27: =IF(FL$2=1,Klimadaten!FL27,"") ->  | FP27: =IF(FP$2=1,Klimadaten!FP27,"") ->  | FT27: =IF(FT$2=1,Klimadaten!FT27,"") ->  | FX27: =IF(FX$2=1,Klimadaten!FX27,"") ->  | GB27: =IF(GB$2=1,Klimadaten!GB27,"") ->  | GF27: =IF(GF$2=1,Klimadaten!GF27,"") ->  | GJ27: =IF(GJ$2=1,Klimadaten!GJ27,"") ->  | GN27: =IF(GN$2=1,Klimadaten!GN27,"") ->  | GR27: =IF(GR$2=1,Klimadaten!GR27,"") ->  | GV27: =IF(GV$2=1,Klimadaten!GV27,"") ->  | GZ27: =IF(GZ$2=1,Klimadaten!GZ27,"") ->  | HD27: =IF(HD$2=1,Klimadaten!HD27,"") ->  | HH27: =IF(HH$2=1,Klimadaten!HH27,"") ->  | HL27: =IF(HL$2=1,Klimadaten!HL27,"") -> 12 | IF27: =IF(IF$2=1,Klimadaten!IF27,"") ->  | IJ27: =IF(IJ$2=1,Klimadaten!IJ27,"") ->  | IN27: =IF(IN$2=1,Klimadaten!IN27,"") ->  | IR27: =IF(IR$2=1,Klimadaten!IR27,"") ->  | IV27: =IF(IV$2=1,Klimadaten!IV27,"") -> 
A28: -2 | D28: =IF(D$2=1,Klimadaten!D28,"") ->  | H28: =IF(H$2=1,Klimadaten!H28,"") -> 7 | L28: =IF(L$2=1,Klimadaten!L28,"") -> 1 | P28: =IF(P$2=1,Klimadaten!P28,"") ->  | T28: =IF(T$2=1,Klimadaten!T28,"") ->  | X28: =IF(X$2=1,Klimadaten!X28,"") ->  | AB28: =IF(AB$2=1,Klimadaten!AB28,"") ->  | AF28: =IF(AF$2=1,Klimadaten!AF28,"") ->  | AJ28: =IF(AJ$2=1,Klimadaten!AJ28,"") ->  | AN28: =IF(AN$2=1,Klimadaten!AN28,"") ->  | AR28: =IF(AR$2=1,Klimadaten!AR28,"") ->  | AV28: =IF(AV$2=1,Klimadaten!AV28,"") ->  | AZ28: =IF(AZ$2=1,Klimadaten!AZ28,"") ->  | BD28: =IF(BD$2=1,Klimadaten!BD28,"") ->  | BH28: =IF(BH$2=1,Klimadaten!BH28,"") ->  | BL28: =IF(BL$2=1,Klimadaten!BL28,"") ->  | BP28: =IF(BP$2=1,Klimadaten!BP28,"") ->  | BT28: =IF(BT$2=1,Klimadaten!BT28,"") ->  | BX28: =IF(BX$2=1,Klimadaten!BX28,"") ->  | CB28: =IF(CB$2=1,Klimadaten!CB28,"") ->  | CF28: =IF(CF$2=1,Klimadaten!CF28,"") ->  | CJ28: =IF(CJ$2=1,Klimadaten!CJ28,"") ->  | CN28: =IF(CN$2=1,Klimadaten!CN28,"") ->  | CR28: =IF(CR$2=1,Klimadaten!CR28,"") -> 9 | CV28: =IF(CV$2=1,Klimadaten!CV28,"") ->  | CZ28: =IF(CZ$2=1,Klimadaten!CZ28,"") ->  | DD28: =IF(DD$2=1,Klimadaten!DD28,"") ->  | DH28: =IF(DH$2=1,Klimadaten!DH28,"") ->  | DL28: =IF(DL$2=1,Klimadaten!DL28,"") ->  | DP28: =IF(DP$2=1,Klimadaten!DP28,"") ->  | DT28: =IF(DT$2=1,Klimadaten!DT28,"") ->  | DX28: =IF(DX$2=1,Klimadaten!DX28,"") ->  | EB28: =IF(EB$2=1,Klimadaten!EB28,"") ->  | EF28: =IF(EF$2=1,Klimadaten!EF28,"") ->  | EJ28: =IF(EJ$2=1,Klimadaten!EJ28,"") ->  | EN28: =IF(EN$2=1,Klimadaten!EN28,"") ->  | ER28: =IF(ER$2=1,Klimadaten!ER28,"") ->  | EV28: =IF(EV$2=1,Klimadaten!EV28,"") ->  | EZ28: =IF(EZ$2=1,Klimadaten!EZ28,"") ->  | FD28: =IF(FD$2=1,Klimadaten!FD28,"") ->  | FH28: =IF(FH$2=1,Klimadaten!FH28,"") ->  | FL28: =IF(FL$2=1,Klimadaten!FL28,"") ->  | FP28: =IF(FP$2=1,Klimadaten!FP28,"") ->  | FT28: =IF(FT$2=1,Klimadaten!FT28,"") ->  | FX28: =IF(FX$2=1,Klimadaten!FX28,"") ->  | GB28: =IF(GB$2=1,Klimadaten!GB28,"") ->  | GF28: =IF(GF$2=1,Klimadaten!GF28,"") ->  | GJ28: =IF(GJ$2=1,Klimadaten!GJ28,"") ->  | GN28: =IF(GN$2=1,Klimadaten!GN28,"") ->  | GR28: =IF(GR$2=1,Klimadaten!GR28,"") ->  | GV28: =IF(GV$2=1,Klimadaten!GV28,"") ->  | GZ28: =IF(GZ$2=1,Klimadaten!GZ28,"") ->  | HD28: =IF(HD$2=1,Klimadaten!HD28,"") ->  | HH28: =IF(HH$2=1,Klimadaten!HH28,"") ->  | HL28: =IF(HL$2=1,Klimadaten!HL28,"") -> 12 | IF28: =IF(IF$2=1,Klimadaten!IF28,"") ->  | IJ28: =IF(IJ$2=1,Klimadaten!IJ28,"") ->  | IN28: =IF(IN$2=1,Klimadaten!IN28,"") ->  | IR28: =IF(IR$2=1,Klimadaten!IR28,"") ->  | IV28: =IF(IV$2=1,Klimadaten!IV28,"") -> 
